Workbook

Sheet Process data log-S3
A1: E:\PhD\Experiment\2018_11_08_Sucrose and NaCl solutions study (Tg' and collapse)
C4: Start apply vaccum | E4: 11.23 | F4: h | G4: Temperature ramp up at primary drying | L4: h
C5: Start liquid phase | F5: h
C6: End liquid phase | F6: h
B9: 1 | C9: 2 | D9: 3 | E9: 4 | F9: 5 | G9: 6 | H9: 7 | I9: 8 | J9: 9 | K9: 10 | L9: 11 | M9: 12 | N9: 13 | O9: 14 | P9: 15 | Q9: 16 | R9: 17 | S9: 18 | T9: 19 | U9: 20 | V9: 21 | W9: 22 | X9: 23 | Y9: 24 | Z9: 25 | AA9: 26 | AB9: 27 | AC9: 28 | AD9: 29
S10: TC4 | U10: 0% NaCl | W10: 0.13% NaCl | Y10: 0.55% NaCl | AA10: 0.41% NaCl | AC10: 0.26% NaCl
S11: USED | U11: S1 (TC1) | W11: S2 (TC2) | Y11: S5 (TC4) | AA11: S4 (TC3 used S4) | AC11: S3 (TC3 used S4)
C12: Paste the Process data log here (in C8) | U12: IMG for CH1 | W12: IMG for CH2 | Y12: IMG for CH3 | AA12: IMG for CH4 | AC12: IMG for CH5
A13: Time /min | B13: Time/hr. | C13: Product temperature 1 | D13: Product temperature 2 | E13: Product temperature 3 | F13: Product temperature 4 | G13: Tave | H13: Shelf temperature | I13: Condenser temperature | J13: Vacuum | K13: Vacuum | N13: Vaccum mbar | O13: Time/h (Primary drying) | P13: Time/h (Primary drying) | S13: Product temperature | U13: IMG | V13: Time | W13: IMG | X13: Time | Y13: IMG | Z13: Time | AA13: IMG | AB13: Time | AC13: IMG | AD13: Time
A14: 0 | B14: =ROUND(A14/60,3) -> 0 | C14: 23.3 | D14: 23.4 | E14: 23.3 | F14: 23.2 | G14: 23.2 | H14: 24.7 | I14: 24.1 | J14: 9999 | K14: ---- | L14: 38018 | M14: 1 | N14: =IF(J14=9999,#N/A,J14/1000) ->  | O14: =IF(B14>=$E$2,B14-$E$2,#N/A) -> 0 | P14: =IF(B14>=$E$2,B14,#N/A) -> 0 | S14: =F14 -> 23.2 | U14: 0017 | V14: 0 | W14: 0017 | X14: 0 | Y14: 5890 | Z14: 0 | AA14: 5890 | AB14: 0 | AC14: 5890 | AD14: 0
A15: 2 | B15: =ROUND(A15/60,3) -> 0.033 | C15: 23.4 | D15: 23.6 | E15: 23.5 | F15: 22.4 | G15: 23.2 | H15: 24.9 | I15: 25.9 | J15: 9999 | K15: ---- | L15: 38018 | M15: 10 | O15: 0.033 | P15: 0.033 | S15: =F15 -> 22.4 | U15: 0047 | V15: 1 | W15: 0047 | X15: 1 | Y15: 5920 | Z15: 1 | AA15: 5920 | AB15: 1 | AC15: 5920 | AD15: 1
A16: 4 | B16: 0.067 | C16: 22.3 | D16: 22.1 | E16: 21.6 | F16: 21.5 | G16: 21.8 | H16: 19.9 | I16: -21.8 | J16: 9999 | K16: ---- | L16: 38018 | M16: 10 | O16: 0.067 | P16: 0.067 | S16: 21.5 | U16: 0061 | V16: 1.5 | W16: 0061 | X16: 1.5 | Y16: 5935 | Z16: 1.5 | AA16: 5935 | AB16: 1.5 | AC16: 5935 | AD16: 1.5
A17: 6 | B17: 0.1 | C17: 22.1 | D17: 21.6 | E17: 21.1 | F17: 21.2 | G17: 21.5 | H17: 20 | I17: -32.3 | J17: 9999 | K17: ---- | L17: 38018 | M17: 1 | O17: 0.1 | P17: 0.1 | S17: 21.2 | U17: 0073 | V17: 1.9 | W17: 0065 | X17: 1.63 | Y17: 5939 | Z17: 1.63 | AA17: 5939 | AB17: 1.63 | AC17: 5939 | AD17: 1.63
A18: 8 | B18: 0.133 | C18: 21.7 | D18: 21.3 | E18: 20.8 | F18: 20.6 | G18: 21.1 | H18: 20.2 | I18: -43.2 | J18: 9999 | K18: ---- | L18: 38018 | M18: 12 | O18: 0.133 | P18: 0.133 | S18: 20.6 | U18: 0075 | V18: 1.97 | W18: 0067 | X18: 1.7 | Y18: 5940 | Z18: 1.67 | AA18: 5940 | AB18: 1.67 | AC18: 5940 | AD18: 1.67
A19: 10 | B19: 0.167 | C19: 21.4 | D19: 20.9 | E19: 20.3 | F19: 20.4 | G19: 20.7 | H19: 19.9 | I19: -51.4 | J19: 9999 | K19: ---- | L19: 38018 | M19: 12 | O19: 0.167 | P19: 0.167 | S19: 20.4 | U19: 0076 | V19: 2 | W19: 0068 | X19: 1.73 | Y19: 5942 | Z19: 1.73 | AA19: 5942 | AB19: 1.73 | AC19: 5942 | AD19: 1.73
A20: 12 | B20: 0.2 | C20: 21.1 | D20: 20.5 | E20: 20 | F20: 20 | G20: 20.3 | H20: 19.9 | I20: -55.4 | J20: 9999 | K20: ---- | L20: 38018 | M20: 7 | O20: 0.2 | P20: 0.2 | S20: 20 | U20: 0081 | V20: 2.17 | W20: 0073 | X20: 1.9 | Y20: 5943 | Z20: 1.77 | AA20: 5943 | AB20: 1.77 | AC20: 5943 | AD20: 1.77
A21: 14 | B21: 0.233 | C21: 20.9 | D21: 20.4 | E21: 19.8 | F21: 19.8 | G21: 20.2 | H21: 20 | I21: -59.7 | J21: 9999 | K21: ---- | L21: 38018 | M21: 1 | O21: 0.233 | P21: 0.233 | S21: 19.8 | U21: 0083 | V21: 2.23 | W21: 0075 | X21: 1.97 | Y21: 5944 | Z21: 1.8 | AA21: 5944 | AB21: 1.8 | AC21: 5944 | AD21: 1.8
A22: 16 | B22: 0.267 | C22: 20.7 | D22: 20.2 | E22: 19.8 | F22: 19.7 | G22: 20.1 | H22: 20.2 | I22: -62.2 | J22: 9999 | K22: ---- | L22: 38018 | M22: 12 | O22: 0.267 | P22: 0.267 | S22: 19.7 | U22: 0084 | V22: 2.27 | W22: 0076 | X22: 2 | Y22: 5949 | Z22: 1.97 | AA22: 5945 | AB22: 1.83 | AC22: 5945 | AD22: 1.83
A23: 18 | B23: 0.3 | C23: 20.6 | D23: 20.1 | E23: 19.7 | F23: 19.7 | G23: 20 | H23: 20 | I23: -63.3 | J23: 9999 | K23: ---- | L23: 38018 | M23: 10 | O23: 0.3 | P23: 0.3 | S23: 19.7 | U23: 0087 | V23: 2.37 | W23: 0078 | X23: 2.07 | Y23: 5950 | Z23: 2 | AA23: 5947 | AB23: 1.9 | AC23: 5947 | AD23: 1.9
A24: 20 | B24: 0.333 | C24: 20.3 | D24: 19.9 | E24: 19.5 | F24: 19.6 | G24: 19.8 | H24: 20.3 | I24: -61.7 | J24: 9999 | K24: ---- | L24: 38018 | M24: 7 | O24: 0.333 | P24: 0.333 | S24: 19.6 | U24: 0100 | V24: 2.8 | W24: 0080 | X24: 2.13 | Y24: 5951 | Z24: 2.03 | AA24: 5949 | AB24: 1.97 | AC24: 5949 | AD24: 1.97
A25: 22 | B25: 0.367 | C25: 20.2 | D25: 19.8 | E25: 19.5 | F25: 19.6 | G25: 19.7 | H25: 20.1 | I25: -65 | J25: 9999 | K25: ---- | L25: 38018 | M25: 1 | O25: 0.367 | P25: 0.367 | S25: 19.6 | U25: 0121 | V25: 3.5 | W25: 0081 | X25: 2.17 | Y25: 5954 | Z25: 2.13 | AA25: 5950 | AB25: 2 | AC25: 5950 | AD25: 2
A26: 24 | B26: 0.4 | C26: 20 | D26: 19.8 | E26: 19.5 | F26: 19.3 | G26: 19.6 | H26: 19.8 | I26: -63.2 | J26: 9999 | K26: ---- | L26: 38018 | M26: 12 | O26: 0.4 | P26: 0.4 | S26: 19.3 | U26: 0135 | V26: 4 | W26: 0083 | X26: 2.23 | Y26: 5955 | Z26: 2.17 | AA26: 5951 | AB26: 2.03 | AC26: 5951 | AD26: 2.03
A27: 26 | B27: 0.433 | C27: 20 | D27: 19.8 | E27: 19.3 | F27: 19.3 | G27: 19.6 | H27: 20 | I27: -63.7 | J27: 9999 | K27: ---- | L27: 38018 | M27: 10 | O27: 0.433 | P27: 0.433 | S27: 19.3 | U27: 0150 | V27: 4.5 | W27: 0084 | X27: 2.27 | Y27: 5959 | Z27: 2.3 | AA27: 5954 | AB27: 2.13 | AC27: 5954 | AD27: 2.13
A28: 28 | B28: 0.467 | C28: 19.9 | D28: 19.6 | E28: 19.3 | F28: 19.3 | G28: 19.5 | H28: 20 | I28: -61.7 | J28: 9999 | K28: ---- | L28: 38018 | M28: 7 | O28: 0.467 | P28: 0.467 | S28: 19.3 | W28: 0086 | X28: 2.33 | Y28: 5962 | Z28: 2.4 | AA28: 5955 | AB28: 2.17 | AC28: 5955 | AD28: 2.17
A29: 30 | B29: 0.5 | C29: 19.9 | D29: 19.7 | E29: 19.3 | F29: 19.3 | G29: 19.5 | H29: 20.1 | I29: -65.1 | J29: 9999 | K29: ---- | L29: 38018 | M29: 1 | O29: 0.5 | P29: 0.5 | S29: 19.3 | W29: 0087 | X29: 2.37 | Y29: 5966 | Z29: 2.53 | AA29: 5956 | AB29: 2.2 | AC29: 5956 | AD29: 2.2
A30: 32 | B30: 0.533 | C30: 19.8 | D30: 19.5 | E30: 19.2 | F30: 19.3 | G30: 19.4 | H30: 20 | I30: -58.8 | J30: 9999 | K30: ---- | L30: 38018 | M30: 12 | O30: 0.533 | P30: 0.533 | S30: 19.3 | W30: 0100 | X30: 2.8 | Y30: 5974 | Z30: 2.8 | AA30: 5959 | AB30: 2.3 | AC30: 5959 | AD30: 2.3
A31: 34 | B31: 0.567 | C31: 19.7 | D31: 19.3 | E31: 18.9 | F31: 19 | G31: 19.2 | H31: 18.4 | I31: -63.5 | J31: 9999 | K31: ---- | L31: 38018 | M31: 10 | O31: 0.567 | P31: 0.567 | S31: 19 | W31: 0121 | X31: 3.5 | Y31: 5980 | Z31: 3 | AA31: 5961 | AB31: 2.37 | AC31: 5961 | AD31: 2.37
A32: 36 | B32: 0.6 | C32: 19.3 | D32: 18.8 | E32: 18.4 | F32: 18.6 | G32: 18.7 | H32: 17.4 | I32: -61.4 | J32: 9999 | K32: ---- | L32: 38018 | M32: 7 | O32: 0.6 | P32: 0.6 | S32: 18.6 | W32: 0135 | X32: 4 | Y32: 5995 | Z32: 3.5 | AA32: 5962 | AB32: 2.4 | AC32: 5962 | AD32: 2.4
A33: 38 | B33: 0.633 | C33: 19 | D33: 18.5 | E33: 18 | F33: 18 | G33: 18.3 | H33: 16.5 | I33: -62 | J33: 9999 | K33: ---- | L33: 38018 | M33: 1 | O33: 0.633 | P33: 0.633 | S33: 18 | W33: 0150 | X33: 4.5 | Y33: 6010 | Z33: 4 | AA33: 5963 | AB33: 2.43 | AC33: 5963 | AD33: 2.43
A34: 40 | B34: 0.667 | C34: 18.7 | D34: 18 | E34: 17.4 | F34: 17.4 | G34: 17.8 | H34: 16.3 | I34: -55.2 | J34: 9999 | K34: ---- | L34: 38018 | M34: 12 | O34: 0.667 | P34: 0.667 | S34: 17.4 | Y34: 6025 | Z34: 4.5 | AA34: 5966 | AB34: 2.53 | AC34: 5966 | AD34: 2.53
A35: 42 | B35: 0.7 | C35: 18.2 | D35: 17.4 | E35: 16.6 | F35: 16.7 | G35: 17.2 | H35: 14.4 | I35: -60.5 | J35: 9999 | K35: ---- | L35: 38018 | M35: 10 | O35: 0.7 | P35: 0.7 | S35: 16.7 | AA35: 5967 | AB35: 2.57 | AC35: 5967 | AD35: 2.57
A36: 44 | B36: 0.733 | C36: 17.8 | D36: 16.8 | E36: 16.1 | F36: 16.1 | G36: 16.6 | H36: 13.9 | I36: -57.4 | J36: 9999 | K36: ---- | L36: 38018 | M36: 7 | O36: 0.733 | P36: 0.733 | S36: 16.1 | AA36: 5974 | AB36: 2.8 | AC36: 5970 | AD36: 2.67
A37: 46 | B37: 0.767 | C37: 17.2 | D37: 16 | E37: 15.2 | F37: 15.3 | G37: 15.9 | H37: 12.6 | I37: -59.6 | J37: 9999 | K37: ---- | L37: 38018 | M37: 1 | O37: 0.767 | P37: 0.767 | S37: 15.3 | AA37: 5980 | AB37: 3 | AC37: 5974 | AD37: 2.8
A38: 48 | B38: 0.8 | C38: 16.6 | D38: 15.4 | E38: 14.5 | F38: 14.6 | G38: 15.2 | H38: 12 | I38: -56.5 | J38: 9999 | K38: ---- | L38: 38018 | M38: 10 | O38: 0.8 | P38: 0.8 | S38: 14.6 | AA38: 5995 | AB38: 3.5 | AC38: 5980 | AD38: 3
A39: 50 | B39: 0.833 | C39: 15.9 | D39: 14.6 | E39: 13.6 | F39: 13.7 | G39: 14.4 | H39: 10.2 | I39: -57.8 | J39: 9999 | K39: ---- | L39: 38018 | M39: 7 | O39: 0.833 | P39: 0.833 | S39: 13.7 | AA39: 6010 | AB39: 4 | AC39: 5995 | AD39: 3.5
A40: 52 | B40: 0.867 | C40: 15.3 | D40: 13.8 | E40: 12.8 | F40: 13 | G40: 13.7 | H40: 9.5 | I40: -58.6 | J40: 9999 | K40: ---- | L40: 38018 | M40: 1 | O40: 0.867 | P40: 0.867 | S40: 13 | AA40: 6025 | AB40: 4.5 | AC40: 6010 | AD40: 4
A41: 54 | B41: 0.9 | C41: 14.7 | D41: 13 | E41: 12 | F41: 12.1 | G41: 12.9 | H41: 8.4 | I41: -58.3 | J41: 9999 | K41: ---- | L41: 38018 | M41: 12 | O41: 0.9 | P41: 0.9 | S41: 12.1 | AC41: 6025 | AD41: 4.5
A42: 56 | B42: 0.933 | C42: 13.9 | D42: 12.2 | E42: 11.2 | F42: 11.2 | G42: 12.1 | H42: 7.4 | I42: -57.8 | J42: 9999 | K42: ---- | L42: 38018 | M42: 10 | O42: 0.933 | P42: 0.933 | S42: 11.2
A43: 58 | B43: 0.967 | C43: 13.2 | D43: 11.5 | E43: 10.4 | F43: 10.4 | G43: 11.3 | H43: 6.5 | I43: -58.2 | J43: 9999 | K43: ---- | L43: 38018 | M43: 7 | O43: 0.967 | P43: 0.967 | S43: 10.4
A44: 60 | B44: 1 | C44: 12.5 | D44: 10.7 | E44: 9.4 | F44: 9.5 | G44: 10.5 | H44: 5.3 | I44: -57.8 | J44: 9999 | K44: ---- | L44: 38018 | M44: 1 | O44: 1 | P44: 1 | S44: 9.5
A45: 62 | B45: 1.033 | C45: 11.8 | D45: 9.9 | E45: 8.6 | F45: 8.7 | G45: 9.7 | H45: 4.6 | I45: -55.5 | J45: 9999 | K45: ---- | L45: 38018 | M45: 12 | O45: 1.033 | P45: 1.033 | S45: 8.7
A46: 64 | B46: 1.067 | C46: 10.9 | D46: 9 | E46: 7.7 | F46: 7.8 | G46: 8.8 | H46: 3.5 | I46: -58.2 | J46: 9999 | K46: ---- | L46: 38018 | M46: 10 | O46: 1.067 | P46: 1.067 | S46: 7.8
A47: 66 | B47: 1.1 | C47: 10.3 | D47: 8.2 | E47: 6.9 | F47: 6.9 | G47: 8 | H47: 2.6 | I47: -55 | J47: 9999 | K47: ---- | L47: 38018 | M47: 7 | O47: 1.1 | P47: 1.1 | S47: 6.9
A48: 68 | B48: 1.133 | C48: 9.4 | D48: 7.3 | E48: 6 | F48: 6.1 | G48: 7.1 | H48: 1.5 | I48: -57.6 | J48: 9999 | K48: ---- | L48: 38018 | M48: 1 | O48: 1.133 | P48: 1.133 | S48: 6.1
A49: 70 | B49: 1.167 | C49: 8.6 | D49: 6.5 | E49: 5.1 | F49: 5.1 | G49: 6.3 | H49: 0.5 | I49: -51.9 | J49: 9999 | K49: ---- | L49: 38018 | M49: 12 | O49: 1.167 | P49: 1.167 | S49: 5.1
A50: 72 | B50: 1.2 | C50: 7.9 | D50: 5.6 | E50: 4.2 | F50: 4.3 | G50: 5.5 | H50: -0.5 | I50: -56.6 | J50: 9999 | K50: ---- | L50: 38018 | M50: 7 | O50: 1.2 | P50: 1.2 | S50: 4.3
A51: 74 | B51: 1.233 | C51: 7 | D51: 4.8 | E51: 3.4 | F51: 3.4 | G51: 4.6 | H51: -1.5 | I51: -51.7 | J51: 9999 | K51: ---- | L51: 38018 | M51: 1 | O51: 1.233 | P51: 1.233 | S51: 3.4
A52: 76 | B52: 1.267 | C52: 6.2 | D52: 3.9 | E52: 2.5 | F52: 2.6 | G52: 3.7 | H52: -2.7 | I52: -56 | J52: 9999 | K52: ---- | L52: 38018 | M52: 12 | O52: 1.267 | P52: 1.267 | S52: 2.6
A53: 78 | B53: 1.3 | C53: 5.4 | D53: 3.1 | E53: 1.8 | F53: 1.8 | G53: 3 | H53: -3.3 | I53: -52 | J53: 9999 | K53: ---- | L53: 38018 | M53: 10 | O53: 1.3 | P53: 1.3 | S53: 1.8
A54: 80 | B54: 1.333 | C54: 4.7 | D54: 2.4 | E54: 0.9 | F54: 1 | G54: 2.2 | H54: -4.4 | I54: -56.4 | J54: 9999 | K54: ---- | L54: 38018 | M54: 7 | O54: 1.333 | P54: 1.333 | S54: 1
A55: 82 | B55: 1.367 | C55: 3.9 | D55: 1.6 | E55: 0.2 | F55: 0.2 | G55: 1.4 | H55: -5.2 | I55: -50.3 | J55: 9999 | K55: ---- | L55: 38018 | M55: 1 | O55: 1.367 | P55: 1.367 | S55: 0.2
A56: 84 | B56: 1.4 | C56: 3.2 | D56: 0.9 | E56: -0.5 | F56: -0.5 | G56: 0.7 | H56: -6.4 | I56: -55.5 | J56: 9999 | K56: ---- | L56: 38018 | M56: 12 | O56: 1.4 | P56: 1.4 | S56: -0.5
A57: 86 | B57: 1.433 | C57: 2.4 | D57: 0.2 | E57: -1.3 | F57: -1.3 | G57: 0 | H57: -7.2 | I57: -50.6 | J57: 9999 | K57: ---- | L57: 38018 | M57: 10 | O57: 1.433 | P57: 1.433 | S57: -1.3
A58: 88 | B58: 1.467 | C58: 1.8 | D58: -0.5 | E58: -2.4 | F58: -2.4 | G58: -0.9 | H58: -8.3 | I58: -53.5 | J58: 9999 | K58: ---- | L58: 38018 | M58: 7 | O58: 1.467 | P58: 1.467 | S58: -2.4
A59: 90 | B59: 1.5 | C59: 1.1 | D59: -1.7 | E59: -3.5 | F59: -3.6 | G59: -2 | H59: -9.2 | I59: -48.4 | J59: 9999 | K59: ---- | L59: 38018 | M59: 1 | O59: 1.5 | P59: 1.5 | S59: -3.6
A60: 92 | B60: 1.533 | C60: 0.3 | D60: -2.7 | E60: -4.6 | F60: -4.7 | G60: -3 | H60: -10.2 | I60: -54.9 | J60: 9999 | K60: ---- | L60: 38018 | M60: 12 | O60: 1.533 | P60: 1.533 | S60: -4.7
A61: 94 | B61: 1.567 | C61: -0.7 | D61: -3.7 | E61: -5.7 | F61: -5.8 | G61: -4 | H61: -11.3 | I61: -46.5 | J61: 9999 | K61: ---- | L61: 38018 | M61: 10 | O61: 1.567 | P61: 1.567 | S61: -5.8
A62: 96 | B62: 1.6 | C62: -1.8 | D62: -4.7 | E62: -6.8 | F62: -6.7 | G62: -5 | H62: -12.1 | I62: -54.4 | J62: 9999 | K62: ---- | L62: 38018 | M62: 7 | O62: 1.6 | P62: 1.6 | S62: -6.7
A63: 98 | B63: 1.633 | C63: -2.7 | D63: -5.6 | E63: -7.7 | F63: -7.7 | G63: -6 | H63: -13 | I63: -46.6 | J63: 9999 | K63: ---- | L63: 38018 | M63: 1 | O63: 1.633 | P63: 1.633 | S63: -7.7
A64: 100 | B64: 1.667 | C64: -3.7 | D64: -6.6 | E64: -1.5 | F64: -8.7 | G64: -5.2 | H64: -14.3 | I64: -53.6 | J64: 9999 | K64: ---- | L64: 38018 | M64: 12 | O64: 1.667 | P64: 1.667 | S64: -8.7
A65: 102 | B65: 1.7 | C65: -4.6 | D65: -7.5 | E65: -1.3 | F65: -9.7 | G65: -5.8 | H65: -15.1 | I65: -44.7 | J65: 9999 | K65: ---- | L65: 38018 | M65: 10 | O65: 1.7 | P65: 1.7 | S65: -9.7
A66: 104 | B66: 1.733 | C66: -5.6 | D66: -8.5 | E66: -1.4 | F66: -10.6 | G66: -6.6 | H66: -16.1 | I66: -50.6 | J66: 9999 | K66: ---- | L66: 38018 | M66: 7 | O66: 1.733 | P66: 1.733 | S66: -10.6
A67: 106 | B67: 1.767 | C67: -6.4 | D67: -1.3 | E67: -1.4 | F67: -1.6 | G67: -2.7 | H67: -17 | I67: -44.2 | J67: 9999 | K67: ---- | L67: 38018 | M67: 1 | O67: 1.767 | P67: 1.767 | S67: -1.6
A68: 108 | B68: 1.8 | C68: -7.3 | D68: -1.2 | E68: -1.4 | F68: -1.6 | G68: -2.9 | H68: -18 | I68: -51.6 | J68: 9999 | K68: ---- | L68: 38018 | M68: 10 | O68: 1.8 | P68: 1.8 | S68: -1.6
A69: 110 | B69: 1.833 | C69: -8 | D69: -1.1 | E69: -1.9 | F69: -1.6 | G69: -3.2 | H69: -19.1 | I69: -39.6 | J69: 9999 | K69: ---- | L69: 38018 | M69: 7 | O69: 1.833 | P69: 1.833 | S69: -1.6
A70: 112 | B70: 1.867 | C70: -8.7 | D70: -1.1 | E70: -2.5 | F70: -1.6 | G70: -3.5 | H70: -19.9 | I70: -47.4 | J70: 9999 | K70: ---- | L70: 38018 | M70: 1 | O70: 1.867 | P70: 1.867 | S70: -1.6
A71: 114 | B71: 1.9 | C71: -9.5 | D71: -1.1 | E71: -3.4 | F71: -2.1 | G71: -4.1 | H71: -20.8 | I71: -34.3 | J71: 9999 | K71: ---- | L71: 38018 | M71: 12 | O71: 1.9 | P71: 1.9 | S71: -2.1
A72: 116 | B72: 1.933 | C72: -1.2 | D72: -1.3 | E72: -4.3 | F72: -2.8 | G72: -2.5 | H72: -21.5 | I72: -32.2 | J72: 9999 | K72: ---- | L72: 38018 | M72: 10 | O72: 1.933 | P72: 1.933 | S72: -2.8
A73: 118 | B73: 1.967 | C73: -1.2 | D73: -1.5 | E73: -5 | F73: -3.6 | G73: -2.9 | H73: -22.3 | I73: -22.5 | J73: 9999 | K73: ---- | L73: 38018 | M73: 7 | O73: 1.967 | P73: 1.967 | S73: -3.6
A74: 120 | B74: 2 | C74: -1.2 | D74: -2 | E74: -6.7 | F74: -4.9 | G74: -3.7 | H74: -23 | I74: -15.9 | J74: 9999 | K74: ---- | L74: 38018 | M74: 7 | O74: 2 | P74: 2 | S74: -4.9
A75: 122 | B75: 2.033 | C75: -1.3 | D75: -2.6 | E75: -10.2 | F75: -6.1 | G75: -5.1 | H75: -24.3 | I75: -27.5 | J75: 9999 | K75: ---- | L75: 38018 | M75: 12 | O75: 2.033 | P75: 2.033 | S75: -6.1
A76: 124 | B76: 2.067 | C76: -1.3 | D76: -3.2 | E76: -13.7 | F76: -8.8 | G76: -6.8 | H76: -25.3 | I76: -31.9 | J76: 9999 | K76: ---- | L76: 38018 | M76: 10 | O76: 2.067 | P76: 2.067 | S76: -8.8
A77: 126 | B77: 2.1 | C77: -1.3 | D77: -3.8 | E77: -16.4 | F77: -13.5 | G77: -8.8 | H77: -26.6 | I77: -30.2 | J77: 9999 | K77: ---- | L77: 38018 | M77: 7 | O77: 2.1 | P77: 2.1 | S77: -13.5
A78: 128 | B78: 2.133 | C78: -1.3 | D78: -4.4 | E78: -18.5 | F78: -17 | G78: -10.4 | H78: -27.4 | I78: -24.2 | J78: 9999 | K78: ---- | L78: 38018 | M78: 1 | N78: =IF(J78=9999,#N/A,J78/1000) ->  | O78: =IF(B78>=$E$2,B78-$E$2,#N/A) -> 2.133 | P78: =IF(B78>=$E$2,B78,#N/A) -> 2.133 | S78: -17
A79: 130 | B79: =ROUND(A79/60,3) -> 2.167 | C79: -1.4 | D79: -5.3 | E79: -20.4 | F79: -19.5 | G79: -11.7 | H79: -28.6 | I79: -16.6 | J79: 9999 | K79: ---- | L79: 38018 | M79: 12 | O79: 2.167 | P79: 2.167 | S79: =F79 -> -19.5
A80: 132 | B80: 2.2 | C80: -1.4 | D80: -7.6 | E80: -21.8 | F80: -21.5 | G80: -13.1 | H80: -29.5 | I80: -12.4 | J80: 9999 | K80: ---- | L80: 38018 | M80: 10 | O80: 2.2 | P80: 2.2 | S80: -21.5
A81: 134 | B81: 2.233 | C81: -1.4 | D81: -11.3 | E81: -23.3 | F81: -23.2 | G81: -14.9 | H81: -30.4 | I81: -9.4 | J81: 9999 | K81: ---- | L81: 38018 | M81: 7 | O81: 2.233 | P81: 2.233 | S81: -23.2
A82: 136 | B82: 2.267 | C82: -1.6 | D82: -15 | E82: -24.6 | F82: -24.6 | G82: -16.5 | H82: -31.2 | I82: -7.4 | J82: 9999 | K82: ---- | L82: 38018 | M82: 7 | O82: 2.267 | P82: 2.267 | S82: -24.6
A83: 138 | B83: 2.3 | C83: -1.7 | D83: -17.9 | E83: -26 | F83: -25.8 | G83: -17.9 | H83: -32.1 | I83: -5.9 | J83: 9999 | K83: ---- | L83: 38018 | M83: 1 | O83: 2.3 | P83: 2.3 | S83: -25.8
A84: 140 | B84: 2.333 | C84: -2.1 | D84: -20.3 | E84: -27.4 | F84: -27 | G84: -19.3 | H84: -33 | I84: -4.7 | J84: 9999 | K84: ---- | L84: 38018 | M84: 12 | O84: 2.333 | P84: 2.333 | S84: -27
A85: 142 | B85: 2.367 | C85: -2.7 | D85: -22.2 | E85: -28.8 | F85: -28.2 | G85: -20.5 | H85: -33.9 | I85: -3.9 | J85: 9999 | K85: ---- | L85: 38018 | M85: 10 | O85: 2.367 | P85: 2.367 | S85: -28.2
A86: 144 | B86: 2.4 | C86: -4.5 | D86: -23.8 | E86: -30 | F86: -29.3 | G86: -21.9 | H86: -34.9 | I86: -3.1 | J86: 9999 | K86: ---- | L86: 38018 | M86: 7 | O86: 2.4 | P86: 2.4 | S86: -29.3
A87: 146 | B87: 2.433 | C87: -7.4 | D87: -25.3 | E87: -31.1 | F87: -30.4 | G87: -23.6 | H87: -35.6 | I87: -2.6 | J87: 9999 | K87: ---- | L87: 38018 | M87: 1 | O87: 2.433 | P87: 2.433 | S87: -30.4
A88: 148 | B88: 2.467 | C88: -12.1 | D88: -26.7 | E88: -32.1 | F88: -31.4 | G88: -25.6 | H88: -36.6 | I88: -2.2 | J88: 9999 | K88: ---- | L88: 38018 | M88: 12 | O88: 2.467 | P88: 2.467 | S88: -31.4
A89: 150 | B89: 2.5 | C89: -16.8 | D89: -27.9 | E89: -33.1 | F89: -32.4 | G89: -27.6 | H89: -37.4 | I89: -1.9 | J89: 9999 | K89: ---- | L89: 38018 | M89: 10 | O89: 2.5 | P89: 2.5 | S89: -32.4
A90: 152 | B90: 2.533 | C90: -20.4 | D90: -29.3 | E90: -34.1 | F90: -33.4 | G90: -29.4 | H90: -38.3 | I90: -1.5 | J90: 9999 | K90: ---- | L90: 38018 | M90: 10 | O90: 2.533 | P90: 2.533 | S90: -33.4
A91: 154 | B91: 2.567 | C91: -23.1 | D91: -30.4 | E91: -35 | F91: -34.3 | G91: -30.8 | H91: -39 | I91: -1.3 | J91: 9999 | K91: ---- | L91: 38018 | M91: 7 | O91: 2.567 | P91: 2.567 | S91: -34.3
A92: 156 | B92: 2.6 | C92: -25.4 | D92: -31.6 | E92: -35.9 | F92: -35 | G92: -32 | H92: -39.8 | I92: -6.2 | J92: 9999 | K92: ---- | L92: 38018 | M92: 1 | O92: 2.6 | P92: 2.6 | S92: -35
A93: 158 | B93: 2.633 | C93: -27.1 | D93: -32.4 | E93: -36.5 | F93: -35.8 | G93: -33 | H93: -40.1 | I93: -2.8 | J93: 9999 | K93: ---- | L93: 38018 | M93: 12 | O93: 2.633 | P93: 2.633 | S93: -35.8
A94: 160 | B94: 2.667 | C94: -28.6 | D94: -33.3 | E94: -37.1 | F94: -36.6 | G94: -34 | H94: -40.7 | I94: -1.9 | J94: 9999 | K94: ---- | L94: 38018 | M94: 10 | O94: 2.667 | P94: 2.667 | S94: -36.6
A95: 162 | B95: 2.7 | C95: -29.9 | D95: -34.2 | E95: -37.9 | F95: -37.2 | G95: -34.8 | H95: -41.5 | I95: -1.4 | J95: 9999 | K95: ---- | L95: 38018 | M95: 7 | O95: 2.7 | P95: 2.7 | S95: -37.2
A96: 164 | B96: 2.733 | C96: -30.9 | D96: -35 | E96: -38.6 | F96: -37.9 | G96: -35.6 | H96: -42 | I96: -1.1 | J96: 9999 | K96: ---- | L96: 38018 | M96: 1 | O96: 2.733 | P96: 2.733 | S96: -37.9
A97: 166 | B97: 2.767 | C97: -31.9 | D97: -35.7 | E97: -39 | F97: -38.2 | G97: -36.3 | H97: -42.6 | I97: -5.2 | J97: 9999 | K97: ---- | L97: 38018 | M97: 12 | O97: 2.767 | P97: 2.767 | S97: -38.2
A98: 168 | B98: 2.8 | C98: -32.6 | D98: -36 | E98: -39.4 | F98: -38.7 | G98: -36.7 | H98: -42.8 | I98: -3 | J98: 9999 | K98: ---- | L98: 38018 | M98: 10 | O98: 2.8 | P98: 2.8 | S98: -38.7
A99: 170 | B99: 2.833 | C99: -33.3 | D99: -36.7 | E99: -39.8 | F99: -39.1 | G99: -37.3 | H99: -42.9 | I99: -2 | J99: 9999 | K99: ---- | L99: 38018 | M99: 7 | O99: 2.833 | P99: 2.833 | S99: -39.1
A100: 172 | B100: 2.867 | C100: -33.8 | D100: -37.1 | E100: -40.2 | F100: -39.6 | G100: -37.7 | H100: -43.2 | I100: -1.2 | J100: 9999 | K100: ---- | L100: 38018 | M100: 1 | O100: 2.867 | P100: 2.867 | S100: -39.6
A101: 174 | B101: 2.9 | C101: -34.4 | D101: -37.8 | E101: -40.6 | F101: -40 | G101: -38.3 | H101: -43.4 | I101: -1 | J101: 9999 | K101: ---- | L101: 38018 | M101: 1 | O101: 2.9 | P101: 2.9 | S101: -40
A102: 176 | B102: 2.933 | C102: -35 | D102: -38.2 | E102: -40.8 | F102: -40.3 | G102: -38.6 | H102: -43.6 | I102: -0.9 | J102: 9999 | K102: ---- | L102: 38018 | M102: 12 | O102: 2.933 | P102: 2.933 | S102: -40.3
A103: 178 | B103: 2.967 | C103: -35.5 | D103: -38.6 | E103: -41.2 | F103: -40.6 | G103: -39 | H103: -43.9 | I103: -0.6 | J103: 9999 | K103: ---- | L103: 38018 | M103: 10 | O103: 2.967 | P103: 2.967 | S103: -40.6
A104: 180 | B104: 3 | C104: -35.8 | D104: -38.9 | E104: -41.5 | F104: -41.1 | G104: -39.4 | H104: -43.9 | I104: -7.3 | J104: 9999 | K104: ---- | L104: 38018 | M104: 7 | O104: 3 | P104: 3 | S104: -41.1
A105: 182 | B105: 3.033 | C105: -36.5 | D105: -39.2 | E105: -41.7 | F105: -41.4 | G105: -39.7 | H105: -44 | I105: -12.1 | J105: 9999 | K105: ---- | L105: 38018 | M105: 1 | O105: 3.033 | P105: 3.033 | S105: -41.4
A106: 184 | B106: 3.067 | C106: -36.8 | D106: -39.6 | E106: -42 | F106: -41.5 | G106: -40 | H106: -44.3 | I106: -26.9 | J106: 9999 | K106: ---- | L106: 38018 | M106: 10 | O106: 3.067 | P106: 3.067 | S106: -41.5
A107: 186 | B107: 3.1 | C107: -37.2 | D107: -40 | E107: -42.3 | F107: -41.8 | G107: -40.4 | H107: -44.5 | I107: -37.1 | J107: 9999 | K107: ---- | L107: 38018 | M107: 10 | O107: 3.1 | P107: 3.1 | S107: -41.8
A108: 188 | B108: 3.133 | C108: -37.4 | D108: -40.2 | E108: -42.3 | F108: -42 | G108: -40.5 | H108: -44.4 | I108: -33.9 | J108: 9999 | K108: ---- | L108: 38018 | M108: 7 | O108: 3.133 | P108: 3.133 | S108: -42
A109: 190 | B109: 3.167 | C109: -37.6 | D109: -40.4 | E109: -42.6 | F109: -42.1 | G109: -40.7 | H109: -44.6 | I109: -41.5 | J109: 9999 | K109: ---- | L109: 38018 | M109: 1 | O109: 3.167 | P109: 3.167 | S109: -42.1
A110: 192 | B110: 3.2 | C110: -37.9 | D110: -40.6 | E110: -42.7 | F110: -42.3 | G110: -40.9 | H110: -44.6 | I110: -36.9 | J110: 9999 | K110: ---- | L110: 38018 | M110: 12 | O110: 3.2 | P110: 3.2 | S110: -42.3
A111: 194 | B111: 3.233 | C111: -38.2 | D111: -40.8 | E111: -42.8 | F111: -42.3 | G111: -41.1 | H111: -44.6 | I111: -45.1 | J111: 9999 | K111: ---- | L111: 38018 | M111: 10 | O111: 3.233 | P111: 3.233 | S111: -42.3
A112: 196 | B112: 3.267 | C112: -38.3 | D112: -41 | E112: -43 | F112: -42.7 | G112: -41.3 | H112: -44.8 | I112: -43 | J112: 9999 | K112: ---- | L112: 38018 | M112: 1 | O112: 3.267 | P112: 3.267 | S112: -42.7
A113: 198 | B113: 3.3 | C113: -38.5 | D113: -41.1 | E113: -43 | F113: -42.7 | G113: -41.4 | H113: -44.7 | I113: -46.3 | J113: 9999 | K113: ---- | L113: 38018 | M113: 12 | O113: 3.3 | P113: 3.3 | S113: -42.7
A114: 200 | B114: 3.333 | C114: -38.5 | D114: -41.3 | E114: -43.1 | F114: -42.8 | G114: -41.5 | H114: -44.8 | I114: -49.7 | J114: 9999 | K114: ---- | L114: 38018 | M114: 10 | O114: 3.333 | P114: 3.333 | S114: -42.8
A115: 202 | B115: 3.367 | C115: -38.7 | D115: -41.4 | E115: -43.1 | F115: -42.7 | G115: -41.5 | H115: -44.6 | I115: -48.8 | J115: 9999 | K115: ---- | L115: 38018 | M115: 7 | O115: 3.367 | P115: 3.367 | S115: -42.7
A116: 204 | B116: 3.4 | C116: -38.9 | D116: -41.5 | E116: -43.2 | F116: -42.9 | G116: -41.7 | H116: -44.9 | I116: -46 | J116: 9999 | K116: ---- | L116: 38018 | M116: 1 | O116: 3.4 | P116: 3.4 | S116: -42.9
A117: 206 | B117: 3.433 | C117: -39 | D117: -41.6 | E117: -43.3 | F117: -43 | G117: -41.8 | H117: -44.8 | I117: -49.6 | J117: 9999 | K117: ---- | L117: 38018 | M117: 12 | O117: 3.433 | P117: 3.433 | S117: -43
A118: 208 | B118: 3.467 | C118: -39.2 | D118: -41.8 | E118: -43.4 | F118: -43.1 | G118: -41.9 | H118: -45 | I118: -58.1 | J118: 9999 | K118: ---- | L118: 38018 | M118: 10 | O118: 3.467 | P118: 3.467 | S118: -43.1
A119: 210 | B119: 3.5 | C119: -39.2 | D119: -41.8 | E119: -43.4 | F119: -43.2 | G119: -42 | H119: -45 | I119: -49.8 | J119: 9999 | K119: ---- | L119: 38018 | M119: 7 | O119: 3.5 | P119: 3.5 | S119: -43.2
A120: 212 | B120: 3.533 | C120: -39.4 | D120: -42 | E120: -43.4 | F120: -43.2 | G120: -42 | H120: -45 | I120: -59.3 | J120: 9999 | K120: ---- | L120: 38018 | M120: 1 | O120: 3.533 | P120: 3.533 | S120: -43.2
A121: 214 | B121: 3.567 | C121: -39.5 | D121: -42 | E121: -43.5 | F121: -43.2 | G121: -42.1 | H121: -44.9 | I121: -52.4 | J121: 9999 | K121: ---- | L121: 38018 | M121: 12 | O121: 3.567 | P121: 3.567 | S121: -43.2
A122: 216 | B122: 3.6 | C122: -39.6 | D122: -42.1 | E122: -43.5 | F122: -43.3 | G122: -42.2 | H122: -45.1 | I122: -58.6 | J122: 9999 | K122: ---- | L122: 38018 | M122: 10 | O122: 3.6 | P122: 3.6 | S122: -43.3
A123: 218 | B123: 3.633 | C123: -39.7 | D123: -42.1 | E123: -43.6 | F123: -43.3 | G123: -42.2 | H123: -44.9 | I123: -52.4 | J123: 9999 | K123: ---- | L123: 38018 | M123: 7 | O123: 3.633 | P123: 3.633 | S123: -43.3
A124: 220 | B124: 3.667 | C124: -39.8 | D124: -42.2 | E124: -43.5 | F124: -43.4 | G124: -42.3 | H124: -45 | I124: -55.2 | J124: 9999 | K124: ---- | L124: 38018 | M124: 1 | O124: 3.667 | P124: 3.667 | S124: -43.4
A125: 222 | B125: 3.7 | C125: -39.8 | D125: -42.3 | E125: -43.6 | F125: -43.4 | G125: -42.3 | H125: -45 | I125: -52.6 | J125: 9999 | K125: ---- | L125: 38018 | M125: 10 | O125: 3.7 | P125: 3.7 | S125: -43.4
A126: 224 | B126: 3.733 | C126: -39.8 | D126: -42.3 | E126: -43.7 | F126: -43.4 | G126: -42.3 | H126: -45.2 | I126: -59.6 | J126: 9999 | K126: ---- | L126: 38018 | M126: 7 | O126: 3.733 | P126: 3.733 | S126: -43.4
A127: 226 | B127: 3.767 | C127: -39.9 | D127: -42.4 | E127: -43.7 | F127: -43.5 | G127: -42.4 | H127: -45.1 | I127: -51.3 | J127: 9999 | K127: ---- | L127: 38018 | M127: 7 | O127: 3.767 | P127: 3.767 | S127: -43.5
A128: 228 | B128: 3.8 | C128: -40 | D128: -42.4 | E128: -43.8 | F128: -43.5 | G128: -42.5 | H128: -45.1 | I128: -57.1 | J128: 9999 | K128: ---- | L128: 38018 | M128: 12 | O128: 3.8 | P128: 3.8 | S128: -43.5
A129: 230 | B129: 3.833 | C129: -40 | D129: -42.4 | E129: -43.8 | F129: -43.6 | G129: -42.5 | H129: -45.1 | I129: -52.5 | J129: 9999 | K129: ---- | L129: 38018 | M129: 10 | O129: 3.833 | P129: 3.833 | S129: -43.6
A130: 232 | B130: 3.867 | C130: -40.1 | D130: -42.7 | E130: -43.8 | F130: -43.6 | G130: -42.6 | H130: -45.1 | I130: -56.2 | J130: 9999 | K130: ---- | L130: 38018 | M130: 7 | O130: 3.867 | P130: 3.867 | S130: -43.6
A131: 234 | B131: 3.9 | C131: -40.1 | D131: -42.6 | E131: -43.8 | F131: -43.6 | G131: -42.6 | H131: -45.1 | I131: -52.1 | J131: 9999 | K131: ---- | L131: 38018 | M131: 1 | O131: 3.9 | P131: 3.9 | S131: -43.6
A132: 236 | B132: 3.933 | C132: -40.2 | D132: -42.6 | E132: -43.9 | F132: -43.7 | G132: -42.7 | H132: -45 | I132: -57.1 | J132: 9999 | K132: ---- | L132: 38018 | M132: 12 | O132: 3.933 | P132: 3.933 | S132: -43.7
A133: 238 | B133: 3.967 | C133: -40.1 | D133: -42.7 | E133: -43.8 | F133: -43.6 | G133: -42.6 | H133: -45.1 | I133: -57.7 | J133: 9999 | K133: ---- | L133: 38018 | M133: 10 | O133: 3.967 | P133: 3.967 | S133: -43.6
A134: 240 | B134: 4 | C134: -40.2 | D134: -42.8 | E134: -43.9 | F134: -43.7 | G134: -42.7 | H134: -45 | I134: -56.8 | J134: 9999 | K134: ---- | L134: 38018 | M134: 7 | O134: 4 | P134: 4 | S134: -43.7
A135: 242 | B135: 4.033 | C135: -40.3 | D135: -42.8 | E135: -43.9 | F135: -43.6 | G135: -42.7 | H135: -45.2 | I135: -58.4 | J135: 9999 | K135: ---- | L135: 38018 | M135: 1 | O135: 4.033 | P135: 4.033 | S135: -43.6
A136: 244 | B136: 4.067 | C136: -40.2 | D136: -42.8 | E136: -43.9 | F136: -43.7 | G136: -42.7 | H136: -45 | I136: -56.1 | J136: 9999 | K136: ---- | L136: 38018 | M136: 12 | O136: 4.067 | P136: 4.067 | S136: -43.7
A137: 246 | B137: 4.1 | C137: -40.3 | D137: -42.8 | E137: -44 | F137: -43.7 | G137: -42.8 | H137: -45.2 | I137: -62.3 | J137: 9999 | K137: ---- | L137: 38018 | M137: 10 | O137: 4.1 | P137: 4.1 | S137: -43.7
A138: 248 | B138: 4.133 | C138: -40.4 | D138: -42.8 | E138: -44 | F138: -43.8 | G138: -42.8 | H138: -45 | I138: -57.7 | J138: 9999 | K138: ---- | L138: 38018 | M138: 1 | O138: 4.133 | P138: 4.133 | S138: -43.8
A139: 250 | B139: 4.167 | C139: -40.4 | D139: -42.9 | E139: -44 | F139: -43.7 | G139: -42.8 | H139: -45.3 | I139: -62 | J139: 9999 | K139: ---- | L139: 38018 | M139: 1 | O139: 4.167 | P139: 4.167 | S139: -43.7
A140: 252 | B140: 4.2 | C140: -40.4 | D140: -42.9 | E140: -43.9 | F140: -43.8 | G140: -42.8 | H140: -45 | I140: -56.2 | J140: 9999 | K140: ---- | L140: 38018 | M140: 12 | O140: 4.2 | P140: 4.2 | S140: -43.8
A141: 254 | B141: 4.233 | C141: -40.4 | D141: -42.9 | E141: -43.9 | F141: -43.7 | G141: -42.8 | H141: -45.1 | I141: -63.4 | J141: 9999 | K141: ---- | L141: 38018 | M141: 10 | O141: 4.233 | P141: 4.233 | S141: -43.7
A142: 256 | B142: 4.267 | C142: -40.4 | D142: -42.9 | E142: -43.9 | F142: -43.8 | G142: -42.8 | H142: -45.1 | I142: -55.5 | J142: 9999 | K142: ---- | L142: 38018 | M142: 7 | N142: =IF(J142=9999,#N/A,J142/1000) ->  | O142: =IF(B142>=$E$2,B142-$E$2,#N/A) -> 4.267 | P142: =IF(B142>=$E$2,B142,#N/A) -> 4.267 | S142: -43.8
A143: 258 | B143: =ROUND(A143/60,3) -> 4.3 | C143: -40.4 | D143: -42.9 | E143: -43.9 | F143: -43.8 | G143: -42.8 | H143: -45 | I143: -63.3 | J143: 9999 | K143: ---- | L143: 38018 | M143: 12 | O143: 4.3 | P143: 4.3 | S143: =F143 -> -43.8
A144: 260 | B144: 4.333 | C144: -40.4 | D144: -43 | E144: -43.9 | F144: -43.7 | G144: -42.8 | H144: -44.9 | I144: -55.8 | J144: 9999 | K144: ---- | L144: 38018 | M144: 10 | O144: 4.333 | P144: 4.333 | S144: -43.7
A145: 262 | B145: 4.367 | C145: -40.5 | D145: -42.9 | E145: -44 | F145: -43.8 | G145: -42.8 | H145: -45 | I145: -61.7 | J145: 9999 | K145: ---- | L145: 38018 | M145: 7 | O145: 4.367 | P145: 4.367 | S145: -43.8
A146: 264 | B146: 4.4 | C146: -40.5 | D146: -43 | E146: -43.9 | F146: -43.8 | G146: -42.8 | H146: -44.9 | I146: -55.1 | J146: 9999 | K146: ---- | L146: 38018 | M146: 1 | O146: 4.4 | P146: 4.4 | S146: -43.8
A147: 266 | B147: 4.433 | C147: -40.5 | D147: -43 | E147: -44 | F147: -43.8 | G147: -42.9 | H147: -45.2 | I147: -63 | J147: 9999 | K147: ---- | L147: 38018 | M147: 12 | O147: 4.433 | P147: 4.433 | S147: -43.8
A148: 268 | B148: 4.467 | C148: -40.6 | D148: -43 | E148: -44 | F148: -43.8 | G148: -42.9 | H148: -45.1 | I148: -55.8 | J148: 9999 | K148: ---- | L148: 38018 | M148: 10 | O148: 4.467 | P148: 4.467 | S148: -43.8
A149: 270 | B149: 4.5 | C149: -40.5 | D149: -43 | E149: -44 | F149: -43.9 | G149: -42.9 | H149: -45 | I149: -61.6 | J149: 9999 | K149: ---- | L149: 38018 | M149: 7 | O149: 4.5 | P149: 4.5 | S149: -43.9
A150: 272 | B150: 4.533 | C150: -40.6 | D150: -43.1 | E150: -44.2 | F150: -43.9 | G150: -43 | H150: -45.1 | I150: -59.8 | J150: 9999 | K150: ---- | L150: 38018 | M150: 1 | O150: 4.533 | P150: 4.533 | S150: -43.9
A151: 274 | B151: 4.567 | C151: -40.6 | D151: -43 | E151: -44 | F151: -43.8 | G151: -42.9 | H151: -45.2 | I151: -63.7 | J151: 9999 | K151: ---- | L151: 38018 | M151: 10 | O151: 4.567 | P151: 4.567 | S151: -43.8
A152: 276 | B152: 4.6 | C152: -40.7 | D152: -43 | E152: -43.9 | F152: -43.8 | G152: -42.9 | H152: -45 | I152: -55.4 | J152: 9999 | K152: ---- | L152: 38018 | M152: 10 | O152: 4.6 | P152: 4.6 | S152: -43.8
A153: 278 | B153: 4.633 | C153: -40.6 | D153: -43 | E153: -44 | F153: -43.9 | G153: -42.9 | H153: -45 | I153: -59.9 | J153: 9999 | K153: ---- | L153: 38018 | M153: 7 | O153: 4.633 | P153: 4.633 | S153: -43.9
A154: 280 | B154: 4.667 | C154: -40.6 | D154: -43 | E154: -44 | F154: -43.7 | G154: -42.9 | H154: -45.1 | I154: -59.6 | J154: 9999 | K154: ---- | L154: 38018 | M154: 1 | O154: 4.667 | P154: 4.667 | S154: -43.7
A155: 282 | B155: 4.7 | C155: -40.7 | D155: -43 | E155: -44.2 | F155: -43.9 | G155: -43 | H155: -45.1 | I155: -59.8 | J155: 9999 | K155: ---- | L155: 38018 | M155: 12 | O155: 4.7 | P155: 4.7 | S155: -43.9
A156: 284 | B156: 4.733 | C156: -40.7 | D156: -43 | E156: -44.2 | F156: -43.9 | G156: -43 | H156: -45.2 | I156: -62.1 | J156: 9999 | K156: ---- | L156: 38018 | M156: 10 | O156: 4.733 | P156: 4.733 | S156: -43.9
A157: 286 | B157: 4.767 | C157: -40.6 | D157: -43.1 | E157: -44.2 | F157: -43.9 | G157: -43 | H157: -45 | I157: -58.8 | J157: 9999 | K157: ---- | L157: 38018 | M157: 1 | O157: 4.767 | P157: 4.767 | S157: -43.9
A158: 288 | B158: 4.8 | C158: -40.7 | D158: -43.1 | E158: -44.2 | F158: -43.9 | G158: -43 | H158: -45.2 | I158: -62.2 | J158: 9999 | K158: ---- | L158: 38018 | M158: 12 | O158: 4.8 | P158: 4.8 | S158: -43.9
A159: 290 | B159: 4.833 | C159: -40.7 | D159: -43.1 | E159: -44.2 | F159: -44 | G159: -43 | H159: -45 | I159: -58 | J159: 9999 | K159: ---- | L159: 38018 | M159: 10 | O159: 4.833 | P159: 4.833 | S159: -44
A160: 292 | B160: 4.867 | C160: -40.7 | D160: -43 | E160: -44.2 | F160: -43.9 | G160: -43 | H160: -45.1 | I160: -63.2 | J160: 9999 | K160: ---- | L160: 38018 | M160: 7 | O160: 4.867 | P160: 4.867 | S160: -43.9
A161: 294 | B161: 4.9 | C161: -40.7 | D161: -43.1 | E161: -44 | F161: -43.7 | G161: -42.9 | H161: -44.4 | I161: -59.7 | J161: 9999 | K161: ---- | L161: 38018 | M161: 1 | O161: 4.9 | P161: 4.9 | S161: -43.7
A162: 296 | B162: 4.933 | C162: -40.6 | D162: -43 | E162: -43.7 | F162: -43.6 | G162: -42.8 | H162: -44.4 | I162: -65 | J162: 9999 | K162: ---- | L162: 38018 | M162: 12 | O162: 4.933 | P162: 4.933 | S162: -43.6
A163: 298 | B163: 4.967 | C163: -40.6 | D163: -42.8 | E163: -43.5 | F163: -43.4 | G163: -42.6 | H163: -43.9 | I163: -58.6 | J163: 9999 | K163: ---- | L163: 38018 | M163: 10 | O163: 4.967 | P163: 4.967 | S163: -43.4
A164: 300 | B164: 5 | C164: -40.4 | D164: -42.6 | E164: -43.3 | F164: -43.2 | G164: -42.4 | H164: -43.4 | I164: -65.6 | J164: 9999 | K164: ---- | L164: 38018 | M164: 7 | O164: 5 | P164: 5 | S164: -43.2
A165: 302 | B165: 5.033 | C165: -40.2 | D165: -42.2 | E165: -42.9 | F165: -42.9 | G165: -42.1 | H165: -43 | I165: -59.2 | J165: 9999 | K165: ---- | L165: 38018 | M165: 1 | O165: 5.033 | P165: 5.033 | S165: -42.9
A166: 304 | B166: 5.067 | C166: -40 | D166: -42.1 | E166: -42.8 | F166: -42.6 | G166: -41.9 | H166: -42.8 | I166: -66.2 | J166: 9999 | K166: ---- | L166: 38018 | M166: 12 | O166: 5.067 | P166: 5.067 | S166: -42.6
A167: 306 | B167: 5.1 | C167: -39.9 | D167: -41.8 | E167: -42.3 | F167: -42.2 | G167: -41.6 | H167: -42.2 | I167: -63 | J167: 9999 | K167: ---- | L167: 38018 | M167: 10 | O167: 5.1 | P167: 5.1 | S167: -42.2
A168: 308 | B168: 5.133 | C168: -39.6 | D168: -41.6 | E168: -42 | F168: -42 | G168: -41.3 | H168: -41.9 | I168: -64.4 | J168: 9999 | K168: ---- | L168: 38018 | M168: 7 | O168: 5.133 | P168: 5.133 | S168: -42
A169: 310 | B169: 5.167 | C169: -39.4 | D169: -41.2 | E169: -41.7 | F169: -41.6 | G169: -41 | H169: -41.4 | I169: -63.3 | J169: 9999 | K169: ---- | L169: 38018 | M169: 1 | O169: 5.167 | P169: 5.167 | S169: -41.6
A170: 312 | B170: 5.2 | C170: -39.1 | D170: -41 | E170: -41.4 | F170: -41.3 | G170: -40.8 | H170: -41 | I170: -64.6 | J170: 9999 | K170: ---- | L170: 38018 | M170: 12 | O170: 5.2 | P170: 5.2 | S170: -41.3
A171: 314 | B171: 5.233 | C171: -38.8 | D171: -40.5 | E171: -41 | F171: -41 | G171: -40.4 | H171: -40.8 | I171: -65.1 | J171: 9999 | K171: ---- | L171: 38018 | M171: 10 | O171: 5.233 | P171: 5.233 | S171: -41
A172: 316 | B172: 5.267 | C172: -38.5 | D172: -40.3 | E172: -40.6 | F172: -40.6 | G172: -40 | H172: -40.2 | I172: -63.1 | J172: 9999 | K172: ---- | L172: 38018 | M172: 7 | O172: 5.267 | P172: 5.267 | S172: -40.6
A173: 318 | B173: 5.3 | C173: -38.2 | D173: -39.9 | E173: -40.2 | F173: -40.2 | G173: -39.7 | H173: -40 | I173: -66 | J173: 9999 | K173: ---- | L173: 38018 | M173: 1 | O173: 5.3 | P173: 5.3 | S173: -40.2
A174: 320 | B174: 5.333 | C174: -37.9 | D174: -39.6 | E174: -39.9 | F174: -39.9 | G174: -39.4 | H174: -39.2 | I174: -63.3 | J174: 9999 | K174: ---- | L174: 38018 | M174: 10 | O174: 5.333 | P174: 5.333 | S174: -39.9
A175: 322 | B175: 5.367 | C175: -37.6 | D175: -39.2 | E175: -39.6 | F175: -39.5 | G175: -39 | H175: -39.2 | I175: -65.5 | J175: 9999 | K175: ---- | L175: 38018 | M175: 7 | O175: 5.367 | P175: 5.367 | S175: -39.5
A176: 324 | B176: 5.4 | C176: -37.2 | D176: -38.9 | E176: -39.1 | F176: -39 | G176: -38.6 | H176: -38.3 | I176: -63.7 | J176: 9999 | K176: ---- | L176: 38018 | M176: 1 | O176: 5.4 | P176: 5.4 | S176: -39
A177: 326 | B177: 5.433 | C177: -37 | D177: -38.5 | E177: -38.8 | F177: -38.7 | G177: -38.3 | H177: -38.2 | I177: -66.5 | J177: 9999 | K177: ---- | L177: 38018 | M177: 12 | O177: 5.433 | P177: 5.433 | S177: -38.7
A178: 328 | B178: 5.467 | C178: -36.7 | D178: -38.1 | E178: -38.3 | F178: -38.4 | G178: -37.9 | H178: -37.6 | I178: -63.4 | J178: 9999 | K178: ---- | L178: 38018 | M178: 10 | O178: 5.467 | P178: 5.467 | S178: -38.4
A179: 330 | B179: 5.5 | C179: -36.3 | D179: -37.8 | E179: -38 | F179: -38 | G179: -37.6 | H179: -37.5 | I179: -66.1 | J179: 9999 | K179: ---- | L179: 38018 | M179: 7 | O179: 5.5 | P179: 5.5 | S179: -38
A180: 332 | B180: 5.533 | C180: -35.8 | D180: -37.3 | E180: -37.5 | F180: -37.5 | G180: -37.1 | H180: -36.7 | I180: -65.1 | J180: 9999 | K180: ---- | L180: 38018 | M180: 1 | O180: 5.533 | P180: 5.533 | S180: -37.5
A181: 334 | B181: 5.567 | C181: -35.6 | D181: -37 | E181: -37.1 | F181: -37.2 | G181: -36.8 | H181: -36.6 | I181: -66.7 | J181: 9999 | K181: ---- | L181: 38018 | M181: 12 | O181: 5.567 | P181: 5.567 | S181: -37.2
A182: 336 | B182: 5.6 | C182: -35.2 | D182: -36.7 | E182: -36.8 | F182: -36.8 | G182: -36.4 | H182: -36 | I182: -62.8 | J182: 9999 | K182: ---- | L182: 38018 | M182: 10 | O182: 5.6 | P182: 5.6 | S182: -36.8
A183: 338 | B183: 5.633 | C183: -34.9 | D183: -36.4 | E183: -36.5 | F183: -36.5 | G183: -36.1 | H183: -35.7 | I183: -67.4 | J183: 9999 | K183: ---- | L183: 38018 | M183: 7 | O183: 5.633 | P183: 5.633 | S183: -36.5
A184: 340 | B184: 5.667 | C184: -34.6 | D184: -35.9 | E184: -36 | F184: -36 | G184: -35.7 | H184: -35.3 | I184: -64.6 | J184: 9999 | K184: ---- | L184: 38018 | M184: 1 | O184: 5.667 | P184: 5.667 | S184: -36
A185: 342 | B185: 5.7 | C185: -34.1 | D185: -35.6 | E185: -35.7 | F185: -35.7 | G185: -35.3 | H185: -34.9 | I185: -67.1 | J185: 9999 | K185: ---- | L185: 38018 | M185: 12 | O185: 5.7 | P185: 5.7 | S185: -35.7
A186: 344 | B186: 5.733 | C186: -33.8 | D186: -35.2 | E186: -35.2 | F186: -35.4 | G186: -34.9 | H186: -34.4 | I186: -63.9 | J186: 9999 | K186: ---- | L186: 38018 | M186: 7 | O186: 5.733 | P186: 5.733 | S186: -35.4
A187: 346 | B187: 5.767 | C187: -33.5 | D187: -34.9 | E187: -35 | F187: -34.9 | G187: -34.6 | H187: -34 | I187: -67.7 | J187: 9999 | K187: ---- | L187: 38018 | M187: 7 | O187: 5.767 | P187: 5.767 | S187: -34.9
A188: 348 | B188: 5.8 | C188: -33.1 | D188: -34.3 | E188: -34.4 | F188: -34.6 | G188: -34.2 | H188: -33.8 | I188: -65.6 | J188: 9999 | K188: ---- | L188: 38018 | M188: 12 | O188: 5.8 | P188: 5.8 | S188: -34.6
A189: 350 | B189: 5.833 | C189: -32.7 | D189: -34 | E189: -34 | F189: -34 | G189: -33.7 | H189: -33.2 | I189: -67.1 | J189: 9999 | K189: ---- | L189: 38018 | M189: 10 | O189: 5.833 | P189: 5.833 | S189: -34
A190: 352 | B190: 5.867 | C190: -32.4 | D190: -33.6 | E190: -33.7 | F190: -33.7 | G190: -33.4 | H190: -32.8 | I190: -66.1 | J190: 9999 | K190: ---- | L190: 38018 | M190: 7 | O190: 5.867 | P190: 5.867 | S190: -33.7
A191: 354 | B191: 5.9 | C191: -32 | D191: -33.3 | E191: -33.4 | F191: -33.4 | G191: -33.1 | H191: -32.3 | I191: -66.4 | J191: 9999 | K191: ---- | L191: 38018 | M191: 1 | O191: 5.9 | P191: 5.9 | S191: -33.4
A192: 356 | B192: 5.933 | C192: -31.7 | D192: -32.8 | E192: -33 | F192: -32.8 | G192: -32.6 | H192: -32.3 | I192: -66.3 | J192: 9999 | K192: ---- | L192: 38018 | M192: 12 | O192: 5.933 | P192: 5.933 | S192: -32.8
A193: 358 | B193: 5.967 | C193: -31.4 | D193: -32.5 | E193: -32.5 | F193: -32.5 | G193: -32.3 | H193: -31.6 | I193: -66.4 | J193: 9999 | K193: ---- | L193: 38018 | M193: 10 | O193: 5.967 | P193: 5.967 | S193: -32.5
A194: 360 | B194: 6 | C194: -30.9 | D194: -32 | E194: -32.1 | F194: -32.2 | G194: -31.8 | H194: -31.4 | I194: -67 | J194: 9999 | K194: ---- | L194: 38018 | M194: 7 | O194: 6 | P194: 6 | S194: -32.2
A195: 362 | B195: 6.033 | C195: -30.6 | D195: -31.7 | E195: -31.8 | F195: -31.8 | G195: -31.5 | H195: -30.6 | I195: -64.7 | J195: 9999 | K195: ---- | L195: 38018 | M195: 1 | O195: 6.033 | P195: 6.033 | S195: -31.8
A196: 364 | B196: 6.067 | C196: -30.2 | D196: -31.4 | E196: -31.5 | F196: -31.5 | G196: -31.2 | H196: -30.6 | I196: -66.9 | J196: 9999 | K196: ---- | L196: 38018 | M196: 12 | O196: 6.067 | P196: 6.067 | S196: -31.5
A197: 366 | B197: 6.1 | C197: -29.9 | D197: -30.9 | E197: -30.9 | F197: -31 | G197: -30.7 | H197: -29.9 | I197: -64.6 | J197: 9999 | K197: ---- | L197: 38018 | M197: 10 | O197: 6.1 | P197: 6.1 | S197: -31
A198: 368 | B198: 6.133 | C198: -29.4 | D198: -30.6 | E198: -30.5 | F198: -30.6 | G198: -30.3 | H198: -29.5 | I198: -67.2 | J198: 9999 | K198: ---- | L198: 38018 | M198: 7 | O198: 6.133 | P198: 6.133 | S198: -30.6
A199: 370 | B199: 6.167 | C199: -29.1 | D199: -30.2 | E199: -30.2 | F199: -30.2 | G199: -30 | H199: -29.2 | I199: -65.5 | J199: 9999 | K199: ---- | L199: 38018 | M199: 1 | O199: 6.167 | P199: 6.167 | S199: -30.2
A200: 372 | B200: 6.2 | C200: -28.8 | D200: -29.8 | E200: -29.9 | F200: -29.9 | G200: -29.7 | H200: -28.8 | I200: -68 | J200: 9999 | K200: ---- | L200: 38018 | M200: 12 | O200: 6.2 | P200: 6.2 | S200: -29.9
A201: 374 | B201: 6.233 | C201: -28.4 | D201: -29.3 | E201: -29.4 | F201: -29.4 | G201: -29.2 | H201: -28.3 | I201: -64.8 | J201: 9999 | K201: ---- | L201: 38018 | M201: 7 | O201: 6.233 | P201: 6.233 | S201: -29.4
A202: 376 | B202: 6.267 | C202: -27.9 | D202: -28.9 | E202: -29 | F202: -29 | G202: -28.8 | H202: -27.9 | I202: -67.8 | J202: 9999 | K202: ---- | L202: 38018 | M202: 1 | O202: 6.267 | P202: 6.267 | S202: -29
A203: 378 | B203: 6.3 | C203: -27.6 | D203: -28.5 | E203: -28.5 | F203: -28.7 | G203: -28.4 | H203: -27.6 | I203: -66.1 | J203: 9999 | K203: ---- | L203: 38018 | M203: 1 | O203: 6.3 | P203: 6.3 | S203: -28.7
A204: 380 | B204: 6.333 | C204: -27.3 | D204: -28.2 | E204: -28.4 | F204: -28.3 | G204: -28.1 | H204: -27.3 | I204: -68.1 | J204: 9999 | K204: ---- | L204: 38018 | M204: 10 | O204: 6.333 | P204: 6.333 | S204: -28.3
... 2477 more rows

Sheet Process data log-ppt-S3
L13: Order | M13: 2 | N13: 1 | O13: 0
L14: Trend 1 TC | M14: =LINEST('Process data log-S3'!$S$56:$S$66, 'Process data log-S3'!$B$56:$B$66^{1,2}, TRUE) -> 7.155372414 | N14: -53.29744071 | O14: 60.2473574
L15: Nucleation time | M15: 1.8
L16: Tn | M16: =$M$14*M15^$M$13+$N$14*M15^$N$13+$O$14*M15^$O$13 -> -12.50462927

Sheet Data from RelaxIS-S3
A1: 0z to 150z (0-5 h) 5%Sucrose+0.55%NaCl
A3: RelaxIS 3.0 Spectrum export
A4: Date: 30/01/2019 10:51:08
A5: Data: Frequency | B5: Data: C' | C5: Data: C'' | D5: Data: Frequency | E5: Data: C' | F5: Data: C'' | G5: Data: Frequency | H5: Data: C' | I5: Data: C'' | J5: Data: Frequency | K5: Data: C' | L5: Data: C'' | M5: Data: Frequency | N5: Data: C' | O5: Data: C'' | P5: Data: Frequency | Q5: Data: C' | R5: Data: C'' | S5: Data: Frequency | T5: Data: C' | U5: Data: C'' | V5: Data: Frequency | W5: Data: C' | X5: Data: C'' | Y5: Data: Frequency | Z5: Data: C' | AA5: Data: C'' | AB5: Data: Frequency | AC5: Data: C' | AD5: Data: C'' | AE5: Data: Frequency | AF5: Data: C' | AG5: Data: C'' | AH5: Data: Frequency | AI5: Data: C' | AJ5: Data: C'' | AK5: Data: Frequency | AL5: Data: C' | AM5: Data: C'' | AN5: Data: Frequency | AO5: Data: C' | AP5: Data: C'' | AQ5: Data: Frequency | AR5: Data: C' | AS5: Data: C'' | AT5: Data: Frequency | AU5: Data: C' | AV5: Data: C'' | AW5: Data: Frequency | AX5: Data: C' | AY5: Data: C'' | AZ5: Data: Frequency | BA5: Data: C' | BB5: Data: C'' | BC5: Data: Frequency | BD5: Data: C' | BE5: Data: C'' | BF5: Data: Frequency | BG5: Data: C' | BH5: Data: C'' | BI5: Data: Frequency | BJ5: Data: C' | BK5: Data: C'' | BL5: Data: Frequency | BM5: Data: C' | BN5: Data: C'' | BO5: Data: Frequency | BP5: Data: C' | BQ5: Data: C'' | BR5: Data: Frequency | BS5: Data: C' | BT5: Data: C'' | BU5: Data: Frequency | BV5: Data: C' | BW5: Data: C'' | BX5: Data: Frequency | BY5: Data: C' | BZ5: Data: C'' | CA5: Data: Frequency | CB5: Data: C' | CC5: Data: C'' | CD5: Data: Frequency | CE5: Data: C' | CF5: Data: C'' | CG5: Data: Frequency | CH5: Data: C' | CI5: Data: C'' | CJ5: Data: Frequency | CK5: Data: C' | CL5: Data: C'' | CM5: Data: Frequency | CN5: Data: C' | CO5: Data: C'' | CP5: Data: Frequency | CQ5: Data: C' | CR5: Data: C'' | CS5: Data: Frequency | CT5: Data: C' | CU5: Data: C'' | CV5: Data: Frequency | CW5: Data: C' | CX5: Data: C'' | CY5: Data: Frequency | CZ5: Data: C' | DA5: Data: C'' | DB5: Data: Frequency | DC5: Data: C' | DD5: Data: C'' | DE5: Data: Frequency | DF5: Data: C' | DG5: Data: C'' | DH5: Data: Frequency | DI5: Data: C' | DJ5: Data: C'' | DK5: Data: Frequency | DL5: Data: C' | DM5: Data: C'' | DN5: Data: Frequency | DO5: Data: C' | DP5: Data: C'' | DQ5: Data: Frequency | DR5: Data: C' | DS5: Data: C'' | DT5: Data: Frequency | DU5: Data: C' | DV5: Data: C'' | DW5: Data: Frequency | DX5: Data: C' | DY5: Data: C'' | DZ5: Data: Frequency | EA5: Data: C' | EB5: Data: C'' | EC5: Data: Frequency | ED5: Data: C' | EE5: Data: C'' | EF5: Data: Frequency | EG5: Data: C' | EH5: Data: C'' | EI5: Data: Frequency | EJ5: Data: C' | EK5: Data: C'' | EL5: Data: Frequency | EM5: Data: C' | EN5: Data: C'' | EO5: Data: Frequency | EP5: Data: C' | EQ5: Data: C'' | ER5: Data: Frequency | ES5: Data: C' | ET5: Data: C'' | EU5: Data: Frequency | EV5: Data: C' | EW5: Data: C'' | EX5: Data: Frequency | EY5: Data: C' | EZ5: Data: C'' | FA5: Data: Frequency | FB5: Data: C' | FC5: Data: C'' | FD5: Data: Frequency | FE5: Data: C' | FF5: Data: C'' | FG5: Data: Frequency | FH5: Data: C' | FI5: Data: C'' | FJ5: Data: Frequency | FK5: Data: C' | FL5: Data: C'' | FM5: Data: Frequency | FN5: Data: C' | FO5: Data: C'' | FP5: Data: Frequency | FQ5: Data: C' | FR5: Data: C'' | FS5: Data: Frequency | FT5: Data: C' | FU5: Data: C'' | FV5: Data: Frequency | FW5: Data: C' | FX5: Data: C'' | FY5: Data: Frequency | FZ5: Data: C' | GA5: Data: C'' | GB5: Data: Frequency | GC5: Data: C' | GD5: Data: C'' | GE5: Data: Frequency | GF5: Data: C' | GG5: Data: C'' | GH5: Data: Frequency | GI5: Data: C' | GJ5: Data: C'' | GK5: Data: Frequency | GL5: Data: C' | GM5: Data: C'' | GN5: Data: Frequency | GO5: Data: C' | GP5: Data: C'' | GQ5: Data: Frequency | GR5: Data: C' | GS5: Data: C'' | GT5: Data: Frequency | GU5: Data: C' | GV5: Data: C'' | GW5: Data: Frequency | GX5: Data: C' | GY5: Data: C'' | GZ5: Data: Frequency | HA5: Data: C' | HB5: Data: C'' | HC5: Data: Frequency | HD5: Data: C' | HE5: Data: C'' | HF5: Data: Frequency | HG5: Data: C' | HH5: Data: C'' | HI5: Data: Frequency | HJ5: Data: C' | HK5: Data: C'' | HL5: Data: Frequency | HM5: Data: C' | HN5: Data: C'' | HO5: Data: Frequency | HP5: Data: C' | HQ5: Data: C'' | HR5: Data: Frequency | HS5: Data: C' | HT5: Data: C'' | HU5: Data: Frequency | HV5: Data: C' | HW5: Data: C'' | HX5: Data: Frequency | HY5: Data: C' | HZ5: Data: C'' | IA5: Data: Frequency | IB5: Data: C' | IC5: Data: C'' | ID5: Data: Frequency | IE5: Data: C' | IF5: Data: C'' | IG5: Data: Frequency | IH5: Data: C' | II5: Data: C'' | IJ5: Data: Frequency | IK5: Data: C' | IL5: Data: C'' | IM5: Data: Frequency | IN5: Data: C' | IO5: Data: C'' | IP5: Data: Frequency | IQ5: Data: C' | IR5: Data: C'' | IS5: Data: Frequency | IT5: Data: C' | IU5: Data: C'' | IV5: Data: Frequency | IW5: Data: C' | IX5: Data: C'' | IY5: Data: Frequency | IZ5: Data: C' | JA5: Data: C'' | JB5: Data: Frequency | JC5: Data: C' | JD5: Data: C'' | JE5: Data: Frequency | JF5: Data: C' | JG5: Data: C'' | JH5: Data: Frequency | JI5: Data: C' | JJ5: Data: C'' | JK5: Data: Frequency | JL5: Data: C' | JM5: Data: C'' | JN5: Data: Frequency | JO5: Data: C' | JP5: Data: C'' | JQ5: Data: Frequency | JR5: Data: C' | JS5: Data: C'' | JT5: Data: Frequency | JU5: Data: C' | JV5: Data: C'' | JW5: Data: Frequency | JX5: Data: C' | JY5: Data: C'' | JZ5: Data: Frequency | KA5: Data: C' | KB5: Data: C'' | KC5: Data: Frequency | KD5: Data: C' | KE5: Data: C'' | KF5: Data: Frequency | KG5: Data: C' | KH5: Data: C'' | KI5: Data: Frequency | KJ5: Data: C' | KK5: Data: C'' | KL5: Data: Frequency | KM5: Data: C' | KN5: Data: C'' | KO5: Data: Frequency | KP5: Data: C' | KQ5: Data: C'' | KR5: Data: Frequency | KS5: Data: C' | KT5: Data: C'' | KU5: Data: Frequency | KV5: Data: C' | KW5: Data: C'' | KX5: Data: Frequency | KY5: Data: C' | KZ5: Data: C'' | LA5: Data: Frequency | LB5: Data: C' | LC5: Data: C'' | LD5: Data: Frequency | LE5: Data: C' | LF5: Data: C'' | LG5: Data: Frequency | LH5: Data: C' | LI5: Data: C'' | LJ5: Data: Frequency | LK5: Data: C' | LL5: Data: C'' | LM5: Data: Frequency | LN5: Data: C' | LO5: Data: C'' | LP5: Data: Frequency | LQ5: Data: C' | LR5: Data: C'' | LS5: Data: Frequency | LT5: Data: C' | LU5: Data: C'' | LV5: Data: Frequency | LW5: Data: C' | LX5: Data: C'' | LY5: Data: Frequency | LZ5: Data: C' | MA5: Data: C'' | MB5: Data: Frequency | MC5: Data: C' | MD5: Data: C'' | ME5: Data: Frequency | MF5: Data: C' | MG5: Data: C'' | MH5: Data: Frequency | MI5: Data: C' | MJ5: Data: C'' | MK5: Data: Frequency | ML5: Data: C' | MM5: Data: C'' | MN5: Data: Frequency | MO5: Data: C' | MP5: Data: C'' | MQ5: Data: Frequency | MR5: Data: C' | MS5: Data: C'' | MT5: Data: Frequency | MU5: Data: C' | MV5: Data: C'' | MW5: Data: Frequency | MX5: Data: C' | MY5: Data: C'' | MZ5: Data: Frequency | NA5: Data: C' | NB5: Data: C'' | NC5: Data: Frequency | ND5: Data: C' | NE5: Data: C'' | NF5: Data: Frequency | NG5: Data: C' | NH5: Data: C'' | NI5: Data: Frequency | NJ5: Data: C' | NK5: Data: C'' | NL5: Data: Frequency | NM5: Data: C' | NN5: Data: C'' | NO5: Data: Frequency | NP5: Data: C' | NQ5: Data: C'' | NR5: Data: Frequency | NS5: Data: C' | NT5: Data: C'' | NU5: Data: Frequency | NV5: Data: C' | NW5: Data: C'' | NX5: Data: Frequency | NY5: Data: C' | NZ5: Data: C'' | OA5: Data: Frequency | OB5: Data: C' | OC5: Data: C'' | OD5: Data: Frequency | OE5: Data: C' | OF5: Data: C'' | OG5: Data: Frequency | OH5: Data: C' | OI5: Data: C'' | OJ5: Data: Frequency | OK5: Data: C' | OL5: Data: C'' | OM5: Data: Frequency | ON5: Data: C' | OO5: Data: C'' | OP5: Data: Frequency | OQ5: Data: C' | OR5: Data: C'' | OS5: Data: Frequency | OT5: Data: C' | OU5: Data: C'' | OV5: Data: Frequency | OW5: Data: C' | OX5: Data: C'' | OY5: Data: Frequency | OZ5: Data: C' | PA5: Data: C'' | PB5: Data: Frequency | PC5: Data: C' | PD5: Data: C'' | PE5: Data: Frequency | PF5: Data: C' | PG5: Data: C'' | PH5: Data: Frequency | PI5: Data: C' | PJ5: Data: C'' | PK5: Data: Frequency | PL5: Data: C' | PM5: Data: C'' | PN5: Data: Frequency | PO5: Data: C' | PP5: Data: C'' | PQ5: Data: Frequency | PR5: Data: C' | PS5: Data: C'' | PT5: Data: Frequency | PU5: Data: C' | PV5: Data: C'' | PW5: Data: Frequency | PX5: Data: C' | PY5: Data: C'' | PZ5: Data: Frequency | QA5: Data: C' | QB5: Data: C'' | QC5: Data: Frequency | QD5: Data: C' | QE5: Data: C'' | QF5: Data: Frequency | QG5: Data: C' | QH5: Data: C'' | QI5: Data: Frequency | QJ5: Data: C' | QK5: Data: C''
A6: Glass transition and colllapse of Sucrose-NaCl_221118_Ch3_0.z_1 | B6: DC=0 | D6: Glass transition and colllapse of Sucrose-NaCl_221118_Ch3_1.z_1 | E6: DC=0 | G6: Glass transition and colllapse of Sucrose-NaCl_221118_Ch3_2.z_1 | H6: DC=0 | J6: Glass transition and colllapse of Sucrose-NaCl_221118_Ch3_3.z_1 | K6: DC=0 | M6: Glass transition and colllapse of Sucrose-NaCl_221118_Ch3_4.z_1 | N6: DC=0 | P6: Glass transition and colllapse of Sucrose-NaCl_221118_Ch3_5.z_1 | Q6: DC=0 | S6: Glass transition and colllapse of Sucrose-NaCl_221118_Ch3_6.z_1 | T6: DC=0 | V6: Glass transition and colllapse of Sucrose-NaCl_221118_Ch3_7.z_1 | W6: DC=0 | Y6: Glass transition and colllapse of Sucrose-NaCl_221118_Ch3_8.z_1 | Z6: DC=0 | AB6: Glass transition and colllapse of Sucrose-NaCl_221118_Ch3_9.z_1 | AC6: DC=0 | AE6: Glass transition and colllapse of Sucrose-NaCl_221118_Ch3_10.z_1 | AF6: DC=0 | AH6: Glass transition and colllapse of Sucrose-NaCl_221118_Ch3_11.z_1 | AI6: DC=0 | AK6: Glass transition and colllapse of Sucrose-NaCl_221118_Ch3_12.z_1 | AL6: DC=0 | AN6: Glass transition and colllapse of Sucrose-NaCl_221118_Ch3_13.z_1 | AO6: DC=0 | AQ6: Glass transition and colllapse of Sucrose-NaCl_221118_Ch3_14.z_1 | AR6: DC=0 | AT6: Glass transition and colllapse of Sucrose-NaCl_221118_Ch3_15.z_1 | AU6: DC=0 | AW6: Glass transition and colllapse of Sucrose-NaCl_221118_Ch3_16.z_1 | AX6: DC=0 | AZ6: Glass transition and colllapse of Sucrose-NaCl_221118_Ch3_17.z_1 | BA6: DC=0 | BC6: Glass transition and colllapse of Sucrose-NaCl_221118_Ch3_18.z_1 | BD6: DC=0 | BF6: Glass transition and colllapse of Sucrose-NaCl_221118_Ch3_19.z_1 | BG6: DC=0 | BI6: Glass transition and colllapse of Sucrose-NaCl_221118_Ch3_20.z_1 | BJ6: DC=0 | BL6: Glass transition and colllapse of Sucrose-NaCl_221118_Ch3_21.z_1 | BM6: DC=0 | BO6: Glass transition and colllapse of Sucrose-NaCl_221118_Ch3_22.z_1 | BP6: DC=0 | BR6: Glass transition and colllapse of Sucrose-NaCl_221118_Ch3_23.z_1 | BS6: DC=0 | BU6: Glass transition and colllapse of Sucrose-NaCl_221118_Ch3_24.z_1 | BV6: DC=0 | BX6: Glass transition and colllapse of Sucrose-NaCl_221118_Ch3_25.z_1 | BY6: DC=0 | CA6: Glass transition and colllapse of Sucrose-NaCl_221118_Ch3_26.z_1 | CB6: DC=0 | CD6: Glass transition and colllapse of Sucrose-NaCl_221118_Ch3_27.z_1 | CE6: DC=0 | CG6: Glass transition and colllapse of Sucrose-NaCl_221118_Ch3_28.z_1 | CH6: DC=0 | CJ6: Glass transition and colllapse of Sucrose-NaCl_221118_Ch3_29.z_1 | CK6: DC=0 | CM6: Glass transition and colllapse of Sucrose-NaCl_221118_Ch3_30.z_1 | CN6: DC=0 | CP6: Glass transition and colllapse of Sucrose-NaCl_221118_Ch3_31.z_1 | CQ6: DC=0 | CS6: Glass transition and colllapse of Sucrose-NaCl_221118_Ch3_32.z_1 | CT6: DC=0 | CV6: Glass transition and colllapse of Sucrose-NaCl_221118_Ch3_33.z_1 | CW6: DC=0 | CY6: Glass transition and colllapse of Sucrose-NaCl_221118_Ch3_34.z_1 | CZ6: DC=0 | DB6: Glass transition and colllapse of Sucrose-NaCl_221118_Ch3_35.z_1 | DC6: DC=0 | DE6: Glass transition and colllapse of Sucrose-NaCl_221118_Ch3_36.z_1 | DF6: DC=0 | DH6: Glass transition and colllapse of Sucrose-NaCl_221118_Ch3_37.z_1 | DI6: DC=0 | DK6: Glass transition and colllapse of Sucrose-NaCl_221118_Ch3_38.z_1 | DL6: DC=0 | DN6: Glass transition and colllapse of Sucrose-NaCl_221118_Ch3_39.z_1 | DO6: DC=0 | DQ6: Glass transition and colllapse of Sucrose-NaCl_221118_Ch3_40.z_1 | DR6: DC=0 | DT6: Glass transition and colllapse of Sucrose-NaCl_221118_Ch3_41.z_1 | DU6: DC=0 | DW6: Glass transition and colllapse of Sucrose-NaCl_221118_Ch3_42.z_1 | DX6: DC=0 | DZ6: Glass transition and colllapse of Sucrose-NaCl_221118_Ch3_43.z_1 | EA6: DC=0 | EC6: Glass transition and colllapse of Sucrose-NaCl_221118_Ch3_44.z_1 | ED6: DC=0 | EF6: Glass transition and colllapse of Sucrose-NaCl_221118_Ch3_45.z_1 | EG6: DC=0 | EI6: Glass transition and colllapse of Sucrose-NaCl_221118_Ch3_46.z_1 | EJ6: DC=0 | EL6: Glass transition and colllapse of Sucrose-NaCl_221118_Ch3_47.z_1 | EM6: DC=0 | EO6: Glass transition and colllapse of Sucrose-NaCl_221118_Ch3_48.z_1 | EP6: DC=0 | ER6: Glass transition and colllapse of Sucrose-NaCl_221118_Ch3_49.z_1 | ES6: DC=0 | EU6: Glass transition and colllapse of Sucrose-NaCl_221118_Ch3_50.z_1 | EV6: DC=0 | EX6: Glass transition and colllapse of Sucrose-NaCl_221118_Ch3_51.z_1 | EY6: DC=0 | FA6: Glass transition and colllapse of Sucrose-NaCl_221118_Ch3_52.z_1 | FB6: DC=0 | FD6: Glass transition and colllapse of Sucrose-NaCl_221118_Ch3_53.z_1 | FE6: DC=0 | FG6: Glass transition and colllapse of Sucrose-NaCl_221118_Ch3_54.z_1 | FH6: DC=0 | FJ6: Glass transition and colllapse of Sucrose-NaCl_221118_Ch3_55.z_1 | FK6: DC=0 | FM6: Glass transition and colllapse of Sucrose-NaCl_221118_Ch3_56.z_1 | FN6: DC=0 | FP6: Glass transition and colllapse of Sucrose-NaCl_221118_Ch3_57.z_1 | FQ6: DC=0 | FS6: Glass transition and colllapse of Sucrose-NaCl_221118_Ch3_58.z_1 | FT6: DC=0 | FV6: Glass transition and colllapse of Sucrose-NaCl_221118_Ch3_59.z_1 | FW6: DC=0 | FY6: Glass transition and colllapse of Sucrose-NaCl_221118_Ch3_60.z_1 | FZ6: DC=0 | GB6: Glass transition and colllapse of Sucrose-NaCl_221118_Ch3_61.z_1 | GC6: DC=0 | GE6: Glass transition and colllapse of Sucrose-NaCl_221118_Ch3_62.z_1 | GF6: DC=0 | GH6: Glass transition and colllapse of Sucrose-NaCl_221118_Ch3_63.z_1 | GI6: DC=0 | GK6: Glass transition and colllapse of Sucrose-NaCl_221118_Ch3_64.z_1 | GL6: DC=0 | GN6: Glass transition and colllapse of Sucrose-NaCl_221118_Ch3_65.z_1 | GO6: DC=0 | GQ6: Glass transition and colllapse of Sucrose-NaCl_221118_Ch3_66.z_1 | GR6: DC=0 | GT6: Glass transition and colllapse of Sucrose-NaCl_221118_Ch3_67.z_1 | GU6: DC=0 | GW6: Glass transition and colllapse of Sucrose-NaCl_221118_Ch3_68.z_1 | GX6: DC=0 | GZ6: Glass transition and colllapse of Sucrose-NaCl_221118_Ch3_69.z_1 | HA6: DC=0 | HC6: Glass transition and colllapse of Sucrose-NaCl_221118_Ch3_70.z_1 | HD6: DC=0 | HF6: Glass transition and colllapse of Sucrose-NaCl_221118_Ch3_71.z_1 | HG6: DC=0 | HI6: Glass transition and colllapse of Sucrose-NaCl_221118_Ch3_72.z_1 | HJ6: DC=0 | HL6: Glass transition and colllapse of Sucrose-NaCl_221118_Ch3_73.z_1 | HM6: DC=0 | HO6: Glass transition and colllapse of Sucrose-NaCl_221118_Ch3_74.z_1 | HP6: DC=0 | HR6: Glass transition and colllapse of Sucrose-NaCl_221118_Ch3_75.z_1 | HS6: DC=0 | HU6: Glass transition and colllapse of Sucrose-NaCl_221118_Ch3_76.z_1 | HV6: DC=0 | HX6: Glass transition and colllapse of Sucrose-NaCl_221118_Ch3_77.z_1 | HY6: DC=0 | IA6: Glass transition and colllapse of Sucrose-NaCl_221118_Ch3_78.z_1 | IB6: DC=0 | ID6: Glass transition and colllapse of Sucrose-NaCl_221118_Ch3_79.z_1 | IE6: DC=0 | IG6: Glass transition and colllapse of Sucrose-NaCl_221118_Ch3_80.z_1 | IH6: DC=0 | IJ6: Glass transition and colllapse of Sucrose-NaCl_221118_Ch3_81.z_1 | IK6: DC=0 | IM6: Glass transition and colllapse of Sucrose-NaCl_221118_Ch3_82.z_1 | IN6: DC=0 | IP6: Glass transition and colllapse of Sucrose-NaCl_221118_Ch3_83.z_1 | IQ6: DC=0 | IS6: Glass transition and colllapse of Sucrose-NaCl_221118_Ch3_84.z_1 | IT6: DC=0 | IV6: Glass transition and colllapse of Sucrose-NaCl_221118_Ch3_85.z_1 | IW6: DC=0 | IY6: Glass transition and colllapse of Sucrose-NaCl_221118_Ch3_86.z_1 | IZ6: DC=0 | JB6: Glass transition and colllapse of Sucrose-NaCl_221118_Ch3_87.z_1 | JC6: DC=0 | JE6: Glass transition and colllapse of Sucrose-NaCl_221118_Ch3_88.z_1 | JF6: DC=0 | JH6: Glass transition and colllapse of Sucrose-NaCl_221118_Ch3_89.z_1 | JI6: DC=0 | JK6: Glass transition and colllapse of Sucrose-NaCl_221118_Ch3_90.z_1 | JL6: DC=0 | JN6: Glass transition and colllapse of Sucrose-NaCl_221118_Ch3_91.z_1 | JO6: DC=0 | JQ6: Glass transition and colllapse of Sucrose-NaCl_221118_Ch3_92.z_1 | JR6: DC=0 | JT6: Glass transition and colllapse of Sucrose-NaCl_221118_Ch3_93.z_1 | JU6: DC=0 | JW6: Glass transition and colllapse of Sucrose-NaCl_221118_Ch3_94.z_1 | JX6: DC=0 | JZ6: Glass transition and colllapse of Sucrose-NaCl_221118_Ch3_95.z_1 | KA6: DC=0 | KC6: Glass transition and colllapse of Sucrose-NaCl_221118_Ch3_96.z_1 | KD6: DC=0 | KF6: Glass transition and colllapse of Sucrose-NaCl_221118_Ch3_97.z_1 | KG6: DC=0 | KI6: Glass transition and colllapse of Sucrose-NaCl_221118_Ch3_98.z_1 | KJ6: DC=0 | KL6: Glass transition and colllapse of Sucrose-NaCl_221118_Ch3_99.z_1 | KM6: DC=0 | KO6: Glass transition and colllapse of Sucrose-NaCl_221118_Ch3_100.z_1 | KP6: DC=0 | KR6: Glass transition and colllapse of Sucrose-NaCl_221118_Ch3_101.z_1 | KS6: DC=0 | KU6: Glass transition and colllapse of Sucrose-NaCl_221118_Ch3_102.z_1 | KV6: DC=0 | KX6: Glass transition and colllapse of Sucrose-NaCl_221118_Ch3_103.z_1 | KY6: DC=0 | LA6: Glass transition and colllapse of Sucrose-NaCl_221118_Ch3_104.z_1 | LB6: DC=0 | LD6: Glass transition and colllapse of Sucrose-NaCl_221118_Ch3_105.z_1 | LE6: DC=0 | LG6: Glass transition and colllapse of Sucrose-NaCl_221118_Ch3_106.z_1 | LH6: DC=0 | LJ6: Glass transition and colllapse of Sucrose-NaCl_221118_Ch3_107.z_1 | LK6: DC=0 | LM6: Glass transition and colllapse of Sucrose-NaCl_221118_Ch3_108.z_1 | LN6: DC=0 | LP6: Glass transition and colllapse of Sucrose-NaCl_221118_Ch3_109.z_1 | LQ6: DC=0 | LS6: Glass transition and colllapse of Sucrose-NaCl_221118_Ch3_110.z_1 | LT6: DC=0 | LV6: Glass transition and colllapse of Sucrose-NaCl_221118_Ch3_111.z_1 | LW6: DC=0 | LY6: Glass transition and colllapse of Sucrose-NaCl_221118_Ch3_112.z_1 | LZ6: DC=0 | MB6: Glass transition and colllapse of Sucrose-NaCl_221118_Ch3_113.z_1 | MC6: DC=0 | ME6: Glass transition and colllapse of Sucrose-NaCl_221118_Ch3_114.z_1 | MF6: DC=0 | MH6: Glass transition and colllapse of Sucrose-NaCl_221118_Ch3_115.z_1 | MI6: DC=0 | MK6: Glass transition and colllapse of Sucrose-NaCl_221118_Ch3_116.z_1 | ML6: DC=0 | MN6: Glass transition and colllapse of Sucrose-NaCl_221118_Ch3_117.z_1 | MO6: DC=0 | MQ6: Glass transition and colllapse of Sucrose-NaCl_221118_Ch3_118.z_1 | MR6: DC=0 | MT6: Glass transition and colllapse of Sucrose-NaCl_221118_Ch3_119.z_1 | MU6: DC=0 | MW6: Glass transition and colllapse of Sucrose-NaCl_221118_Ch3_120.z_1 | MX6: DC=0 | MZ6: Glass transition and colllapse of Sucrose-NaCl_221118_Ch3_121.z_1 | NA6: DC=0 | NC6: Glass transition and colllapse of Sucrose-NaCl_221118_Ch3_122.z_1 | ND6: DC=0 | NF6: Glass transition and colllapse of Sucrose-NaCl_221118_Ch3_123.z_1 | NG6: DC=0 | NI6: Glass transition and colllapse of Sucrose-NaCl_221118_Ch3_124.z_1 | NJ6: DC=0 | NL6: Glass transition and colllapse of Sucrose-NaCl_221118_Ch3_125.z_1 | NM6: DC=0 | NO6: Glass transition and colllapse of Sucrose-NaCl_221118_Ch3_126.z_1 | NP6: DC=0 | NR6: Glass transition and colllapse of Sucrose-NaCl_221118_Ch3_127.z_1 | NS6: DC=0 | NU6: Glass transition and colllapse of Sucrose-NaCl_221118_Ch3_128.z_1 | NV6: DC=0 | NX6: Glass transition and colllapse of Sucrose-NaCl_221118_Ch3_129.z_1 | NY6: DC=0 | OA6: Glass transition and colllapse of Sucrose-NaCl_221118_Ch3_130.z_1 | OB6: DC=0 | OD6: Glass transition and colllapse of Sucrose-NaCl_221118_Ch3_131.z_1 | OE6: DC=0 | OG6: Glass transition and colllapse of Sucrose-NaCl_221118_Ch3_132.z_1 | OH6: DC=0 | OJ6: Glass transition and colllapse of Sucrose-NaCl_221118_Ch3_133.z_1 | OK6: DC=0 | OM6: Glass transition and colllapse of Sucrose-NaCl_221118_Ch3_134.z_1 | ON6: DC=0 | OP6: Glass transition and colllapse of Sucrose-NaCl_221118_Ch3_135.z_1 | OQ6: DC=0 | OS6: Glass transition and colllapse of Sucrose-NaCl_221118_Ch3_136.z_1 | OT6: DC=0 | OV6: Glass transition and colllapse of Sucrose-NaCl_221118_Ch3_137.z_1 | OW6: DC=0 | OY6: Glass transition and colllapse of Sucrose-NaCl_221118_Ch3_138.z_1 | OZ6: DC=0 | PB6: Glass transition and colllapse of Sucrose-NaCl_221118_Ch3_139.z_1 | PC6: DC=0 | PE6: Glass transition and colllapse of Sucrose-NaCl_221118_Ch3_140.z_1 | PF6: DC=0 | PH6: Glass transition and colllapse of Sucrose-NaCl_221118_Ch3_141.z_1 | PI6: DC=0 | PK6: Glass transition and colllapse of Sucrose-NaCl_221118_Ch3_142.z_1 | PL6: DC=0 | PN6: Glass transition and colllapse of Sucrose-NaCl_221118_Ch3_143.z_1 | PO6: DC=0 | PQ6: Glass transition and colllapse of Sucrose-NaCl_221118_Ch3_144.z_1 | PR6: DC=0 | PT6: Glass transition and colllapse of Sucrose-NaCl_221118_Ch3_145.z_1 | PU6: DC=0 | PW6: Glass transition and colllapse of Sucrose-NaCl_221118_Ch3_146.z_1 | PX6: DC=0 | PZ6: Glass transition and colllapse of Sucrose-NaCl_221118_Ch3_147.z_1 | QA6: DC=0 | QC6: Glass transition and colllapse of Sucrose-NaCl_221118_Ch3_148.z_1 | QD6: DC=0 | QF6: Glass transition and colllapse of Sucrose-NaCl_221118_Ch3_149.z_1 | QG6: DC=0 | QI6: Glass transition and colllapse of Sucrose-NaCl_221118_Ch3_150.z_1 | QJ6: DC=0
A7: 10 | B7: 3.590319e-12 | C7: -3.586229e-13 | D7: 10 | E7: 3.487928e-12 | F7: -3.023076e-13 | G7: 10 | H7: 3.493102e-12 | I7: -2.832526e-13 | J7: 10 | K7: 3.49999e-12 | L7: -2.837737e-13 | M7: 10 | N7: 3.499961e-12 | O7: -2.829842e-13 | P7: 10 | Q7: 3.498582e-12 | R7: -2.818186e-13 | S7: 10 | T7: 3.496668e-12 | U7: -2.81054e-13 | V7: 10 | W7: 3.493253e-12 | X7: -2.804001e-13 | Y7: 10 | Z7: 3.492073e-12 | AA7: -2.804439e-13 | AB7: 10 | AC7: 3.490496e-12 | AD7: -2.805402e-13 | AE7: 10 | AF7: 3.489977e-12 | AG7: -2.808542e-13 | AH7: 10 | AI7: 3.488072e-12 | AJ7: -2.810601e-13 | AK7: 10 | AL7: 3.484712e-12 | AM7: -2.825617e-13 | AN7: 10 | AO7: 3.484049e-12 | AP7: -2.832858e-13 | AQ7: 10 | AR7: 3.485308e-12 | AS7: -2.827289e-13 | AT7: 10 | AU7: 3.484482e-12 | AV7: -2.834967e-13 | AW7: 10 | AX7: 3.483044e-12 | AY7: -2.856174e-13 | AZ7: 10 | BA7: 3.481409e-12 | BB7: -2.865677e-13 | BC7: 10 | BD7: 3.479768e-12 | BE7: -2.856901e-13 | BF7: 10 | BG7: 3.478919e-12 | BH7: -2.865974e-13 | BI7: 10 | BJ7: 3.474353e-12 | BK7: -2.856237e-13 | BL7: 10 | BM7: 3.465458e-12 | BN7: -2.815205e-13 | BO7: 10 | BP7: 3.459596e-12 | BQ7: -2.797803e-13 | BR7: 10 | BS7: 3.446951e-12 | BT7: -2.748335e-13 | BU7: 10 | BV7: 3.438582e-12 | BW7: -2.702069e-13 | BX7: 10 | BY7: 3.429654e-12 | BZ7: -2.65064e-13 | CA7: 10 | CB7: 3.420021e-12 | CC7: -2.61384e-13 | CD7: 10 | CE7: 3.412058e-12 | CF7: -2.578392e-13 | CG7: 10 | CH7: 3.39914e-12 | CI7: -2.535686e-13 | CJ7: 10 | CK7: 3.392142e-12 | CL7: -2.525859e-13 | CM7: 10 | CN7: 3.381365e-12 | CO7: -2.491928e-13 | CP7: 10 | CQ7: 3.38417e-12 | CR7: -2.25144e-13 | CS7: 10 | CT7: 3.356263e-12 | CU7: -2.410147e-13 | CV7: 10 | CW7: 3.34881e-12 | CX7: -2.39489e-13 | CY7: 10 | CZ7: 3.334208e-12 | DA7: -2.369973e-13 | DB7: 10 | DC7: 3.323253e-12 | DD7: -2.355052e-13 | DE7: 10 | DF7: 3.312167e-12 | DG7: -2.339777e-13 | DH7: 10 | DI7: 3.300467e-12 | DJ7: -2.333962e-13 | DK7: 10 | DL7: 3.288426e-12 | DM7: -2.333638e-13 | DN7: 10 | DO7: 3.276937e-12 | DP7: -2.329471e-13 | DQ7: 10 | DR7: 3.265268e-12 | DS7: -2.329285e-13 | DT7: 10 | DU7: 3.254221e-12 | DV7: -2.33374e-13 | DW7: 10 | DX7: 3.241882e-12 | DY7: -2.339659e-13 | DZ7: 10 | EA7: 3.230398e-12 | EB7: -2.352532e-13 | EC7: 10 | ED7: 3.217863e-12 | EE7: -2.374345e-13 | EF7: 10 | EG7: 3.200069e-12 | EH7: -2.458609e-13 | EI7: 10 | EJ7: 3.183969e-12 | EK7: -2.479568e-13 | EL7: 10 | EM7: 3.168359e-12 | EN7: -2.507269e-13 | EO7: 10 | EP7: 3.151366e-12 | EQ7: -2.534143e-13 | ER7: 10 | ES7: 3.135887e-12 | ET7: -2.559116e-13 | EU7: 10 | EV7: 3.11901e-12 | EW7: -2.582292e-13 | EX7: 10 | EY7: 3.103052e-12 | EZ7: -2.608196e-13 | FA7: 10 | FB7: 3.08708e-12 | FC7: -2.650179e-13 | FD7: 10 | FE7: 3.073413e-12 | FF7: -2.696032e-13 | FG7: 10 | FH7: 3.063327e-12 | FI7: -2.714982e-13 | FJ7: 10 | FK7: 3.215183e-12 | FL7: -1.611531e-13 | FM7: 10 | FN7: 3.216139e-12 | FO7: -1.901223e-13 | FP7: 10 | FQ7: 3.216019e-12 | FR7: -1.927811e-13 | FS7: 10 | FT7: 3.214874e-12 | FU7: -1.880497e-13 | FV7: 10 | FW7: 3.214068e-12 | FX7: -1.75517e-13 | FY7: 10 | FZ7: 3.209892e-12 | GA7: -1.611436e-13 | GB7: 10 | GC7: 3.20259e-12 | GD7: -1.533603e-13 | GE7: 10 | GF7: 3.192926e-12 | GG7: -1.522728e-13 | GH7: 10 | GI7: 3.17819e-12 | GJ7: -1.635261e-13 | GK7: 10 | GL7: 3.152328e-12 | GM7: -1.953071e-13 | GN7: 10 | GO7: 3.077134e-12 | GP7: -2.472605e-13 | GQ7: 10 | GR7: 2.950001e-12 | GS7: -2.872724e-13 | GT7: 10 | GU7: 2.827125e-12 | GV7: -2.791832e-13 | GW7: 10 | GX7: 2.761504e-12 | GY7: -2.623279e-13 | GZ7: 10 | HA7: 2.718183e-12 | HB7: -2.499552e-13 | HC7: 10 | HD7: 2.681755e-12 | HE7: -2.36844e-13 | HF7: 10 | HG7: 2.649278e-12 | HH7: -2.233173e-13 | HI7: 10 | HJ7: 2.619661e-12 | HK7: -2.100251e-13 | HL7: 10 | HM7: 2.593655e-12 | HN7: -1.967772e-13 | HO7: 10 | HP7: 2.570744e-12 | HQ7: -1.838607e-13 | HR7: 10 | HS7: 2.550268e-12 | HT7: -1.72173e-13 | HU7: 10 | HV7: 2.53267e-12 | HW7: -1.609525e-13 | HX7: 10 | HY7: 2.517392e-12 | HZ7: -1.511674e-13 | IA7: 10 | IB7: 2.504422e-12 | IC7: -1.430228e-13 | ID7: 10 | IE7: 2.493876e-12 | IF7: -1.363856e-13 | IG7: 10 | IH7: 2.484472e-12 | II7: -1.310996e-13 | IJ7: 10 | IK7: 2.47561e-12 | IL7: -1.267823e-13 | IM7: 10 | IN7: 2.467342e-12 | IO7: -1.240382e-13 | IP7: 10 | IQ7: 2.460642e-12 | IR7: -1.230149e-13 | IS7: 10 | IT7: 2.454346e-12 | IU7: -1.228881e-13 | IV7: 10 | IW7: 2.448492e-12 | IX7: -1.239673e-13 | IY7: 10 | IZ7: 2.443084e-12 | JA7: -1.25732e-13 | JB7: 10 | JC7: 2.437335e-12 | JD7: -1.284169e-13 | JE7: 10 | JF7: 2.431454e-12 | JG7: -1.317787e-13 | JH7: 10 | JI7: 2.425292e-12 | JJ7: -1.357679e-13 | JK7: 10 | JL7: 2.418992e-12 | JM7: -1.400842e-13 | JN7: 10 | JO7: 2.412672e-12 | JP7: -1.446502e-13 | JQ7: 10 | JR7: 2.406515e-12 | JS7: -1.488406e-13 | JT7: 10 | JU7: 2.400461e-12 | JV7: -1.531601e-13 | JW7: 10 | JX7: 2.39463e-12 | JY7: -1.572189e-13 | JZ7: 10 | KA7: 2.389154e-12 | KB7: -1.608549e-13 | KC7: 10 | KD7: 2.384064e-12 | KE7: -1.641105e-13 | KF7: 10 | KG7: 2.379339e-12 | KH7: -1.676404e-13 | KI7: 10 | KJ7: 2.373316e-12 | KK7: -1.709567e-13 | KL7: 10 | KM7: 2.369794e-12 | KN7: -1.73193e-13 | KO7: 10 | KP7: 2.365467e-12 | KQ7: -1.755841e-13 | KR7: 10 | KS7: 2.362042e-12 | KT7: -1.777075e-13 | KU7: 10 | KV7: 2.357902e-12 | KW7: -1.80106e-13 | KX7: 10 | KY7: 2.353693e-12 | KZ7: -1.823048e-13 | LA7: 10 | LB7: 2.349178e-12 | LC7: -1.844692e-13 | LD7: 10 | LE7: 2.345338e-12 | LF7: -1.866622e-13 | LG7: 10 | LH7: 2.342477e-12 | LI7: -1.880421e-13 | LJ7: 10 | LK7: 2.339148e-12 | LL7: -1.895168e-13 | LM7: 10 | LN7: 2.33659e-12 | LO7: -1.908039e-13 | LP7: 10 | LQ7: 2.333931e-12 | LR7: -1.922981e-13 | LS7: 10 | LT7: 2.331871e-12 | LU7: -1.933479e-13 | LV7: 10 | LW7: 2.328804e-12 | LX7: -1.946068e-13 | LY7: 10 | LZ7: 2.325857e-12 | MA7: -1.959997e-13 | MB7: 10 | MC7: 2.323405e-12 | MD7: -1.971569e-13 | ME7: 10 | MF7: 2.321526e-12 | MG7: -1.982166e-13 | MH7: 10 | MI7: 2.319254e-12 | MJ7: -1.991595e-13 | MK7: 10 | ML7: 2.316642e-12 | MM7: -2.000903e-13 | MN7: 10 | MO7: 2.314664e-12 | MP7: -2.007618e-13 | MQ7: 10 | MR7: 2.312922e-12 | MS7: -2.016711e-13 | MT7: 10 | MU7: 2.312051e-12 | MV7: -2.023256e-13 | MW7: 10 | MX7: 2.311314e-12 | MY7: -2.029959e-13 | MZ7: 10 | NA7: 2.308621e-12 | NB7: -2.034757e-13 | NC7: 10 | ND7: 2.307312e-12 | NE7: -2.040891e-13 | NF7: 10 | NG7: 2.305409e-12 | NH7: -2.049739e-13 | NI7: 10 | NJ7: 2.304547e-12 | NK7: -2.053969e-13 | NL7: 10 | NM7: 2.303573e-12 | NN7: -2.06062e-13 | NO7: 10 | NP7: 2.302877e-12 | NQ7: -2.063255e-13 | NR7: 10 | NS7: 2.302071e-12 | NT7: -2.066302e-13 | NU7: 10 | NV7: 2.301368e-12 | NW7: -2.071235e-13 | NX7: 10 | NY7: 2.300969e-12 | NZ7: -2.07443e-13 | OA7: 10 | OB7: 2.300854e-12 | OC7: -2.075141e-13 | OD7: 10 | OE7: 2.299968e-12 | OF7: -2.078878e-13 | OG7: 10 | OH7: 2.299302e-12 | OI7: -2.085528e-13 | OJ7: 10 | OK7: 2.298593e-12 | OL7: -2.087056e-13 | OM7: 10 | ON7: 2.297174e-12 | OO7: -2.092106e-13 | OP7: 10 | OQ7: 2.295812e-12 | OR7: -2.095987e-13 | OS7: 10 | OT7: 2.295222e-12 | OU7: -2.100332e-13 | OV7: 10 | OW7: 2.295036e-12 | OX7: -2.103077e-13 | OY7: 10 | OZ7: 2.29423e-12 | PA7: -2.10447e-13 | PB7: 10 | PC7: 2.29432e-12 | PD7: -2.106943e-13 | PE7: 10 | PF7: 2.294186e-12 | PG7: -2.108695e-13 | PH7: 10 | PI7: 2.292758e-12 | PJ7: -2.11435e-13 | PK7: 10 | PL7: 2.291799e-12 | PM7: -2.118592e-13 | PN7: 10 | PO7: 2.290768e-12 | PP7: -2.11941e-13 | PQ7: 10 | PR7: 2.290107e-12 | PS7: -2.125851e-13 | PT7: 10 | PU7: 2.28946e-12 | PV7: -2.129676e-13 | PW7: 10 | PX7: 2.288176e-12 | PY7: -2.131521e-13 | PZ7: 10 | QA7: 2.29135e-12 | QB7: -2.126318e-13 | QC7: 10 | QD7: 2.298074e-12 | QE7: -2.109716e-13 | QF7: 10 | QG7: 2.306848e-12 | QH7: -2.08191e-13 | QI7: 10 | QJ7: 2.316697e-12 | QK7: -2.044816e-13
A8: 12.589 | B8: 3.565361e-12 | C8: -3.358725e-13 | D8: 12.589 | E8: 3.471109e-12 | F8: -2.722786e-13 | G8: 12.589 | H8: 3.474047e-12 | I8: -2.614416e-13 | J8: 12.589 | K8: 3.478925e-12 | L8: -2.658038e-13 | M8: 12.589 | N8: 3.47799e-12 | O8: -2.661859e-13 | P8: 12.589 | Q8: 3.476145e-12 | R8: -2.667871e-13 | S8: 12.589 | T8: 3.473536e-12 | U8: -2.673169e-13 | V8: 12.589 | W8: 3.47004e-12 | X8: -2.654478e-13 | Y8: 12.589 | Z8: 3.469259e-12 | AA8: -2.667423e-13 | AB8: 12.589 | AC8: 3.467078e-12 | AD8: -2.658147e-13 | AE8: 12.589 | AF8: 3.465961e-12 | AG8: -2.667837e-13 | AH8: 12.589 | AI8: 3.463234e-12 | AJ8: -2.662939e-13 | AK8: 12.589 | AL8: 3.459709e-12 | AM8: -2.678693e-13 | AN8: 12.589 | AO8: 3.45853e-12 | AP8: -2.686298e-13 | AQ8: 12.589 | AR8: 3.460886e-12 | AS8: -2.683614e-13 | AT8: 12.589 | AU8: 3.460378e-12 | AV8: -2.697578e-13 | AW8: 12.589 | AX8: 3.457224e-12 | AY8: -2.708135e-13 | AZ8: 12.589 | BA8: 3.455282e-12 | BB8: -2.709211e-13 | BC8: 12.589 | BD8: 3.45324e-12 | BE8: -2.716751e-13 | BF8: 12.589 | BG8: 3.451677e-12 | BH8: -2.736552e-13 | BI8: 12.589 | BJ8: 3.447042e-12 | BK8: -2.726481e-13 | BL8: 12.589 | BM8: 3.439443e-12 | BN8: -2.699622e-13 | BO8: 12.589 | BP8: 3.431859e-12 | BQ8: -2.686043e-13 | BR8: 12.589 | BS8: 3.419598e-12 | BT8: -2.641998e-13 | BU8: 12.589 | BV8: 3.412548e-12 | BW8: -2.605737e-13 | BX8: 12.589 | BY8: 3.404049e-12 | BZ8: -2.574607e-13 | CA8: 12.589 | CB8: 3.393569e-12 | CC8: -2.548589e-13 | CD8: 12.589 | CE8: 3.385869e-12 | CF8: -2.532084e-13 | CG8: 12.589 | CH8: 3.37492e-12 | CI8: -2.502269e-13 | CJ8: 12.589 | CK8: 3.366122e-12 | CL8: -2.498007e-13 | CM8: 12.589 | CN8: 3.354164e-12 | CO8: -2.471871e-13 | CP8: 12.589 | CQ8: 3.362683e-12 | CR8: -2.226547e-13 | CS8: 12.589 | CT8: 3.329607e-12 | CU8: -2.41432e-13 | CV8: 12.589 | CW8: 3.321701e-12 | CX8: -2.426128e-13 | CY8: 12.589 | CZ8: 3.308261e-12 | DA8: -2.39104e-13 | DB8: 12.589 | DC8: 3.295602e-12 | DD8: -2.38804e-13 | DE8: 12.589 | DF8: 3.284684e-12 | DG8: -2.385164e-13 | DH8: 12.589 | DI8: 3.272578e-12 | DJ8: -2.385941e-13 | DK8: 12.589 | DL8: 3.259728e-12 | DM8: -2.396777e-13 | DN8: 12.589 | DO8: 3.248253e-12 | DP8: -2.401386e-13 | DQ8: 12.589 | DR8: 3.23573e-12 | DS8: -2.407977e-13 | DT8: 12.589 | DU8: 3.224371e-12 | DV8: -2.415591e-13 | DW8: 12.589 | DX8: 3.211458e-12 | DY8: -2.432099e-13 | DZ8: 12.589 | EA8: 3.199548e-12 | EB8: -2.448347e-13 | EC8: 12.589 | ED8: 3.18584e-12 | EE8: -2.480083e-13 | EF8: 12.589 | EG8: 3.165545e-12 | EH8: -2.56478e-13 | EI8: 12.589 | EJ8: 3.148642e-12 | EK8: -2.589999e-13 | EL8: 12.589 | EM8: 3.131601e-12 | EN8: -2.618781e-13 | EO8: 12.589 | EP8: 3.113749e-12 | EQ8: -2.644651e-13 | ER8: 12.589 | ES8: 3.096969e-12 | ET8: -2.66828e-13 | EU8: 12.589 | EV8: 3.078785e-12 | EW8: -2.697846e-13 | EX8: 12.589 | EY8: 3.062609e-12 | EZ8: -2.710281e-13 | FA8: 12.589 | FB8: 3.045374e-12 | FC8: -2.748439e-13 | FD8: 12.589 | FE8: 3.030424e-12 | FF8: -2.780196e-13 | FG8: 12.589 | FH8: 3.020006e-12 | FI8: -2.789366e-13 | FJ8: 12.589 | FK8: 3.197809e-12 | FL8: -1.669833e-13 | FM8: 12.589 | FN8: 3.193363e-12 | FO8: -2.00563e-13 | FP8: 12.589 | FQ8: 3.192753e-12 | FR8: -2.028035e-13 | FS8: 12.589 | FT8: 3.192372e-12 | FU8: -1.980565e-13 | FV8: 12.589 | FW8: 3.193883e-12 | FX8: -1.841186e-13 | FY8: 12.589 | FZ8: 3.191602e-12 | GA8: -1.687305e-13 | GB8: 12.589 | GC8: 3.185427e-12 | GD8: -1.60245e-13 | GE8: 12.589 | GF8: 3.17578e-12 | GG8: -1.599647e-13 | GH8: 12.589 | GI8: 3.15881e-12 | GJ8: -1.736704e-13 | GK8: 12.589 | GL8: 3.127243e-12 | GM8: -2.083197e-13 | GN8: 12.589 | GO8: 3.038646e-12 | GP8: -2.621235e-13 | GQ8: 12.589 | GR8: 2.901286e-12 | GS8: -2.910298e-13 | GT8: 12.589 | GU8: 2.780749e-12 | GV8: -2.717026e-13 | GW8: 12.589 | GX8: 2.719239e-12 | GY8: -2.50542e-13 | GZ8: 12.589 | HA8: 2.679587e-12 | HB8: -2.354046e-13 | HC8: 12.589 | HD8: 2.64633e-12 | HE8: -2.207961e-13 | HF8: 12.589 | HG8: 2.617319e-12 | HH8: -2.068371e-13 | HI8: 12.589 | HJ8: 2.591011e-12 | HK8: -1.930016e-13 | HL8: 12.589 | HM8: 2.56766e-12 | HN8: -1.800706e-13 | HO8: 12.589 | HP8: 2.547258e-12 | HQ8: -1.681471e-13 | HR8: 12.589 | HS8: 2.529024e-12 | HT8: -1.566991e-13 | HU8: 12.589 | HV8: 2.513212e-12 | HW8: -1.466429e-13 | HX8: 12.589 | HY8: 2.499888e-12 | HZ8: -1.380646e-13 | IA8: 12.589 | IB8: 2.48836e-12 | IC8: -1.30842e-13 | ID8: 12.589 | IE8: 2.478981e-12 | IF8: -1.254695e-13 | IG8: 12.589 | IH8: 2.470412e-12 | II8: -1.213576e-13 | IJ8: 12.589 | IK8: 2.462152e-12 | IL8: -1.186041e-13 | IM8: 12.589 | IN8: 2.454942e-12 | IO8: -1.174865e-13 | IP8: 12.589 | IQ8: 2.448139e-12 | IR8: -1.175508e-13 | IS8: 12.589 | IT8: 2.442448e-12 | IU8: -1.187713e-13 | IV8: 12.589 | IW8: 2.436465e-12 | IX8: -1.212678e-13 | IY8: 12.589 | IZ8: 2.430744e-12 | JA8: -1.246158e-13 | JB8: 12.589 | JC8: 2.424402e-12 | JD8: -1.286332e-13 | JE8: 12.589 | JF8: 2.41824e-12 | JG8: -1.33676e-13 | JH8: 12.589 | JI8: 2.411952e-12 | JJ8: -1.386238e-13 | JK8: 12.589 | JL8: 2.404482e-12 | JM8: -1.445746e-13 | JN8: 12.589 | JO8: 2.397242e-12 | JP8: -1.501887e-13 | JQ8: 12.589 | JR8: 2.390333e-12 | JS8: -1.5541e-13 | JT8: 12.589 | JU8: 2.383791e-12 | JV8: -1.599714e-13 | JW8: 12.589 | JX8: 2.376866e-12 | JY8: -1.650614e-13 | JZ8: 12.589 | KA8: 2.370442e-12 | KB8: -1.692273e-13 | KC8: 12.589 | KD8: 2.364838e-12 | KE8: -1.730746e-13 | KF8: 12.589 | KG8: 2.358672e-12 | KH8: -1.768296e-13 | KI8: 12.589 | KJ8: 2.352685e-12 | KK8: -1.806496e-13 | KL8: 12.589 | KM8: 2.348124e-12 | KN8: -1.830891e-13 | KO8: 12.589 | KP8: 2.343787e-12 | KQ8: -1.855564e-13 | KR8: 12.589 | KS8: 2.339493e-12 | KT8: -1.877982e-13 | KU8: 12.589 | KV8: 2.334946e-12 | KW8: -1.902833e-13 | KX8: 12.589 | KY8: 2.330404e-12 | KZ8: -1.922563e-13 | LA8: 12.589 | LB8: 2.32564e-12 | LC8: -1.950951e-13 | LD8: 12.589 | LE8: 2.320828e-12 | LF8: -1.974819e-13 | LG8: 12.589 | LH8: 2.317707e-12 | LI8: -1.989364e-13 | LJ8: 12.589 | LK8: 2.314417e-12 | LL8: -2.003953e-13 | LM8: 12.589 | LN8: 2.311501e-12 | LO8: -2.022127e-13 | LP8: 12.589 | LQ8: 2.30851e-12 | LR8: -2.030056e-13 | LS8: 12.589 | LT8: 2.306194e-12 | LU8: -2.041541e-13 | LV8: 12.589 | LW8: 2.302415e-12 | LX8: -2.055585e-13 | LY8: 12.589 | LZ8: 2.299448e-12 | MA8: -2.070212e-13 | MB8: 12.589 | MC8: 2.296716e-12 | MD8: -2.079235e-13 | ME8: 12.589 | MF8: 2.294086e-12 | MG8: -2.085231e-13 | MH8: 12.589 | MI8: 2.291917e-12 | MJ8: -2.09885e-13 | MK8: 12.589 | ML8: 2.289236e-12 | MM8: -2.107974e-13 | MN8: 12.589 | MO8: 2.287255e-12 | MP8: -2.116266e-13 | MQ8: 12.589 | MR8: 2.28535e-12 | MS8: -2.125131e-13 | MT8: 12.589 | MU8: 2.284273e-12 | MV8: -2.130567e-13 | MW8: 12.589 | MX8: 2.283204e-12 | MY8: -2.14007e-13 | MZ8: 12.589 | NA8: 2.280641e-12 | NB8: -2.141434e-13 | NC8: 12.589 | ND8: 2.278932e-12 | NE8: -2.151401e-13 | NF8: 12.589 | NG8: 2.27709e-12 | NH8: -2.159522e-13 | NI8: 12.589 | NJ8: 2.276135e-12 | NK8: -2.163209e-13 | NL8: 12.589 | NM8: 2.274728e-12 | NN8: -2.168544e-13 | NO8: 12.589 | NP8: 2.273754e-12 | NQ8: -2.171083e-13 | NR8: 12.589 | NS8: 2.273358e-12 | NT8: -2.174225e-13 | NU8: 12.589 | NV8: 2.272691e-12 | NW8: -2.178272e-13 | NX8: 12.589 | NY8: 2.271795e-12 | NZ8: -2.183338e-13 | OA8: 12.589 | OB8: 2.272176e-12 | OC8: -2.181012e-13 | OD8: 12.589 | OE8: 2.270519e-12 | OF8: -2.188577e-13 | OG8: 12.589 | OH8: 2.270417e-12 | OI8: -2.191689e-13 | OJ8: 12.589 | OK8: 2.26925e-12 | OL8: -2.195657e-13 | OM8: 12.589 | ON8: 2.267582e-12 | OO8: -2.199555e-13 | OP8: 12.589 | OQ8: 2.266505e-12 | OR8: -2.205429e-13 | OS8: 12.589 | OT8: 2.265462e-12 | OU8: -2.207514e-13 | OV8: 12.589 | OW8: 2.26501e-12 | OX8: -2.209255e-13 | OY8: 12.589 | OZ8: 2.264532e-12 | PA8: -2.214449e-13 | PB8: 12.589 | PC8: 2.264598e-12 | PD8: -2.215291e-13 | PE8: 12.589 | PF8: 2.264505e-12 | PG8: -2.215775e-13 | PH8: 12.589 | PI8: 2.262829e-12 | PJ8: -2.224594e-13 | PK8: 12.589 | PL8: 2.261982e-12 | PM8: -2.225246e-13 | PN8: 12.589 | PO8: 2.260436e-12 | PP8: -2.227626e-13 | PQ8: 12.589 | PR8: 2.259697e-12 | PS8: -2.233391e-13 | PT8: 12.589 | PU8: 2.259156e-12 | PV8: -2.237591e-13 | PW8: 12.589 | PX8: 2.258023e-12 | PY8: -2.242302e-13 | PZ8: 12.589 | QA8: 2.261042e-12 | QB8: -2.236909e-13 | QC8: 12.589 | QD8: 2.26797e-12 | QE8: -2.218146e-13 | QF8: 12.589 | QG8: 2.277659e-12 | QH8: -2.195614e-13 | QI8: 12.589 | QJ8: 2.288262e-12 | QK8: -2.161982e-13
A9: 15.849 | B9: 3.537706e-12 | C9: -3.193937e-13 | D9: 15.849 | E9: 3.453799e-12 | F9: -2.521114e-13 | G9: 15.849 | H9: 3.454407e-12 | I9: -2.470948e-13 | J9: 15.849 | K9: 3.45604e-12 | L9: -2.541206e-13 | M9: 15.849 | N9: 3.453621e-12 | O9: -2.557671e-13 | P9: 15.849 | Q9: 3.45071e-12 | R9: -2.56672e-13 | S9: 15.849 | T9: 3.447938e-12 | U9: -2.574853e-13 | V9: 15.849 | W9: 3.445538e-12 | X9: -2.58243e-13 | Y9: 15.849 | Z9: 3.443582e-12 | AA9: -2.584646e-13 | AB9: 15.849 | AC9: 3.441488e-12 | AD9: -2.588203e-13 | AE9: 15.849 | AF9: 3.439725e-12 | AG9: -2.593805e-13 | AH9: 15.849 | AI9: 3.438341e-12 | AJ9: -2.590269e-13 | AK9: 15.849 | AL9: 3.432542e-12 | AM9: -2.578506e-13 | AN9: 15.849 | AO9: 3.431398e-12 | AP9: -2.5831e-13 | AQ9: 15.849 | AR9: 3.43466e-12 | AS9: -2.604174e-13 | AT9: 15.849 | AU9: 3.433428e-12 | AV9: -2.606595e-13 | AW9: 15.849 | AX9: 3.429201e-12 | AY9: -2.60217e-13 | AZ9: 15.849 | BA9: 3.427157e-12 | BB9: -2.603454e-13 | BC9: 15.849 | BD9: 3.425399e-12 | BE9: -2.609565e-13 | BF9: 15.849 | BG9: 3.423401e-12 | BH9: -2.63893e-13 | BI9: 15.849 | BJ9: 3.419408e-12 | BK9: -2.628593e-13 | BL9: 15.849 | BM9: 3.41113e-12 | BN9: -2.628663e-13 | BO9: 15.849 | BP9: 3.403422e-12 | BQ9: -2.617311e-13 | BR9: 15.849 | BS9: 3.391831e-12 | BT9: -2.579825e-13 | BU9: 15.849 | BV9: 3.384737e-12 | BW9: -2.556911e-13 | BX9: 15.849 | BY9: 3.37523e-12 | BZ9: -2.535216e-13 | CA9: 15.849 | CB9: 3.365565e-12 | CC9: -2.520062e-13 | CD9: 15.849 | CE9: 3.357082e-12 | CF9: -2.513467e-13 | CG9: 15.849 | CH9: 3.346333e-12 | CI9: -2.502068e-13 | CJ9: 15.849 | CK9: 3.336034e-12 | CL9: -2.495283e-13 | CM9: 15.849 | CN9: 3.324205e-12 | CO9: -2.48289e-13 | CP9: 15.849 | CQ9: 3.336952e-12 | CR9: -2.23336e-13 | CS9: 15.849 | CT9: 3.298813e-12 | CU9: -2.450954e-13 | CV9: 15.849 | CW9: 3.29167e-12 | CX9: -2.465308e-13 | CY9: 15.849 | CZ9: 3.278238e-12 | DA9: -2.44294e-13 | DB9: 15.849 | DC9: 3.264779e-12 | DD9: -2.444288e-13 | DE9: 15.849 | DF9: 3.253597e-12 | DG9: -2.443882e-13 | DH9: 15.849 | DI9: 3.241023e-12 | DJ9: -2.45599e-13 | DK9: 15.849 | DL9: 3.228114e-12 | DM9: -2.475103e-13 | DN9: 15.849 | DO9: 3.216087e-12 | DP9: -2.483844e-13 | DQ9: 15.849 | DR9: 3.202495e-12 | DS9: -2.498227e-13 | DT9: 15.849 | DU9: 3.190858e-12 | DV9: -2.513144e-13 | DW9: 15.849 | DX9: 3.177408e-12 | DY9: -2.530797e-13 | DZ9: 15.849 | EA9: 3.164305e-12 | EB9: -2.552118e-13 | EC9: 15.849 | ED9: 3.149529e-12 | EE9: -2.582791e-13 | EF9: 15.849 | EG9: 3.126822e-12 | EH9: -2.670298e-13 | EI9: 15.849 | EJ9: 3.108492e-12 | EK9: -2.694434e-13 | EL9: 15.849 | EM9: 3.090728e-12 | EN9: -2.719353e-13 | EO9: 15.849 | EP9: 3.071624e-12 | EQ9: -2.743002e-13 | ER9: 15.849 | ES9: 3.054415e-12 | ET9: -2.763024e-13 | EU9: 15.849 | EV9: 3.035595e-12 | EW9: -2.78279e-13 | EX9: 15.849 | EY9: 3.017508e-12 | EZ9: -2.794368e-13 | FA9: 15.849 | FB9: 2.999975e-12 | FC9: -2.821315e-13 | FD9: 15.849 | FE9: 2.984493e-12 | FF9: -2.836011e-13 | FG9: 15.849 | FH9: 2.973933e-12 | FI9: -2.837332e-13 | FJ9: 15.849 | FK9: 3.178236e-12 | FL9: -1.745351e-13 | FM9: 15.849 | FN9: 3.165873e-12 | FO9: -2.125888e-13 | FP9: 15.849 | FQ9: 3.165363e-12 | FR9: -2.148566e-13 | FS9: 15.849 | FT9: 3.166531e-12 | FU9: -2.099454e-13 | FV9: 15.849 | FW9: 3.169491e-12 | FX9: -1.947544e-13 | FY9: 15.849 | FZ9: 3.170292e-12 | GA9: -1.776713e-13 | GB9: 15.849 | GC9: 3.166378e-12 | GD9: -1.682861e-13 | GE9: 15.849 | GF9: 3.156101e-12 | GG9: -1.68653e-13 | GH9: 15.849 | GI9: 3.136709e-12 | GJ9: -1.844331e-13 | GK9: 15.849 | GL9: 3.098266e-12 | GM9: -2.226581e-13 | GN9: 15.849 | GO9: 2.995147e-12 | GP9: -2.745791e-13 | GQ9: 15.849 | GR9: 2.850299e-12 | GS9: -2.90106e-13 | GT9: 15.849 | GU9: 2.735077e-12 | GV9: -2.5985e-13 | GW9: 15.849 | GX9: 2.679235e-12 | GY9: -2.356298e-13 | GZ9: 15.849 | HA9: 2.64352e-12 | HB9: -2.186269e-13 | HC9: 15.849 | HD9: 2.614405e-12 | HE9: -2.034057e-13 | HF9: 15.849 | HG9: 2.588347e-12 | HH9: -1.890135e-13 | HI9: 15.849 | HJ9: 2.565021e-12 | HK9: -1.760679e-13 | HL9: 15.849 | HM9: 2.543754e-12 | HN9: -1.637452e-13 | HO9: 15.849 | HP9: 2.525237e-12 | HQ9: -1.524371e-13 | HR9: 15.849 | HS9: 2.509737e-12 | HT9: -1.421685e-13 | HU9: 15.849 | HV9: 2.495557e-12 | HW9: -1.332145e-13 | HX9: 15.849 | HY9: 2.483524e-12 | HZ9: -1.25688e-13 | IA9: 15.849 | IB9: 2.473266e-12 | IC9: -1.19777e-13 | ID9: 15.849 | IE9: 2.464859e-12 | IF9: -1.156424e-13 | IG9: 15.849 | IH9: 2.45705e-12 | II9: -1.128096e-13 | IJ9: 15.849 | IK9: 2.449695e-12 | IL9: -1.114483e-13 | IM9: 15.849 | IN9: 2.442698e-12 | IO9: -1.119054e-13 | IP9: 15.849 | IQ9: 2.436367e-12 | IR9: -1.139246e-13 | IS9: 15.849 | IT9: 2.429928e-12 | IU9: -1.167257e-13 | IV9: 15.849 | IW9: 2.424177e-12 | IX9: -1.205459e-13 | IY9: 15.849 | IZ9: 2.417784e-12 | JA9: -1.255646e-13 | JB9: 15.849 | JC9: 2.411265e-12 | JD9: -1.312337e-13 | JE9: 15.849 | JF9: 2.404082e-12 | JG9: -1.376195e-13 | JH9: 15.849 | JI9: 2.396883e-12 | JJ9: -1.441058e-13 | JK9: 15.849 | JL9: 2.387958e-12 | JM9: -1.50997e-13 | JN9: 15.849 | JO9: 2.379969e-12 | JP9: -1.577864e-13 | JQ9: 15.849 | JR9: 2.37199e-12 | JS9: -1.640644e-13 | JT9: 15.849 | JU9: 2.363557e-12 | JV9: -1.695908e-13 | JW9: 15.849 | JX9: 2.356074e-12 | JY9: -1.748935e-13 | JZ9: 15.849 | KA9: 2.349532e-12 | KB9: -1.795823e-13 | KC9: 15.849 | KD9: 2.342462e-12 | KE9: -1.837706e-13 | KF9: 15.849 | KG9: 2.33526e-12 | KH9: -1.878429e-13 | KI9: 15.849 | KJ9: 2.329067e-12 | KK9: -1.915854e-13 | KL9: 15.849 | KM9: 2.323866e-12 | KN9: -1.943974e-13 | KO9: 15.849 | KP9: 2.319224e-12 | KQ9: -1.968716e-13 | KR9: 15.849 | KS9: 2.314505e-12 | KT9: -1.992114e-13 | KU9: 15.849 | KV9: 2.309244e-12 | KW9: -2.015913e-13 | KX9: 15.849 | KY9: 2.304148e-12 | KZ9: -2.04034e-13 | LA9: 15.849 | LB9: 2.298774e-12 | LC9: -2.065788e-13 | LD9: 15.849 | LE9: 2.293568e-12 | LF9: -2.088682e-13 | LG9: 15.849 | LH9: 2.289893e-12 | LI9: -2.104747e-13 | LJ9: 15.849 | LK9: 2.286126e-12 | LL9: -2.120353e-13 | LM9: 15.849 | LN9: 2.282947e-12 | LO9: -2.133424e-13 | LP9: 15.849 | LQ9: 2.280272e-12 | LR9: -2.145395e-13 | LS9: 15.849 | LT9: 2.277126e-12 | LU9: -2.157193e-13 | LV9: 15.849 | LW9: 2.273148e-12 | LX9: -2.171322e-13 | LY9: 15.849 | LZ9: 2.270003e-12 | MA9: -2.183723e-13 | MB9: 15.849 | MC9: 2.266985e-12 | MD9: -2.195284e-13 | ME9: 15.849 | MF9: 2.264376e-12 | MG9: -2.204946e-13 | MH9: 15.849 | MI9: 2.262126e-12 | MJ9: -2.212584e-13 | MK9: 15.849 | ML9: 2.259084e-12 | MM9: -2.22337e-13 | MN9: 15.849 | MO9: 2.256937e-12 | MP9: -2.228818e-13 | MQ9: 15.849 | MR9: 2.254254e-12 | MS9: -2.237748e-13 | MT9: 15.849 | MU9: 2.253466e-12 | MV9: -2.243252e-13 | MW9: 15.849 | MX9: 2.251888e-12 | MY9: -2.249236e-13 | MZ9: 15.849 | NA9: 2.2497e-12 | NB9: -2.257183e-13 | NC9: 15.849 | ND9: 2.248145e-12 | NE9: -2.262177e-13 | NF9: 15.849 | NG9: 2.245752e-12 | NH9: -2.270257e-13 | NI9: 15.849 | NJ9: 2.244583e-12 | NK9: -2.274235e-13 | NL9: 15.849 | NM9: 2.243036e-12 | NN9: -2.279077e-13 | NO9: 15.849 | NP9: 2.242375e-12 | NQ9: -2.283607e-13 | NR9: 15.849 | NS9: 2.241299e-12 | NT9: -2.285678e-13 | NU9: 15.849 | NV9: 2.240803e-12 | NW9: -2.287234e-13 | NX9: 15.849 | NY9: 2.239904e-12 | NZ9: -2.293318e-13 | OA9: 15.849 | OB9: 2.239992e-12 | OC9: -2.294017e-13 | OD9: 15.849 | OE9: 2.23874e-12 | OF9: -2.299719e-13 | OG9: 15.849 | OH9: 2.238445e-12 | OI9: -2.303999e-13 | OJ9: 15.849 | OK9: 2.237097e-12 | OL9: -2.304486e-13 | OM9: 15.849 | ON9: 2.235409e-12 | OO9: -2.311453e-13 | OP9: 15.849 | OQ9: 2.233841e-12 | OR9: -2.315207e-13 | OS9: 15.849 | OT9: 2.233296e-12 | OU9: -2.319194e-13 | OV9: 15.849 | OW9: 2.232415e-12 | OX9: -2.319651e-13 | OY9: 15.849 | OZ9: 2.23225e-12 | PA9: -2.325045e-13 | PB9: 15.849 | PC9: 2.231508e-12 | PD9: -2.326198e-13 | PE9: 15.849 | PF9: 2.231602e-12 | PG9: -2.326601e-13 | PH9: 15.849 | PI9: 2.230256e-12 | PJ9: -2.332157e-13 | PK9: 15.849 | PL9: 2.229074e-12 | PM9: -2.337226e-13 | PN9: 15.849 | PO9: 2.228086e-12 | PP9: -2.340445e-13 | PQ9: 15.849 | PR9: 2.227068e-12 | PS9: -2.342674e-13 | PT9: 15.849 | PU9: 2.22613e-12 | PV9: -2.345984e-13 | PW9: 15.849 | PX9: 2.224547e-12 | PY9: -2.350865e-13 | PZ9: 15.849 | QA9: 2.227718e-12 | QB9: -2.348143e-13 | QC9: 15.849 | QD9: 2.235565e-12 | QE9: -2.333419e-13 | QF9: 15.849 | QG9: 2.2457e-12 | QH9: -2.312949e-13 | QI9: 15.849 | QJ9: 2.257152e-12 | QK9: -2.282882e-13
A10: 19.953 | B10: 3.508807e-12 | C10: -3.088521e-13 | D10: 19.953 | E10: 3.436656e-12 | F10: -2.414855e-13 | G10: 19.953 | H10: 3.433296e-12 | I10: -2.397664e-13 | J10: 19.953 | K10: 3.43242e-12 | L10: -2.47996e-13 | M10: 19.953 | N10: 3.429248e-12 | O10: -2.502164e-13 | P10: 19.953 | Q10: 3.4252e-12 | R10: -2.512819e-13 | S10: 19.953 | T10: 3.421763e-12 | U10: -2.523116e-13 | V10: 19.953 | W10: 3.419138e-12 | X10: -2.529207e-13 | Y10: 19.953 | Z10: 3.417112e-12 | AA10: -2.535272e-13 | AB10: 19.953 | AC10: 3.414593e-12 | AD10: -2.534636e-13 | AE10: 19.953 | AF10: 3.413192e-12 | AG10: -2.538929e-13 | AH10: 19.953 | AI10: 3.411131e-12 | AJ10: -2.537776e-13 | AK10: 19.953 | AL10: 3.406141e-12 | AM10: -2.524844e-13 | AN10: 19.953 | AO10: 3.404946e-12 | AP10: -2.525722e-13 | AQ10: 19.953 | AR10: 3.408162e-12 | AS10: -2.547994e-13 | AT10: 19.953 | AU10: 3.406202e-12 | AV10: -2.550373e-13 | AW10: 19.953 | AX10: 3.402955e-12 | AY10: -2.540318e-13 | AZ10: 19.953 | BA10: 3.400532e-12 | BB10: -2.544495e-13 | BC10: 19.953 | BD10: 3.398448e-12 | BE10: -2.555643e-13 | BF10: 19.953 | BG10: 3.395289e-12 | BH10: -2.589095e-13 | BI10: 19.953 | BJ10: 3.390077e-12 | BK10: -2.593861e-13 | BL10: 19.953 | BM10: 3.382675e-12 | BN10: -2.589926e-13 | BO10: 19.953 | BP10: 3.374753e-12 | BQ10: -2.584132e-13 | BR10: 19.953 | BS10: 3.36368e-12 | BT10: -2.550793e-13 | BU10: 19.953 | BV10: 3.356784e-12 | BW10: -2.549627e-13 | BX10: 19.953 | BY10: 3.346867e-12 | BZ10: -2.532784e-13 | CA10: 19.953 | CB10: 3.336997e-12 | CC10: -2.52616e-13 | CD10: 19.953 | CE10: 3.327611e-12 | CF10: -2.537876e-13 | CG10: 19.953 | CH10: 3.316499e-12 | CI10: -2.518892e-13 | CJ10: 19.953 | CK10: 3.306313e-12 | CL10: -2.526362e-13 | CM10: 19.953 | CN10: 3.294552e-12 | CO10: -2.522994e-13 | CP10: 19.953 | CQ10: 3.312893e-12 | CR10: -2.26601e-13 | CS10: 19.953 | CT10: 3.270263e-12 | CU10: -2.50236e-13 | CV10: 19.953 | CW10: 3.260249e-12 | CX10: -2.525218e-13 | CY10: 19.953 | CZ10: 3.24741e-12 | DA10: -2.516557e-13 | DB10: 19.953 | DC10: 3.233587e-12 | DD10: -2.517605e-13 | DE10: 19.953 | DF10: 3.221199e-12 | DG10: -2.527249e-13 | DH10: 19.953 | DI10: 3.20791e-12 | DJ10: -2.541273e-13 | DK10: 19.953 | DL10: 3.193659e-12 | DM10: -2.564605e-13 | DN10: 19.953 | DO10: 3.180937e-12 | DP10: -2.580297e-13 | DQ10: 19.953 | DR10: 3.167127e-12 | DS10: -2.597431e-13 | DT10: 19.953 | DU10: 3.154298e-12 | DV10: -2.615624e-13 | DW10: 19.953 | DX10: 3.140121e-12 | DY10: -2.63681e-13 | DZ10: 19.953 | EA10: 3.126293e-12 | EB10: -2.658787e-13 | EC10: 19.953 | ED10: 3.110301e-12 | EE10: -2.689974e-13 | EF10: 19.953 | EG10: 3.084836e-12 | EH10: -2.76518e-13 | EI10: 19.953 | EJ10: 3.065652e-12 | EK10: -2.78458e-13 | EL10: 19.953 | EM10: 3.047131e-12 | EN10: -2.805656e-13 | EO10: 19.953 | EP10: 3.026991e-12 | EQ10: -2.823059e-13 | ER10: 19.953 | ES10: 3.008944e-12 | ET10: -2.835113e-13 | EU10: 19.953 | EV10: 2.98977e-12 | EW10: -2.844239e-13 | EX10: 19.953 | EY10: 2.971555e-12 | EZ10: -2.850897e-13 | FA10: 19.953 | FB10: 2.95242e-12 | FC10: -2.863621e-13 | FD10: 19.953 | FE10: 2.937143e-12 | FF10: -2.861372e-13 | FG10: 19.953 | FH10: 2.926649e-12 | FI10: -2.859329e-13 | FJ10: 19.953 | FK10: 3.156452e-12 | FL10: -1.838475e-13 | FM10: 19.953 | FN10: 3.136196e-12 | FO10: -2.262221e-13 | FP10: 19.953 | FQ10: 3.135024e-12 | FR10: -2.282551e-13 | FS10: 19.953 | FT10: 3.137312e-12 | FU10: -2.228251e-13 | FV10: 19.953 | FW10: 3.143658e-12 | FX10: -2.067567e-13 | FY10: 19.953 | FZ10: 3.147841e-12 | GA10: -1.885288e-13 | GB10: 19.953 | GC10: 3.144777e-12 | GD10: -1.782782e-13 | GE10: 19.953 | GF10: 3.135126e-12 | GG10: -1.797205e-13 | GH10: 19.953 | GI10: 3.11281e-12 | GJ10: -1.97487e-13 | GK10: 19.953 | GL10: 3.065556e-12 | GM10: -2.378698e-13 | GN10: 19.953 | GO10: 2.947797e-12 | GP10: -2.841803e-13 | GQ10: 19.953 | GR10: 2.800133e-12 | GS10: -2.840353e-13 | GT10: 19.953 | GU10: 2.693372e-12 | GV10: -2.446069e-13 | GW10: 19.953 | GX10: 2.643985e-12 | GY10: -2.183996e-13 | GZ10: 19.953 | HA10: 2.61212e-12 | HB10: -2.008416e-13 | HC10: 19.953 | HD10: 2.586134e-12 | HE10: -1.857533e-13 | HF10: 19.953 | HG10: 2.563071e-12 | HH10: -1.721951e-13 | HI10: 19.953 | HJ10: 2.542185e-12 | HK10: -1.59821e-13 | HL10: 19.953 | HM10: 2.523311e-12 | HN10: -1.485695e-13 | HO10: 19.953 | HP10: 2.506976e-12 | HQ10: -1.380453e-13 | HR10: 19.953 | HS10: 2.493003e-12 | HT10: -1.290565e-13 | HU10: 19.953 | HV10: 2.480059e-12 | HW10: -1.211044e-13 | HX10: 19.953 | HY10: 2.469615e-12 | HZ10: -1.147031e-13 | IA10: 19.953 | IB10: 2.460447e-12 | IC10: -1.101779e-13 | ID10: 19.953 | IE10: 2.452709e-12 | IF10: -1.073301e-13 | IG10: 19.953 | IH10: 2.445565e-12 | II10: -1.059958e-13 | IJ10: 19.953 | IK10: 2.438388e-12 | IL10: -1.063854e-13 | IM10: 19.953 | IN10: 2.431486e-12 | IO10: -1.083474e-13 | IP10: 19.953 | IQ10: 2.425133e-12 | IR10: -1.119576e-13 | IS10: 19.953 | IT10: 2.41862e-12 | IU10: -1.166345e-13 | IV10: 19.953 | IW10: 2.412223e-12 | IX10: -1.224396e-13 | IY10: 19.953 | IZ10: 2.405385e-12 | JA10: -1.289186e-13 | JB10: 19.953 | JC10: 2.397735e-12 | JD10: -1.360621e-13 | JE10: 19.953 | JF10: 2.389569e-12 | JG10: -1.438052e-13 | JH10: 19.953 | JI10: 2.380679e-12 | JJ10: -1.520484e-13 | JK10: 19.953 | JL10: 2.371096e-12 | JM10: -1.600249e-13 | JN10: 19.953 | JO10: 2.361557e-12 | JP10: -1.676707e-13 | JQ10: 19.953 | JR10: 2.35211e-12 | JS10: -1.7471e-13 | JT10: 19.953 | JU10: 2.342867e-12 | JV10: -1.809415e-13 | JW10: 19.953 | JX10: 2.334449e-12 | JY10: -1.864699e-13 | JZ10: 19.953 | KA10: 2.326369e-12 | KB10: -1.913037e-13 | KC10: 19.953 | KD10: 2.318534e-12 | KE10: -1.960223e-13 | KF10: 19.953 | KG10: 2.310819e-12 | KH10: -2.001505e-13 | KI10: 19.953 | KJ10: 2.303302e-12 | KK10: -2.040535e-13 | KL10: 19.953 | KM10: 2.2976e-12 | KN10: -2.070356e-13 | KO10: 19.953 | KP10: 2.292077e-12 | KQ10: -2.094828e-13 | KR10: 19.953 | KS10: 2.287041e-12 | KT10: -2.119184e-13 | KU10: 19.953 | KV10: 2.281138e-12 | KW10: -2.143918e-13 | KX10: 19.953 | KY10: 2.2757e-12 | KZ10: -2.16616e-13 | LA10: 19.953 | LB10: 2.269764e-12 | LC10: -2.19082e-13 | LD10: 19.953 | LE10: 2.264109e-12 | LF10: -2.212206e-13 | LG10: 19.953 | LH10: 2.26016e-12 | LI10: -2.228216e-13 | LJ10: 19.953 | LK10: 2.256388e-12 | LL10: -2.242336e-13 | LM10: 19.953 | LN10: 2.252504e-12 | LO10: -2.255909e-13 | LP10: 19.953 | LQ10: 2.249244e-12 | LR10: -2.268145e-13 | LS10: 19.953 | LT10: 2.2463e-12 | LU10: -2.277999e-13 | LV10: 19.953 | LW10: 2.242215e-12 | LX10: -2.292911e-13 | LY10: 19.953 | LZ10: 2.238438e-12 | MA10: -2.302809e-13 | MB10: 19.953 | MC10: 2.23538e-12 | MD10: -2.312816e-13 | ME10: 19.953 | MF10: 2.232297e-12 | MG10: -2.32121e-13 | MH10: 19.953 | MI10: 2.229661e-12 | MJ10: -2.33003e-13 | MK10: 19.953 | ML10: 2.226443e-12 | MM10: -2.339227e-13 | MN10: 19.953 | MO10: 2.224181e-12 | MP10: -2.346025e-13 | MQ10: 19.953 | MR10: 2.221827e-12 | MS10: -2.354253e-13 | MT10: 19.953 | MU10: 2.22051e-12 | MV10: -2.358975e-13 | MW10: 19.953 | MX10: 2.21881e-12 | MY10: -2.363751e-13 | MZ10: 19.953 | NA10: 2.216498e-12 | NB10: -2.370369e-13 | NC10: 19.953 | ND10: 2.214455e-12 | NE10: -2.376451e-13 | NF10: 19.953 | NG10: 2.21198e-12 | NH10: -2.382127e-13 | NI10: 19.953 | NJ10: 2.210675e-12 | NK10: -2.386644e-13 | NL10: 19.953 | NM10: 2.209499e-12 | NN10: -2.391111e-13 | NO10: 19.953 | NP10: 2.208481e-12 | NQ10: -2.394202e-13 | NR10: 19.953 | NS10: 2.207573e-12 | NT10: -2.398095e-13 | NU10: 19.953 | NV10: 2.206632e-12 | NW10: -2.400581e-13 | NX10: 19.953 | NY10: 2.205928e-12 | NZ10: -2.403835e-13 | OA10: 19.953 | OB10: 2.205746e-12 | OC10: -2.406342e-13 | OD10: 19.953 | OE10: 2.204459e-12 | OF10: -2.410257e-13 | OG10: 19.953 | OH10: 2.203973e-12 | OI10: -2.412273e-13 | OJ10: 19.953 | OK10: 2.202745e-12 | OL10: -2.416426e-13 | OM10: 19.953 | ON10: 2.200872e-12 | OO10: -2.421334e-13 | OP10: 19.953 | OQ10: 2.199609e-12 | OR10: -2.42431e-13 | OS10: 19.953 | OT10: 2.198519e-12 | OU10: -2.428099e-13 | OV10: 19.953 | OW10: 2.197825e-12 | OX10: -2.431008e-13 | OY10: 19.953 | OZ10: 2.197273e-12 | PA10: -2.433225e-13 | PB10: 19.953 | PC10: 2.197124e-12 | PD10: -2.434272e-13 | PE10: 19.953 | PF10: 2.196939e-12 | PG10: -2.436932e-13 | PH10: 19.953 | PI10: 2.195462e-12 | PJ10: -2.441204e-13 | PK10: 19.953 | PL10: 2.193963e-12 | PM10: -2.443778e-13 | PN10: 19.953 | PO10: 2.192817e-12 | PP10: -2.447389e-13 | PQ10: 19.953 | PR10: 2.19179e-12 | PS10: -2.451319e-13 | PT10: 19.953 | PU10: 2.190614e-12 | PV10: -2.45359e-13 | PW10: 19.953 | PX10: 2.189355e-12 | PY10: -2.456787e-13 | PZ10: 19.953 | QA10: 2.192603e-12 | QB10: -2.454099e-13 | QC10: 19.953 | QD10: 2.200584e-12 | QE10: -2.445441e-13 | QF10: 19.953 | QG10: 2.211019e-12 | QH10: -2.428672e-13 | QI10: 19.953 | QJ10: 2.22316e-12 | QK10: -2.405142e-13
A11: 25.119 | B11: 3.477809e-12 | C11: -3.032528e-13 | D11: 25.119 | E11: 3.41634e-12 | F11: -2.389364e-13 | G11: 25.119 | H11: 3.410564e-12 | I11: -2.388704e-13 | J11: 25.119 | K11: 3.406355e-12 | L11: -2.474454e-13 | M11: 25.119 | N11: 3.402874e-12 | O11: -2.496299e-13 | P11: 25.119 | Q11: 3.398182e-12 | R11: -2.512536e-13 | S11: 25.119 | T11: 3.39455e-12 | U11: -2.520266e-13 | V11: 25.119 | W11: 3.391308e-12 | X11: -2.527054e-13 | Y11: 25.119 | Z11: 3.388828e-12 | AA11: -2.532554e-13 | AB11: 25.119 | AC11: 3.386588e-12 | AD11: -2.534526e-13 | AE11: 25.119 | AF11: 3.38528e-12 | AG11: -2.535868e-13 | AH11: 25.119 | AI11: 3.38345e-12 | AJ11: -2.535316e-13 | AK11: 25.119 | AL11: 3.378585e-12 | AM11: -2.517182e-13 | AN11: 25.119 | AO11: 3.377446e-12 | AP11: -2.519869e-13 | AQ11: 25.119 | AR11: 3.379856e-12 | AS11: -2.542371e-13 | AT11: 25.119 | AU11: 3.37836e-12 | AV11: -2.544322e-13 | AW11: 25.119 | AX11: 3.37522e-12 | AY11: -2.534082e-13 | AZ11: 25.119 | BA11: 3.372057e-12 | BB11: -2.537886e-13 | BC11: 25.119 | BD11: 3.37088e-12 | BE11: -2.55526e-13 | BF11: 25.119 | BG11: 3.366411e-12 | BH11: -2.585215e-13 | BI11: 25.119 | BJ11: 3.360603e-12 | BK11: -2.59639e-13 | BL11: 25.119 | BM11: 3.352969e-12 | BN11: -2.598266e-13 | BO11: 25.119 | BP11: 3.344997e-12 | BQ11: -2.600954e-13 | BR11: 25.119 | BS11: 3.333972e-12 | BT11: -2.572481e-13 | BU11: 25.119 | BV11: 3.327205e-12 | BW11: -2.58351e-13 | BX11: 25.119 | BY11: 3.316709e-12 | BZ11: -2.574209e-13 | CA11: 25.119 | CB11: 3.306824e-12 | CC11: -2.575138e-13 | CD11: 25.119 | CE11: 3.296254e-12 | CF11: -2.589865e-13 | CG11: 25.119 | CH11: 3.284728e-12 | CI11: -2.581213e-13 | CJ11: 25.119 | CK11: 3.273853e-12 | CL11: -2.590928e-13 | CM11: 25.119 | CN11: 3.262261e-12 | CO11: -2.596118e-13 | CP11: 25.119 | CQ11: 3.288297e-12 | CR11: -2.344398e-13 | CS11: 25.119 | CT11: 3.236243e-12 | CU11: -2.58763e-13 | CV11: 25.119 | CW11: 3.226861e-12 | CX11: -2.616955e-13 | CY11: 25.119 | CZ11: 3.213663e-12 | DA11: -2.617562e-13 | DB11: 25.119 | DC11: 3.199205e-12 | DD11: -2.620932e-13 | DE11: 25.119 | DF11: 3.186019e-12 | DG11: -2.634046e-13 | DH11: 25.119 | DI11: 3.172079e-12 | DJ11: -2.649636e-13 | DK11: 25.119 | DL11: 3.15687e-12 | DM11: -2.680179e-13 | DN11: 25.119 | DO11: 3.143738e-12 | DP11: -2.699055e-13 | DQ11: 25.119 | DR11: 3.128846e-12 | DS11: -2.715538e-13 | DT11: 25.119 | DU11: 3.115297e-12 | DV11: -2.734201e-13 | DW11: 25.119 | DX11: 3.100009e-12 | DY11: -2.751623e-13 | DZ11: 25.119 | EA11: 3.085255e-12 | EB11: -2.772519e-13 | EC11: 25.119 | ED11: 3.068431e-12 | EE11: -2.796633e-13 | EF11: 25.119 | EG11: 3.040991e-12 | EH11: -2.858117e-13 | EI11: 25.119 | EJ11: 3.020967e-12 | EK11: -2.869526e-13 | EL11: 25.119 | EM11: 3.000801e-12 | EN11: -2.878314e-13 | EO11: 25.119 | EP11: 2.980043e-12 | EQ11: -2.886103e-13 | ER11: 25.119 | ES11: 2.961911e-12 | ET11: -2.889925e-13 | EU11: 25.119 | EV11: 2.942097e-12 | EW11: -2.889821e-13 | EX11: 25.119 | EY11: 2.923728e-12 | EZ11: -2.885856e-13 | FA11: 25.119 | FB11: 2.90444e-12 | FC11: -2.884137e-13 | FD11: 25.119 | FE11: 2.889297e-12 | FF11: -2.870537e-13 | FG11: 25.119 | FH11: 2.878937e-12 | FI11: -2.861235e-13 | FJ11: 25.119 | FK11: 3.132948e-12 | FL11: -1.960484e-13 | FM11: 25.119 | FN11: 3.103299e-12 | FO11: -2.417007e-13 | FP11: 25.119 | FQ11: 3.101502e-12 | FR11: -2.432901e-13 | FS11: 25.119 | FT11: 3.104787e-12 | FU11: -2.381081e-13 | FV11: 25.119 | FW11: 3.115304e-12 | FX11: -2.216398e-13 | FY11: 25.119 | FZ11: 3.123375e-12 | GA11: -2.024527e-13 | GB11: 25.119 | GC11: 3.122445e-12 | GD11: -1.913378e-13 | GE11: 25.119 | GF11: 3.112562e-12 | GG11: -1.934645e-13 | GH11: 25.119 | GI11: 3.085979e-12 | GJ11: -2.133787e-13 | GK11: 25.119 | GL11: 3.028284e-12 | GM11: -2.546114e-13 | GN11: 25.119 | GO11: 2.898713e-12 | GP11: -2.903401e-13 | GQ11: 25.119 | GR11: 2.752042e-12 | GS11: -2.746489e-13 | GT11: 25.119 | GU11: 2.655988e-12 | GV11: -2.281048e-13 | GW11: 25.119 | GX11: 2.613102e-12 | GY11: -2.014031e-13 | GZ11: 25.119 | HA11: 2.584752e-12 | HB11: -1.844056e-13 | HC11: 25.119 | HD11: 2.561935e-12 | HE11: -1.700326e-13 | HF11: 25.119 | HG11: 2.541226e-12 | HH11: -1.571615e-13 | HI11: 25.119 | HJ11: 2.52277e-12 | HK11: -1.456196e-13 | HL11: 25.119 | HM11: 2.505516e-12 | HN11: -1.351379e-13 | HO11: 25.119 | HP11: 2.49081e-12 | HQ11: -1.25743e-13 | HR11: 25.119 | HS11: 2.477941e-12 | HT11: -1.179139e-13 | HU11: 25.119 | HV11: 2.467197e-12 | HW11: -1.11264e-13 | HX11: 25.119 | HY11: 2.457141e-12 | HZ11: -1.063603e-13 | IA11: 25.119 | IB11: 2.448637e-12 | IC11: -1.030835e-13 | ID11: 25.119 | IE11: 2.441653e-12 | IF11: -1.015305e-13 | IG11: 25.119 | IH11: 2.43504e-12 | II11: -1.016483e-13 | IJ11: 25.119 | IK11: 2.428006e-12 | IL11: -1.03839e-13 | IM11: 25.119 | IN11: 2.421305e-12 | IO11: -1.078999e-13 | IP11: 25.119 | IQ11: 2.414487e-12 | IR11: -1.134027e-13 | IS11: 25.119 | IT11: 2.4075e-12 | IU11: -1.197193e-13 | IV11: 25.119 | IW11: 2.400173e-12 | IX11: -1.274761e-13 | IY11: 25.119 | IZ11: 2.392244e-12 | JA11: -1.355373e-13 | JB11: 25.119 | JC11: 2.383261e-12 | JD11: -1.44653e-13 | JE11: 25.119 | JF11: 2.373979e-12 | JG11: -1.537843e-13 | JH11: 25.119 | JI11: 2.363321e-12 | JJ11: -1.629782e-13 | JK11: 25.119 | JL11: 2.352194e-12 | JM11: -1.72273e-13 | JN11: 25.119 | JO11: 2.340936e-12 | JP11: -1.806643e-13 | JQ11: 25.119 | JR11: 2.330225e-12 | JS11: -1.884434e-13 | JT11: 25.119 | JU11: 2.319843e-12 | JV11: -1.948614e-13 | JW11: 25.119 | JX11: 2.30973e-12 | JY11: -2.008819e-13 | JZ11: 25.119 | KA11: 2.300855e-12 | KB11: -2.058886e-13 | KC11: 25.119 | KD11: 2.291891e-12 | KE11: -2.105958e-13 | KF11: 25.119 | KG11: 2.283577e-12 | KH11: -2.146992e-13 | KI11: 25.119 | KJ11: 2.27472e-12 | KK11: -2.187108e-13 | KL11: 25.119 | KM11: 2.268895e-12 | KN11: -2.215089e-13 | KO11: 25.119 | KP11: 2.262486e-12 | KQ11: -2.239644e-13 | KR11: 25.119 | KS11: 2.25719e-12 | KT11: -2.263525e-13 | KU11: 25.119 | KV11: 2.25076e-12 | KW11: -2.286949e-13 | KX11: 25.119 | KY11: 2.244539e-12 | KZ11: -2.309305e-13 | LA11: 25.119 | LB11: 2.238282e-12 | LC11: -2.330518e-13 | LD11: 25.119 | LE11: 2.232217e-12 | LF11: -2.351409e-13 | LG11: 25.119 | LH11: 2.227946e-12 | LI11: -2.365162e-13 | LJ11: 25.119 | LK11: 2.223609e-12 | LL11: -2.378706e-13 | LM11: 25.119 | LN11: 2.21955e-12 | LO11: -2.391096e-13 | LP11: 25.119 | LQ11: 2.215766e-12 | LR11: -2.402431e-13 | LS11: 25.119 | LT11: 2.212607e-12 | LU11: -2.411194e-13 | LV11: 25.119 | LW11: 2.208487e-12 | LX11: -2.423976e-13 | LY11: 25.119 | LZ11: 2.204308e-12 | MA11: -2.432749e-13 | MB11: 25.119 | MC11: 2.200856e-12 | MD11: -2.441458e-13 | ME11: 25.119 | MF11: 2.197686e-12 | MG11: -2.448579e-13 | MH11: 25.119 | MI11: 2.194895e-12 | MJ11: -2.456651e-13 | MK11: 25.119 | ML11: 2.191539e-12 | MM11: -2.465577e-13 | MN11: 25.119 | MO11: 2.189222e-12 | MP11: -2.470593e-13 | MQ11: 25.119 | MR11: 2.186666e-12 | MS11: -2.475964e-13 | MT11: 25.119 | MU11: 2.185058e-12 | MV11: -2.481126e-13 | MW11: 25.119 | MX11: 2.183309e-12 | MY11: -2.485706e-13 | MZ11: 25.119 | NA11: 2.180766e-12 | NB11: -2.490925e-13 | NC11: 25.119 | ND11: 2.17866e-12 | NE11: -2.49431e-13 | NF11: 25.119 | NG11: 2.175853e-12 | NH11: -2.501247e-13 | NI11: 25.119 | NJ11: 2.174663e-12 | NK11: -2.50562e-13 | NL11: 25.119 | NM11: 2.173343e-12 | NN11: -2.508976e-13 | NO11: 25.119 | NP11: 2.172335e-12 | NQ11: -2.512277e-13 | NR11: 25.119 | NS11: 2.171396e-12 | NT11: -2.515963e-13 | NU11: 25.119 | NV11: 2.170424e-12 | NW11: -2.517782e-13 | NX11: 25.119 | NY11: 2.169507e-12 | NZ11: -2.520576e-13 | OA11: 25.119 | OB11: 2.169317e-12 | OC11: -2.522063e-13 | OD11: 25.119 | OE11: 2.167822e-12 | OF11: -2.526494e-13 | OG11: 25.119 | OH11: 2.167378e-12 | OI11: -2.528921e-13 | OJ11: 25.119 | OK11: 2.166121e-12 | OL11: -2.533121e-13 | OM11: 25.119 | ON11: 2.164062e-12 | OO11: -2.535404e-13 | OP11: 25.119 | OQ11: 2.162692e-12 | OR11: -2.537996e-13 | OS11: 25.119 | OT11: 2.161558e-12 | OU11: -2.540445e-13 | OV11: 25.119 | OW11: 2.160718e-12 | OX11: -2.543436e-13 | OY11: 25.119 | OZ11: 2.160335e-12 | PA11: -2.546592e-13 | PB11: 25.119 | PC11: 2.160077e-12 | PD11: -2.547742e-13 | PE11: 25.119 | PF11: 2.159934e-12 | PG11: -2.550545e-13 | PH11: 25.119 | PI11: 2.158183e-12 | PJ11: -2.553175e-13 | PK11: 25.119 | PL11: 2.156505e-12 | PM11: -2.55604e-13 | PN11: 25.119 | PO11: 2.155662e-12 | PP11: -2.559291e-13 | PQ11: 25.119 | PR11: 2.154398e-12 | PS11: -2.560985e-13 | PT11: 25.119 | PU11: 2.153239e-12 | PV11: -2.56468e-13 | PW11: 25.119 | PX11: 2.151584e-12 | PY11: -2.566858e-13 | PZ11: 25.119 | QA11: 2.155095e-12 | QB11: -2.566948e-13 | QC11: 25.119 | QD11: 2.163052e-12 | QE11: -2.561563e-13 | QF11: 25.119 | QG11: 2.174083e-12 | QH11: -2.550018e-13 | QI11: 25.119 | QJ11: 2.186694e-12 | QK11: -2.532227e-13
A12: 31.623 | B12: 3.443736e-12 | C12: -3.007333e-13 | D12: 31.623 | E12: 3.393757e-12 | F12: -2.416916e-13 | G12: 31.623 | H12: 3.383968e-12 | I12: -2.420942e-13 | J12: 31.623 | K12: 3.379617e-12 | L12: -2.497462e-13 | M12: 31.623 | N12: 3.374561e-12 | O12: -2.527451e-13 | P12: 31.623 | Q12: 3.369068e-12 | R12: -2.541204e-13 | S12: 31.623 | T12: 3.365301e-12 | U12: -2.547852e-13 | V12: 31.623 | W12: 3.362269e-12 | X12: -2.551691e-13 | Y12: 31.623 | Z12: 3.359022e-12 | AA12: -2.554949e-13 | AB12: 31.623 | AC12: 3.357134e-12 | AD12: -2.559125e-13 | AE12: 31.623 | AF12: 3.355146e-12 | AG12: -2.569961e-13 | AH12: 31.623 | AI12: 3.352992e-12 | AJ12: -2.562097e-13 | AK12: 31.623 | AL12: 3.347881e-12 | AM12: -2.540196e-13 | AN12: 31.623 | AO12: 3.348604e-12 | AP12: -2.552182e-13 | AQ12: 31.623 | AR12: 3.349743e-12 | AS12: -2.566633e-13 | AT12: 31.623 | AU12: 3.347773e-12 | AV12: -2.562012e-13 | AW12: 31.623 | AX12: 3.345703e-12 | AY12: -2.564032e-13 | AZ12: 31.623 | BA12: 3.342726e-12 | BB12: -2.566449e-13 | BC12: 31.623 | BD12: 3.340105e-12 | BE12: -2.575264e-13 | BF12: 31.623 | BG12: 3.336611e-12 | BH12: -2.61129e-13 | BI12: 31.623 | BJ12: 3.329474e-12 | BK12: -2.635963e-13 | BL12: 31.623 | BM12: 3.321993e-12 | BN12: -2.627631e-13 | BO12: 31.623 | BP12: 3.312927e-12 | BQ12: -2.637218e-13 | BR12: 31.623 | BS12: 3.304709e-12 | BT12: -2.624289e-13 | BU12: 31.623 | BV12: 3.294228e-12 | BW12: -2.645365e-13 | BX12: 31.623 | BY12: 3.284584e-12 | BZ12: -2.645316e-13 | CA12: 31.623 | CB12: 3.273771e-12 | CC12: -2.640408e-13 | CD12: 31.623 | CE12: 3.262927e-12 | CF12: -2.654975e-13 | CG12: 31.623 | CH12: 3.251071e-12 | CI12: -2.656796e-13 | CJ12: 31.623 | CK12: 3.239923e-12 | CL12: -2.672323e-13 | CM12: 31.623 | CN12: 3.227902e-12 | CO12: -2.68092e-13 | CP12: 31.623 | CQ12: 3.260373e-12 | CR12: -2.447935e-13 | CS12: 31.623 | CT12: 3.202036e-12 | CU12: -2.685255e-13 | CV12: 31.623 | CW12: 3.189176e-12 | CX12: -2.722209e-13 | CY12: 31.623 | CZ12: 3.176394e-12 | DA12: -2.73552e-13 | DB12: 31.623 | DC12: 3.160242e-12 | DD12: -2.737797e-13 | DE12: 31.623 | DF12: 3.14761e-12 | DG12: -2.743373e-13 | DH12: 31.623 | DI12: 3.132095e-12 | DJ12: -2.759269e-13 | DK12: 31.623 | DL12: 3.116702e-12 | DM12: -2.787133e-13 | DN12: 31.623 | DO12: 3.101225e-12 | DP12: -2.81588e-13 | DQ12: 31.623 | DR12: 3.084652e-12 | DS12: -2.81643e-13 | DT12: 31.623 | DU12: 3.071902e-12 | DV12: -2.837609e-13 | DW12: 31.623 | DX12: 3.055893e-12 | DY12: -2.844219e-13 | DZ12: 31.623 | EA12: 3.040826e-12 | EB12: -2.859185e-13 | EC12: 31.623 | ED12: 3.02199e-12 | EE12: -2.883012e-13 | EF12: 31.623 | EG12: 2.994365e-12 | EH12: -2.915594e-13 | EI12: 31.623 | EJ12: 2.973699e-12 | EK12: -2.920303e-13 | EL12: 31.623 | EM12: 2.952262e-12 | EN12: -2.923583e-13 | EO12: 31.623 | EP12: 2.931075e-12 | EQ12: -2.920387e-13 | ER12: 31.623 | ES12: 2.912204e-12 | ET12: -2.911693e-13 | EU12: 31.623 | EV12: 2.892626e-12 | EW12: -2.899007e-13 | EX12: 31.623 | EY12: 2.874653e-12 | EZ12: -2.878468e-13 | FA12: 31.623 | FB12: 2.854588e-12 | FC12: -2.873559e-13 | FD12: 31.623 | FE12: 2.840059e-12 | FF12: -2.836822e-13 | FG12: 31.623 | FH12: 2.831268e-12 | FI12: -2.815665e-13 | FJ12: 31.623 | FK12: 3.105822e-12 | FL12: -2.099044e-13 | FM12: 31.623 | FN12: 3.063955e-12 | FO12: -2.562625e-13 | FP12: 31.623 | FQ12: 3.062673e-12 | FR12: -2.582165e-13 | FS12: 31.623 | FT12: 3.068301e-12 | FU12: -2.530803e-13 | FV12: 31.623 | FW12: 3.081889e-12 | FX12: -2.363952e-13 | FY12: 31.623 | FZ12: 3.095832e-12 | GA12: -2.17667e-13 | GB12: 31.623 | GC12: 3.096221e-12 | GD12: -2.064211e-13 | GE12: 31.623 | GF12: 3.085345e-12 | GG12: -2.086094e-13 | GH12: 31.623 | GI12: 3.054494e-12 | GJ12: -2.301124e-13 | GK12: 31.623 | GL12: 2.985888e-12 | GM12: -2.698711e-13 | GN12: 31.623 | GO12: 2.846707e-12 | GP12: -2.908695e-13 | GQ12: 31.623 | GR12: 2.706617e-12 | GS12: -2.613326e-13 | GT12: 31.623 | GU12: 2.622792e-12 | GV12: -2.106928e-13 | GW12: 31.623 | GX12: 2.585756e-12 | GY12: -1.847751e-13 | GZ12: 31.623 | HA12: 2.559917e-12 | HB12: -1.68037e-13 | HC12: 31.623 | HD12: 2.539814e-12 | HE12: -1.543983e-13 | HF12: 31.623 | HG12: 2.522225e-12 | HH12: -1.432431e-13 | HI12: 31.623 | HJ12: 2.504582e-12 | HK12: -1.320596e-13 | HL12: 31.623 | HM12: 2.489576e-12 | HN12: -1.225061e-13 | HO12: 31.623 | HP12: 2.476487e-12 | HQ12: -1.149388e-13 | HR12: 31.623 | HS12: 2.464737e-12 | HT12: -1.072144e-13 | HU12: 31.623 | HV12: 2.455445e-12 | HW12: -1.027648e-13 | HX12: 31.623 | HY12: 2.445442e-12 | HZ12: -9.900547e-14 | IA12: 31.623 | IB12: 2.438178e-12 | IC12: -9.755434e-14 | ID12: 31.623 | IE12: 2.432247e-12 | IF12: -9.769371e-14 | IG12: 31.623 | IH12: 2.425516e-12 | II12: -9.934255e-14 | IJ12: 31.623 | IK12: 2.417961e-12 | IL12: -1.028375e-13 | IM12: 31.623 | IN12: 2.411667e-12 | IO12: -1.094676e-13 | IP12: 31.623 | IQ12: 2.404207e-12 | IR12: -1.172402e-13 | IS12: 31.623 | IT12: 2.396083e-12 | IU12: -1.256894e-13 | IV12: 31.623 | IW12: 2.387456e-12 | IX12: -1.343469e-13 | IY12: 31.623 | IZ12: 2.377464e-12 | JA12: -1.447039e-13 | JB12: 31.623 | JC12: 2.368307e-12 | JD12: -1.552943e-13 | JE12: 31.623 | JF12: 2.356005e-12 | JG12: -1.663369e-13 | JH12: 31.623 | JI12: 2.344887e-12 | JJ12: -1.759956e-13 | JK12: 31.623 | JL12: 2.330331e-12 | JM12: -1.863939e-13 | JN12: 31.623 | JO12: 2.318419e-12 | JP12: -1.954979e-13 | JQ12: 31.623 | JR12: 2.305028e-12 | JS12: -2.032033e-13 | JT12: 31.623 | JU12: 2.29362e-12 | JV12: -2.109047e-13 | JW12: 31.623 | JX12: 2.283057e-12 | JY12: -2.165184e-13 | JZ12: 31.623 | KA12: 2.27276e-12 | KB12: -2.215153e-13 | KC12: 31.623 | KD12: 2.263079e-12 | KE12: -2.262668e-13 | KF12: 31.623 | KG12: 2.252764e-12 | KH12: -2.307379e-13 | KI12: 31.623 | KJ12: 2.24365e-12 | KK12: -2.336667e-13 | KL12: 31.623 | KM12: 2.236949e-12 | KN12: -2.370669e-13 | KO12: 31.623 | KP12: 2.230475e-12 | KQ12: -2.390252e-13 | KR12: 31.623 | KS12: 2.223425e-12 | KT12: -2.409464e-13 | KU12: 31.623 | KV12: 2.217296e-12 | KW12: -2.429643e-13 | KX12: 31.623 | KY12: 2.210958e-12 | KZ12: -2.455593e-13 | LA12: 31.623 | LB12: 2.203252e-12 | LC12: -2.472029e-13 | LD12: 31.623 | LE12: 2.197049e-12 | LF12: -2.485546e-13 | LG12: 31.623 | LH12: 2.192654e-12 | LI12: -2.503582e-13 | LJ12: 31.623 | LK12: 2.187873e-12 | LL12: -2.517359e-13 | LM12: 31.623 | LN12: 2.184169e-12 | LO12: -2.523624e-13 | LP12: 31.623 | LQ12: 2.180067e-12 | LR12: -2.53054e-13 | LS12: 31.623 | LT12: 2.1767e-12 | LU12: -2.535953e-13 | LV12: 31.623 | LW12: 2.17122e-12 | LX12: -2.552494e-13 | LY12: 31.623 | LZ12: 2.167142e-12 | MA12: -2.559998e-13 | MB12: 31.623 | MC12: 2.164426e-12 | MD12: -2.567861e-13 | ME12: 31.623 | MF12: 2.161195e-12 | MG12: -2.56919e-13 | MH12: 31.623 | MI12: 2.157363e-12 | MJ12: -2.579737e-13 | MK12: 31.623 | ML12: 2.154303e-12 | MM12: -2.582712e-13 | MN12: 31.623 | MO12: 2.150857e-12 | MP12: -2.586045e-13 | MQ12: 31.623 | MR12: 2.149066e-12 | MS12: -2.596532e-13 | MT12: 31.623 | MU12: 2.14751e-12 | MV12: -2.593579e-13 | MW12: 31.623 | MX12: 2.14561e-12 | MY12: -2.604694e-13 | MZ12: 31.623 | NA12: 2.142931e-12 | NB12: -2.601053e-13 | NC12: 31.623 | ND12: 2.140506e-12 | NE12: -2.606689e-13 | NF12: 31.623 | NG12: 2.137415e-12 | NH12: -2.612529e-13 | NI12: 31.623 | NJ12: 2.13664e-12 | NK12: -2.613167e-13 | NL12: 31.623 | NM12: 2.135259e-12 | NN12: -2.615329e-13 | NO12: 31.623 | NP12: 2.133472e-12 | NQ12: -2.618644e-13 | NR12: 31.623 | NS12: 2.132637e-12 | NT12: -2.629329e-13 | NU12: 31.623 | NV12: 2.131446e-12 | NW12: -2.624079e-13 | NX12: 31.623 | NY12: 2.130943e-12 | NZ12: -2.632832e-13 | OA12: 31.623 | OB12: 2.131068e-12 | OC12: -2.631633e-13 | OD12: 31.623 | OE12: 2.129256e-12 | OF12: -2.632372e-13 | OG12: 31.623 | OH12: 2.127677e-12 | OI12: -2.635189e-13 | OJ12: 31.623 | OK12: 2.126437e-12 | OL12: -2.639595e-13 | OM12: 31.623 | ON12: 2.125567e-12 | OO12: -2.640506e-13 | OP12: 31.623 | OQ12: 2.122919e-12 | OR12: -2.644987e-13 | OS12: 31.623 | OT12: 2.121843e-12 | OU12: -2.643016e-13 | OV12: 31.623 | OW12: 2.120959e-12 | OX12: -2.648361e-13 | OY12: 31.623 | OZ12: 2.120502e-12 | PA12: -2.651603e-13 | PB12: 31.623 | PC12: 2.120895e-12 | PD12: -2.64717e-13 | PE12: 31.623 | PF12: 2.119808e-12 | PG12: -2.653115e-13 | PH12: 31.623 | PI12: 2.118269e-12 | PJ12: -2.658455e-13 | PK12: 31.623 | PL12: 2.117024e-12 | PM12: -2.656026e-13 | PN12: 31.623 | PO12: 2.115708e-12 | PP12: -2.656402e-13 | PQ12: 31.623 | PR12: 2.114262e-12 | PS12: -2.658301e-13 | PT12: 31.623 | PU12: 2.113214e-12 | PV12: -2.66288e-13 | PW12: 31.623 | PX12: 2.112415e-12 | PY12: -2.668646e-13 | PZ12: 31.623 | QA12: 2.115453e-12 | QB12: -2.670016e-13 | QC12: 31.623 | QD12: 2.123084e-12 | QE12: -2.668024e-13 | QF12: 31.623 | QG12: 2.134109e-12 | QH12: -2.664857e-13 | QI12: 31.623 | QJ12: 2.14769e-12 | QK12: -2.655836e-13
A13: 39.811 | B13: 3.407301e-12 | C13: -3.027964e-13 | D13: 39.811 | E13: 3.365299e-12 | F13: -2.48397e-13 | G13: 39.811 | H13: 3.355534e-12 | I13: -2.484154e-13 | J13: 39.811 | K13: 3.347228e-12 | L13: -2.560908e-13 | M13: 39.811 | N13: 3.342253e-12 | O13: -2.587815e-13 | P13: 39.811 | Q13: 3.337528e-12 | R13: -2.599325e-13 | S13: 39.811 | T13: 3.332314e-12 | U13: -2.606577e-13 | V13: 39.811 | W13: 3.330167e-12 | X13: -2.617186e-13 | Y13: 39.811 | Z13: 3.32692e-12 | AA13: -2.626127e-13 | AB13: 39.811 | AC13: 3.324655e-12 | AD13: -2.626756e-13 | AE13: 39.811 | AF13: 3.322528e-12 | AG13: -2.618873e-13 | AH13: 39.811 | AI13: 3.321801e-12 | AJ13: -2.629222e-13 | AK13: 39.811 | AL13: 3.31634e-12 | AM13: -2.601836e-13 | AN13: 39.811 | AO13: 3.315755e-12 | AP13: -2.603378e-13 | AQ13: 39.811 | AR13: 3.316929e-12 | AS13: -2.635293e-13 | AT13: 39.811 | AU13: 3.315899e-12 | AV13: -2.629609e-13 | AW13: 39.811 | AX13: 3.312366e-12 | AY13: -2.622911e-13 | AZ13: 39.811 | BA13: 3.310648e-12 | BB13: -2.625455e-13 | BC13: 39.811 | BD13: 3.307285e-12 | BE13: -2.661001e-13 | BF13: 39.811 | BG13: 3.303353e-12 | BH13: -2.679994e-13 | BI13: 39.811 | BJ13: 3.295403e-12 | BK13: -2.690549e-13 | BL13: 39.811 | BM13: 3.286676e-12 | BN13: -2.716752e-13 | BO13: 39.811 | BP13: 3.27861e-12 | BQ13: -2.721977e-13 | BR13: 39.811 | BS13: 3.269551e-12 | BT13: -2.707126e-13 | BU13: 39.811 | BV13: 3.258694e-12 | BW13: -2.73787e-13 | BX13: 39.811 | BY13: 3.248418e-12 | BZ13: -2.737762e-13 | CA13: 39.811 | CB13: 3.23618e-12 | CC13: -2.746466e-13 | CD13: 39.811 | CE13: 3.226223e-12 | CF13: -2.76672e-13 | CG13: 39.811 | CH13: 3.212715e-12 | CI13: -2.766129e-13 | CJ13: 39.811 | CK13: 3.20026e-12 | CL13: -2.786483e-13 | CM13: 39.811 | CN13: 3.186964e-12 | CO13: -2.80037e-13 | CP13: 39.811 | CQ13: 3.229469e-12 | CR13: -2.604765e-13 | CS13: 39.811 | CT13: 3.160446e-12 | CU13: -2.812167e-13 | CV13: 39.811 | CW13: 3.147486e-12 | CX13: -2.824244e-13 | CY13: 39.811 | CZ13: 3.134967e-12 | DA13: -2.858826e-13 | DB13: 39.811 | DC13: 3.118152e-12 | DD13: -2.846187e-13 | DE13: 39.811 | DF13: 3.102808e-12 | DG13: -2.857274e-13 | DH13: 39.811 | DI13: 3.08803e-12 | DJ13: -2.871735e-13 | DK13: 39.811 | DL13: 3.071465e-12 | DM13: -2.884825e-13 | DN13: 39.811 | DO13: 3.055198e-12 | DP13: -2.903475e-13 | DQ13: 39.811 | DR13: 3.039843e-12 | DS13: -2.919705e-13 | DT13: 39.811 | DU13: 3.023499e-12 | DV13: -2.93348e-13 | DW13: 39.811 | DX13: 3.007669e-12 | DY13: -2.929319e-13 | DZ13: 39.811 | EA13: 2.99161e-12 | EB13: -2.933296e-13 | EC13: 39.811 | ED13: 2.973186e-12 | EE13: -2.94974e-13 | EF13: 39.811 | EG13: 2.943492e-12 | EH13: -2.957064e-13 | EI13: 39.811 | EJ13: 2.921683e-12 | EK13: -2.94994e-13 | EL13: 39.811 | EM13: 2.903053e-12 | EN13: -2.930312e-13 | EO13: 39.811 | EP13: 2.881022e-12 | EQ13: -2.921086e-13 | ER13: 39.811 | ES13: 2.863154e-12 | ET13: -2.900029e-13 | EU13: 39.811 | EV13: 2.842503e-12 | EW13: -2.873129e-13 | EX13: 39.811 | EY13: 2.824813e-12 | EZ13: -2.846992e-13 | FA13: 39.811 | FB13: 2.805695e-12 | FC13: -2.822402e-13 | FD13: 39.811 | FE13: 2.79174e-12 | FF13: -2.783667e-13 | FG13: 39.811 | FH13: 2.78297e-12 | FI13: -2.751865e-13 | FJ13: 39.811 | FK13: 3.075656e-12 | FL13: -2.264537e-13 | FM13: 39.811 | FN13: 3.02091e-12 | FO13: -2.696937e-13 | FP13: 39.811 | FQ13: 3.019117e-12 | FR13: -2.705622e-13 | FS13: 39.811 | FT13: 3.02481e-12 | FU13: -2.662017e-13 | FV13: 39.811 | FW13: 3.044694e-12 | FX13: -2.53312e-13 | FY13: 39.811 | FZ13: 3.060635e-12 | GA13: -2.354933e-13 | GB13: 39.811 | GC13: 3.067033e-12 | GD13: -2.231299e-13 | GE13: 39.811 | GF13: 3.054725e-12 | GG13: -2.274344e-13 | GH13: 39.811 | GI13: 3.017459e-12 | GJ13: -2.492344e-13 | GK13: 39.811 | GL13: 2.938423e-12 | GM13: -2.819631e-13 | GN13: 39.811 | GO13: 2.794075e-12 | GP13: -2.885652e-13 | GQ13: 39.811 | GR13: 2.665253e-12 | GS13: -2.448793e-13 | GT13: 39.811 | GU13: 2.592373e-12 | GV13: -1.932785e-13 | GW13: 39.811 | GX13: 2.559763e-12 | GY13: -1.689114e-13 | GZ13: 39.811 | HA13: 2.538398e-12 | HB13: -1.532e-13 | HC13: 39.811 | HD13: 2.520251e-12 | HE13: -1.410866e-13 | HF13: 39.811 | HG13: 2.504211e-12 | HH13: -1.303901e-13 | HI13: 39.811 | HJ13: 2.489154e-12 | HK13: -1.207884e-13 | HL13: 39.811 | HM13: 2.474723e-12 | HN13: -1.126144e-13 | HO13: 39.811 | HP13: 2.462915e-12 | HQ13: -1.05684e-13 | HR13: 39.811 | HS13: 2.452759e-12 | HT13: -9.999455e-14 | HU13: 39.811 | HV13: 2.442969e-12 | HW13: -9.625497e-14 | HX13: 39.811 | HY13: 2.434781e-12 | HZ13: -9.392061e-14 | IA13: 39.811 | IB13: 2.428223e-12 | IC13: -9.419833e-14 | ID13: 39.811 | IE13: 2.421596e-12 | IF13: -9.579577e-14 | IG13: 39.811 | IH13: 2.415585e-12 | II13: -9.922144e-14 | IJ13: 39.811 | IK13: 2.40718e-12 | IL13: -1.052081e-13 | IM13: 39.811 | IN13: 2.399814e-12 | IO13: -1.141937e-13 | IP13: 39.811 | IQ13: 2.392334e-12 | IR13: -1.239288e-13 | IS13: 39.811 | IT13: 2.382217e-12 | IU13: -1.336983e-13 | IV13: 39.811 | IW13: 2.372942e-12 | IX13: -1.457075e-13 | IY13: 39.811 | IZ13: 2.361612e-12 | JA13: -1.576603e-13 | JB13: 39.811 | JC13: 2.349848e-12 | JD13: -1.693002e-13 | JE13: 39.811 | JF13: 2.336348e-12 | JG13: -1.810673e-13 | JH13: 39.811 | JI13: 2.321393e-12 | JJ13: -1.93144e-13 | JK13: 39.811 | JL13: 2.30589e-12 | JM13: -2.03647e-13 | JN13: 39.811 | JO13: 2.290613e-12 | JP13: -2.131357e-13 | JQ13: 39.811 | JR13: 2.277368e-12 | JS13: -2.206916e-13 | JT13: 39.811 | JU13: 2.263538e-12 | JV13: -2.281145e-13 | JW13: 39.811 | JX13: 2.251341e-12 | JY13: -2.336689e-13 | JZ13: 39.811 | KA13: 2.24008e-12 | KB13: -2.38187e-13 | KC13: 39.811 | KD13: 2.228642e-12 | KE13: -2.426263e-13 | KF13: 39.811 | KG13: 2.218581e-12 | KH13: -2.46912e-13 | KI13: 39.811 | KJ13: 2.207882e-12 | KK13: -2.508631e-13 | KL13: 39.811 | KM13: 2.201311e-12 | KN13: -2.530329e-13 | KO13: 39.811 | KP13: 2.193682e-12 | KQ13: -2.544778e-13 | KR13: 39.811 | KS13: 2.186918e-12 | KT13: -2.566524e-13 | KU13: 39.811 | KV13: 2.179937e-12 | KW13: -2.582897e-13 | KX13: 39.811 | KY13: 2.172406e-12 | KZ13: -2.603007e-13 | LA13: 39.811 | LB13: 2.165156e-12 | LC13: -2.618105e-13 | LD13: 39.811 | LE13: 2.158194e-12 | LF13: -2.632944e-13 | LG13: 39.811 | LH13: 2.153353e-12 | LI13: -2.636977e-13 | LJ13: 39.811 | LK13: 2.148123e-12 | LL13: -2.652488e-13 | LM13: 39.811 | LN13: 2.143791e-12 | LO13: -2.656919e-13 | LP13: 39.811 | LQ13: 2.139934e-12 | LR13: -2.666891e-13 | LS13: 39.811 | LT13: 2.136142e-12 | LU13: -2.669974e-13 | LV13: 39.811 | LW13: 2.132042e-12 | LX13: -2.680905e-13 | LY13: 39.811 | LZ13: 2.127339e-12 | MA13: -2.688012e-13 | MB13: 39.811 | MC13: 2.123837e-12 | MD13: -2.690506e-13 | ME13: 39.811 | MF13: 2.119981e-12 | MG13: -2.697929e-13 | MH13: 39.811 | MI13: 2.116653e-12 | MJ13: -2.703562e-13 | MK13: 39.811 | ML13: 2.11296e-12 | MM13: -2.701016e-13 | MN13: 39.811 | MO13: 2.110939e-12 | MP13: -2.706651e-13 | MQ13: 39.811 | MR13: 2.108276e-12 | MS13: -2.710107e-13 | MT13: 39.811 | MU13: 2.105943e-12 | MV13: -2.710073e-13 | MW13: 39.811 | MX13: 2.104598e-12 | MY13: -2.716918e-13 | MZ13: 39.811 | NA13: 2.101146e-12 | NB13: -2.715525e-13 | NC13: 39.811 | ND13: 2.099305e-12 | NE13: -2.714974e-13 | NF13: 39.811 | NG13: 2.09593e-12 | NH13: -2.720083e-13 | NI13: 39.811 | NJ13: 2.094841e-12 | NK13: -2.721943e-13 | NL13: 39.811 | NM13: 2.09356e-12 | NN13: -2.726746e-13 | NO13: 39.811 | NP13: 2.091968e-12 | NQ13: -2.734622e-13 | NR13: 39.811 | NS13: 2.090949e-12 | NT13: -2.729613e-13 | NU13: 39.811 | NV13: 2.090117e-12 | NW13: -2.730623e-13 | NX13: 39.811 | NY13: 2.088522e-12 | NZ13: -2.734422e-13 | OA13: 39.811 | OB13: 2.088686e-12 | OC13: -2.732563e-13 | OD13: 39.811 | OE13: 2.086789e-12 | OF13: -2.734853e-13 | OG13: 39.811 | OH13: 2.086404e-12 | OI13: -2.740703e-13 | OJ13: 39.811 | OK13: 2.084959e-12 | OL13: -2.739018e-13 | OM13: 39.811 | ON13: 2.082803e-12 | OO13: -2.742628e-13 | OP13: 39.811 | OQ13: 2.081517e-12 | OR13: -2.743748e-13 | OS13: 39.811 | OT13: 2.080382e-12 | OU13: -2.747774e-13 | OV13: 39.811 | OW13: 2.079796e-12 | OX13: -2.748364e-13 | OY13: 39.811 | OZ13: 2.078935e-12 | PA13: -2.750719e-13 | PB13: 39.811 | PC13: 2.07808e-12 | PD13: -2.752857e-13 | PE13: 39.811 | PF13: 2.078005e-12 | PG13: -2.755616e-13 | PH13: 39.811 | PI13: 2.07681e-12 | PJ13: -2.753527e-13 | PK13: 39.811 | PL13: 2.074607e-12 | PM13: -2.759386e-13 | PN13: 39.811 | PO13: 2.073675e-12 | PP13: -2.751875e-13 | PQ13: 39.811 | PR13: 2.072445e-12 | PS13: -2.759652e-13 | PT13: 39.811 | PU13: 2.070797e-12 | PV13: -2.761973e-13 | PW13: 39.811 | PX13: 2.069974e-12 | PY13: -2.763129e-13 | PZ13: 39.811 | QA13: 2.072821e-12 | QB13: -2.766678e-13 | QC13: 39.811 | QD13: 2.08105e-12 | QE13: -2.769551e-13 | QF13: 39.811 | QG13: 2.091825e-12 | QH13: -2.770092e-13 | QI13: 39.811 | QJ13: 2.105282e-12 | QK13: -2.770274e-13
A14: 50.119 | B14: 3.365295e-12 | C14: -3.085174e-13 | D14: 50.119 | E14: 3.334742e-12 | F14: -2.541703e-13 | G14: 50.119 | H14: 3.327288e-12 | I14: -2.622717e-13 | J14: 50.119 | K14: 3.310593e-12 | L14: -2.638888e-13 | M14: 50.119 | N14: 3.314427e-12 | O14: -2.643597e-13 | P14: 50.119 | Q14: 3.304834e-12 | R14: -2.756314e-13 | S14: 50.119 | T14: 3.305418e-12 | U14: -2.697915e-13 | V14: 50.119 | W14: 3.291467e-12 | X14: -2.618967e-13 | Y14: 50.119 | Z14: 3.289999e-12 | AA14: -2.702752e-13 | AB14: 50.119 | AC14: 3.288734e-12 | AD14: -2.757647e-13 | AE14: 50.119 | AF14: 3.287568e-12 | AG14: -2.634685e-13 | AH14: 50.119 | AI14: 3.282429e-12 | AJ14: -2.682075e-13 | AK14: 50.119 | AL14: 3.28244e-12 | AM14: -2.714915e-13 | AN14: 50.119 | AO14: 3.283651e-12 | AP14: -2.673036e-13 | AQ14: 50.119 | AR14: 3.278218e-12 | AS14: -2.727441e-13 | AT14: 50.119 | AU14: 3.279708e-12 | AV14: -2.723057e-13 | AW14: 50.119 | AX14: 3.281823e-12 | AY14: -2.693639e-13 | AZ14: 50.119 | BA14: 3.282853e-12 | BB14: -2.647673e-13 | BC14: 50.119 | BD14: 3.270004e-12 | BE14: -2.672287e-13 | BF14: 50.119 | BG14: 3.264189e-12 | BH14: -2.708508e-13 | BI14: 50.119 | BJ14: 3.266754e-12 | BK14: -2.779867e-13 | BL14: 50.119 | BM14: 3.246581e-12 | BN14: -2.853561e-13 | BO14: 50.119 | BP14: 3.235892e-12 | BQ14: -2.734762e-13 | BR14: 50.119 | BS14: 3.22887e-12 | BT14: -2.781306e-13 | BU14: 50.119 | BV14: 3.21313e-12 | BW14: -2.849413e-13 | BX14: 50.119 | BY14: 3.216421e-12 | BZ14: -2.762638e-13 | CA14: 50.119 | CB14: 3.192326e-12 | CC14: -2.926862e-13 | CD14: 50.119 | CE14: 3.179528e-12 | CF14: -2.809186e-13 | CG14: 50.119 | CH14: 3.164302e-12 | CI14: -2.831497e-13 | CJ14: 50.119 | CK14: 3.152463e-12 | CL14: -2.815403e-13 | CM14: 50.119 | CN14: 3.143268e-12 | CO14: -2.837724e-13 | CP14: 50.119 | CQ14: 3.189253e-12 | CR14: -2.756036e-13 | CS14: 50.119 | CT14: 3.117032e-12 | CU14: -2.871113e-13 | CV14: 50.119 | CW14: 3.110851e-12 | CX14: -2.933141e-13 | CY14: 50.119 | CZ14: 3.095558e-12 | DA14: -2.934706e-13 | DB14: 50.119 | DC14: 3.075693e-12 | DD14: -2.910532e-13 | DE14: 50.119 | DF14: 3.063097e-12 | DG14: -2.88395e-13 | DH14: 50.119 | DI14: 3.034932e-12 | DJ14: -2.940365e-13 | DK14: 50.119 | DL14: 3.016835e-12 | DM14: -2.895351e-13 | DN14: 50.119 | DO14: 3.00566e-12 | DP14: -2.970614e-13 | DQ14: 50.119 | DR14: 2.99602e-12 | DS14: -2.999731e-13 | DT14: 50.119 | DU14: 2.979383e-12 | DV14: -2.905166e-13 | DW14: 50.119 | DX14: 2.950189e-12 | DY14: -2.926109e-13 | DZ14: 50.119 | EA14: 2.93966e-12 | EB14: -3.041426e-13 | EC14: 50.119 | ED14: 2.924154e-12 | EE14: -2.940201e-13 | EF14: 50.119 | EG14: 2.895759e-12 | EH14: -2.890425e-13 | EI14: 50.119 | EJ14: 2.874756e-12 | EK14: -2.900257e-13 | EL14: 50.119 | EM14: 2.855475e-12 | EN14: -2.955649e-13 | EO14: 50.119 | EP14: 2.839217e-12 | EQ14: -2.862808e-13 | ER14: 50.119 | ES14: 2.815798e-12 | ET14: -2.840263e-13 | EU14: 50.119 | EV14: 2.79807e-12 | EW14: -2.806537e-13 | EX14: 50.119 | EY14: 2.778237e-12 | EZ14: -2.688688e-13 | FA14: 50.119 | FB14: 2.759072e-12 | FC14: -2.740673e-13 | FD14: 50.119 | FE14: 2.741936e-12 | FF14: -2.726395e-13 | FG14: 50.119 | FH14: 2.738441e-12 | FI14: -2.619761e-13 | FJ14: 50.119 | FK14: 3.041193e-12 | FL14: -2.457902e-13 | FM14: 50.119 | FN14: 2.977209e-12 | FO14: -2.824842e-13 | FP14: 50.119 | FQ14: 2.974165e-12 | FR14: -2.758815e-13 | FS14: 50.119 | FT14: 2.980267e-12 | FU14: -2.754116e-13 | FV14: 50.119 | FW14: 2.999148e-12 | FX14: -2.651959e-13 | FY14: 50.119 | FZ14: 3.024858e-12 | GA14: -2.533801e-13 | GB14: 50.119 | GC14: 3.037686e-12 | GD14: -2.39936e-13 | GE14: 50.119 | GF14: 3.019559e-12 | GG14: -2.464147e-13 | GH14: 50.119 | GI14: 2.981014e-12 | GJ14: -2.55282e-13 | GK14: 50.119 | GL14: 2.885882e-12 | GM14: -2.882704e-13 | GN14: 50.119 | GO14: 2.743878e-12 | GP14: -2.798976e-13 | GQ14: 50.119 | GR14: 2.626806e-12 | GS14: -2.287454e-13 | GT14: 50.119 | GU14: 2.564533e-12 | GV14: -1.705618e-13 | GW14: 50.119 | GX14: 2.539402e-12 | GY14: -1.510212e-13 | GZ14: 50.119 | HA14: 2.520221e-12 | HB14: -1.426634e-13 | HC14: 50.119 | HD14: 2.508319e-12 | HE14: -1.321373e-13 | HF14: 50.119 | HG14: 2.486137e-12 | HH14: -1.16512e-13 | HI14: 50.119 | HJ14: 2.479936e-12 | HK14: -1.073119e-13 | HL14: 50.119 | HM14: 2.462429e-12 | HN14: -1.040196e-13 | HO14: 50.119 | HP14: 2.446635e-12 | HQ14: -1.013096e-13 | HR14: 50.119 | HS14: 2.437731e-12 | HT14: -8.973637e-14 | HU14: 50.119 | HV14: 2.43882e-12 | HW14: -8.503708e-14 | HX14: 50.119 | HY14: 2.425353e-12 | HZ14: -8.512198e-14 | IA14: 50.119 | IB14: 2.420277e-12 | IC14: -9.354302e-14 | ID14: 50.119 | IE14: 2.415159e-12 | IF14: -9.514746e-14 | IG14: 50.119 | IH14: 2.401884e-12 | II14: -1.046338e-13 | IJ14: 50.119 | IK14: 2.397205e-12 | IL14: -1.100295e-13 | IM14: 50.119 | IN14: 2.38432e-12 | IO14: -1.17809e-13 | IP14: 50.119 | IQ14: 2.382277e-12 | IR14: -1.337072e-13 | IS14: 50.119 | IT14: 2.367324e-12 | IU14: -1.419456e-13 | IV14: 50.119 | IW14: 2.357441e-12 | IX14: -1.606781e-13 | IY14: 50.119 | IZ14: 2.346673e-12 | JA14: -1.753073e-13 | JB14: 50.119 | JC14: 2.325744e-12 | JD14: -1.806342e-13 | JE14: 50.119 | JF14: 2.309942e-12 | JG14: -1.949997e-13 | JH14: 50.119 | JI14: 2.291995e-12 | JJ14: -2.105319e-13 | JK14: 50.119 | JL14: 2.277172e-12 | JM14: -2.23546e-13 | JN14: 50.119 | JO14: 2.266941e-12 | JP14: -2.318779e-13 | JQ14: 50.119 | JR14: 2.246683e-12 | JS14: -2.399088e-13 | JT14: 50.119 | JU14: 2.22876e-12 | JV14: -2.41995e-13 | JW14: 50.119 | JX14: 2.22135e-12 | JY14: -2.505235e-13 | JZ14: 50.119 | KA14: 2.20664e-12 | KB14: -2.571719e-13 | KC14: 50.119 | KD14: 2.191181e-12 | KE14: -2.561461e-13 | KF14: 50.119 | KG14: 2.179871e-12 | KH14: -2.601488e-13 | KI14: 50.119 | KJ14: 2.17082e-12 | KK14: -2.621757e-13 | KL14: 50.119 | KM14: 2.162189e-12 | KN14: -2.701203e-13 | KO14: 50.119 | KP14: 2.159023e-12 | KQ14: -2.692406e-13 | KR14: 50.119 | KS14: 2.145471e-12 | KT14: -2.749391e-13 | KU14: 50.119 | KV14: 2.137954e-12 | KW14: -2.717602e-13 | KX14: 50.119 | KY14: 2.13124e-12 | KZ14: -2.680178e-13 | LA14: 50.119 | LB14: 2.126906e-12 | LC14: -2.788684e-13 | LD14: 50.119 | LE14: 2.115221e-12 | LF14: -2.723376e-13 | LG14: 50.119 | LH14: 2.116469e-12 | LI14: -2.749187e-13 | LJ14: 50.119 | LK14: 2.109846e-12 | LL14: -2.781135e-13 | LM14: 50.119 | LN14: 2.101569e-12 | LO14: -2.798837e-13 | LP14: 50.119 | LQ14: 2.096183e-12 | LR14: -2.738196e-13 | LS14: 50.119 | LT14: 2.097237e-12 | LU14: -2.747851e-13 | LV14: 50.119 | LW14: 2.087112e-12 | LX14: -2.757322e-13 | LY14: 50.119 | LZ14: 2.081131e-12 | MA14: -2.791734e-13 | MB14: 50.119 | MC14: 2.077888e-12 | MD14: -2.820782e-13 | ME14: 50.119 | MF14: 2.080596e-12 | MG14: -2.769133e-13 | MH14: 50.119 | MI14: 2.072144e-12 | MJ14: -2.79535e-13 | MK14: 50.119 | ML14: 2.073827e-12 | MM14: -2.765103e-13 | MN14: 50.119 | MO14: 2.067808e-12 | MP14: -2.823279e-13 | MQ14: 50.119 | MR14: 2.067136e-12 | MS14: -2.826959e-13 | MT14: 50.119 | MU14: 2.063314e-12 | MV14: -2.785576e-13 | MW14: 50.119 | MX14: 2.05882e-12 | MY14: -2.815121e-13 | MZ14: 50.119 | NA14: 2.059238e-12 | NB14: -2.789891e-13 | NC14: 50.119 | ND14: 2.056522e-12 | NE14: -2.846771e-13 | NF14: 50.119 | NG14: 2.056647e-12 | NH14: -2.796958e-13 | NI14: 50.119 | NJ14: 2.049758e-12 | NK14: -2.827434e-13 | NL14: 50.119 | NM14: 2.046615e-12 | NN14: -2.799903e-13 | NO14: 50.119 | NP14: 2.049201e-12 | NQ14: -2.832306e-13 | NR14: 50.119 | NS14: 2.044346e-12 | NT14: -2.811261e-13 | NU14: 50.119 | NV14: 2.046406e-12 | NW14: -2.772277e-13 | NX14: 50.119 | NY14: 2.04844e-12 | NZ14: -2.794515e-13 | OA14: 50.119 | OB14: 2.048593e-12 | OC14: -2.814089e-13 | OD14: 50.119 | OE14: 2.043642e-12 | OF14: -2.78161e-13 | OG14: 50.119 | OH14: 2.042865e-12 | OI14: -2.839113e-13 | OJ14: 50.119 | OK14: 2.040356e-12 | OL14: -2.849094e-13 | OM14: 50.119 | ON14: 2.040775e-12 | OO14: -2.78489e-13 | OP14: 50.119 | OQ14: 2.039537e-12 | OR14: -2.853429e-13 | OS14: 50.119 | OT14: 2.035494e-12 | OU14: -2.839689e-13 | OV14: 50.119 | OW14: 2.033814e-12 | OX14: -2.859773e-13 | OY14: 50.119 | OZ14: 2.030658e-12 | PA14: -2.801054e-13 | PB14: 50.119 | PC14: 2.0315e-12 | PD14: -2.834534e-13 | PE14: 50.119 | PF14: 2.031026e-12 | PG14: -2.812404e-13 | PH14: 50.119 | PI14: 2.03747e-12 | PJ14: -2.813877e-13 | PK14: 50.119 | PL14: 2.032617e-12 | PM14: -2.867797e-13 | PN14: 50.119 | PO14: 2.031944e-12 | PP14: -2.86241e-13 | PQ14: 50.119 | PR14: 2.03294e-12 | PS14: -2.846912e-13 | PT14: 50.119 | PU14: 2.024477e-12 | PV14: -2.825662e-13 | PW14: 50.119 | PX14: 2.023852e-12 | PY14: -2.794642e-13 | PZ14: 50.119 | QA14: 2.027304e-12 | QB14: -2.851424e-13 | QC14: 50.119 | QD14: 2.035363e-12 | QE14: -2.85882e-13 | QF14: 50.119 | QG14: 2.049133e-12 | QH14: -2.874153e-13 | QI14: 50.119 | QJ14: 2.057359e-12 | QK14: -2.87696e-13
A15: 63.096 | B15: 3.330997e-12 | C15: -3.108611e-13 | D15: 63.096 | E15: 3.298107e-12 | F15: -2.67816e-13 | G15: 63.096 | H15: 3.290458e-12 | I15: -2.681607e-13 | J15: 63.096 | K15: 3.278901e-12 | L15: -2.754208e-13 | M15: 63.096 | N15: 3.273643e-12 | O15: -2.754129e-13 | P15: 63.096 | Q15: 3.267931e-12 | R15: -2.761368e-13 | S15: 63.096 | T15: 3.261319e-12 | U15: -2.779464e-13 | V15: 63.096 | W15: 3.256383e-12 | X15: -2.806063e-13 | Y15: 63.096 | Z15: 3.256083e-12 | AA15: -2.796088e-13 | AB15: 63.096 | AC15: 3.254168e-12 | AD15: -2.812434e-13 | AE15: 63.096 | AF15: 3.250314e-12 | AG15: -2.807183e-13 | AH15: 63.096 | AI15: 3.250565e-12 | AJ15: -2.807534e-13 | AK15: 63.096 | AL15: 3.246937e-12 | AM15: -2.777382e-13 | AN15: 63.096 | AO15: 3.244063e-12 | AP15: -2.785609e-13 | AQ15: 63.096 | AR15: 3.247189e-12 | AS15: -2.802346e-13 | AT15: 63.096 | AU15: 3.245028e-12 | AV15: -2.811141e-13 | AW15: 63.096 | AX15: 3.241547e-12 | AY15: -2.783259e-13 | AZ15: 63.096 | BA15: 3.238331e-12 | BB15: -2.796912e-13 | BC15: 63.096 | BD15: 3.235918e-12 | BE15: -2.832757e-13 | BF15: 63.096 | BG15: 3.228443e-12 | BH15: -2.862254e-13 | BI15: 63.096 | BJ15: 3.220984e-12 | BK15: -2.861572e-13 | BL15: 63.096 | BM15: 3.212087e-12 | BN15: -2.898239e-13 | BO15: 63.096 | BP15: 3.199798e-12 | BQ15: -2.917108e-13 | BR15: 63.096 | BS15: 3.190317e-12 | BT15: -2.906942e-13 | BU15: 63.096 | BV15: 3.178602e-12 | BW15: -2.945058e-13 | BX15: 63.096 | BY15: 3.166278e-12 | BZ15: -2.936342e-13 | CA15: 63.096 | CB15: 3.153501e-12 | CC15: -2.961122e-13 | CD15: 63.096 | CE15: 3.141624e-12 | CF15: -2.959997e-13 | CG15: 63.096 | CH15: 3.126452e-12 | CI15: -2.981495e-13 | CJ15: 63.096 | CK15: 3.113835e-12 | CL15: -3.000047e-13 | CM15: 63.096 | CN15: 3.098987e-12 | CO15: -2.996918e-13 | CP15: 63.096 | CQ15: 3.157136e-12 | CR15: -3.014859e-13 | CS15: 63.096 | CT15: 3.069847e-12 | CU15: -2.98533e-13 | CV15: 63.096 | CW15: 3.055235e-12 | CX15: -3.01021e-13 | CY15: 63.096 | CZ15: 3.03865e-12 | DA15: -3.011444e-13 | DB15: 63.096 | DC15: 3.024224e-12 | DD15: -2.997349e-13 | DE15: 63.096 | DF15: 3.006726e-12 | DG15: -3.0106e-13 | DH15: 63.096 | DI15: 2.99242e-12 | DJ15: -3.001886e-13 | DK15: 63.096 | DL15: 2.973059e-12 | DM15: -3.025742e-13 | DN15: 63.096 | DO15: 2.95815e-12 | DP15: -3.014443e-13 | DQ15: 63.096 | DR15: 2.939615e-12 | DS15: -2.992331e-13 | DT15: 63.096 | DU15: 2.923868e-12 | DV15: -3.002367e-13 | DW15: 63.096 | DX15: 2.907885e-12 | DY15: -2.974616e-13 | DZ15: 63.096 | EA15: 2.890733e-12 | EB15: -2.954401e-13 | EC15: 63.096 | ED15: 2.871872e-12 | EE15: -2.928796e-13 | EF15: 63.096 | EG15: 2.8426e-12 | EH15: -2.905622e-13 | EI15: 63.096 | EJ15: 2.821815e-12 | EK15: -2.868347e-13 | EL15: 63.096 | EM15: 2.803511e-12 | EN15: -2.825638e-13 | EO15: 63.096 | EP15: 2.782765e-12 | EQ15: -2.776657e-13 | ER15: 63.096 | ES15: 2.766481e-12 | ET15: -2.746841e-13 | EU15: 63.096 | EV15: 2.747039e-12 | EW15: -2.679539e-13 | EX15: 63.096 | EY15: 2.730679e-12 | EZ15: -2.651125e-13 | FA15: 63.096 | FB15: 2.714402e-12 | FC15: -2.582269e-13 | FD15: 63.096 | FE15: 2.703749e-12 | FF15: -2.521831e-13 | FG15: 63.096 | FH15: 2.693992e-12 | FI15: -2.498544e-13 | FJ15: 63.096 | FK15: 3.003201e-12 | FL15: -2.552193e-13 | FM15: 63.096 | FN15: 2.925898e-12 | FO15: -2.853605e-13 | FP15: 63.096 | FQ15: 2.92303e-12 | FR15: -2.862808e-13 | FS15: 63.096 | FT15: 2.929845e-12 | FU15: -2.837752e-13 | FV15: 63.096 | FW15: 2.956337e-12 | FX15: -2.777718e-13 | FY15: 63.096 | FZ15: 2.98323e-12 | GA15: -2.651057e-13 | GB15: 63.096 | GC15: 2.993029e-12 | GD15: -2.56969e-13 | GE15: 63.096 | GF15: 2.977345e-12 | GG15: -2.621277e-13 | GH15: 63.096 | GI15: 2.929723e-12 | GJ15: -2.793541e-13 | GK15: 63.096 | GL15: 2.834162e-12 | GM15: -2.91513e-13 | GN15: 63.096 | GO15: 2.696553e-12 | GP15: -2.643729e-13 | GQ15: 63.096 | GR15: 2.593493e-12 | GS15: -2.053189e-13 | GT15: 63.096 | GU15: 2.544253e-12 | GV15: -1.586686e-13 | GW15: 63.096 | GX15: 2.519061e-12 | GY15: -1.384434e-13 | GZ15: 63.096 | HA15: 2.503362e-12 | HB15: -1.252303e-13 | HC15: 63.096 | HD15: 2.489151e-12 | HE15: -1.152439e-13 | HF15: 63.096 | HG15: 2.474635e-12 | HH15: -1.072844e-13 | HI15: 63.096 | HJ15: 2.463514e-12 | HK15: -1.008638e-13 | HL15: 63.096 | HM15: 2.452022e-12 | HN15: -9.408727e-14 | HO15: 63.096 | HP15: 2.441669e-12 | HQ15: -8.911842e-14 | HR15: 63.096 | HS15: 2.433564e-12 | HT15: -8.672629e-14 | HU15: 63.096 | HV15: 2.42402e-12 | HW15: -8.559289e-14 | HX15: 63.096 | HY15: 2.416963e-12 | HZ15: -8.647315e-14 | IA15: 63.096 | IB15: 2.410242e-12 | IC15: -8.959709e-14 | ID15: 63.096 | IE15: 2.40515e-12 | IF15: -9.576498e-14 | IG15: 63.096 | IH15: 2.396555e-12 | II15: -1.024821e-13 | IJ15: 63.096 | IK15: 2.388196e-12 | IL15: -1.141022e-13 | IM15: 63.096 | IN15: 2.377845e-12 | IO15: -1.287952e-13 | IP15: 63.096 | IQ15: 2.366431e-12 | IR15: -1.437685e-13 | IS15: 63.096 | IT15: 2.352148e-12 | IU15: -1.592344e-13 | IV15: 63.096 | IW15: 2.338857e-12 | IX15: -1.747393e-13 | IY15: 63.096 | IZ15: 2.322458e-12 | JA15: -1.88414e-13 | JB15: 63.096 | JC15: 2.30454e-12 | JD15: -2.044335e-13 | JE15: 63.096 | JF15: 2.285991e-12 | JG15: -2.17812e-13 | JH15: 63.096 | JI15: 2.267426e-12 | JJ15: -2.303257e-13 | JK15: 63.096 | JL15: 2.247933e-12 | JM15: -2.405981e-13 | JN15: 63.096 | JO15: 2.2275e-12 | JP15: -2.501381e-13 | JQ15: 63.096 | JR15: 2.210999e-12 | JS15: -2.573803e-13 | JT15: 63.096 | JU15: 2.192807e-12 | JV15: -2.646725e-13 | JW15: 63.096 | JX15: 2.178875e-12 | JY15: -2.689439e-13 | JZ15: 63.096 | KA15: 2.16497e-12 | KB15: -2.720274e-13 | KC15: 63.096 | KD15: 2.152381e-12 | KE15: -2.7574e-13 | KF15: 63.096 | KG15: 2.140006e-12 | KH15: -2.797205e-13 | KI15: 63.096 | KJ15: 2.128913e-12 | KK15: -2.813748e-13 | KL15: 63.096 | KM15: 2.120687e-12 | KN15: -2.817967e-13 | KO15: 63.096 | KP15: 2.111749e-12 | KQ15: -2.836724e-13 | KR15: 63.096 | KS15: 2.106092e-12 | KT15: -2.846143e-13 | KU15: 63.096 | KV15: 2.097387e-12 | KW15: -2.859815e-13 | KX15: 63.096 | KY15: 2.088994e-12 | KZ15: -2.870934e-13 | LA15: 63.096 | LB15: 2.081699e-12 | LC15: -2.864349e-13 | LD15: 63.096 | LE15: 2.073798e-12 | LF15: -2.881038e-13 | LG15: 63.096 | LH15: 2.069491e-12 | LI15: -2.88036e-13 | LJ15: 63.096 | LK15: 2.063767e-12 | LL15: -2.879703e-13 | LM15: 63.096 | LN15: 2.059072e-12 | LO15: -2.893979e-13 | LP15: 63.096 | LQ15: 2.05406e-12 | LR15: -2.895062e-13 | LS15: 63.096 | LT15: 2.050651e-12 | LU15: -2.90261e-13 | LV15: 63.096 | LW15: 2.045944e-12 | LX15: -2.900481e-13 | LY15: 63.096 | LZ15: 2.041465e-12 | MA15: -2.891219e-13 | MB15: 63.096 | MC15: 2.037622e-12 | MD15: -2.896903e-13 | ME15: 63.096 | MF15: 2.033088e-12 | MG15: -2.896816e-13 | MH15: 63.096 | MI15: 2.030689e-12 | MJ15: -2.895575e-13 | MK15: 63.096 | ML15: 2.026036e-12 | MM15: -2.900553e-13 | MN15: 63.096 | MO15: 2.024134e-12 | MP15: -2.894652e-13 | MQ15: 63.096 | MR15: 2.02095e-12 | MS15: -2.897411e-13 | MT15: 63.096 | MU15: 2.019203e-12 | MV15: -2.898315e-13 | MW15: 63.096 | MX15: 2.01677e-12 | MY15: -2.887589e-13 | MZ15: 63.096 | NA15: 2.013855e-12 | NB15: -2.893603e-13 | NC15: 63.096 | ND15: 2.012216e-12 | NE15: -2.885383e-13 | NF15: 63.096 | NG15: 2.008847e-12 | NH15: -2.895608e-13 | NI15: 63.096 | NJ15: 2.008304e-12 | NK15: -2.890946e-13 | NL15: 63.096 | NM15: 2.005898e-12 | NN15: -2.891854e-13 | NO15: 63.096 | NP15: 2.005223e-12 | NQ15: -2.891732e-13 | NR15: 63.096 | NS15: 2.004108e-12 | NT15: -2.895057e-13 | NU15: 63.096 | NV15: 2.002591e-12 | NW15: -2.883309e-13 | NX15: 63.096 | NY15: 2.001671e-12 | NZ15: -2.885844e-13 | OA15: 63.096 | OB15: 2.000117e-12 | OC15: -2.887007e-13 | OD15: 63.096 | OE15: 1.999206e-12 | OF15: -2.900685e-13 | OG15: 63.096 | OH15: 1.999303e-12 | OI15: -2.891694e-13 | OJ15: 63.096 | OK15: 1.997947e-12 | OL15: -2.89763e-13 | OM15: 63.096 | ON15: 1.995322e-12 | OO15: -2.883977e-13 | OP15: 63.096 | OQ15: 1.993937e-12 | OR15: -2.885423e-13 | OS15: 63.096 | OT15: 1.99215e-12 | OU15: -2.900419e-13 | OV15: 63.096 | OW15: 1.992058e-12 | OX15: -2.886573e-13 | OY15: 63.096 | OZ15: 1.991027e-12 | PA15: -2.898753e-13 | PB15: 63.096 | PC15: 1.990511e-12 | PD15: -2.899225e-13 | PE15: 63.096 | PF15: 1.990116e-12 | PG15: -2.901231e-13 | PH15: 63.096 | PI15: 1.987425e-12 | PJ15: -2.896223e-13 | PK15: 63.096 | PL15: 1.987077e-12 | PM15: -2.896689e-13 | PN15: 63.096 | PO15: 1.985791e-12 | PP15: -2.889526e-13 | PQ15: 63.096 | PR15: 1.983888e-12 | PS15: -2.886365e-13 | PT15: 63.096 | PU15: 1.98323e-12 | PV15: -2.891719e-13 | PW15: 63.096 | PX15: 1.980119e-12 | PY15: -2.895876e-13 | PZ15: 63.096 | QA15: 1.984833e-12 | QB15: -2.899326e-13 | QC15: 63.096 | QD15: 1.992093e-12 | QE15: -2.907961e-13 | QF15: 63.096 | QG15: 2.002967e-12 | QH15: -2.927775e-13 | QI15: 63.096 | QJ15: 2.01625e-12 | QK15: -2.951613e-13
A16: 79.433 | B16: 3.287076e-12 | C16: -3.182295e-13 | D16: 79.433 | E16: 3.263476e-12 | F16: -2.800516e-13 | G16: 79.433 | H16: 3.251583e-12 | I16: -2.805617e-13 | J16: 79.433 | K16: 3.240759e-12 | L16: -2.855143e-13 | M16: 79.433 | N16: 3.233443e-12 | O16: -2.889928e-13 | P16: 79.433 | Q16: 3.227292e-12 | R16: -2.908462e-13 | S16: 79.433 | T16: 3.222112e-12 | U16: -2.903834e-13 | V16: 79.433 | W16: 3.218193e-12 | X16: -2.912237e-13 | Y16: 79.433 | Z16: 3.213543e-12 | AA16: -2.914851e-13 | AB16: 79.433 | AC16: 3.21122e-12 | AD16: -2.929278e-13 | AE16: 79.433 | AF16: 3.210914e-12 | AG16: -2.922965e-13 | AH16: 79.433 | AI16: 3.208306e-12 | AJ16: -2.932875e-13 | AK16: 79.433 | AL16: 3.205922e-12 | AM16: -2.919435e-13 | AN16: 79.433 | AO16: 3.204437e-12 | AP16: -2.911561e-13 | AQ16: 79.433 | AR16: 3.204555e-12 | AS16: -2.945094e-13 | AT16: 79.433 | AU16: 3.202218e-12 | AV16: -2.937981e-13 | AW16: 79.433 | AX16: 3.200888e-12 | AY16: -2.927604e-13 | AZ16: 79.433 | BA16: 3.198526e-12 | BB16: -2.916494e-13 | BC16: 79.433 | BD16: 3.191881e-12 | BE16: -2.945219e-13 | BF16: 79.433 | BG16: 3.18696e-12 | BH16: -2.966025e-13 | BI16: 79.433 | BJ16: 3.177286e-12 | BK16: -3.005566e-13 | BL16: 79.433 | BM16: 3.166475e-12 | BN16: -3.004495e-13 | BO16: 79.433 | BP16: 3.155649e-12 | BQ16: -3.013213e-13 | BR16: 79.433 | BS16: 3.145557e-12 | BT16: -3.037248e-13 | BU16: 79.433 | BV16: 3.132195e-12 | BW16: -3.022383e-13 | BX16: 79.433 | BY16: 3.121524e-12 | BZ16: -3.039295e-13 | CA16: 79.433 | CB16: 3.106879e-12 | CC16: -3.049484e-13 | CD16: 79.433 | CE16: 3.093583e-12 | CF16: -3.059966e-13 | CG16: 79.433 | CH16: 3.079431e-12 | CI16: -3.057588e-13 | CJ16: 79.433 | CK16: 3.065252e-12 | CL16: -3.060421e-13 | CM16: 79.433 | CN16: 3.050954e-12 | CO16: -3.072823e-13 | CP16: 79.433 | CQ16: 3.104031e-12 | CR16: -3.248999e-13 | CS16: 79.433 | CT16: 3.021017e-12 | CU16: -3.061696e-13 | CV16: 79.433 | CW16: 3.005168e-12 | CX16: -3.07549e-13 | CY16: 79.433 | CZ16: 2.99019e-12 | DA16: -3.059046e-13 | DB16: 79.433 | DC16: 2.973577e-12 | DD16: -3.067281e-13 | DE16: 79.433 | DF16: 2.956583e-12 | DG16: -3.039382e-13 | DH16: 79.433 | DI16: 2.939971e-12 | DJ16: -3.039247e-13 | DK16: 79.433 | DL16: 2.919765e-12 | DM16: -3.03438e-13 | DN16: 79.433 | DO16: 2.904466e-12 | DP16: -3.030064e-13 | DQ16: 79.433 | DR16: 2.888076e-12 | DS16: -2.999205e-13 | DT16: 79.433 | DU16: 2.872868e-12 | DV16: -2.971913e-13 | DW16: 79.433 | DX16: 2.855616e-12 | DY16: -2.959895e-13 | DZ16: 79.433 | EA16: 2.84004e-12 | EB16: -2.931255e-13 | EC16: 79.433 | ED16: 2.823052e-12 | EE16: -2.904008e-13 | EF16: 79.433 | EG16: 2.793866e-12 | EH16: -2.834405e-13 | EI16: 79.433 | EJ16: 2.774851e-12 | EK16: -2.769184e-13 | EL16: 79.433 | EM16: 2.756117e-12 | EN16: -2.734869e-13 | EO16: 79.433 | EP16: 2.737742e-12 | EQ16: -2.680223e-13 | ER16: 79.433 | ES16: 2.720437e-12 | ET16: -2.634537e-13 | EU16: 79.433 | EV16: 2.705007e-12 | EW16: -2.565687e-13 | EX16: 79.433 | EY16: 2.688354e-12 | EZ16: -2.504507e-13 | FA16: 79.433 | FB16: 2.6733e-12 | FC16: -2.427536e-13 | FD16: 79.433 | FE16: 2.663226e-12 | FF16: -2.39088e-13 | FG16: 79.433 | FH16: 2.656761e-12 | FI16: -2.331872e-13 | FJ16: 79.433 | FK16: 2.957616e-12 | FL16: -2.692968e-13 | FM16: 79.433 | FN16: 2.875218e-12 | FO16: -2.915984e-13 | FP16: 79.433 | FQ16: 2.874282e-12 | FR16: -2.899315e-13 | FS16: 79.433 | FT16: 2.881331e-12 | FU16: -2.879448e-13 | FV16: 79.433 | FW16: 2.905348e-12 | FX16: -2.855412e-13 | FY16: 79.433 | FZ16: 2.936545e-12 | GA16: -2.80087e-13 | GB16: 79.433 | GC16: 2.94713e-12 | GD16: -2.738657e-13 | GE16: 79.433 | GF16: 2.93058e-12 | GG16: -2.7621e-13 | GH16: 79.433 | GI16: 2.878983e-12 | GJ16: -2.868956e-13 | GK16: 79.433 | GL16: 2.783675e-12 | GM16: -2.898727e-13 | GN16: 79.433 | GO16: 2.654975e-12 | GP16: -2.480979e-13 | GQ16: 79.433 | GR16: 2.56711e-12 | GS16: -1.877642e-13 | GT16: 79.433 | GU16: 2.525494e-12 | GV16: -1.441032e-13 | GW16: 79.433 | GX16: 2.504062e-12 | GY16: -1.267515e-13 | GZ16: 79.433 | HA16: 2.487603e-12 | HB16: -1.163836e-13 | HC16: 79.433 | HD16: 2.474978e-12 | HE16: -1.072642e-13 | HF16: 79.433 | HG16: 2.462247e-12 | HH16: -9.786739e-14 | HI16: 79.433 | HJ16: 2.451607e-12 | HK16: -9.342417e-14 | HL16: 79.433 | HM16: 2.441273e-12 | HN16: -9.043561e-14 | HO16: 79.433 | HP16: 2.431781e-12 | HQ16: -8.553729e-14 | HR16: 79.433 | HS16: 2.423888e-12 | HT16: -8.525298e-14 | HU16: 79.433 | HV16: 2.415591e-12 | HW16: -8.437146e-14 | HX16: 79.433 | HY16: 2.409519e-12 | HZ16: -8.732136e-14 | IA16: 79.433 | IB16: 2.401197e-12 | IC16: -9.236481e-14 | ID16: 79.433 | IE16: 2.39391e-12 | IF16: -1.001705e-13 | IG16: 79.433 | IH16: 2.386864e-12 | II16: -1.110667e-13 | IJ16: 79.433 | IK16: 2.375753e-12 | IL16: -1.244964e-13 | IM16: 79.433 | IN16: 2.36386e-12 | IO16: -1.409399e-13 | IP16: 79.433 | IQ16: 2.349415e-12 | IR16: -1.593214e-13 | IS16: 79.433 | IT16: 2.335625e-12 | IU16: -1.755525e-13 | IV16: 79.433 | IW16: 2.316232e-12 | IX16: -1.929546e-13 | IY16: 79.433 | IZ16: 2.298166e-12 | JA16: -2.101843e-13 | JB16: 79.433 | JC16: 2.277531e-12 | JD16: -2.243053e-13 | JE16: 79.433 | JF16: 2.256609e-12 | JG16: -2.395912e-13 | JH16: 79.433 | JI16: 2.234217e-12 | JJ16: -2.504188e-13 | JK16: 79.433 | JL16: 2.211615e-12 | JM16: -2.632993e-13 | JN16: 79.433 | JO16: 2.190281e-12 | JP16: -2.696258e-13 | JQ16: 79.433 | JR16: 2.17049e-12 | JS16: -2.784511e-13 | JT16: 79.433 | JU16: 2.153182e-12 | JV16: -2.814945e-13 | JW16: 79.433 | JX16: 2.136714e-12 | JY16: -2.87888e-13 | JZ16: 79.433 | KA16: 2.12291e-12 | KB16: -2.913366e-13 | KC16: 79.433 | KD16: 2.10957e-12 | KE16: -2.920828e-13 | KF16: 79.433 | KG16: 2.096744e-12 | KH16: -2.934242e-13 | KI16: 79.433 | KJ16: 2.083699e-12 | KK16: -2.958964e-13 | KL16: 79.433 | KM16: 2.075454e-12 | KN16: -2.982864e-13 | KO16: 79.433 | KP16: 2.068202e-12 | KQ16: -2.986829e-13 | KR16: 79.433 | KS16: 2.059202e-12 | KT16: -2.993458e-13 | KU16: 79.433 | KV16: 2.052e-12 | KW16: -2.9833e-13 | KX16: 79.433 | KY16: 2.044319e-12 | KZ16: -2.986527e-13 | LA16: 79.433 | LB16: 2.035431e-12 | LC16: -3.001502e-13 | LD16: 79.433 | LE16: 2.02873e-12 | LF16: -2.990322e-13 | LG16: 79.433 | LH16: 2.022623e-12 | LI16: -3.003551e-13 | LJ16: 79.433 | LK16: 2.018134e-12 | LL16: -2.997315e-13 | LM16: 79.433 | LN16: 2.012815e-12 | LO16: -2.984207e-13 | LP16: 79.433 | LQ16: 2.007937e-12 | LR16: -2.986628e-13 | LS16: 79.433 | LT16: 2.00404e-12 | LU16: -2.981423e-13 | LV16: 79.433 | LW16: 1.99896e-12 | LX16: -2.986869e-13 | LY16: 79.433 | LZ16: 1.994859e-12 | MA16: -2.989426e-13 | MB16: 79.433 | MC16: 1.990899e-12 | MD16: -2.987238e-13 | ME16: 79.433 | MF16: 1.988059e-12 | MG16: -2.980636e-13 | MH16: 79.433 | MI16: 1.983822e-12 | MJ16: -2.976687e-13 | MK16: 79.433 | ML16: 1.980267e-12 | MM16: -2.96746e-13 | MN16: 79.433 | MO16: 1.978098e-12 | MP16: -2.983585e-13 | MQ16: 79.433 | MR16: 1.974206e-12 | MS16: -2.971793e-13 | MT16: 79.433 | MU16: 1.973895e-12 | MV16: -2.962304e-13 | MW16: 79.433 | MX16: 1.971728e-12 | MY16: -2.9679e-13 | MZ16: 79.433 | NA16: 1.96806e-12 | NB16: -2.955786e-13 | NC16: 79.433 | ND16: 1.966125e-12 | NE16: -2.970282e-13 | NF16: 79.433 | NG16: 1.96341e-12 | NH16: -2.954687e-13 | NI16: 79.433 | NJ16: 1.961755e-12 | NK16: -2.968301e-13 | NL16: 79.433 | NM16: 1.960522e-12 | NN16: -2.952986e-13 | NO16: 79.433 | NP16: 1.958522e-12 | NQ16: -2.959322e-13 | NR16: 79.433 | NS16: 1.957694e-12 | NT16: -2.966186e-13 | NU16: 79.433 | NV16: 1.957078e-12 | NW16: -2.953018e-13 | NX16: 79.433 | NY16: 1.955811e-12 | NZ16: -2.967505e-13 | OA16: 79.433 | OB16: 1.955848e-12 | OC16: -2.953105e-13 | OD16: 79.433 | OE16: 1.953188e-12 | OF16: -2.946724e-13 | OG16: 79.433 | OH16: 1.953019e-12 | OI16: -2.971893e-13 | OJ16: 79.433 | OK16: 1.952275e-12 | OL16: -2.963052e-13 | OM16: 79.433 | ON16: 1.950023e-12 | OO16: -2.950368e-13 | OP16: 79.433 | OQ16: 1.947844e-12 | OR16: -2.961676e-13 | OS16: 79.433 | OT16: 1.945793e-12 | OU16: -2.949425e-13 | OV16: 79.433 | OW16: 1.945436e-12 | OX16: -2.954389e-13 | OY16: 79.433 | OZ16: 1.944524e-12 | PA16: -2.944681e-13 | PB16: 79.433 | PC16: 1.945072e-12 | PD16: -2.946581e-13 | PE16: 79.433 | PF16: 1.943622e-12 | PG16: -2.954206e-13 | PH16: 79.433 | PI16: 1.942724e-12 | PJ16: -2.944145e-13 | PK16: 79.433 | PL16: 1.940331e-12 | PM16: -2.94981e-13 | PN16: 79.433 | PO16: 1.93942e-12 | PP16: -2.953211e-13 | PQ16: 79.433 | PR16: 1.938475e-12 | PS16: -2.951271e-13 | PT16: 79.433 | PU16: 1.936473e-12 | PV16: -2.944634e-13 | PW16: 79.433 | PX16: 1.935713e-12 | PY16: -2.943272e-13 | PZ16: 79.433 | QA16: 1.937914e-12 | QB16: -2.956355e-13 | QC16: 79.433 | QD16: 1.945835e-12 | QE16: -2.980545e-13 | QF16: 79.433 | QG16: 1.956116e-12 | QH16: -2.984005e-13 | QI16: 79.433 | QJ16: 1.968303e-12 | QK16: -3.027184e-13
A17: 100 | B17: 3.23913e-12 | C17: -3.254578e-13 | D17: 100 | E17: 3.219948e-12 | F17: -2.940512e-13 | G17: 100 | H17: 3.2094e-12 | I17: -2.942021e-13 | J17: 100 | K17: 3.196923e-12 | L17: -3.000763e-13 | M17: 100 | N17: 3.188576e-12 | O17: -3.010821e-13 | P17: 100 | Q17: 3.181624e-12 | R17: -3.014899e-13 | S17: 100 | T17: 3.175377e-12 | U17: -3.027764e-13 | V17: 100 | W17: 3.172922e-12 | X17: -3.016736e-13 | Y17: 100 | Z17: 3.170548e-12 | AA17: -3.015232e-13 | AB17: 100 | AC17: 3.166925e-12 | AD17: -3.024925e-13 | AE17: 100 | AF17: 3.165491e-12 | AG17: -3.042158e-13 | AH17: 100 | AI17: 3.16209e-12 | AJ17: -3.020839e-13 | AK17: 100 | AL17: 3.159244e-12 | AM17: -3.004465e-13 | AN17: 100 | AO17: 3.157237e-12 | AP17: -3.015093e-13 | AQ17: 100 | AR17: 3.159309e-12 | AS17: -3.027856e-13 | AT17: 100 | AU17: 3.156208e-12 | AV17: -3.028358e-13 | AW17: 100 | AX17: 3.154314e-12 | AY17: -3.033174e-13 | AZ17: 100 | BA17: 3.152946e-12 | BB17: -3.040731e-13 | BC17: 100 | BD17: 3.147519e-12 | BE17: -3.065705e-13 | BF17: 100 | BG17: 3.137176e-12 | BH17: -3.088287e-13 | BI17: 100 | BJ17: 3.127836e-12 | BK17: -3.076012e-13 | BL17: 100 | BM17: 3.120315e-12 | BN17: -3.104808e-13 | BO17: 100 | BP17: 3.108352e-12 | BQ17: -3.112705e-13 | BR17: 100 | BS17: 3.095626e-12 | BT17: -3.110344e-13 | BU17: 100 | BV17: 3.084212e-12 | BW17: -3.136204e-13 | BX17: 100 | BY17: 3.069466e-12 | BZ17: -3.134185e-13 | CA17: 100 | CB17: 3.057865e-12 | CC17: -3.141876e-13 | CD17: 100 | CE17: 3.042409e-12 | CF17: -3.127866e-13 | CG17: 100 | CH17: 3.025311e-12 | CI17: -3.134643e-13 | CJ17: 100 | CK17: 3.013291e-12 | CL17: -3.137973e-13 | CM17: 100 | CN17: 2.995585e-12 | CO17: -3.121885e-13 | CP17: 100 | CQ17: 3.047109e-12 | CR17: -3.346394e-13 | CS17: 100 | CT17: 2.967886e-12 | CU17: -3.116054e-13 | CV17: 100 | CW17: 2.952294e-12 | CX17: -3.092035e-13 | CY17: 100 | CZ17: 2.935211e-12 | DA17: -3.096077e-13 | DB17: 100 | DC17: 2.918747e-12 | DD17: -3.048722e-13 | DE17: 100 | DF17: 2.90237e-12 | DG17: -3.042887e-13 | DH17: 100 | DI17: 2.887276e-12 | DJ17: -3.015733e-13 | DK17: 100 | DL17: 2.870311e-12 | DM17: -3.001244e-13 | DN17: 100 | DO17: 2.852998e-12 | DP17: -2.975265e-13 | DQ17: 100 | DR17: 2.834922e-12 | DS17: -2.928726e-13 | DT17: 100 | DU17: 2.821291e-12 | DV17: -2.925474e-13 | DW17: 100 | DX17: 2.804669e-12 | DY17: -2.87584e-13 | DZ17: 100 | EA17: 2.789746e-12 | EB17: -2.851757e-13 | EC17: 100 | ED17: 2.771016e-12 | EE17: -2.802648e-13 | EF17: 100 | EG17: 2.746266e-12 | EH17: -2.723009e-13 | EI17: 100 | EJ17: 2.728159e-12 | EK17: -2.673391e-13 | EL17: 100 | EM17: 2.710904e-12 | EN17: -2.577975e-13 | EO17: 100 | EP17: 2.69365e-12 | EQ17: -2.531345e-13 | ER17: 100 | ES17: 2.678882e-12 | ET17: -2.460393e-13 | EU17: 100 | EV17: 2.662974e-12 | EW17: -2.398316e-13 | EX17: 100 | EY17: 2.649218e-12 | EZ17: -2.332675e-13 | FA17: 100 | FB17: 2.635637e-12 | FC17: -2.280595e-13 | FD17: 100 | FE17: 2.627453e-12 | FF17: -2.213418e-13 | FG17: 100 | FH17: 2.620652e-12 | FI17: -2.187042e-13 | FJ17: 100 | FK17: 2.909835e-12 | FL17: -2.790751e-13 | FM17: 100 | FN17: 2.822631e-12 | FO17: -2.878371e-13 | FP17: 100 | FQ17: 2.821242e-12 | FR17: -2.858074e-13 | FS17: 100 | FT17: 2.828527e-12 | FU17: -2.878555e-13 | FV17: 100 | FW17: 2.855695e-12 | FX17: -2.888617e-13 | FY17: 100 | FZ17: 2.883493e-12 | GA17: -2.866663e-13 | GB17: 100 | GC17: 2.898021e-12 | GD17: -2.834784e-13 | GE17: 100 | GF17: 2.882076e-12 | GG17: -2.880917e-13 | GH17: 100 | GI17: 2.82454e-12 | GJ17: -2.908532e-13 | GK17: 100 | GL17: 2.729416e-12 | GM17: -2.799326e-13 | GN17: 100 | GO17: 2.613599e-12 | GP17: -2.297474e-13 | GQ17: 100 | GR17: 2.54179e-12 | GS17: -1.682974e-13 | GT17: 100 | GU17: 2.507578e-12 | GV17: -1.301743e-13 | GW17: 100 | GX17: 2.486365e-12 | GY17: -1.160306e-13 | GZ17: 100 | HA17: 2.474901e-12 | HB17: -1.054795e-13 | HC17: 100 | HD17: 2.461941e-12 | HE17: -9.840442e-14 | HF17: 100 | HG17: 2.452532e-12 | HH17: -9.196949e-14 | HI17: 100 | HJ17: 2.441869e-12 | HK17: -8.640098e-14 | HL17: 100 | HM17: 2.430733e-12 | HN17: -8.346017e-14 | HO17: 100 | HP17: 2.423222e-12 | HQ17: -8.141185e-14 | HR17: 100 | HS17: 2.41482e-12 | HT17: -8.128507e-14 | HU17: 100 | HV17: 2.407313e-12 | HW17: -8.385292e-14 | HX17: 100 | HY17: 2.400215e-12 | HZ17: -8.730822e-14 | IA17: 100 | IB17: 2.391791e-12 | IC17: -9.515396e-14 | ID17: 100 | IE17: 2.384662e-12 | IF17: -1.053839e-13 | IG17: 100 | IH17: 2.375341e-12 | II17: -1.194423e-13 | IJ17: 100 | IK17: 2.363632e-12 | IL17: -1.362209e-13 | IM17: 100 | IN17: 2.349408e-12 | IO17: -1.565854e-13 | IP17: 100 | IQ17: 2.331644e-12 | IR17: -1.766744e-13 | IS17: 100 | IT17: 2.312726e-12 | IU17: -1.972621e-13 | IV17: 100 | IW17: 2.291355e-12 | IX17: -2.144069e-13 | IY17: 100 | IZ17: 2.269311e-12 | JA17: -2.325092e-13 | JB17: 100 | JC17: 2.245448e-12 | JD17: -2.48551e-13 | JE17: 100 | JF17: 2.220786e-12 | JG17: -2.617634e-13 | JH17: 100 | JI17: 2.196123e-12 | JJ17: -2.743823e-13 | JK17: 100 | JL17: 2.170787e-12 | JM17: -2.830536e-13 | JN17: 100 | JO17: 2.147628e-12 | JP17: -2.909178e-13 | JQ17: 100 | JR17: 2.127272e-12 | JS17: -2.958305e-13 | JT17: 100 | JU17: 2.108269e-12 | JV17: -3.014866e-13 | JW17: 100 | JX17: 2.091434e-12 | JY17: -3.034024e-13 | JZ17: 100 | KA17: 2.074844e-12 | KB17: -3.062891e-13 | KC17: 100 | KD17: 2.061215e-12 | KE17: -3.07976e-13 | KF17: 100 | KG17: 2.049131e-12 | KH17: -3.095135e-13 | KI17: 100 | KJ17: 2.037358e-12 | KK17: -3.098784e-13 | KL17: 100 | KM17: 2.027678e-12 | KN17: -3.093355e-13 | KO17: 100 | KP17: 2.018976e-12 | KQ17: -3.106884e-13 | KR17: 100 | KS17: 2.012109e-12 | KT17: -3.097015e-13 | KU17: 100 | KV17: 2.003248e-12 | KW17: -3.099457e-13 | KX17: 100 | KY17: 1.995792e-12 | KZ17: -3.096295e-13 | LA17: 100 | LB17: 1.986903e-12 | LC17: -3.087023e-13 | LD17: 100 | LE17: 1.979134e-12 | LF17: -3.082439e-13 | LG17: 100 | LH17: 1.974103e-12 | LI17: -3.078775e-13 | LJ17: 100 | LK17: 1.968917e-12 | LL17: -3.075052e-13 | LM17: 100 | LN17: 1.965133e-12 | LO17: -3.079657e-13 | LP17: 100 | LQ17: 1.960593e-12 | LR17: -3.073402e-13 | LS17: 100 | LT17: 1.956732e-12 | LU17: -3.070843e-13 | LV17: 100 | LW17: 1.951744e-12 | LX17: -3.067696e-13 | LY17: 100 | LZ17: 1.94716e-12 | MA17: -3.056014e-13 | MB17: 100 | MC17: 1.943482e-12 | MD17: -3.046234e-13 | ME17: 100 | MF17: 1.93994e-12 | MG17: -3.050131e-13 | MH17: 100 | MI17: 1.936774e-12 | MJ17: -3.036381e-13 | MK17: 100 | ML17: 1.932603e-12 | MM17: -3.033848e-13 | MN17: 100 | MO17: 1.9306e-12 | MP17: -3.029423e-13 | MQ17: 100 | MR17: 1.927709e-12 | MS17: -3.025405e-13 | MT17: 100 | MU17: 1.925963e-12 | MV17: -3.032835e-13 | MW17: 100 | MX17: 1.923791e-12 | MY17: -3.026328e-13 | MZ17: 100 | NA17: 1.921469e-12 | NB17: -3.030082e-13 | NC17: 100 | ND17: 1.919508e-12 | NE17: -3.014273e-13 | NF17: 100 | NG17: 1.916428e-12 | NH17: -3.019516e-13 | NI17: 100 | NJ17: 1.914733e-12 | NK17: -3.005859e-13 | NL17: 100 | NM17: 1.913022e-12 | NN17: -3.009759e-13 | NO17: 100 | NP17: 1.912179e-12 | NQ17: -3.001352e-13 | NR17: 100 | NS17: 1.910753e-12 | NT17: -3.003431e-13 | NU17: 100 | NV17: 1.909276e-12 | NW17: -3.004838e-13 | NX17: 100 | NY17: 1.90827e-12 | NZ17: -3.007751e-13 | OA17: 100 | OB17: 1.908133e-12 | OC17: -3.012731e-13 | OD17: 100 | OE17: 1.907064e-12 | OF17: -3.001638e-13 | OG17: 100 | OH17: 1.905913e-12 | OI17: -2.998418e-13 | OJ17: 100 | OK17: 1.904404e-12 | OL17: -2.996494e-13 | OM17: 100 | ON17: 1.902003e-12 | OO17: -2.992669e-13 | OP17: 100 | OQ17: 1.90153e-12 | OR17: -2.990653e-13 | OS17: 100 | OT17: 1.9004e-12 | OU17: -2.994586e-13 | OV17: 100 | OW17: 1.898964e-12 | OX17: -2.983848e-13 | OY17: 100 | OZ17: 1.898186e-12 | PA17: -2.991336e-13 | PB17: 100 | PC17: 1.897829e-12 | PD17: -2.994082e-13 | PE17: 100 | PF17: 1.897418e-12 | PG17: -2.985687e-13 | PH17: 100 | PI17: 1.895838e-12 | PJ17: -2.987886e-13 | PK17: 100 | PL17: 1.894472e-12 | PM17: -2.981286e-13 | PN17: 100 | PO17: 1.893236e-12 | PP17: -2.979724e-13 | PQ17: 100 | PR17: 1.891556e-12 | PS17: -2.976967e-13 | PT17: 100 | PU17: 1.890644e-12 | PV17: -2.982731e-13 | PW17: 100 | PX17: 1.888718e-12 | PY17: -2.975779e-13 | PZ17: 100 | QA17: 1.8917e-12 | QB17: -2.975496e-13 | QC17: 100 | QD17: 1.897684e-12 | QE17: -3.005317e-13 | QF17: 100 | QG17: 1.908011e-12 | QH17: -3.037731e-13 | QI17: 100 | QJ17: 1.920021e-12 | QK17: -3.065354e-13
A18: 125.89 | B18: 3.190092e-12 | C18: -3.325982e-13 | D18: 125.89 | E18: 3.172946e-12 | F18: -3.060582e-13 | G18: 125.89 | H18: 3.163302e-12 | I18: -3.052738e-13 | J18: 125.89 | K18: 3.148419e-12 | L18: -3.104638e-13 | M18: 125.89 | N18: 3.139007e-12 | O18: -3.120431e-13 | P18: 125.89 | Q18: 3.131509e-12 | R18: -3.110908e-13 | S18: 125.89 | T18: 3.127201e-12 | U18: -3.138531e-13 | V18: 125.89 | W18: 3.12307e-12 | X18: -3.130239e-13 | Y18: 125.89 | Z18: 3.119986e-12 | AA18: -3.129552e-13 | AB18: 125.89 | AC18: 3.117345e-12 | AD18: -3.122935e-13 | AE18: 125.89 | AF18: 3.11547e-12 | AG18: -3.141218e-13 | AH18: 125.89 | AI18: 3.113365e-12 | AJ18: -3.139698e-13 | AK18: 125.89 | AL18: 3.109707e-12 | AM18: -3.109938e-13 | AN18: 125.89 | AO18: 3.108969e-12 | AP18: -3.115224e-13 | AQ18: 125.89 | AR18: 3.108231e-12 | AS18: -3.120581e-13 | AT18: 125.89 | AU18: 3.107028e-12 | AV18: -3.117749e-13 | AW18: 125.89 | AX18: 3.105938e-12 | AY18: -3.117191e-13 | AZ18: 125.89 | BA18: 3.103163e-12 | BB18: -3.126168e-13 | BC18: 125.89 | BD18: 3.09574e-12 | BE18: -3.129052e-13 | BF18: 125.89 | BG18: 3.086639e-12 | BH18: -3.154639e-13 | BI18: 125.89 | BJ18: 3.078066e-12 | BK18: -3.182743e-13 | BL18: 125.89 | BM18: 3.066778e-12 | BN18: -3.165799e-13 | BO18: 125.89 | BP18: 3.055071e-12 | BQ18: -3.169391e-13 | BR18: 125.89 | BS18: 3.043846e-12 | BT18: -3.186466e-13 | BU18: 125.89 | BV18: 3.029099e-12 | BW18: -3.160425e-13 | BX18: 125.89 | BY18: 3.017058e-12 | BZ18: -3.161113e-13 | CA18: 125.89 | CB18: 3.002156e-12 | CC18: -3.165426e-13 | CD18: 125.89 | CE18: 2.989364e-12 | CF18: -3.166344e-13 | CG18: 125.89 | CH18: 2.973361e-12 | CI18: -3.136202e-13 | CJ18: 125.89 | CK18: 2.959288e-12 | CL18: -3.124588e-13 | CM18: 125.89 | CN18: 2.9439e-12 | CO18: -3.131013e-13 | CP18: 125.89 | CQ18: 2.985637e-12 | CR18: -3.380552e-13 | CS18: 125.89 | CT18: 2.914083e-12 | CU18: -3.084704e-13 | CV18: 125.89 | CW18: 2.898014e-12 | CX18: -3.064135e-13 | CY18: 125.89 | CZ18: 2.883086e-12 | DA18: -3.049562e-13 | DB18: 125.89 | DC18: 2.867233e-12 | DD18: -2.997263e-13 | DE18: 125.89 | DF18: 2.85125e-12 | DG18: -2.991546e-13 | DH18: 125.89 | DI18: 2.835879e-12 | DJ18: -2.946475e-13 | DK18: 125.89 | DL18: 2.816368e-12 | DM18: -2.912437e-13 | DN18: 125.89 | DO18: 2.80097e-12 | DP18: -2.884695e-13 | DQ18: 125.89 | DR18: 2.786207e-12 | DS18: -2.837825e-13 | DT18: 125.89 | DU18: 2.772062e-12 | DV18: -2.817812e-13 | DW18: 125.89 | DX18: 2.756377e-12 | DY18: -2.758866e-13 | DZ18: 125.89 | EA18: 2.74214e-12 | EB18: -2.707307e-13 | EC18: 125.89 | ED18: 2.726193e-12 | EE18: -2.667437e-13 | EF18: 125.89 | EG18: 2.702796e-12 | EH18: -2.576385e-13 | EI18: 125.89 | EJ18: 2.686252e-12 | EK18: -2.503572e-13 | EL18: 125.89 | EM18: 2.670182e-12 | EN18: -2.425619e-13 | EO18: 125.89 | EP18: 2.654459e-12 | EQ18: -2.361448e-13 | ER18: 125.89 | ES18: 2.640894e-12 | ET18: -2.294281e-13 | EU18: 125.89 | EV18: 2.627647e-12 | EW18: -2.239435e-13 | EX18: 125.89 | EY18: 2.614193e-12 | EZ18: -2.165387e-13 | FA18: 125.89 | FB18: 2.601997e-12 | FC18: -2.112691e-13 | FD18: 125.89 | FE18: 2.595069e-12 | FF18: -2.032215e-13 | FG18: 125.89 | FH18: 2.590403e-12 | FI18: -2.0086e-13 | FJ18: 125.89 | FK18: 2.858828e-12 | FL18: -2.833694e-13 | FM18: 125.89 | FN18: 2.772495e-12 | FO18: -2.79049e-13 | FP18: 125.89 | FQ18: 2.771028e-12 | FR18: -2.785629e-13 | FS18: 125.89 | FT18: 2.778716e-12 | FU18: -2.805801e-13 | FV18: 125.89 | FW18: 2.803843e-12 | FX18: -2.860517e-13 | FY18: 125.89 | FZ18: 2.832743e-12 | GA18: -2.908173e-13 | GB18: 125.89 | GC18: 2.845259e-12 | GD18: -2.900966e-13 | GE18: 125.89 | GF18: 2.827065e-12 | GG18: -2.898231e-13 | GH18: 125.89 | GI18: 2.770633e-12 | GJ18: -2.883506e-13 | GK18: 125.89 | GL18: 2.681648e-12 | GM18: -2.656317e-13 | GN18: 125.89 | GO18: 2.579813e-12 | GP18: -2.075136e-13 | GQ18: 125.89 | GR18: 2.52135e-12 | GS18: -1.523186e-13 | GT18: 125.89 | GU18: 2.49203e-12 | GV18: -1.199438e-13 | GW18: 125.89 | GX18: 2.474173e-12 | GY18: -1.05307e-13 | GZ18: 125.89 | HA18: 2.462045e-12 | HB18: -9.73168e-14 | HC18: 125.89 | HD18: 2.451024e-12 | HE18: -8.970261e-14 | HF18: 125.89 | HG18: 2.441464e-12 | HH18: -8.519325e-14 | HI18: 125.89 | HJ18: 2.431136e-12 | HK18: -8.049964e-14 | HL18: 125.89 | HM18: 2.421388e-12 | HN18: -7.813324e-14 | HO18: 125.89 | HP18: 2.414112e-12 | HQ18: -7.731711e-14 | HR18: 125.89 | HS18: 2.406641e-12 | HT18: -7.878281e-14 | HU18: 125.89 | HV18: 2.398627e-12 | HW18: -8.346873e-14 | HX18: 125.89 | HY18: 2.391947e-12 | HZ18: -9.132789e-14 | IA18: 125.89 | IB18: 2.382932e-12 | IC18: -1.003387e-13 | ID18: 125.89 | IE18: 2.374737e-12 | IF18: -1.13336e-13 | IG18: 125.89 | IH18: 2.363646e-12 | II18: -1.297909e-13 | IJ18: 125.89 | IK18: 2.349552e-12 | IL18: -1.507629e-13 | IM18: 125.89 | IN18: 2.331015e-12 | IO18: -1.751622e-13 | IP18: 125.89 | IQ18: 2.309634e-12 | IR18: -1.973099e-13 | IS18: 125.89 | IT18: 2.288348e-12 | IU18: -2.181933e-13 | IV18: 125.89 | IW18: 2.263129e-12 | IX18: -2.380687e-13 | IY18: 125.89 | IZ18: 2.235789e-12 | JA18: -2.564882e-13 | JB18: 125.89 | JC18: 2.209024e-12 | JD18: -2.716592e-13 | JE18: 125.89 | JF18: 2.181095e-12 | JG18: -2.856558e-13 | JH18: 125.89 | JI18: 2.153245e-12 | JJ18: -2.950601e-13 | JK18: 125.89 | JL18: 2.126608e-12 | JM18: -3.027062e-13 | JN18: 125.89 | JO18: 2.101921e-12 | JP18: -3.100463e-13 | JQ18: 125.89 | JR18: 2.079944e-12 | JS18: -3.145835e-13 | JT18: 125.89 | JU18: 2.05963e-12 | JV18: -3.167037e-13 | JW18: 125.89 | JX18: 2.041891e-12 | JY18: -3.178797e-13 | JZ18: 125.89 | KA18: 2.026681e-12 | KB18: -3.197204e-13 | KC18: 125.89 | KD18: 2.012388e-12 | KE18: -3.20152e-13 | KF18: 125.89 | KG18: 1.998841e-12 | KH18: -3.204194e-13 | KI18: 125.89 | KJ18: 1.986266e-12 | KK18: -3.200764e-13 | KL18: 125.89 | KM18: 1.977376e-12 | KN18: -3.200466e-13 | KO18: 125.89 | KP18: 1.969448e-12 | KQ18: -3.202373e-13 | KR18: 125.89 | KS18: 1.961129e-12 | KT18: -3.18913e-13 | KU18: 125.89 | KV18: 1.953281e-12 | KW18: -3.185502e-13 | KX18: 125.89 | KY18: 1.945855e-12 | KZ18: -3.173963e-13 | LA18: 125.89 | LB18: 1.937819e-12 | LC18: -3.169922e-13 | LD18: 125.89 | LE18: 1.9307e-12 | LF18: -3.162328e-13 | LG18: 125.89 | LH18: 1.925481e-12 | LI18: -3.151772e-13 | LJ18: 125.89 | LK18: 1.919758e-12 | LL18: -3.142974e-13 | LM18: 125.89 | LN18: 1.915559e-12 | LO18: -3.129176e-13 | LP18: 125.89 | LQ18: 1.911497e-12 | LR18: -3.127764e-13 | LS18: 125.89 | LT18: 1.908146e-12 | LU18: -3.117754e-13 | LV18: 125.89 | LW18: 1.90339e-12 | LX18: -3.11391e-13 | LY18: 125.89 | LZ18: 1.898271e-12 | MA18: -3.099504e-13 | MB18: 125.89 | MC18: 1.895638e-12 | MD18: -3.09714e-13 | ME18: 125.89 | MF18: 1.891971e-12 | MG18: -3.098337e-13 | MH18: 125.89 | MI18: 1.888809e-12 | MJ18: -3.077622e-13 | MK18: 125.89 | ML18: 1.885534e-12 | MM18: -3.084327e-13 | MN18: 125.89 | MO18: 1.882911e-12 | MP18: -3.068231e-13 | MQ18: 125.89 | MR18: 1.879857e-12 | MS18: -3.068909e-13 | MT18: 125.89 | MU18: 1.878715e-12 | MV18: -3.067798e-13 | MW18: 125.89 | MX18: 1.876788e-12 | MY18: -3.055908e-13 | MZ18: 125.89 | NA18: 1.87407e-12 | NB18: -3.050732e-13 | NC18: 125.89 | ND18: 1.872179e-12 | NE18: -3.041711e-13 | NF18: 125.89 | NG18: 1.869277e-12 | NH18: -3.044295e-13 | NI18: 125.89 | NJ18: 1.86761e-12 | NK18: -3.037826e-13 | NL18: 125.89 | NM18: 1.865928e-12 | NN18: -3.037274e-13 | NO18: 125.89 | NP18: 1.865124e-12 | NQ18: -3.037266e-13 | NR18: 125.89 | NS18: 1.863366e-12 | NT18: -3.032875e-13 | NU18: 125.89 | NV18: 1.862351e-12 | NW18: -3.030371e-13 | NX18: 125.89 | NY18: 1.861924e-12 | NZ18: -3.025383e-13 | OA18: 125.89 | OB18: 1.861051e-12 | OC18: -3.030181e-13 | OD18: 125.89 | OE18: 1.859701e-12 | OF18: -3.028922e-13 | OG18: 125.89 | OH18: 1.85923e-12 | OI18: -3.029715e-13 | OJ18: 125.89 | OK18: 1.857785e-12 | OL18: -3.028719e-13 | OM18: 125.89 | ON18: 1.856094e-12 | OO18: -3.022765e-13 | OP18: 125.89 | OQ18: 1.854521e-12 | OR18: -3.022215e-13 | OS18: 125.89 | OT18: 1.853013e-12 | OU18: -3.010115e-13 | OV18: 125.89 | OW18: 1.852273e-12 | OX18: -3.006765e-13 | OY18: 125.89 | OZ18: 1.851428e-12 | PA18: -3.003948e-13 | PB18: 125.89 | PC18: 1.851313e-12 | PD18: -3.009139e-13 | PE18: 125.89 | PF18: 1.850706e-12 | PG18: -3.009751e-13 | PH18: 125.89 | PI18: 1.84909e-12 | PJ18: -3.009036e-13 | PK18: 125.89 | PL18: 1.848151e-12 | PM18: -3.001222e-13 | PN18: 125.89 | PO18: 1.846014e-12 | PP18: -2.997889e-13 | PQ18: 125.89 | PR18: 1.845192e-12 | PS18: -2.98932e-13 | PT18: 125.89 | PU18: 1.844013e-12 | PV18: -2.990635e-13 | PW18: 125.89 | PX18: 1.842809e-12 | PY18: -2.987497e-13 | PZ18: 125.89 | QA18: 1.845192e-12 | QB18: -3.001557e-13 | QC18: 125.89 | QD18: 1.851346e-12 | QE18: -3.028326e-13 | QF18: 125.89 | QG18: 1.860846e-12 | QH18: -3.064509e-13 | QI18: 125.89 | QJ18: 1.871136e-12 | QK18: -3.094945e-13
A19: 158.49 | B19: 3.135531e-12 | C19: -3.40527e-13 | D19: 158.49 | E19: 3.122966e-12 | F19: -3.166335e-13 | G19: 158.49 | H19: 3.11494e-12 | I19: -3.138755e-13 | J19: 158.49 | K19: 3.098105e-12 | L19: -3.167063e-13 | M19: 158.49 | N19: 3.089021e-12 | O19: -3.201775e-13 | P19: 158.49 | Q19: 3.079209e-12 | R19: -3.198506e-13 | S19: 158.49 | T19: 3.073598e-12 | U19: -3.182945e-13 | V19: 158.49 | W19: 3.069607e-12 | X19: -3.20202e-13 | Y19: 158.49 | Z19: 3.068196e-12 | AA19: -3.218322e-13 | AB19: 158.49 | AC19: 3.06676e-12 | AD19: -3.190022e-13 | AE19: 158.49 | AF19: 3.062869e-12 | AG19: -3.191299e-13 | AH19: 158.49 | AI19: 3.062456e-12 | AJ19: -3.169594e-13 | AK19: 158.49 | AL19: 3.05971e-12 | AM19: -3.167316e-13 | AN19: 158.49 | AO19: 3.054894e-12 | AP19: -3.17692e-13 | AQ19: 158.49 | AR19: 3.055194e-12 | AS19: -3.194549e-13 | AT19: 158.49 | AU19: 3.054969e-12 | AV19: -3.191576e-13 | AW19: 158.49 | AX19: 3.05411e-12 | AY19: -3.204928e-13 | AZ19: 158.49 | BA19: 3.05081e-12 | BB19: -3.170541e-13 | BC19: 158.49 | BD19: 3.041685e-12 | BE19: -3.213566e-13 | BF19: 158.49 | BG19: 3.035922e-12 | BH19: -3.185134e-13 | BI19: 158.49 | BJ19: 3.024891e-12 | BK19: -3.205855e-13 | BL19: 158.49 | BM19: 3.014808e-12 | BN19: -3.202999e-13 | BO19: 158.49 | BP19: 3.002279e-12 | BQ19: -3.191635e-13 | BR19: 158.49 | BS19: 2.988101e-12 | BT19: -3.180534e-13 | BU19: 158.49 | BV19: 2.975454e-12 | BW19: -3.193407e-13 | BX19: 158.49 | BY19: 2.963392e-12 | BZ19: -3.187997e-13 | CA19: 158.49 | CB19: 2.948291e-12 | CC19: -3.157632e-13 | CD19: 158.49 | CE19: 2.93644e-12 | CF19: -3.119837e-13 | CG19: 158.49 | CH19: 2.921174e-12 | CI19: -3.102496e-13 | CJ19: 158.49 | CK19: 2.905301e-12 | CL19: -3.092572e-13 | CM19: 158.49 | CN19: 2.889955e-12 | CO19: -3.066157e-13 | CP19: 158.49 | CQ19: 2.923473e-12 | CR19: -3.350819e-13 | CS19: 158.49 | CT19: 2.861726e-12 | CU19: -3.028142e-13 | CV19: 158.49 | CW19: 2.845629e-12 | CX19: -3.012299e-13 | CY19: 158.49 | CZ19: 2.82992e-12 | DA19: -2.951894e-13 | DB19: 158.49 | DC19: 2.815917e-12 | DD19: -2.916158e-13 | DE19: 158.49 | DF19: 2.802341e-12 | DG19: -2.897979e-13 | DH19: 158.49 | DI19: 2.785666e-12 | DJ19: -2.850945e-13 | DK19: 158.49 | DL19: 2.767673e-12 | DM19: -2.801657e-13 | DN19: 158.49 | DO19: 2.7523e-12 | DP19: -2.750166e-13 | DQ19: 158.49 | DR19: 2.738892e-12 | DS19: -2.724709e-13 | DT19: 158.49 | DU19: 2.724219e-12 | DV19: -2.658639e-13 | DW19: 158.49 | DX19: 2.712255e-12 | DY19: -2.628033e-13 | DZ19: 158.49 | EA19: 2.69886e-12 | EB19: -2.565216e-13 | EC19: 158.49 | ED19: 2.684789e-12 | EE19: -2.4985e-13 | EF19: 158.49 | EG19: 2.66259e-12 | EH19: -2.396132e-13 | EI19: 158.49 | EJ19: 2.647306e-12 | EK19: -2.326538e-13 | EL19: 158.49 | EM19: 2.633698e-12 | EN19: -2.26004e-13 | EO19: 158.49 | EP19: 2.620405e-12 | EQ19: -2.166368e-13 | ER19: 158.49 | ES19: 2.607217e-12 | ET19: -2.128445e-13 | EU19: 158.49 | EV19: 2.595899e-12 | EW19: -2.042095e-13 | EX19: 158.49 | EY19: 2.583987e-12 | EZ19: -1.986113e-13 | FA19: 158.49 | FB19: 2.573362e-12 | FC19: -1.914107e-13 | FD19: 158.49 | FE19: 2.568261e-12 | FF19: -1.874639e-13 | FG19: 158.49 | FH19: 2.562145e-12 | FI19: -1.842035e-13 | FJ19: 158.49 | FK19: 2.807644e-12 | FL19: -2.821045e-13 | FM19: 158.49 | FN19: 2.726382e-12 | FO19: -2.668615e-13 | FP19: 158.49 | FQ19: 2.725618e-12 | FR19: -2.661016e-13 | FS19: 158.49 | FT19: 2.731973e-12 | FU19: -2.702327e-13 | FV19: 158.49 | FW19: 2.754302e-12 | FX19: -2.789485e-13 | FY19: 158.49 | FZ19: 2.782396e-12 | GA19: -2.874104e-13 | GB19: 158.49 | GC19: 2.791084e-12 | GD19: -2.924411e-13 | GE19: 158.49 | GF19: 2.772244e-12 | GG19: -2.896651e-13 | GH19: 158.49 | GI19: 2.71976e-12 | GJ19: -2.796285e-13 | GK19: 158.49 | GL19: 2.636759e-12 | GM19: -2.485673e-13 | GN19: 158.49 | GO19: 2.552503e-12 | GP19: -1.868065e-13 | GQ19: 158.49 | GR19: 2.501747e-12 | GS19: -1.357139e-13 | GT19: 158.49 | GU19: 2.477456e-12 | GV19: -1.076114e-13 | GW19: 158.49 | GX19: 2.461596e-12 | GY19: -9.718623e-14 | GZ19: 158.49 | HA19: 2.452233e-12 | HB19: -8.931438e-14 | HC19: 158.49 | HD19: 2.440399e-12 | HE19: -8.41136e-14 | HF19: 158.49 | HG19: 2.432394e-12 | HH19: -7.966622e-14 | HI19: 158.49 | HJ19: 2.421963e-12 | HK19: -7.716135e-14 | HL19: 158.49 | HM19: 2.414304e-12 | HN19: -7.637665e-14 | HO19: 158.49 | HP19: 2.405826e-12 | HQ19: -7.649394e-14 | HR19: 158.49 | HS19: 2.398462e-12 | HT19: -7.981873e-14 | HU19: 158.49 | HV19: 2.390302e-12 | HW19: -8.594536e-14 | HX19: 158.49 | HY19: 2.383093e-12 | HZ19: -9.390653e-14 | IA19: 158.49 | IB19: 2.374371e-12 | IC19: -1.084936e-13 | ID19: 158.49 | IE19: 2.363642e-12 | IF19: -1.237301e-13 | IG19: 158.49 | IH19: 2.35066e-12 | II19: -1.449071e-13 | IJ19: 158.49 | IK19: 2.332606e-12 | IL19: -1.68837e-13 | IM19: 158.49 | IN19: 2.311051e-12 | IO19: -1.968242e-13 | IP19: 158.49 | IQ19: 2.284257e-12 | IR19: -2.212456e-13 | IS19: 158.49 | IT19: 2.257937e-12 | IU19: -2.427156e-13 | IV19: 158.49 | IW19: 2.228573e-12 | IX19: -2.63881e-13 | IY19: 158.49 | IZ19: 2.1976e-12 | JA19: -2.811973e-13 | JB19: 158.49 | JC19: 2.167726e-12 | JD19: -2.952676e-13 | JE19: 158.49 | JF19: 2.137137e-12 | JG19: -3.063205e-13 | JH19: 158.49 | JI19: 2.105808e-12 | JJ19: -3.156567e-13 | JK19: 158.49 | JL19: 2.078014e-12 | JM19: -3.225307e-13 | JN19: 158.49 | JO19: 2.052112e-12 | JP19: -3.274091e-13 | JQ19: 158.49 | JR19: 2.028191e-12 | JS19: -3.305214e-13 | JT19: 158.49 | JU19: 2.007442e-12 | JV19: -3.310781e-13 | JW19: 158.49 | JX19: 1.989928e-12 | JY19: -3.314087e-13 | JZ19: 158.49 | KA19: 1.974845e-12 | KB19: -3.319642e-13 | KC19: 158.49 | KD19: 1.960831e-12 | KE19: -3.317006e-13 | KF19: 158.49 | KG19: 1.946942e-12 | KH19: -3.309025e-13 | KI19: 158.49 | KJ19: 1.935037e-12 | KK19: -3.285814e-13 | KL19: 158.49 | KM19: 1.926632e-12 | KN19: -3.283084e-13 | KO19: 158.49 | KP19: 1.918594e-12 | KQ19: -3.265083e-13 | KR19: 158.49 | KS19: 1.910477e-12 | KT19: -3.266066e-13 | KU19: 158.49 | KV19: 1.902718e-12 | KW19: -3.253077e-13 | KX19: 158.49 | KY19: 1.895084e-12 | KZ19: -3.225116e-13 | LA19: 158.49 | LB19: 1.887051e-12 | LC19: -3.224902e-13 | LD19: 158.49 | LE19: 1.880076e-12 | LF19: -3.20842e-13 | LG19: 158.49 | LH19: 1.875309e-12 | LI19: -3.20563e-13 | LJ19: 158.49 | LK19: 1.871252e-12 | LL19: -3.183335e-13 | LM19: 158.49 | LN19: 1.86592e-12 | LO19: -3.186154e-13 | LP19: 158.49 | LQ19: 1.862262e-12 | LR19: -3.178537e-13 | LS19: 158.49 | LT19: 1.859275e-12 | LU19: -3.157572e-13 | LV19: 158.49 | LW19: 1.853483e-12 | LX19: -3.156293e-13 | LY19: 158.49 | LZ19: 1.849858e-12 | MA19: -3.145004e-13 | MB19: 158.49 | MC19: 1.846537e-12 | MD19: -3.126542e-13 | ME19: 158.49 | MF19: 1.844393e-12 | MG19: -3.115973e-13 | MH19: 158.49 | MI19: 1.84032e-12 | MJ19: -3.107148e-13 | MK19: 158.49 | ML19: 1.838424e-12 | MM19: -3.102579e-13 | MN19: 158.49 | MO19: 1.834821e-12 | MP19: -3.101023e-13 | MQ19: 158.49 | MR19: 1.832409e-12 | MS19: -3.091729e-13 | MT19: 158.49 | MU19: 1.830339e-12 | MV19: -3.080148e-13 | MW19: 158.49 | MX19: 1.829075e-12 | MY19: -3.078926e-13 | MZ19: 158.49 | NA19: 1.82697e-12 | NB19: -3.072794e-13 | NC19: 158.49 | ND19: 1.823879e-12 | NE19: -3.071331e-13 | NF19: 158.49 | NG19: 1.820865e-12 | NH19: -3.056513e-13 | NI19: 158.49 | NJ19: 1.820293e-12 | NK19: -3.053317e-13 | NL19: 158.49 | NM19: 1.818644e-12 | NN19: -3.060562e-13 | NO19: 158.49 | NP19: 1.81833e-12 | NQ19: -3.05514e-13 | NR19: 158.49 | NS19: 1.817493e-12 | NT19: -3.04205e-13 | NU19: 158.49 | NV19: 1.816042e-12 | NW19: -3.051985e-13 | NX19: 158.49 | NY19: 1.814655e-12 | NZ19: -3.046656e-13 | OA19: 158.49 | OB19: 1.814811e-12 | OC19: -3.037993e-13 | OD19: 158.49 | OE19: 1.813298e-12 | OF19: -3.029186e-13 | OG19: 158.49 | OH19: 1.812253e-12 | OI19: -3.045048e-13 | OJ19: 158.49 | OK19: 1.811552e-12 | OL19: -3.03548e-13 | OM19: 158.49 | ON19: 1.809666e-12 | OO19: -3.033523e-13 | OP19: 158.49 | OQ19: 1.80814e-12 | OR19: -3.021254e-13 | OS19: 158.49 | OT19: 1.806535e-12 | OU19: -3.015491e-13 | OV19: 158.49 | OW19: 1.805912e-12 | OX19: -3.024366e-13 | OY19: 158.49 | OZ19: 1.805207e-12 | PA19: -3.011002e-13 | PB19: 158.49 | PC19: 1.805516e-12 | PD19: -3.017424e-13 | PE19: 158.49 | PF19: 1.804841e-12 | PG19: -3.015494e-13 | PH19: 158.49 | PI19: 1.803083e-12 | PJ19: -3.007202e-13 | PK19: 158.49 | PL19: 1.801249e-12 | PM19: -3.001262e-13 | PN19: 158.49 | PO19: 1.799878e-12 | PP19: -3.005434e-13 | PQ19: 158.49 | PR19: 1.799766e-12 | PS19: -3.005644e-13 | PT19: 158.49 | PU19: 1.798271e-12 | PV19: -2.989982e-13 | PW19: 158.49 | PX19: 1.796612e-12 | PY19: -2.986403e-13 | PZ19: 158.49 | QA19: 1.79943e-12 | QB19: -2.997029e-13 | QC19: 158.49 | QD19: 1.80563e-12 | QE19: -3.028444e-13 | QF19: 158.49 | QG19: 1.812727e-12 | QH19: -3.068313e-13 | QI19: 158.49 | QJ19: 1.823216e-12 | QK19: -3.102751e-13
A20: 199.53 | B20: 3.082278e-12 | C20: -3.380368e-13 | D20: 199.53 | E20: 3.068477e-12 | F20: -3.218965e-13 | G20: 199.53 | H20: 3.058263e-12 | I20: -3.213209e-13 | J20: 199.53 | K20: 3.042443e-12 | L20: -3.219871e-13 | M20: 199.53 | N20: 3.03282e-12 | O20: -3.238903e-13 | P20: 199.53 | Q20: 3.025835e-12 | R20: -3.215044e-13 | S20: 199.53 | T20: 3.020567e-12 | U20: -3.212013e-13 | V20: 199.53 | W20: 3.016753e-12 | X20: -3.229902e-13 | Y20: 199.53 | Z20: 3.012825e-12 | AA20: -3.226112e-13 | AB20: 199.53 | AC20: 3.00986e-12 | AD20: -3.221805e-13 | AE20: 199.53 | AF20: 3.006479e-12 | AG20: -3.204405e-13 | AH20: 199.53 | AI20: 3.004984e-12 | AJ20: -3.21395e-13 | AK20: 199.53 | AL20: 3.002452e-12 | AM20: -3.179363e-13 | AN20: 199.53 | AO20: 3.002504e-12 | AP20: -3.204141e-13 | AQ20: 199.53 | AR20: 3.00209e-12 | AS20: -3.196234e-13 | AT20: 199.53 | AU20: 2.9989e-12 | AV20: -3.203365e-13 | AW20: 199.53 | AX20: 2.998505e-12 | AY20: -3.189217e-13 | AZ20: 199.53 | BA20: 2.994956e-12 | BB20: -3.202528e-13 | BC20: 199.53 | BD20: 2.988701e-12 | BE20: -3.196428e-13 | BF20: 199.53 | BG20: 2.980148e-12 | BH20: -3.207103e-13 | BI20: 199.53 | BJ20: 2.971072e-12 | BK20: -3.196421e-13 | BL20: 199.53 | BM20: 2.959934e-12 | BN20: -3.188938e-13 | BO20: 199.53 | BP20: 2.946786e-12 | BQ20: -3.168904e-13 | BR20: 199.53 | BS20: 2.933593e-12 | BT20: -3.161596e-13 | BU20: 199.53 | BV20: 2.921579e-12 | BW20: -3.130913e-13 | BX20: 199.53 | BY20: 2.90904e-12 | BZ20: -3.129369e-13 | CA20: 199.53 | CB20: 2.895371e-12 | CC20: -3.114485e-13 | CD20: 199.53 | CE20: 2.881815e-12 | CF20: -3.075572e-13 | CG20: 199.53 | CH20: 2.866094e-12 | CI20: -3.054404e-13 | CJ20: 199.53 | CK20: 2.852561e-12 | CL20: -3.023083e-13 | CM20: 199.53 | CN20: 2.838372e-12 | CO20: -2.9798e-13 | CP20: 199.53 | CQ20: 2.865875e-12 | CR20: -3.218505e-13 | CS20: 199.53 | CT20: 2.809247e-12 | CU20: -2.916153e-13 | CV20: 199.53 | CW20: 2.796338e-12 | CX20: -2.881838e-13 | CY20: 199.53 | CZ20: 2.780762e-12 | DA20: -2.832479e-13 | DB20: 199.53 | DC20: 2.767603e-12 | DD20: -2.780213e-13 | DE20: 199.53 | DF20: 2.751874e-12 | DG20: -2.740656e-13 | DH20: 199.53 | DI20: 2.7393e-12 | DJ20: -2.683169e-13 | DK20: 199.53 | DL20: 2.722721e-12 | DM20: -2.640823e-13 | DN20: 199.53 | DO20: 2.709288e-12 | DP20: -2.598123e-13 | DQ20: 199.53 | DR20: 2.695376e-12 | DS20: -2.538798e-13 | DT20: 199.53 | DU20: 2.684304e-12 | DV20: -2.498881e-13 | DW20: 199.53 | DX20: 2.671123e-12 | DY20: -2.439141e-13 | DZ20: 199.53 | EA20: 2.658546e-12 | EB20: -2.373275e-13 | EC20: 199.53 | ED20: 2.646756e-12 | EE20: -2.32037e-13 | EF20: 199.53 | EG20: 2.628673e-12 | EH20: -2.216269e-13 | EI20: 199.53 | EJ20: 2.614795e-12 | EK20: -2.130734e-13 | EL20: 199.53 | EM20: 2.600621e-12 | EN20: -2.066742e-13 | EO20: 199.53 | EP20: 2.588282e-12 | EQ20: -2.004368e-13 | ER20: 199.53 | ES20: 2.577692e-12 | ET20: -1.94018e-13 | EU20: 199.53 | EV20: 2.566781e-12 | EW20: -1.874495e-13 | EX20: 199.53 | EY20: 2.554298e-12 | EZ20: -1.819907e-13 | FA20: 199.53 | FB20: 2.547607e-12 | FC20: -1.754188e-13 | FD20: 199.53 | FE20: 2.542315e-12 | FF20: -1.701524e-13 | FG20: 199.53 | FH20: 2.53834e-12 | FI20: -1.673837e-13 | FJ20: 199.53 | FK20: 2.758429e-12 | FL20: -2.765655e-13 | FM20: 199.53 | FN20: 2.681751e-12 | FO20: -2.526115e-13 | FP20: 199.53 | FQ20: 2.681034e-12 | FR20: -2.505323e-13 | FS20: 199.53 | FT20: 2.686675e-12 | FU20: -2.545242e-13 | FV20: 199.53 | FW20: 2.705672e-12 | FX20: -2.666751e-13 | FY20: 199.53 | FZ20: 2.728385e-12 | GA20: -2.779115e-13 | GB20: 199.53 | GC20: 2.739693e-12 | GD20: -2.830803e-13 | GE20: 199.53 | GF20: 2.721124e-12 | GG20: -2.805089e-13 | GH20: 199.53 | GI20: 2.670122e-12 | GJ20: -2.635104e-13 | GK20: 199.53 | GL20: 2.599655e-12 | GM20: -2.253762e-13 | GN20: 199.53 | GO20: 2.528088e-12 | GP20: -1.666293e-13 | GQ20: 199.53 | GR20: 2.486518e-12 | GS20: -1.211442e-13 | GT20: 199.53 | GU20: 2.466449e-12 | GV20: -9.801171e-14 | GW20: 199.53 | GX20: 2.451613e-12 | GY20: -8.781413e-14 | GZ20: 199.53 | HA20: 2.441042e-12 | HB20: -8.172704e-14 | HC20: 199.53 | HD20: 2.43254e-12 | HE20: -7.69683e-14 | HF20: 199.53 | HG20: 2.422749e-12 | HH20: -7.475519e-14 | HI20: 199.53 | HJ20: 2.413695e-12 | HK20: -7.252416e-14 | HL20: 199.53 | HM20: 2.405999e-12 | HN20: -7.302551e-14 | HO20: 199.53 | HP20: 2.398454e-12 | HQ20: -7.537399e-14 | HR20: 199.53 | HS20: 2.390321e-12 | HT20: -8.066223e-14 | HU20: 199.53 | HV20: 2.38339e-12 | HW20: -8.842953e-14 | HX20: 199.53 | HY20: 2.374449e-12 | HZ20: -1.012957e-13 | IA20: 199.53 | IB20: 2.363823e-12 | IC20: -1.181069e-13 | ID20: 199.53 | IE20: 2.35132e-12 | IF20: -1.374153e-13 | IG20: 199.53 | IH20: 2.33615e-12 | II20: -1.621761e-13 | IJ20: 199.53 | IK20: 2.313431e-12 | IL20: -1.896056e-13 | IM20: 199.53 | IN20: 2.285864e-12 | IO20: -2.195159e-13 | IP20: 199.53 | IQ20: 2.255571e-12 | IR20: -2.459455e-13 | IS20: 199.53 | IT20: 2.223104e-12 | IU20: -2.698482e-13 | IV20: 199.53 | IW20: 2.188828e-12 | IX20: -2.895743e-13 | IY20: 199.53 | IZ20: 2.153956e-12 | JA20: -3.064745e-13 | JB20: 199.53 | JC20: 2.120827e-12 | JD20: -3.19041e-13 | JE20: 199.53 | JF20: 2.086386e-12 | JG20: -3.280093e-13 | JH20: 199.53 | JI20: 2.05543e-12 | JJ20: -3.354702e-13 | JK20: 199.53 | JL20: 2.024502e-12 | JM20: -3.393522e-13 | JN20: 199.53 | JO20: 1.997655e-12 | JP20: -3.415812e-13 | JQ20: 199.53 | JR20: 1.973937e-12 | JS20: -3.431039e-13 | JT20: 199.53 | JU20: 1.952927e-12 | JV20: -3.425027e-13 | JW20: 199.53 | JX20: 1.935315e-12 | JY20: -3.413431e-13 | JZ20: 199.53 | KA20: 1.921357e-12 | KB20: -3.407449e-13 | KC20: 199.53 | KD20: 1.906003e-12 | KE20: -3.390078e-13 | KF20: 199.53 | KG20: 1.892858e-12 | KH20: -3.366301e-13 | KI20: 199.53 | KJ20: 1.881334e-12 | KK20: -3.356687e-13 | KL20: 199.53 | KM20: 1.872641e-12 | KN20: -3.334295e-13 | KO20: 199.53 | KP20: 1.864585e-12 | KQ20: -3.317816e-13 | KR20: 199.53 | KS20: 1.857411e-12 | KT20: -3.307855e-13 | KU20: 199.53 | KV20: 1.850364e-12 | KW20: -3.294679e-13 | KX20: 199.53 | KY20: 1.843117e-12 | KZ20: -3.278332e-13 | LA20: 199.53 | LB20: 1.835838e-12 | LC20: -3.248077e-13 | LD20: 199.53 | LE20: 1.829404e-12 | LF20: -3.239408e-13 | LG20: 199.53 | LH20: 1.82449e-12 | LI20: -3.220506e-13 | LJ20: 199.53 | LK20: 1.820299e-12 | LL20: -3.21013e-13 | LM20: 199.53 | LN20: 1.815869e-12 | LO20: -3.199422e-13 | LP20: 199.53 | LQ20: 1.81231e-12 | LR20: -3.184012e-13 | LS20: 199.53 | LT20: 1.808341e-12 | LU20: -3.170491e-13 | LV20: 199.53 | LW20: 1.804532e-12 | LX20: -3.161739e-13 | LY20: 199.53 | LZ20: 1.800811e-12 | MA20: -3.152268e-13 | MB20: 199.53 | MC20: 1.797443e-12 | MD20: -3.143354e-13 | ME20: 199.53 | MF20: 1.794509e-12 | MG20: -3.130125e-13 | MH20: 199.53 | MI20: 1.792343e-12 | MJ20: -3.120355e-13 | MK20: 199.53 | ML20: 1.7887e-12 | MM20: -3.109089e-13 | MN20: 199.53 | MO20: 1.786452e-12 | MP20: -3.09596e-13 | MQ20: 199.53 | MR20: 1.784561e-12 | MS20: -3.088943e-13 | MT20: 199.53 | MU20: 1.782612e-12 | MV20: -3.084909e-13 | MW20: 199.53 | MX20: 1.780563e-12 | MY20: -3.08256e-13 | MZ20: 199.53 | NA20: 1.778977e-12 | NB20: -3.072258e-13 | NC20: 199.53 | ND20: 1.776866e-12 | NE20: -3.063407e-13 | NF20: 199.53 | NG20: 1.774412e-12 | NH20: -3.059524e-13 | NI20: 199.53 | NJ20: 1.773759e-12 | NK20: -3.054835e-13 | NL20: 199.53 | NM20: 1.77239e-12 | NN20: -3.050964e-13 | NO20: 199.53 | NP20: 1.771122e-12 | NQ20: -3.049131e-13 | NR20: 199.53 | NS20: 1.769875e-12 | NT20: -3.050374e-13 | NU20: 199.53 | NV20: 1.769238e-12 | NW20: -3.039322e-13 | NX20: 199.53 | NY20: 1.76758e-12 | NZ20: -3.037776e-13 | OA20: 199.53 | OB20: 1.767682e-12 | OC20: -3.034887e-13 | OD20: 199.53 | OE20: 1.766462e-12 | OF20: -3.037961e-13 | OG20: 199.53 | OH20: 1.765328e-12 | OI20: -3.033815e-13 | OJ20: 199.53 | OK20: 1.764764e-12 | OL20: -3.025637e-13 | OM20: 199.53 | ON20: 1.762419e-12 | OO20: -3.016086e-13 | OP20: 199.53 | OQ20: 1.761337e-12 | OR20: -3.014265e-13 | OS20: 199.53 | OT20: 1.760951e-12 | OU20: -3.011971e-13 | OV20: 199.53 | OW20: 1.760247e-12 | OX20: -3.009068e-13 | OY20: 199.53 | OZ20: 1.758891e-12 | PA20: -3.01149e-13 | PB20: 199.53 | PC20: 1.759385e-12 | PD20: -3.004678e-13 | PE20: 199.53 | PF20: 1.758496e-12 | PG20: -3.005906e-13 | PH20: 199.53 | PI20: 1.756819e-12 | PJ20: -3.001905e-13 | PK20: 199.53 | PL20: 1.756045e-12 | PM20: -2.998717e-13 | PN20: 199.53 | PO20: 1.754803e-12 | PP20: -2.988496e-13 | PQ20: 199.53 | PR20: 1.753766e-12 | PS20: -2.986878e-13 | PT20: 199.53 | PU20: 1.752551e-12 | PV20: -2.979594e-13 | PW20: 199.53 | PX20: 1.751436e-12 | PY20: -2.981477e-13 | PZ20: 199.53 | QA20: 1.753597e-12 | QB20: -2.988093e-13 | QC20: 199.53 | QD20: 1.758382e-12 | QE20: -3.016335e-13 | QF20: 199.53 | QG20: 1.765601e-12 | QH20: -3.054944e-13 | QI20: 199.53 | QJ20: 1.77466e-12 | QK20: -3.094873e-13
A21: 251.19 | B21: 3.025251e-12 | C21: -3.337542e-13 | D21: 251.19 | E21: 3.013668e-12 | F21: -3.233912e-13 | G21: 251.19 | H21: 3.001064e-12 | I21: -3.208812e-13 | J21: 251.19 | K21: 2.986695e-12 | L21: -3.203011e-13 | M21: 251.19 | N21: 2.978432e-12 | O21: -3.20873e-13 | P21: 251.19 | Q21: 2.969231e-12 | R21: -3.219681e-13 | S21: 251.19 | T21: 2.966437e-12 | U21: -3.202622e-13 | V21: 251.19 | W21: 2.959161e-12 | X21: -3.174444e-13 | Y21: 251.19 | Z21: 2.957708e-12 | AA21: -3.201739e-13 | AB21: 251.19 | AC21: 2.95476e-12 | AD21: -3.192858e-13 | AE21: 251.19 | AF21: 2.951454e-12 | AG21: -3.161438e-13 | AH21: 251.19 | AI21: 2.951063e-12 | AJ21: -3.153195e-13 | AK21: 251.19 | AL21: 2.94927e-12 | AM21: -3.16381e-13 | AN21: 251.19 | AO21: 2.94618e-12 | AP21: -3.129468e-13 | AQ21: 251.19 | AR21: 2.9483e-12 | AS21: -3.169231e-13 | AT21: 251.19 | AU21: 2.945937e-12 | AV21: -3.173453e-13 | AW21: 251.19 | AX21: 2.941215e-12 | AY21: -3.169247e-13 | AZ21: 251.19 | BA21: 2.939827e-12 | BB21: -3.142079e-13 | BC21: 251.19 | BD21: 2.933513e-12 | BE21: -3.16682e-13 | BF21: 251.19 | BG21: 2.922511e-12 | BH21: -3.138089e-13 | BI21: 251.19 | BJ21: 2.914599e-12 | BK21: -3.124392e-13 | BL21: 251.19 | BM21: 2.904603e-12 | BN21: -3.100685e-13 | BO21: 251.19 | BP21: 2.891329e-12 | BQ21: -3.092972e-13 | BR21: 251.19 | BS21: 2.881853e-12 | BT21: -3.07806e-13 | BU21: 251.19 | BV21: 2.870036e-12 | BW21: -3.043572e-13 | BX21: 251.19 | BY21: 2.857216e-12 | BZ21: -3.023464e-13 | CA21: 251.19 | CB21: 2.843775e-12 | CC21: -2.988564e-13 | CD21: 251.19 | CE21: 2.831237e-12 | CF21: -2.966685e-13 | CG21: 251.19 | CH21: 2.816033e-12 | CI21: -2.929388e-13 | CJ21: 251.19 | CK21: 2.803065e-12 | CL21: -2.891296e-13 | CM21: 251.19 | CN21: 2.790004e-12 | CO21: -2.851577e-13 | CP21: 251.19 | CQ21: 2.811698e-12 | CR21: -3.052824e-13 | CS21: 251.19 | CT21: 2.762857e-12 | CU21: -2.749716e-13 | CV21: 251.19 | CW21: 2.748637e-12 | CX21: -2.73238e-13 | CY21: 251.19 | CZ21: 2.736437e-12 | DA21: -2.669863e-13 | DB21: 251.19 | DC21: 2.723769e-12 | DD21: -2.624736e-13 | DE21: 251.19 | DF21: 2.708892e-12 | DG21: -2.552089e-13 | DH21: 251.19 | DI21: 2.69817e-12 | DJ21: -2.517829e-13 | DK21: 251.19 | DL21: 2.682722e-12 | DM21: -2.472631e-13 | DN21: 251.19 | DO21: 2.669554e-12 | DP21: -2.394605e-13 | DQ21: 251.19 | DR21: 2.655956e-12 | DS21: -2.360501e-13 | DT21: 251.19 | DU21: 2.645533e-12 | DV21: -2.282416e-13 | DW21: 251.19 | DX21: 2.636293e-12 | DY21: -2.24407e-13 | DZ21: 251.19 | EA21: 2.622428e-12 | EB21: -2.187543e-13 | EC21: 251.19 | ED21: 2.613745e-12 | EE21: -2.111812e-13 | EF21: 251.19 | EG21: 2.597108e-12 | EH21: -2.025614e-13 | EI21: 251.19 | EJ21: 2.583718e-12 | EK21: -1.929075e-13 | EL21: 251.19 | EM21: 2.574871e-12 | EN21: -1.870721e-13 | EO21: 251.19 | EP21: 2.561903e-12 | EQ21: -1.794612e-13 | ER21: 251.19 | ES21: 2.553432e-12 | ET21: -1.756085e-13 | EU21: 251.19 | EV21: 2.542027e-12 | EW21: -1.701275e-13 | EX21: 251.19 | EY21: 2.53237e-12 | EZ21: -1.645456e-13 | FA21: 251.19 | FB21: 2.523685e-12 | FC21: -1.574112e-13 | FD21: 251.19 | FE21: 2.519967e-12 | FF21: -1.538236e-13 | FG21: 251.19 | FH21: 2.518829e-12 | FI21: -1.506775e-13 | FJ21: 251.19 | FK21: 2.711298e-12 | FL21: -2.679432e-13 | FM21: 251.19 | FN21: 2.641397e-12 | FO21: -2.337871e-13 | FP21: 251.19 | FQ21: 2.64287e-12 | FR21: -2.305638e-13 | FS21: 251.19 | FT21: 2.647544e-12 | FU21: -2.379444e-13 | FV21: 251.19 | FW21: 2.663292e-12 | FX21: -2.490625e-13 | FY21: 251.19 | FZ21: 2.68372e-12 | GA21: -2.633452e-13 | GB21: 251.19 | GC21: 2.688292e-12 | GD21: -2.721017e-13 | GE21: 251.19 | GF21: 2.669976e-12 | GG21: -2.662704e-13 | GH21: 251.19 | GI21: 2.628458e-12 | GJ21: -2.443468e-13 | GK21: 251.19 | GL21: 2.565449e-12 | GM21: -2.016009e-13 | GN21: 251.19 | GO21: 2.507674e-12 | GP21: -1.462022e-13 | GQ21: 251.19 | GR21: 2.473265e-12 | GS21: -1.061615e-13 | GT21: 251.19 | GU21: 2.45445e-12 | GV21: -8.846531e-14 | GW21: 251.19 | GX21: 2.441143e-12 | GY21: -8.194109e-14 | GZ21: 251.19 | HA21: 2.431992e-12 | HB21: -7.365677e-14 | HC21: 251.19 | HD21: 2.425181e-12 | HE21: -7.206232e-14 | HF21: 251.19 | HG21: 2.413497e-12 | HH21: -7.07275e-14 | HI21: 251.19 | HJ21: 2.407757e-12 | HK21: -6.981424e-14 | HL21: 251.19 | HM21: 2.398499e-12 | HN21: -6.873729e-14 | HO21: 251.19 | HP21: 2.38923e-12 | HQ21: -7.508673e-14 | HR21: 251.19 | HS21: 2.383441e-12 | HT21: -7.954109e-14 | HU21: 251.19 | HV21: 2.373885e-12 | HW21: -9.148691e-14 | HX21: 251.19 | HY21: 2.363596e-12 | HZ21: -1.088933e-13 | IA21: 251.19 | IB21: 2.35116e-12 | IC21: -1.303351e-13 | ID21: 251.19 | IE21: 2.337852e-12 | IF21: -1.51924e-13 | IG21: 251.19 | IH21: 2.317215e-12 | II21: -1.801833e-13 | IJ21: 251.19 | IK21: 2.291534e-12 | IL21: -2.147733e-13 | IM21: 251.19 | IN21: 2.257313e-12 | IO21: -2.442901e-13 | IP21: 251.19 | IQ21: 2.22073e-12 | IR21: -2.728605e-13 | IS21: 251.19 | IT21: 2.181995e-12 | IU21: -2.951692e-13 | IV21: 251.19 | IW21: 2.144537e-12 | IX21: -3.137181e-13 | IY21: 251.19 | IZ21: 2.104579e-12 | JA21: -3.305896e-13 | JB21: 251.19 | JC21: 2.068015e-12 | JD21: -3.414911e-13 | JE21: 251.19 | JF21: 2.03319e-12 | JG21: -3.482178e-13 | JH21: 251.19 | JI21: 2.000031e-12 | JJ21: -3.521713e-13 | JK21: 251.19 | JL21: 1.968741e-12 | JM21: -3.52227e-13 | JN21: 251.19 | JO21: 1.941233e-12 | JP21: -3.543101e-13 | JQ21: 251.19 | JR21: 1.918643e-12 | JS21: -3.523719e-13 | JT21: 251.19 | JU21: 1.897446e-12 | JV21: -3.514256e-13 | JW21: 251.19 | JX21: 1.880743e-12 | JY21: -3.474788e-13 | JZ21: 251.19 | KA21: 1.864561e-12 | KB21: -3.453984e-13 | KC21: 251.19 | KD21: 1.8497e-12 | KE21: -3.434176e-13 | KF21: 251.19 | KG21: 1.839169e-12 | KH21: -3.398595e-13 | KI21: 251.19 | KJ21: 1.828747e-12 | KK21: -3.379113e-13 | KL21: 251.19 | KM21: 1.819422e-12 | KN21: -3.353884e-13 | KO21: 251.19 | KP21: 1.812987e-12 | KQ21: -3.3323e-13 | KR21: 251.19 | KS21: 1.805613e-12 | KT21: -3.330775e-13 | KU21: 251.19 | KV21: 1.797739e-12 | KW21: -3.296436e-13 | KX21: 251.19 | KY21: 1.791778e-12 | KZ21: -3.266917e-13 | LA21: 251.19 | LB21: 1.786212e-12 | LC21: -3.247403e-13 | LD21: 251.19 | LE21: 1.779764e-12 | LF21: -3.239202e-13 | LG21: 251.19 | LH21: 1.774785e-12 | LI21: -3.226742e-13 | LJ21: 251.19 | LK21: 1.769476e-12 | LL21: -3.199183e-13 | LM21: 251.19 | LN21: 1.767679e-12 | LO21: -3.193392e-13 | LP21: 251.19 | LQ21: 1.763659e-12 | LR21: -3.180506e-13 | LS21: 251.19 | LT21: 1.760153e-12 | LU21: -3.165943e-13 | LV21: 251.19 | LW21: 1.755772e-12 | LX21: -3.165272e-13 | LY21: 251.19 | LZ21: 1.752335e-12 | MA21: -3.128208e-13 | MB21: 251.19 | MC21: 1.750707e-12 | MD21: -3.129019e-13 | ME21: 251.19 | MF21: 1.747433e-12 | MG21: -3.112701e-13 | MH21: 251.19 | MI21: 1.74476e-12 | MJ21: -3.094748e-13 | MK21: 251.19 | ML21: 1.740801e-12 | MM21: -3.106437e-13 | MN21: 251.19 | MO21: 1.740028e-12 | MP21: -3.096023e-13 | MQ21: 251.19 | MR21: 1.738451e-12 | MS21: -3.084675e-13 | MT21: 251.19 | MU21: 1.736871e-12 | MV21: -3.079204e-13 | MW21: 251.19 | MX21: 1.735067e-12 | MY21: -3.058524e-13 | MZ21: 251.19 | NA21: 1.733112e-12 | NB21: -3.053597e-13 | NC21: 251.19 | ND21: 1.730258e-12 | NE21: -3.044988e-13 | NF21: 251.19 | NG21: 1.727439e-12 | NH21: -3.042817e-13 | NI21: 251.19 | NJ21: 1.728247e-12 | NK21: -3.034794e-13 | NL21: 251.19 | NM21: 1.726559e-12 | NN21: -3.025794e-13 | NO21: 251.19 | NP21: 1.724799e-12 | NQ21: -3.038791e-13 | NR21: 251.19 | NS21: 1.725385e-12 | NT21: -3.031181e-13 | NU21: 251.19 | NV21: 1.722562e-12 | NW21: -3.029583e-13 | NX21: 251.19 | NY21: 1.723409e-12 | NZ21: -3.017548e-13 | OA21: 251.19 | OB21: 1.721159e-12 | OC21: -3.021571e-13 | OD21: 251.19 | OE21: 1.720192e-12 | OF21: -3.0129e-13 | OG21: 251.19 | OH21: 1.719697e-12 | OI21: -3.00395e-13 | OJ21: 251.19 | OK21: 1.718223e-12 | OL21: -3.003745e-13 | OM21: 251.19 | ON21: 1.716744e-12 | OO21: -3.002336e-13 | OP21: 251.19 | OQ21: 1.715245e-12 | OR21: -2.991643e-13 | OS21: 251.19 | OT21: 1.716377e-12 | OU21: -2.981364e-13 | OV21: 251.19 | OW21: 1.715616e-12 | OX21: -2.991246e-13 | OY21: 251.19 | OZ21: 1.713789e-12 | PA21: -2.996813e-13 | PB21: 251.19 | PC21: 1.714747e-12 | PD21: -2.975782e-13 | PE21: 251.19 | PF21: 1.71256e-12 | PG21: -2.980216e-13 | PH21: 251.19 | PI21: 1.71312e-12 | PJ21: -2.988616e-13 | PK21: 251.19 | PL21: 1.712016e-12 | PM21: -2.967128e-13 | PN21: 251.19 | PO21: 1.709289e-12 | PP21: -2.97692e-13 | PQ21: 251.19 | PR21: 1.710027e-12 | PS21: -2.95488e-13 | PT21: 251.19 | PU21: 1.709626e-12 | PV21: -2.961876e-13 | PW21: 251.19 | PX21: 1.7065e-12 | PY21: -2.960572e-13 | PZ21: 251.19 | QA21: 1.708207e-12 | QB21: -2.959276e-13 | QC21: 251.19 | QD21: 1.713909e-12 | QE21: -2.98501e-13 | QF21: 251.19 | QG21: 1.719043e-12 | QH21: -3.009311e-13 | QI21: 251.19 | QJ21: 1.727081e-12 | QK21: -3.058308e-13
A22: 316.23 | B22: 2.970111e-12 | C22: -3.238638e-13 | D22: 316.23 | E22: 2.95875e-12 | F22: -3.171107e-13 | G22: 316.23 | H22: 2.947516e-12 | I22: -3.168056e-13 | J22: 316.23 | K22: 2.931006e-12 | L22: -3.142855e-13 | M22: 316.23 | N22: 2.9232e-12 | O22: -3.129105e-13 | P22: 316.23 | Q22: 2.916051e-12 | R22: -3.119239e-13 | S22: 316.23 | T22: 2.911116e-12 | U22: -3.097244e-13 | V22: 316.23 | W22: 2.906833e-12 | X22: -3.086123e-13 | Y22: 316.23 | Z22: 2.905244e-12 | AA22: -3.087394e-13 | AB22: 316.23 | AC22: 2.900482e-12 | AD22: -3.075265e-13 | AE22: 316.23 | AF22: 2.899375e-12 | AG22: -3.070473e-13 | AH22: 316.23 | AI22: 2.899944e-12 | AJ22: -3.076185e-13 | AK22: 316.23 | AL22: 2.89668e-12 | AM22: -3.043157e-13 | AN22: 316.23 | AO22: 2.893939e-12 | AP22: -3.058667e-13 | AQ22: 316.23 | AR22: 2.893428e-12 | AS22: -3.050352e-13 | AT22: 316.23 | AU22: 2.892053e-12 | AV22: -3.050342e-13 | AW22: 316.23 | AX22: 2.889489e-12 | AY22: -3.049848e-13 | AZ22: 316.23 | BA22: 2.887121e-12 | BB22: -3.048391e-13 | BC22: 316.23 | BD22: 2.880567e-12 | BE22: -3.035264e-13 | BF22: 316.23 | BG22: 2.872131e-12 | BH22: -3.024429e-13 | BI22: 316.23 | BJ22: 2.863295e-12 | BK22: -3.003116e-13 | BL22: 316.23 | BM22: 2.852445e-12 | BN22: -2.976976e-13 | BO22: 316.23 | BP22: 2.841393e-12 | BQ22: -2.956684e-13 | BR22: 316.23 | BS22: 2.829578e-12 | BT22: -2.922188e-13 | BU22: 316.23 | BV22: 2.819202e-12 | BW22: -2.894047e-13 | BX22: 316.23 | BY22: 2.807163e-12 | BZ22: -2.856362e-13 | CA22: 316.23 | CB22: 2.793994e-12 | CC22: -2.824549e-13 | CD22: 316.23 | CE22: 2.782674e-12 | CF22: -2.786092e-13 | CG22: 316.23 | CH22: 2.768946e-12 | CI22: -2.747254e-13 | CJ22: 316.23 | CK22: 2.756156e-12 | CL22: -2.699622e-13 | CM22: 316.23 | CN22: 2.74283e-12 | CO22: -2.646423e-13 | CP22: 316.23 | CQ22: 2.764854e-12 | CR22: -2.809817e-13 | CS22: 316.23 | CT22: 2.719422e-12 | CU22: -2.564949e-13 | CV22: 316.23 | CW22: 2.708437e-12 | CX22: -2.510126e-13 | CY22: 316.23 | CZ22: 2.695472e-12 | DA22: -2.455153e-13 | DB22: 316.23 | DC22: 2.684304e-12 | DD22: -2.40505e-13 | DE22: 316.23 | DF22: 2.671769e-12 | DG22: -2.35545e-13 | DH22: 316.23 | DI22: 2.660189e-12 | DJ22: -2.290907e-13 | DK22: 316.23 | DL22: 2.64691e-12 | DM22: -2.223119e-13 | DN22: 316.23 | DO22: 2.63539e-12 | DP22: -2.184371e-13 | DQ22: 316.23 | DR22: 2.624149e-12 | DS22: -2.151964e-13 | DT22: 316.23 | DU22: 2.614616e-12 | DV22: -2.079883e-13 | DW22: 316.23 | DX22: 2.604687e-12 | DY22: -2.027902e-13 | DZ22: 316.23 | EA22: 2.594534e-12 | EB22: -1.968601e-13 | EC22: 316.23 | ED22: 2.586e-12 | EE22: -1.923167e-13 | EF22: 316.23 | EG22: 2.570055e-12 | EH22: -1.801953e-13 | EI22: 316.23 | EJ22: 2.559132e-12 | EK22: -1.738814e-13 | EL22: 316.23 | EM22: 2.549978e-12 | EN22: -1.676845e-13 | EO22: 316.23 | EP22: 2.538891e-12 | EQ22: -1.597399e-13 | ER22: 316.23 | ES22: 2.530423e-12 | ET22: -1.562007e-13 | EU22: 316.23 | EV22: 2.522239e-12 | EW22: -1.50766e-13 | EX22: 316.23 | EY22: 2.513567e-12 | EZ22: -1.455163e-13 | FA22: 316.23 | FB22: 2.5048e-12 | FC22: -1.415539e-13 | FD22: 316.23 | FE22: 2.502749e-12 | FF22: -1.362594e-13 | FG22: 316.23 | FH22: 2.500147e-12 | FI22: -1.336451e-13 | FJ22: 316.23 | FK22: 2.668792e-12 | FL22: -2.494204e-13 | FM22: 316.23 | FN22: 2.609659e-12 | FO22: -2.138185e-13 | FP22: 316.23 | FQ22: 2.608006e-12 | FR22: -2.121258e-13 | FS22: 316.23 | FT22: 2.611966e-12 | FU22: -2.165787e-13 | FV22: 316.23 | FW22: 2.623726e-12 | FX22: -2.299413e-13 | FY22: 316.23 | FZ22: 2.638083e-12 | GA22: -2.447566e-13 | GB22: 316.23 | GC22: 2.644057e-12 | GD22: -2.507824e-13 | GE22: 316.23 | GF22: 2.628278e-12 | GG22: -2.435165e-13 | GH22: 316.23 | GI22: 2.588846e-12 | GJ22: -2.202148e-13 | GK22: 316.23 | GL22: 2.539702e-12 | GM22: -1.779723e-13 | GN22: 316.23 | GO22: 2.492674e-12 | GP22: -1.287372e-13 | GQ22: 316.23 | GR22: 2.463695e-12 | GS22: -9.480357e-14 | GT22: 316.23 | GU22: 2.445992e-12 | GV22: -7.826938e-14 | GW22: 316.23 | GX22: 2.433457e-12 | GY22: -7.190733e-14 | GZ22: 316.23 | HA22: 2.425837e-12 | HB22: -6.740296e-14 | HC22: 316.23 | HD22: 2.417096e-12 | HE22: -6.497941e-14 | HF22: 316.23 | HG22: 2.408185e-12 | HH22: -6.472486e-14 | HI22: 316.23 | HJ22: 2.400195e-12 | HK22: -6.560129e-14 | HL22: 316.23 | HM22: 2.392411e-12 | HN22: -6.778423e-14 | HO22: 316.23 | HP22: 2.384649e-12 | HQ22: -7.408416e-14 | HR22: 316.23 | HS22: 2.376601e-12 | HT22: -8.463733e-14 | HU22: 316.23 | HV22: 2.368459e-12 | HW22: -9.8405e-14 | HX22: 316.23 | HY22: 2.356972e-12 | HZ22: -1.188833e-13 | IA22: 316.23 | IB22: 2.34179e-12 | IC22: -1.445872e-13 | ID22: 316.23 | IE22: 2.323645e-12 | IF22: -1.715713e-13 | IG22: 316.23 | IH22: 2.298746e-12 | II22: -2.045822e-13 | IJ22: 316.23 | IK22: 2.264609e-12 | IL22: -2.391343e-13 | IM22: 316.23 | IN22: 2.223092e-12 | IO22: -2.733261e-13 | IP22: 316.23 | IQ22: 2.180119e-12 | IR22: -3.01192e-13 | IS22: 316.23 | IT22: 2.136896e-12 | IU22: -3.211838e-13 | IV22: 316.23 | IW22: 2.094721e-12 | IX22: -3.385191e-13 | IY22: 316.23 | IZ22: 2.052674e-12 | JA22: -3.507719e-13 | JB22: 316.23 | JC22: 2.01314e-12 | JD22: -3.579525e-13 | JE22: 316.23 | JF22: 1.976505e-12 | JG22: -3.622549e-13 | JH22: 316.23 | JI22: 1.942057e-12 | JJ22: -3.635132e-13 | JK22: 316.23 | JL22: 1.910914e-12 | JM22: -3.630586e-13 | JN22: 316.23 | JO22: 1.884049e-12 | JP22: -3.606298e-13 | JQ22: 316.23 | JR22: 1.860909e-12 | JS22: -3.582101e-13 | JT22: 316.23 | JU22: 1.840931e-12 | JV22: -3.547424e-13 | JW22: 316.23 | JX22: 1.824452e-12 | JY22: -3.510292e-13 | JZ22: 316.23 | KA22: 1.810601e-12 | KB22: -3.477274e-13 | KC22: 316.23 | KD22: 1.797454e-12 | KE22: -3.446757e-13 | KF22: 316.23 | KG22: 1.786146e-12 | KH22: -3.4108e-13 | KI22: 316.23 | KJ22: 1.775682e-12 | KK22: -3.377067e-13 | KL22: 316.23 | KM22: 1.768142e-12 | KN22: -3.356856e-13 | KO22: 316.23 | KP22: 1.761058e-12 | KQ22: -3.33382e-13 | KR22: 316.23 | KS22: 1.754351e-12 | KT22: -3.311551e-13 | KU22: 316.23 | KV22: 1.748198e-12 | KW22: -3.286972e-13 | KX22: 316.23 | KY22: 1.742234e-12 | KZ22: -3.262296e-13 | LA22: 316.23 | LB22: 1.735628e-12 | LC22: -3.236582e-13 | LD22: 316.23 | LE22: 1.730464e-12 | LF22: -3.216066e-13 | LG22: 316.23 | LH22: 1.725656e-12 | LI22: -3.205979e-13 | LJ22: 316.23 | LK22: 1.722648e-12 | LL22: -3.183767e-13 | LM22: 316.23 | LN22: 1.718764e-12 | LO22: -3.169508e-13 | LP22: 316.23 | LQ22: 1.716048e-12 | LR22: -3.152289e-13 | LS22: 316.23 | LT22: 1.712236e-12 | LU22: -3.14219e-13 | LV22: 316.23 | LW22: 1.709537e-12 | LX22: -3.13028e-13 | LY22: 316.23 | LZ22: 1.70648e-12 | MA22: -3.112893e-13 | MB22: 316.23 | MC22: 1.703603e-12 | MD22: -3.097845e-13 | ME22: 316.23 | MF22: 1.701284e-12 | MG22: -3.086845e-13 | MH22: 316.23 | MI22: 1.698553e-12 | MJ22: -3.075216e-13 | MK22: 316.23 | ML22: 1.696579e-12 | MM22: -3.065559e-13 | MN22: 316.23 | MO22: 1.694301e-12 | MP22: -3.057434e-13 | MQ22: 316.23 | MR22: 1.692332e-12 | MS22: -3.044576e-13 | MT22: 316.23 | MU22: 1.691579e-12 | MV22: -3.044596e-13 | MW22: 316.23 | MX22: 1.689524e-12 | MY22: -3.030899e-13 | MZ22: 316.23 | NA22: 1.688141e-12 | NB22: -3.026147e-13 | NC22: 316.23 | ND22: 1.686454e-12 | NE22: -3.01959e-13 | NF22: 316.23 | NG22: 1.684545e-12 | NH22: -3.007384e-13 | NI22: 316.23 | NJ22: 1.68325e-12 | NK22: -3.005522e-13 | NL22: 316.23 | NM22: 1.682263e-12 | NN22: -3.000399e-13 | NO22: 316.23 | NP22: 1.68152e-12 | NQ22: -2.997103e-13 | NR22: 316.23 | NS22: 1.680589e-12 | NT22: -2.992198e-13 | NU22: 316.23 | NV22: 1.679756e-12 | NW22: -2.988026e-13 | NX22: 316.23 | NY22: 1.679136e-12 | NZ22: -2.983102e-13 | OA22: 316.23 | OB22: 1.678567e-12 | OC22: -2.980154e-13 | OD22: 316.23 | OE22: 1.677295e-12 | OF22: -2.974631e-13 | OG22: 316.23 | OH22: 1.676989e-12 | OI22: -2.974614e-13 | OJ22: 316.23 | OK22: 1.675996e-12 | OL22: -2.973247e-13 | OM22: 316.23 | ON22: 1.674751e-12 | OO22: -2.963733e-13 | OP22: 316.23 | OQ22: 1.673337e-12 | OR22: -2.958935e-13 | OS22: 316.23 | OT22: 1.672795e-12 | OU22: -2.953721e-13 | OV22: 316.23 | OW22: 1.672224e-12 | OX22: -2.954323e-13 | OY22: 316.23 | OZ22: 1.671612e-12 | PA22: -2.946002e-13 | PB22: 316.23 | PC22: 1.671391e-12 | PD22: -2.94538e-13 | PE22: 316.23 | PF22: 1.670869e-12 | PG22: -2.946342e-13 | PH22: 316.23 | PI22: 1.669871e-12 | PJ22: -2.936997e-13 | PK22: 316.23 | PL22: 1.668623e-12 | PM22: -2.932895e-13 | PN22: 316.23 | PO22: 1.66783e-12 | PP22: -2.928018e-13 | PQ22: 316.23 | PR22: 1.667087e-12 | PS22: -2.928474e-13 | PT22: 316.23 | PU22: 1.665901e-12 | PV22: -2.917771e-13 | PW22: 316.23 | PX22: 1.665273e-12 | PY22: -2.916769e-13 | PZ22: 316.23 | QA22: 1.666543e-12 | QB22: -2.925111e-13 | QC22: 316.23 | QD22: 1.670716e-12 | QE22: -2.948887e-13 | QF22: 316.23 | QG22: 1.676597e-12 | QH22: -2.976923e-13 | QI22: 316.23 | QJ22: 1.683915e-12 | QK22: -3.022731e-13
A23: 398.13 | B23: 2.917119e-12 | C23: -3.087385e-13 | D23: 398.13 | E23: 2.905223e-12 | F23: -3.059355e-13 | G23: 398.13 | H23: 2.894891e-12 | I23: -3.044108e-13 | J23: 398.13 | K23: 2.879111e-12 | L23: -3.016002e-13 | M23: 398.13 | N23: 2.871126e-12 | O23: -2.999538e-13 | P23: 398.13 | Q23: 2.864812e-12 | R23: -2.966282e-13 | S23: 398.13 | T23: 2.859654e-12 | U23: -2.959931e-13 | V23: 398.13 | W23: 2.855579e-12 | X23: -2.942986e-13 | Y23: 398.13 | Z23: 2.85198e-12 | AA23: -2.934024e-13 | AB23: 398.13 | AC23: 2.850944e-12 | AD23: -2.923265e-13 | AE23: 398.13 | AF23: 2.84785e-12 | AG23: -2.920835e-13 | AH23: 398.13 | AI23: 2.847164e-12 | AJ23: -2.913553e-13 | AK23: 398.13 | AL23: 2.844502e-12 | AM23: -2.900742e-13 | AN23: 398.13 | AO23: 2.845064e-12 | AP23: -2.893753e-13 | AQ23: 398.13 | AR23: 2.843402e-12 | AS23: -2.903482e-13 | AT23: 398.13 | AU23: 2.841806e-12 | AV23: -2.899981e-13 | AW23: 398.13 | AX23: 2.840041e-12 | AY23: -2.894676e-13 | AZ23: 398.13 | BA23: 2.836622e-12 | BB23: -2.889091e-13 | BC23: 398.13 | BD23: 2.831108e-12 | BE23: -2.875065e-13 | BF23: 398.13 | BG23: 2.822955e-12 | BH23: -2.860414e-13 | BI23: 398.13 | BJ23: 2.814304e-12 | BK23: -2.832516e-13 | BL23: 398.13 | BM23: 2.804681e-12 | BN23: -2.805277e-13 | BO23: 398.13 | BP23: 2.794139e-12 | BQ23: -2.767121e-13 | BR23: 398.13 | BS23: 2.782708e-12 | BT23: -2.727754e-13 | BU23: 398.13 | BV23: 2.773067e-12 | BW23: -2.692871e-13 | BX23: 398.13 | BY23: 2.762047e-12 | BZ23: -2.661889e-13 | CA23: 398.13 | CB23: 2.74973e-12 | CC23: -2.622235e-13 | CD23: 398.13 | CE23: 2.738523e-12 | CF23: -2.580863e-13 | CG23: 398.13 | CH23: 2.726959e-12 | CI23: -2.533141e-13 | CJ23: 398.13 | CK23: 2.715835e-12 | CL23: -2.487546e-13 | CM23: 398.13 | CN23: 2.704109e-12 | CO23: -2.438935e-13 | CP23: 398.13 | CQ23: 2.723336e-12 | CR23: -2.553397e-13 | CS23: 398.13 | CT23: 2.681169e-12 | CU23: -2.330214e-13 | CV23: 398.13 | CW23: 2.670792e-12 | CX23: -2.284346e-13 | CY23: 398.13 | CZ23: 2.659774e-12 | DA23: -2.227795e-13 | DB23: 398.13 | DC23: 2.649246e-12 | DD23: -2.179424e-13 | DE23: 398.13 | DF23: 2.63855e-12 | DG23: -2.124618e-13 | DH23: 398.13 | DI23: 2.628519e-12 | DJ23: -2.077563e-13 | DK23: 398.13 | DL23: 2.616448e-12 | DM23: -2.009406e-13 | DN23: 398.13 | DO23: 2.605877e-12 | DP23: -1.963035e-13 | DQ23: 398.13 | DR23: 2.596089e-12 | DS23: -1.904183e-13 | DT23: 398.13 | DU23: 2.587087e-12 | DV23: -1.854362e-13 | DW23: 398.13 | DX23: 2.578014e-12 | DY23: -1.801653e-13 | DZ23: 398.13 | EA23: 2.569618e-12 | EB23: -1.764745e-13 | EC23: 398.13 | ED23: 2.560499e-12 | EE23: -1.698982e-13 | EF23: 398.13 | EG23: 2.54856e-12 | EH23: -1.599897e-13 | EI23: 398.13 | EJ23: 2.538526e-12 | EK23: -1.537709e-13 | EL23: 398.13 | EM23: 2.529563e-12 | EN23: -1.486321e-13 | EO23: 398.13 | EP23: 2.520265e-12 | EQ23: -1.426753e-13 | ER23: 398.13 | ES23: 2.512328e-12 | ET23: -1.378835e-13 | EU23: 398.13 | EV23: 2.504659e-12 | EW23: -1.32442e-13 | EX23: 398.13 | EY23: 2.496856e-12 | EZ23: -1.271022e-13 | FA23: 398.13 | FB23: 2.490013e-12 | FC23: -1.234745e-13 | FD23: 398.13 | FE23: 2.487428e-12 | FF23: -1.195948e-13 | FG23: 398.13 | FH23: 2.485452e-12 | FI23: -1.174673e-13 | FJ23: 398.13 | FK23: 2.629794e-12 | FL23: -2.306583e-13 | FM23: 398.13 | FN23: 2.581165e-12 | FO23: -1.911031e-13 | FP23: 398.13 | FQ23: 2.579388e-12 | FR23: -1.90534e-13 | FS23: 398.13 | FT23: 2.581689e-12 | FU23: -1.943854e-13 | FV23: 398.13 | FW23: 2.589903e-12 | FX23: -2.082764e-13 | FY23: 398.13 | FZ23: 2.6005e-12 | GA23: -2.220674e-13 | GB23: 398.13 | GC23: 2.604922e-12 | GD23: -2.285059e-13 | GE23: 398.13 | GF23: 2.591039e-12 | GG23: -2.199795e-13 | GH23: 398.13 | GI23: 2.559087e-12 | GJ23: -1.948604e-13 | GK23: 398.13 | GL23: 2.518485e-12 | GM23: -1.549888e-13 | GN23: 398.13 | GO23: 2.480123e-12 | GP23: -1.113126e-13 | GQ23: 398.13 | GR23: 2.454509e-12 | GS23: -8.301544e-14 | GT23: 398.13 | GU23: 2.438831e-12 | GV23: -6.951665e-14 | GW23: 398.13 | GX23: 2.426378e-12 | GY23: -6.393411e-14 | GZ23: 398.13 | HA23: 2.41863e-12 | HB23: -6.013775e-14 | HC23: 398.13 | HD23: 2.410755e-12 | HE23: -5.980337e-14 | HF23: 398.13 | HG23: 2.402196e-12 | HH23: -5.972486e-14 | HI23: 398.13 | HJ23: 2.394728e-12 | HK23: -6.199419e-14 | HL23: 398.13 | HM23: 2.386737e-12 | HN23: -6.66906e-14 | HO23: 398.13 | HP23: 2.379268e-12 | HQ23: -7.49317e-14 | HR23: 398.13 | HS23: 2.370175e-12 | HT23: -8.778078e-14 | HU23: 398.13 | HV23: 2.359457e-12 | HW23: -1.069263e-13 | HX23: 398.13 | HY23: 2.346383e-12 | HZ23: -1.312297e-13 | IA23: 398.13 | IB23: 2.327882e-12 | IC23: -1.617667e-13 | ID23: 398.13 | IE23: 2.304843e-12 | IF23: -1.941357e-13 | IG23: 398.13 | IH23: 2.273398e-12 | II23: -2.306052e-13 | IJ23: 398.13 | IK23: 2.232414e-12 | IL23: -2.671967e-13 | IM23: 398.13 | IN23: 2.183235e-12 | IO23: -3.022211e-13 | IP23: 398.13 | IQ23: 2.133434e-12 | IR23: -3.280046e-13 | IS23: 398.13 | IT23: 2.085964e-12 | IU23: -3.47023e-13 | IV23: 398.13 | IW23: 2.039072e-12 | IX23: -3.603744e-13 | IY23: 398.13 | IZ23: 1.995203e-12 | JA23: -3.68487e-13 | JB23: 398.13 | JC23: 1.954428e-12 | JD23: -3.724772e-13 | JE23: 398.13 | JF23: 1.916772e-12 | JG23: -3.734429e-13 | JH23: 398.13 | JI23: 1.882787e-12 | JJ23: -3.72107e-13 | JK23: 398.13 | JL23: 1.852019e-12 | JM23: -3.689407e-13 | JN23: 398.13 | JO23: 1.826024e-12 | JP23: -3.64563e-13 | JQ23: 398.13 | JR23: 1.804257e-12 | JS23: -3.599961e-13 | JT23: 398.13 | JU23: 1.785106e-12 | JV23: -3.552228e-13 | JW23: 398.13 | JX23: 1.76969e-12 | JY23: -3.510148e-13 | JZ23: 398.13 | KA23: 1.756645e-12 | KB23: -3.466134e-13 | KC23: 398.13 | KD23: 1.745001e-12 | KE23: -3.430981e-13 | KF23: 398.13 | KG23: 1.733937e-12 | KH23: -3.39213e-13 | KI23: 398.13 | KJ23: 1.72437e-12 | KK23: -3.35741e-13 | KL23: 398.13 | KM23: 1.717523e-12 | KN23: -3.327783e-13 | KO23: 398.13 | KP23: 1.711084e-12 | KQ23: -3.301911e-13 | KR23: 398.13 | KS23: 1.705443e-12 | KT23: -3.277801e-13 | KU23: 398.13 | KV23: 1.69951e-12 | KW23: -3.254086e-13 | KX23: 398.13 | KY23: 1.693984e-12 | KZ23: -3.225362e-13 | LA23: 398.13 | LB23: 1.688332e-12 | LC23: -3.202993e-13 | LD23: 398.13 | LE23: 1.683053e-12 | LF23: -3.178308e-13 | LG23: 398.13 | LH23: 1.679988e-12 | LI23: -3.162158e-13 | LJ23: 398.13 | LK23: 1.676074e-12 | LL23: -3.144094e-13 | LM23: 398.13 | LN23: 1.673125e-12 | LO23: -3.131782e-13 | LP23: 398.13 | LQ23: 1.67039e-12 | LR23: -3.11824e-13 | LS23: 398.13 | LT23: 1.667772e-12 | LU23: -3.105962e-13 | LV23: 398.13 | LW23: 1.664642e-12 | LX23: -3.089286e-13 | LY23: 398.13 | LZ23: 1.662015e-12 | MA23: -3.075828e-13 | MB23: 398.13 | MC23: 1.659436e-12 | MD23: -3.063361e-13 | ME23: 398.13 | MF23: 1.657236e-12 | MG23: -3.049181e-13 | MH23: 398.13 | MI23: 1.654981e-12 | MJ23: -3.036658e-13 | MK23: 398.13 | ML23: 1.652975e-12 | MM23: -3.025721e-13 | MN23: 398.13 | MO23: 1.651167e-12 | MP23: -3.017672e-13 | MQ23: 398.13 | MR23: 1.649474e-12 | MS23: -3.008716e-13 | MT23: 398.13 | MU23: 1.64827e-12 | MV23: -3.000799e-13 | MW23: 398.13 | MX23: 1.647077e-12 | MY23: -2.99466e-13 | MZ23: 398.13 | NA23: 1.645139e-12 | NB23: -2.988498e-13 | NC23: 398.13 | ND23: 1.643946e-12 | NE23: -2.980512e-13 | NF23: 398.13 | NG23: 1.642261e-12 | NH23: -2.96981e-13 | NI23: 398.13 | NJ23: 1.641305e-12 | NK23: -2.965566e-13 | NL23: 398.13 | NM23: 1.64027e-12 | NN23: -2.961478e-13 | NO23: 398.13 | NP23: 1.639643e-12 | NQ23: -2.958399e-13 | NR23: 398.13 | NS23: 1.638909e-12 | NT23: -2.952256e-13 | NU23: 398.13 | NV23: 1.638019e-12 | NW23: -2.950346e-13 | NX23: 398.13 | NY23: 1.63731e-12 | NZ23: -2.945565e-13 | OA23: 398.13 | OB23: 1.636832e-12 | OC23: -2.942533e-13 | OD23: 398.13 | OE23: 1.636416e-12 | OF23: -2.937819e-13 | OG23: 398.13 | OH23: 1.635557e-12 | OI23: -2.933159e-13 | OJ23: 398.13 | OK23: 1.634723e-12 | OL23: -2.929847e-13 | OM23: 398.13 | ON23: 1.633592e-12 | OO23: -2.920667e-13 | OP23: 398.13 | OQ23: 1.632808e-12 | OR23: -2.918063e-13 | OS23: 398.13 | OT23: 1.63179e-12 | OU23: -2.913866e-13 | OV23: 398.13 | OW23: 1.631202e-12 | OX23: -2.911919e-13 | OY23: 398.13 | OZ23: 1.630577e-12 | PA23: -2.907053e-13 | PB23: 398.13 | PC23: 1.630221e-12 | PD23: -2.904794e-13 | PE23: 398.13 | PF23: 1.630152e-12 | PG23: -2.904686e-13 | PH23: 398.13 | PI23: 1.629051e-12 | PJ23: -2.896912e-13 | PK23: 398.13 | PL23: 1.628042e-12 | PM23: -2.894594e-13 | PN23: 398.13 | PO23: 1.627269e-12 | PP23: -2.889863e-13 | PQ23: 398.13 | PR23: 1.626762e-12 | PS23: -2.883857e-13 | PT23: 398.13 | PU23: 1.626163e-12 | PV23: -2.880358e-13 | PW23: 398.13 | PX23: 1.624817e-12 | PY23: -2.873483e-13 | PZ23: 398.13 | QA23: 1.626406e-12 | QB23: -2.883646e-13 | QC23: 398.13 | QD23: 1.629937e-12 | QE23: -2.90258e-13 | QF23: 398.13 | QG23: 1.635334e-12 | QH23: -2.931228e-13 | QI23: 398.13 | QJ23: 1.641489e-12 | QK23: -2.970566e-13
A24: 501.19 | B24: 2.867097e-12 | C24: -2.947146e-13 | D24: 501.19 | E24: 2.85236e-12 | F24: -2.914491e-13 | G24: 501.19 | H24: 2.843201e-12 | I24: -2.911368e-13 | J24: 501.19 | K24: 2.829109e-12 | L24: -2.872399e-13 | M24: 501.19 | N24: 2.82162e-12 | O24: -2.84568e-13 | P24: 501.19 | Q24: 2.816255e-12 | R24: -2.817768e-13 | S24: 501.19 | T24: 2.810762e-12 | U24: -2.797195e-13 | V24: 501.19 | W24: 2.806095e-12 | X24: -2.774797e-13 | Y24: 501.19 | Z24: 2.804034e-12 | AA24: -2.775781e-13 | AB24: 501.19 | AC24: 2.802495e-12 | AD24: -2.763537e-13 | AE24: 501.19 | AF24: 2.801261e-12 | AG24: -2.761589e-13 | AH24: 501.19 | AI24: 2.799387e-12 | AJ24: -2.727888e-13 | AK24: 501.19 | AL24: 2.798226e-12 | AM24: -2.735247e-13 | AN24: 501.19 | AO24: 2.796982e-12 | AP24: -2.734058e-13 | AQ24: 501.19 | AR24: 2.796216e-12 | AS24: -2.734321e-13 | AT24: 501.19 | AU24: 2.793784e-12 | AV24: -2.729269e-13 | AW24: 501.19 | AX24: 2.793221e-12 | AY24: -2.732202e-13 | AZ24: 501.19 | BA24: 2.790161e-12 | BB24: -2.720865e-13 | BC24: 501.19 | BD24: 2.784227e-12 | BE24: -2.702664e-13 | BF24: 501.19 | BG24: 2.776793e-12 | BH24: -2.685867e-13 | BI24: 501.19 | BJ24: 2.769221e-12 | BK24: -2.65273e-13 | BL24: 501.19 | BM24: 2.760364e-12 | BN24: -2.624537e-13 | BO24: 501.19 | BP24: 2.750577e-12 | BQ24: -2.584014e-13 | BR24: 501.19 | BS24: 2.740517e-12 | BT24: -2.548957e-13 | BU24: 501.19 | BV24: 2.729284e-12 | BW24: -2.503381e-13 | BX24: 501.19 | BY24: 2.720788e-12 | BZ24: -2.470003e-13 | CA24: 501.19 | CB24: 2.710005e-12 | CC24: -2.42187e-13 | CD24: 501.19 | CE24: 2.699939e-12 | CF24: -2.377917e-13 | CG24: 501.19 | CH24: 2.68886e-12 | CI24: -2.329642e-13 | CJ24: 501.19 | CK24: 2.679365e-12 | CL24: -2.288596e-13 | CM24: 501.19 | CN24: 2.667949e-12 | CO24: -2.229701e-13 | CP24: 501.19 | CQ24: 2.685679e-12 | CR24: -2.298546e-13 | CS24: 501.19 | CT24: 2.648085e-12 | CU24: -2.126536e-13 | CV24: 501.19 | CW24: 2.637991e-12 | CX24: -2.084923e-13 | CY24: 501.19 | CZ24: 2.628052e-12 | DA24: -2.024051e-13 | DB24: 501.19 | DC24: 2.619555e-12 | DD24: -1.973903e-13 | DE24: 501.19 | DF24: 2.608707e-12 | DG24: -1.938623e-13 | DH24: 501.19 | DI24: 2.600194e-12 | DJ24: -1.867988e-13 | DK24: 501.19 | DL24: 2.589647e-12 | DM24: -1.80749e-13 | DN24: 501.19 | DO24: 2.579596e-12 | DP24: -1.762938e-13 | DQ24: 501.19 | DR24: 2.570368e-12 | DS24: -1.709734e-13 | DT24: 501.19 | DU24: 2.562878e-12 | DV24: -1.672248e-13 | DW24: 501.19 | DX24: 2.554779e-12 | DY24: -1.620448e-13 | DZ24: 501.19 | EA24: 2.546444e-12 | EB24: -1.574438e-13 | EC24: 501.19 | ED24: 2.538277e-12 | EE24: -1.518507e-13 | EF24: 501.19 | EG24: 2.528492e-12 | EH24: -1.429803e-13 | EI24: 501.19 | EJ24: 2.519361e-12 | EK24: -1.377178e-13 | EL24: 501.19 | EM24: 2.511467e-12 | EN24: -1.326363e-13 | EO24: 501.19 | EP24: 2.502211e-12 | EQ24: -1.276428e-13 | ER24: 501.19 | ES24: 2.496002e-12 | ET24: -1.223733e-13 | EU24: 501.19 | EV24: 2.488748e-12 | EW24: -1.179453e-13 | EX24: 501.19 | EY24: 2.482457e-12 | EZ24: -1.140161e-13 | FA24: 501.19 | FB24: 2.476307e-12 | FC24: -1.087803e-13 | FD24: 501.19 | FE24: 2.473775e-12 | FF24: -1.066698e-13 | FG24: 501.19 | FH24: 2.471434e-12 | FI24: -1.046188e-13 | FJ24: 501.19 | FK24: 2.594817e-12 | FL24: -2.118264e-13 | FM24: 501.19 | FN24: 2.554216e-12 | FO24: -1.726531e-13 | FP24: 501.19 | FQ24: 2.554378e-12 | FR24: -1.714546e-13 | FS24: 501.19 | FT24: 2.55527e-12 | FU24: -1.75609e-13 | FV24: 501.19 | FW24: 2.559734e-12 | FX24: -1.86844e-13 | FY24: 501.19 | FZ24: 2.568202e-12 | GA24: -2.004117e-13 | GB24: 501.19 | GC24: 2.57016e-12 | GD24: -2.05416e-13 | GE24: 501.19 | GF24: 2.559298e-12 | GG24: -1.966976e-13 | GH24: 501.19 | GI24: 2.533241e-12 | GJ24: -1.719429e-13 | GK24: 501.19 | GL24: 2.501327e-12 | GM24: -1.360079e-13 | GN24: 501.19 | GO24: 2.468468e-12 | GP24: -9.842546e-14 | GQ24: 501.19 | GR24: 2.446457e-12 | GS24: -7.491616e-14 | GT24: 501.19 | GU24: 2.431538e-12 | GV24: -6.315738e-14 | GW24: 501.19 | GX24: 2.419706e-12 | GY24: -5.85002e-14 | GZ24: 501.19 | HA24: 2.411697e-12 | HB24: -5.658509e-14 | HC24: 501.19 | HD24: 2.404374e-12 | HE24: -5.674504e-14 | HF24: 501.19 | HG24: 2.396321e-12 | HH24: -5.790326e-14 | HI24: 501.19 | HJ24: 2.388719e-12 | HK24: -6.184599e-14 | HL24: 501.19 | HM24: 2.380808e-12 | HN24: -6.86588e-14 | HO24: 501.19 | HP24: 2.374165e-12 | HQ24: -8.060966e-14 | HR24: 501.19 | HS24: 2.362825e-12 | HT24: -9.69644e-14 | HU24: 501.19 | HV24: 2.351214e-12 | HW24: -1.197809e-13 | HX24: 501.19 | HY24: 2.334623e-12 | HZ24: -1.500356e-13 | IA24: 501.19 | IB24: 2.310661e-12 | IC24: -1.854959e-13 | ID24: 501.19 | IE24: 2.281627e-12 | IF24: -2.223043e-13 | IG24: 501.19 | IH24: 2.242375e-12 | II24: -2.611504e-13 | IJ24: 501.19 | IK24: 2.193399e-12 | IL24: -2.999178e-13 | IM24: 501.19 | IN24: 2.135537e-12 | IO24: -3.330037e-13 | IP24: 501.19 | IQ24: 2.080299e-12 | IR24: -3.562179e-13 | IS24: 501.19 | IT24: 2.028446e-12 | IU24: -3.711141e-13 | IV24: 501.19 | IW24: 1.978629e-12 | IX24: -3.804485e-13 | IY24: 501.19 | IZ24: 1.933078e-12 | JA24: -3.845605e-13 | JB24: 501.19 | JC24: 1.892344e-12 | JD24: -3.849982e-13 | JE24: 501.19 | JF24: 1.855377e-12 | JG24: -3.820931e-13 | JH24: 501.19 | JI24: 1.821991e-12 | JJ24: -3.78203e-13 | JK24: 501.19 | JL24: 1.792671e-12 | JM24: -3.724587e-13 | JN24: 501.19 | JO24: 1.767894e-12 | JP24: -3.66791e-13 | JQ24: 501.19 | JR24: 1.747578e-12 | JS24: -3.608567e-13 | JT24: 501.19 | JU24: 1.73052e-12 | JV24: -3.552931e-13 | JW24: 501.19 | JX24: 1.716119e-12 | JY24: -3.500631e-13 | JZ24: 501.19 | KA24: 1.703763e-12 | KB24: -3.45797e-13 | KC24: 501.19 | KD24: 1.693131e-12 | KE24: -3.410779e-13 | KF24: 501.19 | KG24: 1.683462e-12 | KH24: -3.370915e-13 | KI24: 501.19 | KJ24: 1.674667e-12 | KK24: -3.329962e-13 | KL24: 501.19 | KM24: 1.66844e-12 | KN24: -3.303448e-13 | KO24: 501.19 | KP24: 1.662657e-12 | KQ24: -3.277021e-13 | KR24: 501.19 | KS24: 1.657734e-12 | KT24: -3.252111e-13 | KU24: 501.19 | KV24: 1.65259e-12 | KW24: -3.226434e-13 | KX24: 501.19 | KY24: 1.647432e-12 | KZ24: -3.202087e-13 | LA24: 501.19 | LB24: 1.642594e-12 | LC24: -3.175453e-13 | LD24: 501.19 | LE24: 1.637991e-12 | LF24: -3.153312e-13 | LG24: 501.19 | LH24: 1.635111e-12 | LI24: -3.133446e-13 | LJ24: 501.19 | LK24: 1.631682e-12 | LL24: -3.118324e-13 | LM24: 501.19 | LN24: 1.628745e-12 | LO24: -3.102962e-13 | LP24: 501.19 | LQ24: 1.626322e-12 | LR24: -3.089028e-13 | LS24: 501.19 | LT24: 1.624128e-12 | LU24: -3.074192e-13 | LV24: 501.19 | LW24: 1.621218e-12 | LX24: -3.063701e-13 | LY24: 501.19 | LZ24: 1.618787e-12 | MA24: -3.04831e-13 | MB24: 501.19 | MC24: 1.616472e-12 | MD24: -3.034889e-13 | ME24: 501.19 | MF24: 1.614823e-12 | MG24: -3.025646e-13 | MH24: 501.19 | MI24: 1.612875e-12 | MJ24: -3.014816e-13 | MK24: 501.19 | ML24: 1.610838e-12 | MM24: -3.004119e-13 | MN24: 501.19 | MO24: 1.609329e-12 | MP24: -2.99395e-13 | MQ24: 501.19 | MR24: 1.60801e-12 | MS24: -2.983633e-13 | MT24: 501.19 | MU24: 1.606828e-12 | MV24: -2.979184e-13 | MW24: 501.19 | MX24: 1.605775e-12 | MY24: -2.973791e-13 | MZ24: 501.19 | NA24: 1.60419e-12 | NB24: -2.963586e-13 | NC24: 501.19 | ND24: 1.602909e-12 | NE24: -2.961913e-13 | NF24: 501.19 | NG24: 1.601667e-12 | NH24: -2.94992e-13 | NI24: 501.19 | NJ24: 1.600634e-12 | NK24: -2.944199e-13 | NL24: 501.19 | NM24: 1.599851e-12 | NN24: -2.93899e-13 | NO24: 501.19 | NP24: 1.599242e-12 | NQ24: -2.933914e-13 | NR24: 501.19 | NS24: 1.598491e-12 | NT24: -2.930261e-13 | NU24: 501.19 | NV24: 1.597854e-12 | NW24: -2.928291e-13 | NX24: 501.19 | NY24: 1.597189e-12 | NZ24: -2.922396e-13 | OA24: 501.19 | OB24: 1.597066e-12 | OC24: -2.920955e-13 | OD24: 501.19 | OE24: 1.596113e-12 | OF24: -2.915666e-13 | OG24: 501.19 | OH24: 1.595594e-12 | OI24: -2.912995e-13 | OJ24: 501.19 | OK24: 1.594711e-12 | OL24: -2.908247e-13 | OM24: 501.19 | ON24: 1.593784e-12 | OO24: -2.902365e-13 | OP24: 501.19 | OQ24: 1.593047e-12 | OR24: -2.896149e-13 | OS24: 501.19 | OT24: 1.592304e-12 | OU24: -2.892474e-13 | OV24: 501.19 | OW24: 1.591701e-12 | OX24: -2.889769e-13 | OY24: 501.19 | OZ24: 1.591231e-12 | PA24: -2.88352e-13 | PB24: 501.19 | PC24: 1.59098e-12 | PD24: -2.883193e-13 | PE24: 501.19 | PF24: 1.590958e-12 | PG24: -2.88144e-13 | PH24: 501.19 | PI24: 1.589964e-12 | PJ24: -2.879826e-13 | PK24: 501.19 | PL24: 1.588962e-12 | PM24: -2.87143e-13 | PN24: 501.19 | PO24: 1.58855e-12 | PP24: -2.868399e-13 | PQ24: 501.19 | PR24: 1.587702e-12 | PS24: -2.862962e-13 | PT24: 501.19 | PU24: 1.587097e-12 | PV24: -2.860443e-13 | PW24: 501.19 | PX24: 1.586566e-12 | PY24: -2.855933e-13 | PZ24: 501.19 | QA24: 1.587671e-12 | QB24: -2.861447e-13 | QC24: 501.19 | QD24: 1.59071e-12 | QE24: -2.878667e-13 | QF24: 501.19 | QG24: 1.595476e-12 | QH24: -2.904403e-13 | QI24: 501.19 | QJ24: 1.601057e-12 | QK24: -2.937774e-13
A25: 631.01 | B25: 2.821667e-12 | C25: -2.767615e-13 | D25: 631.01 | E25: 2.806534e-12 | F25: -2.761508e-13 | G25: 631.01 | H25: 2.796228e-12 | I25: -2.714305e-13 | J25: 631.01 | K25: 2.783454e-12 | L25: -2.685856e-13 | M25: 631.01 | N25: 2.777032e-12 | O25: -2.664495e-13 | P25: 631.01 | Q25: 2.771038e-12 | R25: -2.642011e-13 | S25: 631.01 | T25: 2.767206e-12 | U25: -2.613747e-13 | V25: 631.01 | W25: 2.764142e-12 | X25: -2.598017e-13 | Y25: 631.01 | Z25: 2.761685e-12 | AA25: -2.566851e-13 | AB25: 631.01 | AC25: 2.75914e-12 | AD25: -2.575216e-13 | AE25: 631.01 | AF25: 2.757876e-12 | AG25: -2.57327e-13 | AH25: 631.01 | AI25: 2.757152e-12 | AJ25: -2.560771e-13 | AK25: 631.01 | AL25: 2.755544e-12 | AM25: -2.549264e-13 | AN25: 631.01 | AO25: 2.754658e-12 | AP25: -2.54545e-13 | AQ25: 631.01 | AR25: 2.753378e-12 | AS25: -2.549541e-13 | AT25: 631.01 | AU25: 2.751883e-12 | AV25: -2.522234e-13 | AW25: 631.01 | AX25: 2.751019e-12 | AY25: -2.538918e-13 | AZ25: 631.01 | BA25: 2.747994e-12 | BB25: -2.529635e-13 | BC25: 631.01 | BD25: 2.743144e-12 | BE25: -2.513478e-13 | BF25: 631.01 | BG25: 2.736164e-12 | BH25: -2.489914e-13 | BI25: 631.01 | BJ25: 2.729858e-12 | BK25: -2.469603e-13 | BL25: 631.01 | BM25: 2.720993e-12 | BN25: -2.426004e-13 | BO25: 631.01 | BP25: 2.7119e-12 | BQ25: -2.388405e-13 | BR25: 631.01 | BS25: 2.703298e-12 | BT25: -2.34829e-13 | BU25: 631.01 | BV25: 2.69394e-12 | BW25: -2.298902e-13 | BX25: 631.01 | BY25: 2.683574e-12 | BZ25: -2.269679e-13 | CA25: 631.01 | CB25: 2.676909e-12 | CC25: -2.228626e-13 | CD25: 631.01 | CE25: 2.666164e-12 | CF25: -2.174784e-13 | CG25: 631.01 | CH25: 2.656316e-12 | CI25: -2.128916e-13 | CJ25: 631.01 | CK25: 2.64751e-12 | CL25: -2.075345e-13 | CM25: 631.01 | CN25: 2.636307e-12 | CO25: -2.036807e-13 | CP25: 631.01 | CQ25: 2.65613e-12 | CR25: -2.076201e-13 | CS25: 631.01 | CT25: 2.620319e-12 | CU25: -1.94679e-13 | CV25: 631.01 | CW25: 2.610658e-12 | CX25: -1.884165e-13 | CY25: 631.01 | CZ25: 2.601928e-12 | DA25: -1.821597e-13 | DB25: 631.01 | DC25: 2.59281e-12 | DD25: -1.784617e-13 | DE25: 631.01 | DF25: 2.584563e-12 | DG25: -1.733595e-13 | DH25: 631.01 | DI25: 2.576105e-12 | DJ25: -1.681749e-13 | DK25: 631.01 | DL25: 2.566523e-12 | DM25: -1.624234e-13 | DN25: 631.01 | DO25: 2.557861e-12 | DP25: -1.588417e-13 | DQ25: 631.01 | DR25: 2.549003e-12 | DS25: -1.539175e-13 | DT25: 631.01 | DU25: 2.542534e-12 | DV25: -1.491557e-13 | DW25: 631.01 | DX25: 2.534838e-12 | DY25: -1.449804e-13 | DZ25: 631.01 | EA25: 2.52781e-12 | EB25: -1.409088e-13 | EC25: 631.01 | ED25: 2.520952e-12 | EE25: -1.358031e-13 | EF25: 631.01 | EG25: 2.51222e-12 | EH25: -1.275803e-13 | EI25: 631.01 | EJ25: 2.503886e-12 | EK25: -1.229842e-13 | EL25: 631.01 | EM25: 2.496271e-12 | EN25: -1.191604e-13 | EO25: 631.01 | EP25: 2.488189e-12 | EQ25: -1.127999e-13 | ER25: 631.01 | ES25: 2.482602e-12 | ET25: -1.091586e-13 | EU25: 631.01 | EV25: 2.475785e-12 | EW25: -1.05824e-13 | EX25: 631.01 | EY25: 2.46956e-12 | EZ25: -1.015993e-13 | FA25: 631.01 | FB25: 2.464104e-12 | FC25: -9.710307e-14 | FD25: 631.01 | FE25: 2.462304e-12 | FF25: -9.540585e-14 | FG25: 631.01 | FH25: 2.460281e-12 | FI25: -9.347482e-14 | FJ25: 631.01 | FK25: 2.563354e-12 | FL25: -1.945442e-13 | FM25: 631.01 | FN25: 2.533681e-12 | FO25: -1.540962e-13 | FP25: 631.01 | FQ25: 2.533856e-12 | FR25: -1.511557e-13 | FS25: 631.01 | FT25: 2.533058e-12 | FU25: -1.568579e-13 | FV25: 631.01 | FW25: 2.535375e-12 | FX25: -1.667307e-13 | FY25: 631.01 | FZ25: 2.540177e-12 | GA25: -1.785746e-13 | GB25: 631.01 | GC25: 2.541925e-12 | GD25: -1.832513e-13 | GE25: 631.01 | GF25: 2.53341e-12 | GG25: -1.749501e-13 | GH25: 631.01 | GI25: 2.511553e-12 | GJ25: -1.516796e-13 | GK25: 631.01 | GL25: 2.487085e-12 | GM25: -1.193226e-13 | GN25: 631.01 | GO25: 2.458281e-12 | GP25: -8.795546e-14 | GQ25: 631.01 | GR25: 2.435633e-12 | GS25: -6.568064e-14 | GT25: 631.01 | GU25: 2.42473e-12 | GV25: -5.866607e-14 | GW25: 631.01 | GX25: 2.413767e-12 | GY25: -5.455011e-14 | GZ25: 631.01 | HA25: 2.406623e-12 | HB25: -5.439542e-14 | HC25: 631.01 | HD25: 2.398811e-12 | HE25: -5.479213e-14 | HF25: 631.01 | HG25: 2.391808e-12 | HH25: -5.832798e-14 | HI25: 631.01 | HJ25: 2.383425e-12 | HK25: -6.286382e-14 | HL25: 631.01 | HM25: 2.376645e-12 | HN25: -7.130385e-14 | HO25: 631.01 | HP25: 2.366612e-12 | HQ25: -8.746435e-14 | HR25: 631.01 | HS25: 2.355584e-12 | HT25: -1.079248e-13 | HU25: 631.01 | HV25: 2.340947e-12 | HW25: -1.362624e-13 | HX25: 631.01 | HY25: 2.318803e-12 | HZ25: -1.730882e-13 | IA25: 631.01 | IB25: 2.290071e-12 | IC25: -2.133191e-13 | ID25: 631.01 | IE25: 2.253619e-12 | IF25: -2.535424e-13 | IG25: 631.01 | IH25: 2.205817e-12 | II25: -2.953788e-13 | IJ25: 631.01 | IK25: 2.149426e-12 | IL25: -3.319879e-13 | IM25: 631.01 | IN25: 2.08232e-12 | IO25: -3.626525e-13 | IP25: 631.01 | IQ25: 2.021424e-12 | IR25: -3.816511e-13 | IS25: 631.01 | IT25: 1.966021e-12 | IU25: -3.91818e-13 | IV25: 631.01 | IW25: 1.914801e-12 | IX25: -3.963763e-13 | IY25: 631.01 | IZ25: 1.869895e-12 | JA25: -3.955008e-13 | JB25: 631.01 | JC25: 1.829866e-12 | JD25: -3.933067e-13 | JE25: 631.01 | JF25: 1.793485e-12 | JG25: -3.878386e-13 | JH25: 631.01 | JI25: 1.762627e-12 | JJ25: -3.809162e-13 | JK25: 631.01 | JL25: 1.734804e-12 | JM25: -3.734667e-13 | JN25: 631.01 | JO25: 1.712034e-12 | JP25: -3.664338e-13 | JQ25: 631.01 | JR25: 1.693372e-12 | JS25: -3.595979e-13 | JT25: 631.01 | JU25: 1.67774e-12 | JV25: -3.536262e-13 | JW25: 631.01 | JX25: 1.664033e-12 | JY25: -3.483342e-13 | JZ25: 631.01 | KA25: 1.653786e-12 | KB25: -3.424957e-13 | KC25: 631.01 | KD25: 1.643975e-12 | KE25: -3.385685e-13 | KF25: 631.01 | KG25: 1.635166e-12 | KH25: -3.343111e-13 | KI25: 631.01 | KJ25: 1.627793e-12 | KK25: -3.300211e-13 | KL25: 631.01 | KM25: 1.622334e-12 | KN25: -3.275403e-13 | KO25: 631.01 | KP25: 1.617107e-12 | KQ25: -3.254496e-13 | KR25: 631.01 | KS25: 1.612924e-12 | KT25: -3.226276e-13 | KU25: 631.01 | KV25: 1.608221e-12 | KW25: -3.205673e-13 | KX25: 631.01 | KY25: 1.603553e-12 | KZ25: -3.173945e-13 | LA25: 631.01 | LB25: 1.59945e-12 | LC25: -3.151485e-13 | LD25: 631.01 | LE25: 1.595292e-12 | LF25: -3.128239e-13 | LG25: 631.01 | LH25: 1.59278e-12 | LI25: -3.112255e-13 | LJ25: 631.01 | LK25: 1.589973e-12 | LL25: -3.098278e-13 | LM25: 631.01 | LN25: 1.587206e-12 | LO25: -3.083613e-13 | LP25: 631.01 | LQ25: 1.585003e-12 | LR25: -3.071827e-13 | LS25: 631.01 | LT25: 1.582897e-12 | LU25: -3.057801e-13 | LV25: 631.01 | LW25: 1.580807e-12 | LX25: -3.046322e-13 | LY25: 631.01 | LZ25: 1.57857e-12 | MA25: -3.030424e-13 | MB25: 631.01 | MC25: 1.576612e-12 | MD25: -3.021524e-13 | ME25: 631.01 | MF25: 1.57501e-12 | MG25: -3.009339e-13 | MH25: 631.01 | MI25: 1.573483e-12 | MJ25: -3.000879e-13 | MK25: 631.01 | ML25: 1.571547e-12 | MM25: -2.991804e-13 | MN25: 631.01 | MO25: 1.56979e-12 | MP25: -2.97834e-13 | MQ25: 631.01 | MR25: 1.56881e-12 | MS25: -2.972855e-13 | MT25: 631.01 | MU25: 1.567914e-12 | MV25: -2.968033e-13 | MW25: 631.01 | MX25: 1.566762e-12 | MY25: -2.958744e-13 | MZ25: 631.01 | NA25: 1.565478e-12 | NB25: -2.952855e-13 | NC25: 631.01 | ND25: 1.564519e-12 | NE25: -2.94425e-13 | NF25: 631.01 | NG25: 1.563305e-12 | NH25: -2.933918e-13 | NI25: 631.01 | NJ25: 1.56261e-12 | NK25: -2.935193e-13 | NL25: 631.01 | NM25: 1.561717e-12 | NN25: -2.930533e-13 | NO25: 631.01 | NP25: 1.561054e-12 | NQ25: -2.925488e-13 | NR25: 631.01 | NS25: 1.560593e-12 | NT25: -2.918017e-13 | NU25: 631.01 | NV25: 1.560249e-12 | NW25: -2.918611e-13 | NX25: 631.01 | NY25: 1.559709e-12 | NZ25: -2.910419e-13 | OA25: 631.01 | OB25: 1.559616e-12 | OC25: -2.910059e-13 | OD25: 631.01 | OE25: 1.558768e-12 | OF25: -2.907102e-13 | OG25: 631.01 | OH25: 1.558132e-12 | OI25: -2.901442e-13 | OJ25: 631.01 | OK25: 1.55819e-12 | OL25: -2.891633e-13 | OM25: 631.01 | ON25: 1.556625e-12 | OO25: -2.893503e-13 | OP25: 631.01 | OQ25: 1.556148e-12 | OR25: -2.886555e-13 | OS25: 631.01 | OT25: 1.555364e-12 | OU25: -2.887583e-13 | OV25: 631.01 | OW25: 1.554833e-12 | OX25: -2.882038e-13 | OY25: 631.01 | OZ25: 1.554267e-12 | PA25: -2.880184e-13 | PB25: 631.01 | PC25: 1.55443e-12 | PD25: -2.875929e-13 | PE25: 631.01 | PF25: 1.554171e-12 | PG25: -2.874403e-13 | PH25: 631.01 | PI25: 1.553175e-12 | PJ25: -2.869956e-13 | PK25: 631.01 | PL25: 1.552493e-12 | PM25: -2.868407e-13 | PN25: 631.01 | PO25: 1.551976e-12 | PP25: -2.857023e-13 | PQ25: 631.01 | PR25: 1.551371e-12 | PS25: -2.859046e-13 | PT25: 631.01 | PU25: 1.550608e-12 | PV25: -2.851388e-13 | PW25: 631.01 | PX25: 1.550242e-12 | PY25: -2.84715e-13 | PZ25: 631.01 | QA25: 1.550952e-12 | QB25: -2.853436e-13 | QC25: 631.01 | QD25: 1.554127e-12 | QE25: -2.867237e-13 | QF25: 631.01 | QG25: 1.558258e-12 | QH25: -2.892641e-13 | QI25: 631.01 | QJ25: 1.562967e-12 | QK25: -2.923245e-13
A26: 794.44 | B26: 2.779708e-12 | C26: -2.570082e-13 | D26: 794.44 | E26: 2.763517e-12 | F26: -2.569073e-13 | G26: 794.44 | H26: 2.753549e-12 | I26: -2.560199e-13 | J26: 794.44 | K26: 2.742589e-12 | L26: -2.507026e-13 | M26: 794.44 | N26: 2.736793e-12 | O26: -2.475428e-13 | P26: 794.44 | Q26: 2.731186e-12 | R26: -2.449457e-13 | S26: 794.44 | T26: 2.727494e-12 | U26: -2.421832e-13 | V26: 794.44 | W26: 2.724962e-12 | X26: -2.406222e-13 | Y26: 794.44 | Z26: 2.722636e-12 | AA26: -2.392048e-13 | AB26: 794.44 | AC26: 2.722215e-12 | AD26: -2.3622e-13 | AE26: 794.44 | AF26: 2.719759e-12 | AG26: -2.372939e-13 | AH26: 794.44 | AI26: 2.718733e-12 | AJ26: -2.36687e-13 | AK26: 794.44 | AL26: 2.718299e-12 | AM26: -2.350679e-13 | AN26: 794.44 | AO26: 2.715483e-12 | AP26: -2.3393e-13 | AQ26: 794.44 | AR26: 2.712651e-12 | AS26: -2.352906e-13 | AT26: 794.44 | AU26: 2.714764e-12 | AV26: -2.348172e-13 | AW26: 794.44 | AX26: 2.713699e-12 | AY26: -2.346693e-13 | AZ26: 794.44 | BA26: 2.708818e-12 | BB26: -2.340405e-13 | BC26: 794.44 | BD26: 2.705895e-12 | BE26: -2.316972e-13 | BF26: 794.44 | BG26: 2.6975e-12 | BH26: -2.270114e-13 | BI26: 794.44 | BJ26: 2.693888e-12 | BK26: -2.258076e-13 | BL26: 794.44 | BM26: 2.685817e-12 | BN26: -2.224839e-13 | BO26: 794.44 | BP26: 2.677961e-12 | BQ26: -2.183737e-13 | BR26: 794.44 | BS26: 2.670434e-12 | BT26: -2.147475e-13 | BU26: 794.44 | BV26: 2.662012e-12 | BW26: -2.104339e-13 | BX26: 794.44 | BY26: 2.6536e-12 | BZ26: -2.063876e-13 | CA26: 794.44 | CB26: 2.644682e-12 | CC26: -2.015756e-13 | CD26: 794.44 | CE26: 2.635783e-12 | CF26: -1.951244e-13 | CG26: 794.44 | CH26: 2.627331e-12 | CI26: -1.933603e-13 | CJ26: 794.44 | CK26: 2.619643e-12 | CL26: -1.884066e-13 | CM26: 794.44 | CN26: 2.610325e-12 | CO26: -1.832877e-13 | CP26: 794.44 | CQ26: 2.630267e-12 | CR26: -1.8666e-13 | CS26: 794.44 | CT26: 2.593821e-12 | CU26: -1.739604e-13 | CV26: 794.44 | CW26: 2.586274e-12 | CX26: -1.700017e-13 | CY26: 794.44 | CZ26: 2.57617e-12 | DA26: -1.637863e-13 | DB26: 794.44 | DC26: 2.570538e-12 | DD26: -1.604413e-13 | DE26: 794.44 | DF26: 2.563117e-12 | DG26: -1.553537e-13 | DH26: 794.44 | DI26: 2.555389e-12 | DJ26: -1.514628e-13 | DK26: 794.44 | DL26: 2.54762e-12 | DM26: -1.474534e-13 | DN26: 794.44 | DO26: 2.538226e-12 | DP26: -1.418054e-13 | DQ26: 794.44 | DR26: 2.531319e-12 | DS26: -1.381209e-13 | DT26: 794.44 | DU26: 2.523789e-12 | DV26: -1.357681e-13 | DW26: 794.44 | DX26: 2.517487e-12 | DY26: -1.291176e-13 | DZ26: 794.44 | EA26: 2.512613e-12 | EB26: -1.263589e-13 | EC26: 794.44 | ED26: 2.504389e-12 | EE26: -1.22188e-13 | EF26: 794.44 | EG26: 2.498684e-12 | EH26: -1.150512e-13 | EI26: 794.44 | EJ26: 2.490063e-12 | EK26: -1.094649e-13 | EL26: 794.44 | EM26: 2.483051e-12 | EN26: -1.065918e-13 | EO26: 794.44 | EP26: 2.476864e-12 | EQ26: -1.012518e-13 | ER26: 794.44 | ES26: 2.472243e-12 | ET26: -9.837515e-14 | EU26: 794.44 | EV26: 2.464229e-12 | EW26: -9.50029e-14 | EX26: 794.44 | EY26: 2.458608e-12 | EZ26: -9.102093e-14 | FA26: 794.44 | FB26: 2.453497e-12 | FC26: -8.813853e-14 | FD26: 794.44 | FE26: 2.452229e-12 | FF26: -8.605566e-14 | FG26: 794.44 | FH26: 2.451849e-12 | FI26: -8.37071e-14 | FJ26: 794.44 | FK26: 2.537373e-12 | FL26: -1.743675e-13 | FM26: 794.44 | FN26: 2.514766e-12 | FO26: -1.376241e-13 | FP26: 794.44 | FQ26: 2.513835e-12 | FR26: -1.37401e-13 | FS26: 794.44 | FT26: 2.514262e-12 | FU26: -1.393042e-13 | FV26: 794.44 | FW26: 2.514729e-12 | FX26: -1.455648e-13 | FY26: 794.44 | FZ26: 2.517879e-12 | GA26: -1.585878e-13 | GB26: 794.44 | GC26: 2.520745e-12 | GD26: -1.610115e-13 | GE26: 794.44 | GF26: 2.51212e-12 | GG26: -1.532781e-13 | GH26: 794.44 | GI26: 2.495784e-12 | GJ26: -1.325499e-13 | GK26: 794.44 | GL26: 2.474317e-12 | GM26: -1.041397e-13 | GN26: 794.44 | GO26: 2.450614e-12 | GP26: -7.826926e-14 | GQ26: 794.44 | GR26: 2.430262e-12 | GS26: -6.041804e-14 | GT26: 794.44 | GU26: 2.41784e-12 | GV26: -5.408142e-14 | GW26: 794.44 | GX26: 2.407969e-12 | GY26: -5.221734e-14 | GZ26: 794.44 | HA26: 2.401159e-12 | HB26: -4.991079e-14 | HC26: 794.44 | HD26: 2.392966e-12 | HE26: -5.59311e-14 | HF26: 794.44 | HG26: 2.385578e-12 | HH26: -5.878743e-14 | HI26: 794.44 | HJ26: 2.378182e-12 | HK26: -6.716221e-14 | HL26: 794.44 | HM26: 2.370147e-12 | HN26: -7.896093e-14 | HO26: 794.44 | HP26: 2.360037e-12 | HQ26: -9.755464e-14 | HR26: 794.44 | HS26: 2.346647e-12 | HT26: -1.238623e-13 | HU26: 794.44 | HV26: 2.328147e-12 | HW26: -1.57608e-13 | HX26: 794.44 | HY26: 2.300798e-12 | HZ26: -1.999101e-13 | IA26: 794.44 | IB26: 2.264906e-12 | IC26: -2.465938e-13 | ID26: 794.44 | IE26: 2.219247e-12 | IF26: -2.874075e-13 | IG26: 794.44 | IH26: 2.16083e-12 | II26: -3.297183e-13 | IJ26: 794.44 | IK26: 2.093827e-12 | IL26: -3.649732e-13 | IM26: 794.44 | IN26: 2.02351e-12 | IO26: -3.916656e-13 | IP26: 794.44 | IQ26: 1.956823e-12 | IR26: -4.030323e-13 | IS26: 794.44 | IT26: 1.900699e-12 | IU26: -4.074705e-13 | IV26: 794.44 | IW26: 1.849881e-12 | IX26: -4.081309e-13 | IY26: 794.44 | IZ26: 1.805414e-12 | JA26: -4.041039e-13 | JB26: 794.44 | JC26: 1.766784e-12 | JD26: -3.97772e-13 | JE26: 794.44 | JF26: 1.733296e-12 | JG26: -3.896843e-13 | JH26: 794.44 | JI26: 1.704305e-12 | JJ26: -3.814361e-13 | JK26: 794.44 | JL26: 1.679838e-12 | JM26: -3.721415e-13 | JN26: 794.44 | JO26: 1.658908e-12 | JP26: -3.645709e-13 | JQ26: 794.44 | JR26: 1.641998e-12 | JS26: -3.576928e-13 | JT26: 794.44 | JU26: 1.627832e-12 | JV26: -3.510497e-13 | JW26: 794.44 | JX26: 1.615668e-12 | JY26: -3.45617e-13 | JZ26: 794.44 | KA26: 1.60623e-12 | KB26: -3.411791e-13 | KC26: 794.44 | KD26: 1.597676e-12 | KE26: -3.363676e-13 | KF26: 794.44 | KG26: 1.590698e-12 | KH26: -3.32495e-13 | KI26: 794.44 | KJ26: 1.585075e-12 | KK26: -3.283025e-13 | KL26: 794.44 | KM26: 1.579293e-12 | KN26: -3.259181e-13 | KO26: 794.44 | KP26: 1.574733e-12 | KQ26: -3.237454e-13 | KR26: 794.44 | KS26: 1.570811e-12 | KT26: -3.214639e-13 | KU26: 794.44 | KV26: 1.566829e-12 | KW26: -3.190577e-13 | KX26: 794.44 | KY26: 1.562751e-12 | KZ26: -3.166113e-13 | LA26: 794.44 | LB26: 1.558925e-12 | LC26: -3.142844e-13 | LD26: 794.44 | LE26: 1.555451e-12 | LF26: -3.124723e-13 | LG26: 794.44 | LH26: 1.553589e-12 | LI26: -3.117205e-13 | LJ26: 794.44 | LK26: 1.550401e-12 | LL26: -3.096186e-13 | LM26: 794.44 | LN26: 1.548382e-12 | LO26: -3.083078e-13 | LP26: 794.44 | LQ26: 1.546165e-12 | LR26: -3.06517e-13 | LS26: 794.44 | LT26: 1.544344e-12 | LU26: -3.060602e-13 | LV26: 794.44 | LW26: 1.542425e-12 | LX26: -3.052025e-13 | LY26: 794.44 | LZ26: 1.540769e-12 | MA26: -3.046937e-13 | MB26: 794.44 | MC26: 1.536891e-12 | MD26: -3.028219e-13 | ME26: 794.44 | MF26: 1.537246e-12 | MG26: -3.016304e-13 | MH26: 794.44 | MI26: 1.53614e-12 | MJ26: -3.011001e-13 | MK26: 794.44 | ML26: 1.534389e-12 | MM26: -2.9957e-13 | MN26: 794.44 | MO26: 1.533171e-12 | MP26: -2.970535e-13 | MQ26: 794.44 | MR26: 1.532078e-12 | MS26: -2.984621e-13 | MT26: 794.44 | MU26: 1.531475e-12 | MV26: -2.980082e-13 | MW26: 794.44 | MX26: 1.530715e-12 | MY26: -2.972951e-13 | MZ26: 794.44 | NA26: 1.529551e-12 | NB26: -2.9629e-13 | NC26: 794.44 | ND26: 1.528558e-12 | NE26: -2.961641e-13 | NF26: 794.44 | NG26: 1.527207e-12 | NH26: -2.956337e-13 | NI26: 794.44 | NJ26: 1.526653e-12 | NK26: -2.947474e-13 | NL26: 794.44 | NM26: 1.528119e-12 | NN26: -2.946587e-13 | NO26: 794.44 | NP26: 1.525797e-12 | NQ26: -2.942876e-13 | NR26: 794.44 | NS26: 1.524733e-12 | NT26: -2.930577e-13 | NU26: 794.44 | NV26: 1.524554e-12 | NW26: -2.931807e-13 | NX26: 794.44 | NY26: 1.52438e-12 | NZ26: -2.910148e-13 | OA26: 794.44 | OB26: 1.524161e-12 | OC26: -2.928683e-13 | OD26: 794.44 | OE26: 1.523317e-12 | OF26: -2.927128e-13 | OG26: 794.44 | OH26: 1.522737e-12 | OI26: -2.922229e-13 | OJ26: 794.44 | OK26: 1.522711e-12 | OL26: -2.926129e-13 | OM26: 794.44 | ON26: 1.521627e-12 | OO26: -2.914454e-13 | OP26: 794.44 | OQ26: 1.521154e-12 | OR26: -2.910128e-13 | OS26: 794.44 | OT26: 1.520499e-12 | OU26: -2.903924e-13 | OV26: 794.44 | OW26: 1.520227e-12 | OX26: -2.901046e-13 | OY26: 794.44 | OZ26: 1.519755e-12 | PA26: -2.896735e-13 | PB26: 794.44 | PC26: 1.519509e-12 | PD26: -2.88998e-13 | PE26: 794.44 | PF26: 1.518645e-12 | PG26: -2.892345e-13 | PH26: 794.44 | PI26: 1.518937e-12 | PJ26: -2.891446e-13 | PK26: 794.44 | PL26: 1.518022e-12 | PM26: -2.885398e-13 | PN26: 794.44 | PO26: 1.517478e-12 | PP26: -2.886198e-13 | PQ26: 794.44 | PR26: 1.517714e-12 | PS26: -2.880214e-13 | PT26: 794.44 | PU26: 1.516738e-12 | PV26: -2.882254e-13 | PW26: 794.44 | PX26: 1.516101e-12 | PY26: -2.872462e-13 | PZ26: 794.44 | QA26: 1.517208e-12 | QB26: -2.876815e-13 | QC26: 794.44 | QD26: 1.519108e-12 | QE26: -2.887117e-13 | QF26: 794.44 | QG26: 1.523187e-12 | QH26: -2.904389e-13 | QI26: 794.44 | QJ26: 1.527952e-12 | QK26: -2.927961e-13
A27: 1000 | B27: 2.742115e-12 | C27: -2.366104e-13 | D27: 1000 | E27: 2.724975e-12 | F27: -2.387744e-13 | G27: 1000 | H27: 2.7162e-12 | I27: -2.369949e-13 | J27: 1000 | K27: 2.707142e-12 | L27: -2.320381e-13 | M27: 1000 | N27: 2.700925e-12 | O27: -2.288672e-13 | P27: 1000 | Q27: 2.69598e-12 | R27: -2.257848e-13 | S27: 1000 | T27: 2.692824e-12 | U27: -2.229409e-13 | V27: 1000 | W27: 2.691166e-12 | X27: -2.217311e-13 | Y27: 1000 | Z27: 2.68878e-12 | AA27: -2.204546e-13 | AB27: 1000 | AC27: 2.687236e-12 | AD27: -2.174414e-13 | AE27: 1000 | AF27: 2.687732e-12 | AG27: -2.192212e-13 | AH27: 1000 | AI27: 2.684892e-12 | AJ27: -2.162192e-13 | AK27: 1000 | AL27: 2.684557e-12 | AM27: -2.1743e-13 | AN27: 1000 | AO27: 2.683363e-12 | AP27: -2.168248e-13 | AQ27: 1000 | AR27: 2.682815e-12 | AS27: -2.170768e-13 | AT27: 1000 | AU27: 2.681223e-12 | AV27: -2.152425e-13 | AW27: 1000 | AX27: 2.68079e-12 | AY27: -2.156421e-13 | AZ27: 1000 | BA27: 2.67801e-12 | BB27: -2.151969e-13 | BC27: 1000 | BD27: 2.673877e-12 | BE27: -2.132375e-13 | BF27: 1000 | BG27: 2.668129e-12 | BH27: -2.097544e-13 | BI27: 1000 | BJ27: 2.662402e-12 | BK27: -2.068626e-13 | BL27: 1000 | BM27: 2.655809e-12 | BN27: -2.056301e-13 | BO27: 1000 | BP27: 2.647317e-12 | BQ27: -2.009259e-13 | BR27: 1000 | BS27: 2.642593e-12 | BT27: -1.972823e-13 | BU27: 1000 | BV27: 2.633899e-12 | BW27: -1.923638e-13 | BX27: 1000 | BY27: 2.625915e-12 | BZ27: -1.886846e-13 | CA27: 1000 | CB27: 2.61832e-12 | CC27: -1.841343e-13 | CD27: 1000 | CE27: 2.611e-12 | CF27: -1.800677e-13 | CG27: 1000 | CH27: 2.603011e-12 | CI27: -1.75487e-13 | CJ27: 1000 | CK27: 2.59551e-12 | CL27: -1.711012e-13 | CM27: 1000 | CN27: 2.587352e-12 | CO27: -1.664954e-13 | CP27: 1000 | CQ27: 2.607365e-12 | CR27: -1.677165e-13 | CS27: 1000 | CT27: 2.572423e-12 | CU27: -1.573611e-13 | CV27: 1000 | CW27: 2.565596e-12 | CX27: -1.531621e-13 | CY27: 1000 | CZ27: 2.558244e-12 | DA27: -1.490872e-13 | DB27: 1000 | DC27: 2.551385e-12 | DD27: -1.446305e-13 | DE27: 1000 | DF27: 2.544489e-12 | DG27: -1.422537e-13 | DH27: 1000 | DI27: 2.536563e-12 | DJ27: -1.342774e-13 | DK27: 1000 | DL27: 2.529645e-12 | DM27: -1.312535e-13 | DN27: 1000 | DO27: 2.521687e-12 | DP27: -1.277126e-13 | DQ27: 1000 | DR27: 2.514428e-12 | DS27: -1.240469e-13 | DT27: 1000 | DU27: 2.509738e-12 | DV27: -1.209647e-13 | DW27: 1000 | DX27: 2.502905e-12 | DY27: -1.163428e-13 | DZ27: 1000 | EA27: 2.498022e-12 | EB27: -1.131186e-13 | EC27: 1000 | ED27: 2.491521e-12 | EE27: -1.09716e-13 | EF27: 1000 | EG27: 2.484847e-12 | EH27: -1.036276e-13 | EI27: 1000 | EJ27: 2.477074e-12 | EK27: -9.935248e-14 | EL27: 1000 | EM27: 2.471726e-12 | EN27: -9.610411e-14 | EO27: 1000 | EP27: 2.46718e-12 | EQ27: -9.214343e-14 | ER27: 1000 | ES27: 2.459902e-12 | ET27: -8.906889e-14 | EU27: 1000 | EV27: 2.454243e-12 | EW27: -8.565411e-14 | EX27: 1000 | EY27: 2.448133e-12 | EZ27: -8.193243e-14 | FA27: 1000 | FB27: 2.444876e-12 | FC27: -7.984534e-14 | FD27: 1000 | FE27: 2.442989e-12 | FF27: -7.991012e-14 | FG27: 1000 | FH27: 2.441214e-12 | FI27: -7.712706e-14 | FJ27: 1000 | FK27: 2.514804e-12 | FL27: -1.565176e-13 | FM27: 1000 | FN27: 2.49958e-12 | FO27: -1.245363e-13 | FP27: 1000 | FQ27: 2.498021e-12 | FR27: -1.235235e-13 | FS27: 1000 | FT27: 2.497627e-12 | FU27: -1.258853e-13 | FV27: 1000 | FW27: 2.497663e-12 | FX27: -1.323966e-13 | FY27: 1000 | FZ27: 2.499346e-12 | GA27: -1.419108e-13 | GB27: 1000 | GC27: 2.499643e-12 | GD27: -1.431299e-13 | GE27: 1000 | GF27: 2.493999e-12 | GG27: -1.356262e-13 | GH27: 1000 | GI27: 2.481715e-12 | GJ27: -1.177464e-13 | GK27: 1000 | GL27: 2.464634e-12 | GM27: -9.434876e-14 | GN27: 1000 | GO27: 2.443431e-12 | GP27: -7.157586e-14 | GQ27: 1000 | GR27: 2.424826e-12 | GS27: -5.806452e-14 | GT27: 1000 | GU27: 2.412858e-12 | GV27: -5.245488e-14 | GW27: 1000 | GX27: 2.401863e-12 | GY27: -5.036246e-14 | GZ27: 1000 | HA27: 2.395726e-12 | HB27: -5.247428e-14 | HC27: 1000 | HD27: 2.388481e-12 | HE27: -5.581897e-14 | HF27: 1000 | HG27: 2.381032e-12 | HH27: -6.237657e-14 | HI27: 1000 | HJ27: 2.372537e-12 | HK27: -7.22629e-14 | HL27: 1000 | HM27: 2.363355e-12 | HN27: -8.873826e-14 | HO27: 1000 | HP27: 2.35225e-12 | HQ27: -1.115097e-13 | HR27: 1000 | HS27: 2.335905e-12 | HT27: -1.432191e-13 | HU27: 1000 | HV27: 2.312328e-12 | HW27: -1.828876e-13 | HX27: 1000 | HY27: 2.277767e-12 | HZ27: -2.311459e-13 | IA27: 1000 | IB27: 2.230623e-12 | IC27: -2.815633e-13 | ID27: 1000 | IE27: 2.175587e-12 | IF27: -3.254228e-13 | IG27: 1000 | IH27: 2.108676e-12 | II27: -3.651386e-13 | IJ27: 1000 | IK27: 2.033921e-12 | IL27: -3.953092e-13 | IM27: 1000 | IN27: 1.957083e-12 | IO27: -4.13833e-13 | IP27: 1000 | IQ27: 1.890681e-12 | IR27: -4.207224e-13 | IS27: 1000 | IT27: 1.835045e-12 | IU27: -4.209004e-13 | IV27: 1000 | IW27: 1.785359e-12 | IX27: -4.169984e-13 | IY27: 1000 | IZ27: 1.742642e-12 | JA27: -4.088859e-13 | JB27: 1000 | JC27: 1.706584e-12 | JD27: -4.001206e-13 | JE27: 1000 | JF27: 1.67627e-12 | JG27: -3.907734e-13 | JH27: 1000 | JI27: 1.649932e-12 | JJ27: -3.813385e-13 | JK27: 1000 | JL27: 1.62756e-12 | JM27: -3.719817e-13 | JN27: 1000 | JO27: 1.609038e-12 | JP27: -3.640202e-13 | JQ27: 1000 | JR27: 1.594418e-12 | JS27: -3.568274e-13 | JT27: 1000 | JU27: 1.582459e-12 | JV27: -3.505076e-13 | JW27: 1000 | JX27: 1.572062e-12 | JY27: -3.448767e-13 | JZ27: 1000 | KA27: 1.563671e-12 | KB27: -3.405791e-13 | KC27: 1000 | KD27: 1.556104e-12 | KE27: -3.369538e-13 | KF27: 1000 | KG27: 1.549721e-12 | KH27: -3.332119e-13 | KI27: 1000 | KJ27: 1.543349e-12 | KK27: -3.298659e-13 | KL27: 1000 | KM27: 1.539951e-12 | KN27: -3.274075e-13 | KO27: 1000 | KP27: 1.535407e-12 | KQ27: -3.251677e-13 | KR27: 1000 | KS27: 1.531866e-12 | KT27: -3.232123e-13 | KU27: 1000 | KV27: 1.528417e-12 | KW27: -3.21021e-13 | KX27: 1000 | KY27: 1.524731e-12 | KZ27: -3.194534e-13 | LA27: 1000 | LB27: 1.521695e-12 | LC27: -3.173955e-13 | LD27: 1000 | LE27: 1.517976e-12 | LF27: -3.15315e-13 | LG27: 1000 | LH27: 1.51623e-12 | LI27: -3.136545e-13 | LJ27: 1000 | LK27: 1.514327e-12 | LL27: -3.131273e-13 | LM27: 1000 | LN27: 1.512195e-12 | LO27: -3.12011e-13 | LP27: 1000 | LQ27: 1.510537e-12 | LR27: -3.105648e-13 | LS27: 1000 | LT27: 1.509443e-12 | LU27: -3.097059e-13 | LV27: 1000 | LW27: 1.506846e-12 | LX27: -3.093383e-13 | LY27: 1000 | LZ27: 1.505453e-12 | MA27: -3.080637e-13 | MB27: 1000 | MC27: 1.503635e-12 | MD27: -3.074163e-13 | ME27: 1000 | MF27: 1.502674e-12 | MG27: -3.058983e-13 | MH27: 1000 | MI27: 1.501541e-12 | MJ27: -3.055453e-13 | MK27: 1000 | ML27: 1.499924e-12 | MM27: -3.048276e-13 | MN27: 1000 | MO27: 1.498952e-12 | MP27: -3.037291e-13 | MQ27: 1000 | MR27: 1.498014e-12 | MS27: -3.036836e-13 | MT27: 1000 | MU27: 1.497525e-12 | MV27: -3.033335e-13 | MW27: 1000 | MX27: 1.496648e-12 | MY27: -3.027723e-13 | MZ27: 1000 | NA27: 1.495631e-12 | NB27: -3.02169e-13 | NC27: 1000 | ND27: 1.494571e-12 | NE27: -3.016748e-13 | NF27: 1000 | NG27: 1.493736e-12 | NH27: -3.01023e-13 | NI27: 1000 | NJ27: 1.49326e-12 | NK27: -3.006493e-13 | NL27: 1000 | NM27: 1.493054e-12 | NN27: -3.003887e-13 | NO27: 1000 | NP27: 1.492141e-12 | NQ27: -2.999274e-13 | NR27: 1000 | NS27: 1.491784e-12 | NT27: -2.996514e-13 | NU27: 1000 | NV27: 1.491392e-12 | NW27: -2.998342e-13 | NX27: 1000 | NY27: 1.491427e-12 | NZ27: -2.989977e-13 | OA27: 1000 | OB27: 1.490879e-12 | OC27: -2.988005e-13 | OD27: 1000 | OE27: 1.489879e-12 | OF27: -2.989334e-13 | OG27: 1000 | OH27: 1.490226e-12 | OI27: -2.981032e-13 | OJ27: 1000 | OK27: 1.489551e-12 | OL27: -2.978377e-13 | OM27: 1000 | ON27: 1.488576e-12 | OO27: -2.975414e-13 | OP27: 1000 | OQ27: 1.488297e-12 | OR27: -2.970805e-13 | OS27: 1000 | OT27: 1.48808e-12 | OU27: -2.968492e-13 | OV27: 1000 | OW27: 1.487562e-12 | OX27: -2.965872e-13 | OY27: 1000 | OZ27: 1.487228e-12 | PA27: -2.962609e-13 | PB27: 1000 | PC27: 1.486989e-12 | PD27: -2.960834e-13 | PE27: 1000 | PF27: 1.486816e-12 | PG27: -2.957461e-13 | PH27: 1000 | PI27: 1.486444e-12 | PJ27: -2.955137e-13 | PK27: 1000 | PL27: 1.485866e-12 | PM27: -2.953996e-13 | PN27: 1000 | PO27: 1.485416e-12 | PP27: -2.949794e-13 | PQ27: 1000 | PR27: 1.485138e-12 | PS27: -2.945214e-13 | PT27: 1000 | PU27: 1.484633e-12 | PV27: -2.942351e-13 | PW27: 1000 | PX27: 1.484057e-12 | PY27: -2.94122e-13 | PZ27: 1000 | QA27: 1.485036e-12 | QB27: -2.940122e-13 | QC27: 1000 | QD27: 1.487574e-12 | QE27: -2.946683e-13 | QF27: 1000 | QG27: 1.490839e-12 | QH27: -2.966288e-13 | QI27: 1000 | QJ27: 1.494446e-12 | QK27: -2.978095e-13
A28: 1259 | B28: 2.708493e-12 | C28: -2.178861e-13 | D28: 1259 | E28: 2.690869e-12 | F28: -2.213625e-13 | G28: 1259 | H28: 2.680988e-12 | I28: -2.170144e-13 | J28: 1259 | K28: 2.672258e-12 | L28: -2.138318e-13 | M28: 1259 | N28: 2.667431e-12 | O28: -2.091494e-13 | P28: 1259 | Q28: 2.663949e-12 | R28: -2.069023e-13 | S28: 1259 | T28: 2.660413e-12 | U28: -2.054153e-13 | V28: 1259 | W28: 2.660443e-12 | X28: -2.041149e-13 | Y28: 1259 | Z28: 2.658334e-12 | AA28: -2.019066e-13 | AB28: 1259 | AC28: 2.657156e-12 | AD28: -2.021755e-13 | AE28: 1259 | AF28: 2.656462e-12 | AG28: -2.000192e-13 | AH28: 1259 | AI28: 2.654751e-12 | AJ28: -1.993292e-13 | AK28: 1259 | AL28: 2.654557e-12 | AM28: -1.99487e-13 | AN28: 1259 | AO28: 2.652372e-12 | AP28: -1.989531e-13 | AQ28: 1259 | AR28: 2.652129e-12 | AS28: -1.990635e-13 | AT28: 1259 | AU28: 2.650421e-12 | AV28: -1.987606e-13 | AW28: 1259 | AX28: 2.651072e-12 | AY28: -1.981917e-13 | AZ28: 1259 | BA28: 2.647671e-12 | BB28: -1.971506e-13 | BC28: 1259 | BD28: 2.643347e-12 | BE28: -1.948235e-13 | BF28: 1259 | BG28: 2.639177e-12 | BH28: -1.926773e-13 | BI28: 1259 | BJ28: 2.634088e-12 | BK28: -1.892604e-13 | BL28: 1259 | BM28: 2.627301e-12 | BN28: -1.858087e-13 | BO28: 1259 | BP28: 2.62103e-12 | BQ28: -1.828446e-13 | BR28: 1259 | BS28: 2.614979e-12 | BT28: -1.792866e-13 | BU28: 1259 | BV28: 2.608318e-12 | BW28: -1.751781e-13 | BX28: 1259 | BY28: 2.600921e-12 | BZ28: -1.719364e-13 | CA28: 1259 | CB28: 2.594227e-12 | CC28: -1.68153e-13 | CD28: 1259 | CE28: 2.586899e-12 | CF28: -1.637062e-13 | CG28: 1259 | CH28: 2.579707e-12 | CI28: -1.588683e-13 | CJ28: 1259 | CK28: 2.574136e-12 | CL28: -1.5491e-13 | CM28: 1259 | CN28: 2.566412e-12 | CO28: -1.519247e-13 | CP28: 1259 | CQ28: 2.586782e-12 | CR28: -1.510758e-13 | CS28: 1259 | CT28: 2.552861e-12 | CU28: -1.428059e-13 | CV28: 1259 | CW28: 2.546827e-12 | CX28: -1.401203e-13 | CY28: 1259 | CZ28: 2.540178e-12 | DA28: -1.347841e-13 | DB28: 1259 | DC28: 2.533306e-12 | DD28: -1.308189e-13 | DE28: 1259 | DF28: 2.527073e-12 | DG28: -1.268804e-13 | DH28: 1259 | DI28: 2.520954e-12 | DJ28: -1.240974e-13 | DK28: 1259 | DL28: 2.514163e-12 | DM28: -1.202003e-13 | DN28: 1259 | DO28: 2.506747e-12 | DP28: -1.163532e-13 | DQ28: 1259 | DR28: 2.501173e-12 | DS28: -1.123594e-13 | DT28: 1259 | DU28: 2.49491e-12 | DV28: -1.102062e-13 | DW28: 1259 | DX28: 2.490202e-12 | DY28: -1.06381e-13 | DZ28: 1259 | EA28: 2.484149e-12 | EB28: -1.028994e-13 | EC28: 1259 | ED28: 2.479769e-12 | EE28: -1.001652e-13 | EF28: 1259 | EG28: 2.473424e-12 | EH28: -9.470296e-14 | EI28: 1259 | EJ28: 2.466198e-12 | EK28: -9.091243e-14 | EL28: 1259 | EM28: 2.461237e-12 | EN28: -8.820361e-14 | EO28: 1259 | EP28: 2.455538e-12 | EQ28: -8.464013e-14 | ER28: 1259 | ES28: 2.449942e-12 | ET28: -8.123853e-14 | EU28: 1259 | EV28: 2.444826e-12 | EW28: -7.879314e-14 | EX28: 1259 | EY28: 2.439914e-12 | EZ28: -7.640287e-14 | FA28: 1259 | FB28: 2.435291e-12 | FC28: -7.417491e-14 | FD28: 1259 | FE28: 2.434402e-12 | FF28: -7.253188e-14 | FG28: 1259 | FH28: 2.431118e-12 | FI28: -7.171267e-14 | FJ28: 1259 | FK28: 2.494569e-12 | FL28: -1.410942e-13 | FM28: 1259 | FN28: 2.483369e-12 | FO28: -1.124409e-13 | FP28: 1259 | FQ28: 2.483063e-12 | FR28: -1.125653e-13 | FS28: 1259 | FT28: 2.483224e-12 | FU28: -1.140279e-13 | FV28: 1259 | FW28: 2.482063e-12 | FX28: -1.185568e-13 | FY28: 1259 | FZ28: 2.48213e-12 | GA28: -1.243752e-13 | GB28: 1259 | GC28: 2.484155e-12 | GD28: -1.276584e-13 | GE28: 1259 | GF28: 2.479838e-12 | GG28: -1.20269e-13 | GH28: 1259 | GI28: 2.469081e-12 | GJ28: -1.051676e-13 | GK28: 1259 | GL28: 2.455698e-12 | GM28: -8.509641e-14 | GN28: 1259 | GO28: 2.435774e-12 | GP28: -6.662918e-14 | GQ28: 1259 | GR28: 2.418233e-12 | GS28: -5.422037e-14 | GT28: 1259 | GU28: 2.405846e-12 | GV28: -5.186404e-14 | GW28: 1259 | GX28: 2.396284e-12 | GY28: -5.014696e-14 | GZ28: 1259 | HA28: 2.389551e-12 | HB28: -5.373732e-14 | HC28: 1259 | HD28: 2.382609e-12 | HE28: -5.841828e-14 | HF28: 1259 | HG28: 2.375518e-12 | HH28: -6.774239e-14 | HI28: 1259 | HJ28: 2.365921e-12 | HK28: -8.071412e-14 | HL28: 1259 | HM28: 2.356777e-12 | HN28: -1.010368e-13 | HO28: 1259 | HP28: 2.342125e-12 | HQ28: -1.28895e-13 | HR28: 1259 | HS28: 2.32167e-12 | HT28: -1.673662e-13 | HU28: 1259 | HV28: 2.292014e-12 | HW28: -2.145334e-13 | HX28: 1259 | HY28: 2.247634e-12 | HZ28: -2.672447e-13 | IA28: 1259 | IB28: 2.189632e-12 | IC28: -3.203542e-13 | ID28: 1259 | IE28: 2.125425e-12 | IF28: -3.629133e-13 | IG28: 1259 | IH28: 2.048852e-12 | II28: -3.989412e-13 | IJ28: 1259 | IK28: 1.968919e-12 | IL28: -4.215906e-13 | IM28: 1259 | IN28: 1.888345e-12 | IO28: -4.330792e-13 | IP28: 1259 | IQ28: 1.823098e-12 | IR28: -4.34325e-13 | IS28: 1259 | IT28: 1.768687e-12 | IU28: -4.296842e-13 | IV28: 1259 | IW28: 1.721655e-12 | IX28: -4.221239e-13 | IY28: 1259 | IZ28: 1.682622e-12 | JA28: -4.121801e-13 | JB28: 1259 | JC28: 1.650197e-12 | JD28: -4.018926e-13 | JE28: 1259 | JF28: 1.622867e-12 | JG28: -3.922437e-13 | JH28: 1259 | JI28: 1.599114e-12 | JJ28: -3.827008e-13 | JK28: 1259 | JL28: 1.579265e-12 | JM28: -3.729814e-13 | JN28: 1259 | JO28: 1.563809e-12 | JP28: -3.658198e-13 | JQ28: 1259 | JR28: 1.550646e-12 | JS28: -3.593168e-13 | JT28: 1259 | JU28: 1.539484e-12 | JV28: -3.533922e-13 | JW28: 1259 | JX28: 1.530623e-12 | JY28: -3.48918e-13 | JZ28: 1259 | KA28: 1.523e-12 | KB28: -3.449001e-13 | KC28: 1259 | KD28: 1.516829e-12 | KE28: -3.416436e-13 | KF28: 1259 | KG28: 1.511081e-12 | KH28: -3.382509e-13 | KI28: 1259 | KJ28: 1.505424e-12 | KK28: -3.35009e-13 | KL28: 1259 | KM28: 1.501708e-12 | KN28: -3.332513e-13 | KO28: 1259 | KP28: 1.498055e-12 | KQ28: -3.315892e-13 | KR28: 1259 | KS28: 1.495355e-12 | KT28: -3.296797e-13 | KU28: 1259 | KV28: 1.491957e-12 | KW28: -3.281677e-13 | KX28: 1259 | KY28: 1.48911e-12 | KZ28: -3.265093e-13 | LA28: 1259 | LB28: 1.486404e-12 | LC28: -3.253242e-13 | LD28: 1259 | LE28: 1.483674e-12 | LF28: -3.2391e-13 | LG28: 1259 | LH28: 1.481399e-12 | LI28: -3.22928e-13 | LJ28: 1259 | LK28: 1.479207e-12 | LL28: -3.220453e-13 | LM28: 1259 | LN28: 1.477623e-12 | LO28: -3.210235e-13 | LP28: 1259 | LQ28: 1.475827e-12 | LR28: -3.198681e-13 | LS28: 1259 | LT28: 1.475235e-12 | LU28: -3.193414e-13 | LV28: 1259 | LW28: 1.473067e-12 | LX28: -3.182393e-13 | LY28: 1259 | LZ28: 1.471631e-12 | MA28: -3.178444e-13 | MB28: 1259 | MC28: 1.470847e-12 | MD28: -3.17273e-13 | ME28: 1259 | MF28: 1.469035e-12 | MG28: -3.16807e-13 | MH28: 1259 | MI28: 1.468226e-12 | MJ28: -3.163431e-13 | MK28: 1259 | ML28: 1.466947e-12 | MM28: -3.15277e-13 | MN28: 1259 | MO28: 1.466342e-12 | MP28: -3.148871e-13 | MQ28: 1259 | MR28: 1.464787e-12 | MS28: -3.144015e-13 | MT28: 1259 | MU28: 1.464823e-12 | MV28: -3.139312e-13 | MW28: 1259 | MX28: 1.464096e-12 | MY28: -3.136437e-13 | MZ28: 1259 | NA28: 1.463071e-12 | NB28: -3.130282e-13 | NC28: 1259 | ND28: 1.462077e-12 | NE28: -3.129511e-13 | NF28: 1259 | NG28: 1.461039e-12 | NH28: -3.127178e-13 | NI28: 1259 | NJ28: 1.460999e-12 | NK28: -3.125061e-13 | NL28: 1259 | NM28: 1.460204e-12 | NN28: -3.116475e-13 | NO28: 1259 | NP28: 1.459906e-12 | NQ28: -3.118813e-13 | NR28: 1259 | NS28: 1.460051e-12 | NT28: -3.112121e-13 | NU28: 1259 | NV28: 1.459566e-12 | NW28: -3.109572e-13 | NX28: 1259 | NY28: 1.458905e-12 | NZ28: -3.10797e-13 | OA28: 1259 | OB28: 1.459018e-12 | OC28: -3.105005e-13 | OD28: 1259 | OE28: 1.458486e-12 | OF28: -3.100516e-13 | OG28: 1259 | OH28: 1.458425e-12 | OI28: -3.101016e-13 | OJ28: 1259 | OK28: 1.45784e-12 | OL28: -3.095141e-13 | OM28: 1259 | ON28: 1.457188e-12 | OO28: -3.093392e-13 | OP28: 1259 | OQ28: 1.456724e-12 | OR28: -3.091717e-13 | OS28: 1259 | OT28: 1.456185e-12 | OU28: -3.088744e-13 | OV28: 1259 | OW28: 1.456167e-12 | OX28: -3.084829e-13 | OY28: 1259 | OZ28: 1.455432e-12 | PA28: -3.087127e-13 | PB28: 1259 | PC28: 1.455642e-12 | PD28: -3.083267e-13 | PE28: 1259 | PF28: 1.455446e-12 | PG28: -3.079909e-13 | PH28: 1259 | PI28: 1.45468e-12 | PJ28: -3.080343e-13 | PK28: 1259 | PL28: 1.454263e-12 | PM28: -3.074668e-13 | PN28: 1259 | PO28: 1.454319e-12 | PP28: -3.07511e-13 | PQ28: 1259 | PR28: 1.453878e-12 | PS28: -3.06781e-13 | PT28: 1259 | PU28: 1.453338e-12 | PV28: -3.070958e-13 | PW28: 1259 | PX28: 1.452692e-12 | PY28: -3.063143e-13 | PZ28: 1259 | QA28: 1.453445e-12 | QB28: -3.065515e-13 | QC28: 1259 | QD28: 1.456266e-12 | QE28: -3.06917e-13 | QF28: 1259 | QG28: 1.459218e-12 | QH28: -3.07663e-13 | QI28: 1259 | QJ28: 1.462882e-12 | QK28: -3.084898e-13
A29: 1585.4 | B29: 2.678847e-12 | C29: -2.007572e-13 | D29: 1585.4 | E29: 2.659911e-12 | F29: -2.018343e-13 | G29: 1585.4 | H29: 2.651052e-12 | I29: -2.004131e-13 | J29: 1585.4 | K29: 2.643379e-12 | L29: -1.947893e-13 | M29: 1585.4 | N29: 2.639205e-12 | O29: -1.924437e-13 | P29: 1585.4 | Q29: 2.636225e-12 | R29: -1.897005e-13 | S29: 1585.4 | T29: 2.633733e-12 | U29: -1.874948e-13 | V29: 1585.4 | W29: 2.63171e-12 | X29: -1.849643e-13 | Y29: 1585.4 | Z29: 2.631024e-12 | AA29: -1.853574e-13 | AB29: 1585.4 | AC29: 2.629027e-12 | AD29: -1.841454e-13 | AE29: 1585.4 | AF29: 2.628848e-12 | AG29: -1.834286e-13 | AH29: 1585.4 | AI29: 2.628213e-12 | AJ29: -1.829765e-13 | AK29: 1585.4 | AL29: 2.627556e-12 | AM29: -1.826891e-13 | AN29: 1585.4 | AO29: 2.626562e-12 | AP29: -1.818113e-13 | AQ29: 1585.4 | AR29: 2.625899e-12 | AS29: -1.820675e-13 | AT29: 1585.4 | AU29: 2.62518e-12 | AV29: -1.812291e-13 | AW29: 1585.4 | AX29: 2.624048e-12 | AY29: -1.808564e-13 | AZ29: 1585.4 | BA29: 2.621823e-12 | BB29: -1.803608e-13 | BC29: 1585.4 | BD29: 2.618369e-12 | BE29: -1.782423e-13 | BF29: 1585.4 | BG29: 2.613848e-12 | BH29: -1.75396e-13 | BI29: 1585.4 | BJ29: 2.609101e-12 | BK29: -1.728049e-13 | BL29: 1585.4 | BM29: 2.603612e-12 | BN29: -1.702489e-13 | BO29: 1585.4 | BP29: 2.597711e-12 | BQ29: -1.663096e-13 | BR29: 1585.4 | BS29: 2.591784e-12 | BT29: -1.632797e-13 | BU29: 1585.4 | BV29: 2.585955e-12 | BW29: -1.591197e-13 | BX29: 1585.4 | BY29: 2.579589e-12 | BZ29: -1.562363e-13 | CA29: 1585.4 | CB29: 2.574551e-12 | CC29: -1.514002e-13 | CD29: 1585.4 | CE29: 2.567017e-12 | CF29: -1.487218e-13 | CG29: 1585.4 | CH29: 2.560652e-12 | CI29: -1.44843e-13 | CJ29: 1585.4 | CK29: 2.554353e-12 | CL29: -1.411899e-13 | CM29: 1585.4 | CN29: 2.54757e-12 | CO29: -1.380382e-13 | CP29: 1585.4 | CQ29: 2.569651e-12 | CR29: -1.37005e-13 | CS29: 1585.4 | CT29: 2.535984e-12 | CU29: -1.297603e-13 | CV29: 1585.4 | CW29: 2.53013e-12 | CX29: -1.265193e-13 | CY29: 1585.4 | CZ29: 2.523604e-12 | DA29: -1.231946e-13 | DB29: 1585.4 | DC29: 2.518311e-12 | DD29: -1.192484e-13 | DE29: 1585.4 | DF29: 2.512477e-12 | DG29: -1.158282e-13 | DH29: 1585.4 | DI29: 2.506679e-12 | DJ29: -1.122574e-13 | DK29: 1585.4 | DL29: 2.501161e-12 | DM29: -1.085849e-13 | DN29: 1585.4 | DO29: 2.493834e-12 | DP29: -1.051515e-13 | DQ29: 1585.4 | DR29: 2.488108e-12 | DS29: -1.03038e-13 | DT29: 1585.4 | DU29: 2.482971e-12 | DV29: -1.000631e-13 | DW29: 1585.4 | DX29: 2.477912e-12 | DY29: -9.708641e-14 | DZ29: 1585.4 | EA29: 2.472912e-12 | EB29: -9.434475e-14 | EC29: 1585.4 | ED29: 2.46808e-12 | EE29: -9.121549e-14 | EF29: 1585.4 | EG29: 2.462363e-12 | EH29: -8.706987e-14 | EI29: 1585.4 | EJ29: 2.456373e-12 | EK29: -8.365422e-14 | EL29: 1585.4 | EM29: 2.451192e-12 | EN29: -8.103734e-14 | EO29: 1585.4 | EP29: 2.445866e-12 | EQ29: -7.818635e-14 | ER29: 1585.4 | ES29: 2.441233e-12 | ET29: -7.597879e-14 | EU29: 1585.4 | EV29: 2.436284e-12 | EW29: -7.335838e-14 | EX29: 1585.4 | EY29: 2.433381e-12 | EZ29: -7.338459e-14 | FA29: 1585.4 | FB29: 2.426707e-12 | FC29: -6.85067e-14 | FD29: 1585.4 | FE29: 2.425945e-12 | FF29: -6.74294e-14 | FG29: 1585.4 | FH29: 2.423999e-12 | FI29: -6.650579e-14 | FJ29: 1585.4 | FK29: 2.478424e-12 | FL29: -1.261849e-13 | FM29: 1585.4 | FN29: 2.47156e-12 | FO29: -1.013761e-13 | FP29: 1585.4 | FQ29: 2.470895e-12 | FR29: -1.012847e-13 | FS29: 1585.4 | FT29: 2.469595e-12 | FU29: -1.014834e-13 | FV29: 1585.4 | FW29: 2.469077e-12 | FX29: -1.061904e-13 | FY29: 1585.4 | FZ29: 2.470338e-12 | GA29: -1.119614e-13 | GB29: 1585.4 | GC29: 2.469345e-12 | GD29: -1.134603e-13 | GE29: 1585.4 | GF29: 2.466631e-12 | GG29: -1.076559e-13 | GH29: 1585.4 | GI29: 2.459191e-12 | GJ29: -9.475133e-14 | GK29: 1585.4 | GL29: 2.446919e-12 | GM29: -7.761959e-14 | GN29: 1585.4 | GO29: 2.427881e-12 | GP29: -6.199408e-14 | GQ29: 1585.4 | GR29: 2.411687e-12 | GS29: -5.364663e-14 | GT29: 1585.4 | GU29: 2.40039e-12 | GV29: -5.04884e-14 | GW29: 1585.4 | GX29: 2.390958e-12 | GY29: -5.150298e-14 | GZ29: 1585.4 | HA29: 2.384239e-12 | HB29: -5.547343e-14 | HC29: 1585.4 | HD29: 2.377192e-12 | HE29: -6.296179e-14 | HF29: 1585.4 | HG29: 2.369521e-12 | HH29: -7.40276e-14 | HI29: 1585.4 | HJ29: 2.359873e-12 | HK29: -9.125925e-14 | HL29: 1585.4 | HM29: 2.347612e-12 | HN29: -1.168578e-13 | HO29: 1585.4 | HP29: 2.330906e-12 | HQ29: -1.510785e-13 | HR29: 1585.4 | HS29: 2.305318e-12 | HT29: -1.959046e-13 | HU29: 1585.4 | HV29: 2.267016e-12 | HW29: -2.487837e-13 | HX29: 1585.4 | HY29: 2.211606e-12 | HZ29: -3.065042e-13 | IA29: 1585.4 | IB29: 2.142297e-12 | IC29: -3.592806e-13 | ID29: 1585.4 | IE29: 2.067701e-12 | IF29: -3.98945e-13 | IG29: 1585.4 | IH29: 1.98516e-12 | II29: -4.287929e-13 | IJ29: 1585.4 | IK29: 1.90084e-12 | IL29: -4.450277e-13 | IM29: 1585.4 | IN29: 1.821099e-12 | IO29: -4.492206e-13 | IP29: 1585.4 | IQ29: 1.757369e-12 | IR29: -4.45473e-13 | IS29: 1585.4 | IT29: 1.705929e-12 | IU29: -4.375587e-13 | IV29: 1585.4 | IW29: 1.662929e-12 | IX29: -4.274274e-13 | IY29: 1585.4 | IZ29: 1.627479e-12 | JA29: -4.169988e-13 | JB29: 1585.4 | JC29: 1.597987e-12 | JD29: -4.061788e-13 | JE29: 1585.4 | JF29: 1.57355e-12 | JG29: -3.965681e-13 | JH29: 1585.4 | JI29: 1.552706e-12 | JJ29: -3.874366e-13 | JK29: 1585.4 | JL29: 1.5354e-12 | JM29: -3.793339e-13 | JN29: 1585.4 | JO29: 1.521093e-12 | JP29: -3.725107e-13 | JQ29: 1585.4 | JR29: 1.509523e-12 | JS29: -3.670792e-13 | JT29: 1585.4 | JU29: 1.499715e-12 | JV29: -3.621367e-13 | JW29: 1585.4 | JX29: 1.49183e-12 | JY29: -3.582905e-13 | JZ29: 1585.4 | KA29: 1.485328e-12 | KB29: -3.550113e-13 | KC29: 1585.4 | KD29: 1.479453e-12 | KE29: -3.523243e-13 | KF29: 1585.4 | KG29: 1.474124e-12 | KH29: -3.497928e-13 | KI29: 1585.4 | KJ29: 1.469388e-12 | KK29: -3.475941e-13 | KL29: 1585.4 | KM29: 1.466146e-12 | KN29: -3.459716e-13 | KO29: 1585.4 | KP29: 1.462928e-12 | KQ29: -3.449942e-13 | KR29: 1585.4 | KS29: 1.459864e-12 | KT29: -3.434908e-13 | KU29: 1585.4 | KV29: 1.457271e-12 | KW29: -3.421757e-13 | KX29: 1585.4 | KY29: 1.454459e-12 | KZ29: -3.410774e-13 | LA29: 1585.4 | LB29: 1.451658e-12 | LC29: -3.400842e-13 | LD29: 1585.4 | LE29: 1.449547e-12 | LF29: -3.388169e-13 | LG29: 1585.4 | LH29: 1.447513e-12 | LI29: -3.382542e-13 | LJ29: 1585.4 | LK29: 1.445633e-12 | LL29: -3.376927e-13 | LM29: 1585.4 | LN29: 1.444042e-12 | LO29: -3.372001e-13 | LP29: 1585.4 | LQ29: 1.442776e-12 | LR29: -3.364531e-13 | LS29: 1585.4 | LT29: 1.441502e-12 | LU29: -3.358253e-13 | LV29: 1585.4 | LW29: 1.43996e-12 | LX29: -3.354542e-13 | LY29: 1585.4 | LZ29: 1.438458e-12 | MA29: -3.348115e-13 | MB29: 1585.4 | MC29: 1.437309e-12 | MD29: -3.342946e-13 | ME29: 1585.4 | MF29: 1.436221e-12 | MG29: -3.339529e-13 | MH29: 1585.4 | MI29: 1.435308e-12 | MJ29: -3.335526e-13 | MK29: 1585.4 | ML29: 1.43402e-12 | MM29: -3.331847e-13 | MN29: 1585.4 | MO29: 1.433438e-12 | MP29: -3.327546e-13 | MQ29: 1585.4 | MR29: 1.432472e-12 | MS29: -3.324727e-13 | MT29: 1585.4 | MU29: 1.431902e-12 | MV29: -3.322651e-13 | MW29: 1585.4 | MX29: 1.431266e-12 | MY29: -3.321449e-13 | MZ29: 1585.4 | NA29: 1.430533e-12 | NB29: -3.317853e-13 | NC29: 1585.4 | ND29: 1.429876e-12 | NE29: -3.31368e-13 | NF29: 1585.4 | NG29: 1.428925e-12 | NH29: -3.311169e-13 | NI29: 1585.4 | NJ29: 1.428983e-12 | NK29: -3.311931e-13 | NL29: 1585.4 | NM29: 1.42824e-12 | NN29: -3.306149e-13 | NO29: 1585.4 | NP29: 1.427855e-12 | NQ29: -3.30379e-13 | NR29: 1585.4 | NS29: 1.427538e-12 | NT29: -3.301523e-13 | NU29: 1585.4 | NV29: 1.427201e-12 | NW29: -3.299641e-13 | NX29: 1585.4 | NY29: 1.426837e-12 | NZ29: -3.298815e-13 | OA29: 1585.4 | OB29: 1.42692e-12 | OC29: -3.295654e-13 | OD29: 1585.4 | OE29: 1.42645e-12 | OF29: -3.293121e-13 | OG29: 1585.4 | OH29: 1.426392e-12 | OI29: -3.292363e-13 | OJ29: 1585.4 | OK29: 1.425826e-12 | OL29: -3.289366e-13 | OM29: 1585.4 | ON29: 1.425291e-12 | OO29: -3.288657e-13 | OP29: 1585.4 | OQ29: 1.424699e-12 | OR29: -3.287193e-13 | OS29: 1585.4 | OT29: 1.42441e-12 | OU29: -3.28389e-13 | OV29: 1585.4 | OW29: 1.42419e-12 | OX29: -3.283532e-13 | OY29: 1585.4 | OZ29: 1.424054e-12 | PA29: -3.280502e-13 | PB29: 1585.4 | PC29: 1.423995e-12 | PD29: -3.279271e-13 | PE29: 1585.4 | PF29: 1.423841e-12 | PG29: -3.277101e-13 | PH29: 1585.4 | PI29: 1.423148e-12 | PJ29: -3.277748e-13 | PK29: 1585.4 | PL29: 1.422983e-12 | PM29: -3.274821e-13 | PN29: 1585.4 | PO29: 1.422629e-12 | PP29: -3.272867e-13 | PQ29: 1585.4 | PR29: 1.422172e-12 | PS29: -3.27159e-13 | PT29: 1585.4 | PU29: 1.421866e-12 | PV29: -3.269159e-13 | PW29: 1585.4 | PX29: 1.421342e-12 | PY29: -3.267325e-13 | PZ29: 1585.4 | QA29: 1.422439e-12 | QB29: -3.264632e-13 | QC29: 1585.4 | QD29: 1.424708e-12 | QE29: -3.262628e-13 | QF29: 1585.4 | QG29: 1.42779e-12 | QH29: -3.264015e-13 | QI29: 1585.4 | QJ29: 1.431195e-12 | QK29: -3.266875e-13
A30: 1996 | B30: 2.65218e-12 | C30: -1.83785e-13 | D30: 1996 | E30: 2.632502e-12 | F30: -1.84097e-13 | G30: 1996 | H30: 2.624998e-12 | I30: -1.8243e-13 | J30: 1996 | K30: 2.617349e-12 | L30: -1.783309e-13 | M30: 1996 | N30: 2.61393e-12 | O30: -1.753265e-13 | P30: 1996 | Q30: 2.610965e-12 | R30: -1.735061e-13 | S30: 1996 | T30: 2.608493e-12 | U30: -1.712656e-13 | V30: 1996 | W30: 2.607556e-12 | X30: -1.698465e-13 | Y30: 1996 | Z30: 2.606457e-12 | AA30: -1.690039e-13 | AB30: 1996 | AC30: 2.605953e-12 | AD30: -1.682396e-13 | AE30: 1996 | AF30: 2.604727e-12 | AG30: -1.677189e-13 | AH30: 1996 | AI30: 2.604197e-12 | AJ30: -1.671595e-13 | AK30: 1996 | AL30: 2.603305e-12 | AM30: -1.667262e-13 | AN30: 1996 | AO30: 2.603004e-12 | AP30: -1.66395e-13 | AQ30: 1996 | AR30: 2.601477e-12 | AS30: -1.669036e-13 | AT30: 1996 | AU30: 2.600874e-12 | AV30: -1.655806e-13 | AW30: 1996 | AX30: 2.600471e-12 | AY30: -1.653746e-13 | AZ30: 1996 | BA30: 2.598155e-12 | BB30: -1.64702e-13 | BC30: 1996 | BD30: 2.595081e-12 | BE30: -1.626187e-13 | BF30: 1996 | BG30: 2.591541e-12 | BH30: -1.602222e-13 | BI30: 1996 | BJ30: 2.586735e-12 | BK30: -1.57827e-13 | BL30: 1996 | BM30: 2.581714e-12 | BN30: -1.552434e-13 | BO30: 1996 | BP30: 2.576675e-12 | BQ30: -1.515475e-13 | BR30: 1996 | BS30: 2.571221e-12 | BT30: -1.486596e-13 | BU30: 1996 | BV30: 2.566074e-12 | BW30: -1.454528e-13 | BX30: 1996 | BY30: 2.560081e-12 | BZ30: -1.4254e-13 | CA30: 1996 | CB30: 2.555275e-12 | CC30: -1.388306e-13 | CD30: 1996 | CE30: 2.549187e-12 | CF30: -1.356853e-13 | CG30: 1996 | CH30: 2.542646e-12 | CI30: -1.316362e-13 | CJ30: 1996 | CK30: 2.53701e-12 | CL30: -1.285541e-13 | CM30: 1996 | CN30: 2.530901e-12 | CO30: -1.247533e-13 | CP30: 1996 | CQ30: 2.553627e-12 | CR30: -1.244474e-13 | CS30: 1996 | CT30: 2.520409e-12 | CU30: -1.182717e-13 | CV30: 1996 | CW30: 2.514692e-12 | CX30: -1.152282e-13 | CY30: 1996 | CZ30: 2.509326e-12 | DA30: -1.120584e-13 | DB30: 1996 | DC30: 2.504028e-12 | DD30: -1.092199e-13 | DE30: 1996 | DF30: 2.498787e-12 | DG30: -1.059511e-13 | DH30: 1996 | DI30: 2.493773e-12 | DJ30: -1.029697e-13 | DK30: 1996 | DL30: 2.488438e-12 | DM30: -9.93213e-14 | DN30: 1996 | DO30: 2.481447e-12 | DP30: -9.622615e-14 | DQ30: 1996 | DR30: 2.475741e-12 | DS30: -9.393822e-14 | DT30: 1996 | DU30: 2.472237e-12 | DV30: -9.236347e-14 | DW30: 1996 | DX30: 2.466332e-12 | DY30: -8.913414e-14 | DZ30: 1996 | EA30: 2.462683e-12 | EB30: -8.670185e-14 | EC30: 1996 | ED30: 2.45722e-12 | EE30: -8.420444e-14 | EF30: 1996 | EG30: 2.451731e-12 | EH30: -8.013708e-14 | EI30: 1996 | EJ30: 2.446673e-12 | EK30: -7.783332e-14 | EL30: 1996 | EM30: 2.441631e-12 | EN30: -7.556289e-14 | EO30: 1996 | EP30: 2.436264e-12 | EQ30: -7.27899e-14 | ER30: 1996 | ES30: 2.43164e-12 | ET30: -7.036199e-14 | EU30: 1996 | EV30: 2.426842e-12 | EW30: -6.863904e-14 | EX30: 1996 | EY30: 2.422058e-12 | EZ30: -6.698062e-14 | FA30: 1996 | FB30: 2.41873e-12 | FC30: -6.453324e-14 | FD30: 1996 | FE30: 2.417838e-12 | FF30: -6.333875e-14 | FG30: 1996 | FH30: 2.415867e-12 | FI30: -6.313203e-14 | FJ30: 1996 | FK30: 2.463546e-12 | FL30: -1.128156e-13 | FM30: 1996 | FN30: 2.459518e-12 | FO30: -9.245035e-14 | FP30: 1996 | FQ30: 2.459236e-12 | FR30: -9.215488e-14 | FS30: 1996 | FT30: 2.458108e-12 | FU30: -9.297585e-14 | FV30: 1996 | FW30: 2.457192e-12 | FX30: -9.597164e-14 | FY30: 1996 | FZ30: 2.457228e-12 | GA30: -1.002885e-13 | GB30: 1996 | GC30: 2.457379e-12 | GD30: -1.012219e-13 | GE30: 1996 | GF30: 2.455092e-12 | GG30: -9.658956e-14 | GH30: 1996 | GI30: 2.448544e-12 | GJ30: -8.591172e-14 | GK30: 1996 | GL30: 2.437846e-12 | GM30: -7.256319e-14 | GN30: 1996 | GO30: 2.420487e-12 | GP30: -5.894363e-14 | GQ30: 1996 | GR30: 2.405592e-12 | GS30: -5.201963e-14 | GT30: 1996 | GU30: 2.394376e-12 | GV30: -5.04346e-14 | GW30: 1996 | GX30: 2.385064e-12 | GY30: -5.3445e-14 | GZ30: 1996 | HA30: 2.378075e-12 | HB30: -5.957715e-14 | HC30: 1996 | HD30: 2.371058e-12 | HE30: -6.877838e-14 | HF30: 1996 | HG30: 2.363022e-12 | HH30: -8.305144e-14 | HI30: 1996 | HJ30: 2.35236e-12 | HK30: -1.043508e-13 | HL30: 1996 | HM30: 2.337638e-12 | HN30: -1.353995e-13 | HO30: 1996 | HP30: 2.316419e-12 | HQ30: -1.768636e-13 | HR30: 1996 | HS30: 2.283408e-12 | HT30: -2.288097e-13 | HU30: 1996 | HV30: 2.234376e-12 | HW30: -2.880634e-13 | HX30: 1996 | HY30: 2.16792e-12 | HZ30: -3.477027e-13 | IA30: 1996 | IB30: 2.087337e-12 | IC30: -3.986477e-13 | ID30: 1996 | IE30: 2.005235e-12 | IF30: -4.336213e-13 | IG30: 1996 | IH30: 1.917634e-12 | II30: -4.561653e-13 | IJ30: 1996 | IK30: 1.832787e-12 | IL30: -4.655402e-13 | IM30: 1996 | IN30: 1.755313e-12 | IO30: -4.640155e-13 | IP30: 1996 | IQ30: 1.694762e-12 | IR30: -4.563741e-13 | IS30: 1996 | IT30: 1.647055e-12 | IU30: -4.466898e-13 | IV30: 1996 | IW30: 1.607863e-12 | IX30: -4.359357e-13 | IY30: 1996 | IZ30: 1.575759e-12 | JA30: -4.255213e-13 | JB30: 1996 | JC30: 1.549115e-12 | JD30: -4.156374e-13 | JE30: 1996 | JF30: 1.527103e-12 | JG30: -4.068495e-13 | JH30: 1996 | JI30: 1.508766e-12 | JJ30: -3.989777e-13 | JK30: 1996 | JL30: 1.492834e-12 | JM30: -3.921057e-13 | JN30: 1996 | JO30: 1.480104e-12 | JP30: -3.867113e-13 | JQ30: 1996 | JR30: 1.469411e-12 | JS30: -3.821984e-13 | JT30: 1996 | JU30: 1.460624e-12 | JV30: -3.787839e-13 | JW30: 1996 | JX30: 1.45369e-12 | JY30: -3.755863e-13 | JZ30: 1996 | KA30: 1.44748e-12 | KB30: -3.734374e-13 | KC30: 1996 | KD30: 1.441943e-12 | KE30: -3.713368e-13 | KF30: 1996 | KG30: 1.43715e-12 | KH30: -3.696435e-13 | KI30: 1996 | KJ30: 1.43301e-12 | KK30: -3.683699e-13 | KL30: 1996 | KM30: 1.429613e-12 | KN30: -3.671574e-13 | KO30: 1996 | KP30: 1.426768e-12 | KQ30: -3.662774e-13 | KR30: 1996 | KS30: 1.424039e-12 | KT30: -3.654906e-13 | KU30: 1996 | KV30: 1.42142e-12 | KW30: -3.646384e-13 | KX30: 1996 | KY30: 1.418825e-12 | KZ30: -3.640434e-13 | LA30: 1996 | LB30: 1.416083e-12 | LC30: -3.634563e-13 | LD30: 1996 | LE30: 1.413757e-12 | LF30: -3.629107e-13 | LG30: 1996 | LH30: 1.41208e-12 | LI30: -3.624156e-13 | LJ30: 1996 | LK30: 1.410178e-12 | LL30: -3.620081e-13 | LM30: 1996 | LN30: 1.408791e-12 | LO30: -3.616094e-13 | LP30: 1996 | LQ30: 1.407664e-12 | LR30: -3.612927e-13 | LS30: 1996 | LT30: 1.406316e-12 | LU30: -3.609443e-13 | LV30: 1996 | LW30: 1.404763e-12 | LX30: -3.607537e-13 | LY30: 1996 | LZ30: 1.403401e-12 | MA30: -3.606059e-13 | MB30: 1996 | MC30: 1.402337e-12 | MD30: -3.604108e-13 | ME30: 1996 | MF30: 1.401358e-12 | MG30: -3.601723e-13 | MH30: 1996 | MI30: 1.400465e-12 | MJ30: -3.598904e-13 | MK30: 1996 | ML30: 1.399228e-12 | MM30: -3.597476e-13 | MN30: 1996 | MO30: 1.398358e-12 | MP30: -3.595375e-13 | MQ30: 1996 | MR30: 1.397568e-12 | MS30: -3.594008e-13 | MT30: 1996 | MU30: 1.397146e-12 | MV30: -3.591387e-13 | MW30: 1996 | MX30: 1.396535e-12 | MY30: -3.589511e-13 | MZ30: 1996 | NA30: 1.395697e-12 | NB30: -3.589062e-13 | NC30: 1996 | ND30: 1.395114e-12 | NE30: -3.586151e-13 | NF30: 1996 | NG30: 1.394354e-12 | NH30: -3.587012e-13 | NI30: 1996 | NJ30: 1.393984e-12 | NK30: -3.583492e-13 | NL30: 1996 | NM30: 1.393409e-12 | NN30: -3.582102e-13 | NO30: 1996 | NP30: 1.393101e-12 | NQ30: -3.580702e-13 | NR30: 1996 | NS30: 1.392789e-12 | NT30: -3.577213e-13 | NU30: 1996 | NV30: 1.392626e-12 | NW30: -3.577497e-13 | NX30: 1996 | NY30: 1.392215e-12 | NZ30: -3.575827e-13 | OA30: 1996 | OB30: 1.392207e-12 | OC30: -3.574897e-13 | OD30: 1996 | OE30: 1.391889e-12 | OF30: -3.573149e-13 | OG30: 1996 | OH30: 1.391765e-12 | OI30: -3.572174e-13 | OJ30: 1996 | OK30: 1.391144e-12 | OL30: -3.571122e-13 | OM30: 1996 | ON30: 1.390898e-12 | OO30: -3.571836e-13 | OP30: 1996 | OQ30: 1.390383e-12 | OR30: -3.570477e-13 | OS30: 1996 | OT30: 1.390028e-12 | OU30: -3.569414e-13 | OV30: 1996 | OW30: 1.389714e-12 | OX30: -3.567095e-13 | OY30: 1996 | OZ30: 1.38949e-12 | PA30: -3.565276e-13 | PB30: 1996 | PC30: 1.389665e-12 | PD30: -3.564766e-13 | PE30: 1996 | PF30: 1.389478e-12 | PG30: -3.562268e-13 | PH30: 1996 | PI30: 1.388922e-12 | PJ30: -3.562747e-13 | PK30: 1996 | PL30: 1.388606e-12 | PM30: -3.56101e-13 | PN30: 1996 | PO30: 1.388139e-12 | PP30: -3.56256e-13 | PQ30: 1996 | PR30: 1.387596e-12 | PS30: -3.562809e-13 | PT30: 1996 | PU30: 1.387751e-12 | PV30: -3.561602e-13 | PW30: 1996 | PX30: 1.387139e-12 | PY30: -3.558832e-13 | PZ30: 1996 | QA30: 1.388293e-12 | QB30: -3.552244e-13 | QC30: 1996 | QD30: 1.390535e-12 | QE30: -3.545099e-13 | QF30: 1996 | QG30: 1.393632e-12 | QH30: -3.536905e-13 | QI30: 1996 | QJ30: 1.39734e-12 | QK30: -3.533928e-13
A31: 2512.6 | B31: 2.628294e-12 | C31: -1.673576e-13 | D31: 2512.6 | E31: 2.607967e-12 | F31: -1.678229e-13 | G31: 2512.6 | H31: 2.600617e-12 | I31: -1.659772e-13 | J31: 2512.6 | K31: 2.59358e-12 | L31: -1.619815e-13 | M31: 2512.6 | N31: 2.590373e-12 | O31: -1.592972e-13 | P31: 2512.6 | Q31: 2.588808e-12 | R31: -1.572209e-13 | S31: 2512.6 | T31: 2.586897e-12 | U31: -1.553538e-13 | V31: 2512.6 | W31: 2.585231e-12 | X31: -1.550037e-13 | Y31: 2512.6 | Z31: 2.584365e-12 | AA31: -1.542281e-13 | AB31: 2512.6 | AC31: 2.583205e-12 | AD31: -1.532374e-13 | AE31: 2512.6 | AF31: 2.582985e-12 | AG31: -1.524022e-13 | AH31: 2512.6 | AI31: 2.582246e-12 | AJ31: -1.523467e-13 | AK31: 2512.6 | AL31: 2.581838e-12 | AM31: -1.512989e-13 | AN31: 2512.6 | AO31: 2.580709e-12 | AP31: -1.518672e-13 | AQ31: 2512.6 | AR31: 2.580844e-12 | AS31: -1.516176e-13 | AT31: 2512.6 | AU31: 2.580201e-12 | AV31: -1.507666e-13 | AW31: 2512.6 | AX31: 2.578811e-12 | AY31: -1.499461e-13 | AZ31: 2512.6 | BA31: 2.576897e-12 | BB31: -1.499982e-13 | BC31: 2512.6 | BD31: 2.572881e-12 | BE31: -1.472495e-13 | BF31: 2512.6 | BG31: 2.570375e-12 | BH31: -1.461192e-13 | BI31: 2512.6 | BJ31: 2.566389e-12 | BK31: -1.432505e-13 | BL31: 2512.6 | BM31: 2.561779e-12 | BN31: -1.413753e-13 | BO31: 2512.6 | BP31: 2.557831e-12 | BQ31: -1.373851e-13 | BR31: 2512.6 | BS31: 2.552557e-12 | BT31: -1.351785e-13 | BU31: 2512.6 | BV31: 2.547474e-12 | BW31: -1.323355e-13 | BX31: 2512.6 | BY31: 2.542395e-12 | BZ31: -1.296161e-13 | CA31: 2512.6 | CB31: 2.536779e-12 | CC31: -1.273228e-13 | CD31: 2512.6 | CE31: 2.531765e-12 | CF31: -1.233018e-13 | CG31: 2512.6 | CH31: 2.526287e-12 | CI31: -1.20008e-13 | CJ31: 2512.6 | CK31: 2.52191e-12 | CL31: -1.170244e-13 | CM31: 2512.6 | CN31: 2.517138e-12 | CO31: -1.140846e-13 | CP31: 2512.6 | CQ31: 2.538857e-12 | CR31: -1.129842e-13 | CS31: 2512.6 | CT31: 2.505745e-12 | CU31: -1.081467e-13 | CV31: 2512.6 | CW31: 2.500451e-12 | CX31: -1.060914e-13 | CY31: 2512.6 | CZ31: 2.495324e-12 | DA31: -1.022766e-13 | DB31: 2512.6 | DC31: 2.490014e-12 | DD31: -9.968682e-14 | DE31: 2512.6 | DF31: 2.485203e-12 | DG31: -9.722847e-14 | DH31: 2512.6 | DI31: 2.480966e-12 | DJ31: -9.385144e-14 | DK31: 2512.6 | DL31: 2.476384e-12 | DM31: -9.129582e-14 | DN31: 2512.6 | DO31: 2.469724e-12 | DP31: -8.824092e-14 | DQ31: 2512.6 | DR31: 2.464377e-12 | DS31: -8.747669e-14 | DT31: 2512.6 | DU31: 2.460356e-12 | DV31: -8.452946e-14 | DW31: 2512.6 | DX31: 2.45533e-12 | DY31: -8.244682e-14 | DZ31: 2512.6 | EA31: 2.450908e-12 | EB31: -8.013558e-14 | EC31: 2512.6 | ED31: 2.447058e-12 | EE31: -7.797768e-14 | EF31: 2512.6 | EG31: 2.442046e-12 | EH31: -7.491146e-14 | EI31: 2512.6 | EJ31: 2.43656e-12 | EK31: -7.21681e-14 | EL31: 2512.6 | EM31: 2.432078e-12 | EN31: -7.02156e-14 | EO31: 2512.6 | EP31: 2.427251e-12 | EQ31: -6.803304e-14 | ER31: 2512.6 | ES31: 2.422445e-12 | ET31: -6.577658e-14 | EU31: 2512.6 | EV31: 2.41798e-12 | EW31: -6.436862e-14 | EX31: 2512.6 | EY31: 2.413778e-12 | EZ31: -6.17384e-14 | FA31: 2512.6 | FB31: 2.410294e-12 | FC31: -6.147933e-14 | FD31: 2512.6 | FE31: 2.40962e-12 | FF31: -6.026756e-14 | FG31: 2512.6 | FH31: 2.407803e-12 | FI31: -5.989515e-14 | FJ31: 2512.6 | FK31: 2.451053e-12 | FL31: -1.001417e-13 | FM31: 2512.6 | FN31: 2.448025e-12 | FO31: -8.483404e-14 | FP31: 2512.6 | FQ31: 2.448006e-12 | FR31: -8.372853e-14 | FS31: 2512.6 | FT31: 2.44725e-12 | FU31: -8.505642e-14 | FV31: 2512.6 | FW31: 2.446263e-12 | FX31: -8.694493e-14 | FY31: 2512.6 | FZ31: 2.446497e-12 | GA31: -9.025905e-14 | GB31: 2512.6 | GC31: 2.446487e-12 | GD31: -9.167394e-14 | GE31: 2512.6 | GF31: 2.44441e-12 | GG31: -8.768235e-14 | GH31: 2512.6 | GI31: 2.439066e-12 | GJ31: -7.879322e-14 | GK31: 2512.6 | GL31: 2.429262e-12 | GM31: -6.711867e-14 | GN31: 2512.6 | GO31: 2.412987e-12 | GP31: -5.523927e-14 | GQ31: 2512.6 | GR31: 2.398546e-12 | GS31: -5.072683e-14 | GT31: 2512.6 | GU31: 2.387673e-12 | GV31: -5.093738e-14 | GW31: 2512.6 | GX31: 2.378692e-12 | GY31: -5.500529e-14 | GZ31: 2512.6 | HA31: 2.372586e-12 | HB31: -6.29159e-14 | HC31: 2512.6 | HD31: 2.365028e-12 | HE31: -7.523082e-14 | HF31: 2512.6 | HG31: 2.356168e-12 | HH31: -9.407643e-14 | HI31: 2512.6 | HJ31: 2.343377e-12 | HK31: -1.20711e-13 | HL31: 2512.6 | HM31: 2.325587e-12 | HN31: -1.581042e-13 | HO31: 2512.6 | HP31: 2.298764e-12 | HQ31: -2.076979e-13 | HR31: 2512.6 | HS31: 2.257029e-12 | HT31: -2.660652e-13 | HU31: 2512.6 | HV31: 2.196466e-12 | HW31: -3.294388e-13 | HX31: 2512.6 | HY31: 2.117656e-12 | HZ31: -3.894824e-13 | IA31: 2512.6 | IB31: 2.027063e-12 | IC31: -4.364593e-13 | ID31: 2512.6 | IE31: 1.939297e-12 | IF31: -4.659589e-13 | IG31: 2512.6 | IH31: 1.849599e-12 | II31: -4.819893e-13 | IJ31: 2512.6 | IK31: 1.766153e-12 | IL31: -4.854035e-13 | IM31: 2512.6 | IN31: 1.692098e-12 | IO31: -4.802286e-13 | IP31: 2512.6 | IQ31: 1.635125e-12 | IR31: -4.710641e-13 | IS31: 2512.6 | IT31: 1.591209e-12 | IU31: -4.605414e-13 | IV31: 2512.6 | IW31: 1.555332e-12 | IX31: -4.504892e-13 | IY31: 2512.6 | IZ31: 1.525742e-12 | JA31: -4.409267e-13 | JB31: 2512.6 | JC31: 1.501938e-12 | JD31: -4.324747e-13 | JE31: 2512.6 | JF31: 1.481786e-12 | JG31: -4.252327e-13 | JH31: 2512.6 | JI31: 1.464753e-12 | JJ31: -4.191867e-13 | JK31: 2512.6 | JL31: 1.449852e-12 | JM31: -4.140947e-13 | JN31: 2512.6 | JO31: 1.43808e-12 | JP31: -4.10174e-13 | JQ31: 2512.6 | JR31: 1.428118e-12 | JS31: -4.0688e-13 | JT31: 2512.6 | JU31: 1.419859e-12 | JV31: -4.04568e-13 | JW31: 2512.6 | JX31: 1.413029e-12 | JY31: -4.029094e-13 | JZ31: 2512.6 | KA31: 1.407288e-12 | KB31: -4.013435e-13 | KC31: 2512.6 | KD31: 1.402185e-12 | KE31: -3.999195e-13 | KF31: 2512.6 | KG31: 1.397428e-12 | KH31: -3.99208e-13 | KI31: 2512.6 | KJ31: 1.393152e-12 | KK31: -3.984649e-13 | KL31: 2512.6 | KM31: 1.390097e-12 | KN31: -3.979251e-13 | KO31: 2512.6 | KP31: 1.387164e-12 | KQ31: -3.973375e-13 | KR31: 2512.6 | KS31: 1.384562e-12 | KT31: -3.971053e-13 | KU31: 2512.6 | KV31: 1.381867e-12 | KW31: -3.967303e-13 | KX31: 2512.6 | KY31: 1.379046e-12 | KZ31: -3.963861e-13 | LA31: 2512.6 | LB31: 1.376425e-12 | LC31: -3.966563e-13 | LD31: 2512.6 | LE31: 1.374026e-12 | LF31: -3.965225e-13 | LG31: 2512.6 | LH31: 1.372273e-12 | LI31: -3.96219e-13 | LJ31: 2512.6 | LK31: 1.370491e-12 | LL31: -3.959703e-13 | LM31: 2512.6 | LN31: 1.36897e-12 | LO31: -3.960352e-13 | LP31: 2512.6 | LQ31: 1.367948e-12 | LR31: -3.960337e-13 | LS31: 2512.6 | LT31: 1.366678e-12 | LU31: -3.956476e-13 | LV31: 2512.6 | LW31: 1.365087e-12 | LX31: -3.957744e-13 | LY31: 2512.6 | LZ31: 1.363474e-12 | MA31: -3.959973e-13 | MB31: 2512.6 | MC31: 1.362291e-12 | MD31: -3.955479e-13 | ME31: 2512.6 | MF31: 1.361629e-12 | MG31: -3.958799e-13 | MH31: 2512.6 | MI31: 1.360439e-12 | MJ31: -3.958005e-13 | MK31: 2512.6 | ML31: 1.359276e-12 | MM31: -3.956236e-13 | MN31: 2512.6 | MO31: 1.358313e-12 | MP31: -3.957231e-13 | MQ31: 2512.6 | MR31: 1.357344e-12 | MS31: -3.958921e-13 | MT31: 2512.6 | MU31: 1.35734e-12 | MV31: -3.956645e-13 | MW31: 2512.6 | MX31: 1.356522e-12 | MY31: -3.954802e-13 | MZ31: 2512.6 | NA31: 1.355746e-12 | NB31: -3.955835e-13 | NC31: 2512.6 | ND31: 1.355357e-12 | NE31: -3.957834e-13 | NF31: 2512.6 | NG31: 1.354144e-12 | NH31: -3.957547e-13 | NI31: 2512.6 | NJ31: 1.353877e-12 | NK31: -3.954724e-13 | NL31: 2512.6 | NM31: 1.353391e-12 | NN31: -3.951249e-13 | NO31: 2512.6 | NP31: 1.35317e-12 | NQ31: -3.953556e-13 | NR31: 2512.6 | NS31: 1.352595e-12 | NT31: -3.953232e-13 | NU31: 2512.6 | NV31: 1.35266e-12 | NW31: -3.951045e-13 | NX31: 2512.6 | NY31: 1.35223e-12 | NZ31: -3.949044e-13 | OA31: 2512.6 | OB31: 1.352139e-12 | OC31: -3.946976e-13 | OD31: 2512.6 | OE31: 1.351906e-12 | OF31: -3.947717e-13 | OG31: 2512.6 | OH31: 1.351858e-12 | OI31: -3.945555e-13 | OJ31: 2512.6 | OK31: 1.351304e-12 | OL31: -3.9461e-13 | OM31: 2512.6 | ON31: 1.350723e-12 | OO31: -3.946474e-13 | OP31: 2512.6 | OQ31: 1.349987e-12 | OR31: -3.946963e-13 | OS31: 2512.6 | OT31: 1.349999e-12 | OU31: -3.94852e-13 | OV31: 2512.6 | OW31: 1.349614e-12 | OX31: -3.946428e-13 | OY31: 2512.6 | OZ31: 1.349741e-12 | PA31: -3.945018e-13 | PB31: 2512.6 | PC31: 1.349409e-12 | PD31: -3.943264e-13 | PE31: 2512.6 | PF31: 1.349313e-12 | PG31: -3.943023e-13 | PH31: 2512.6 | PI31: 1.348861e-12 | PJ31: -3.941986e-13 | PK31: 2512.6 | PL31: 1.348631e-12 | PM31: -3.943846e-13 | PN31: 2512.6 | PO31: 1.348148e-12 | PP31: -3.944456e-13 | PQ31: 2512.6 | PR31: 1.348034e-12 | PS31: -3.943354e-13 | PT31: 2512.6 | PU31: 1.347547e-12 | PV31: -3.941718e-13 | PW31: 2512.6 | PX31: 1.346927e-12 | PY31: -3.94218e-13 | PZ31: 2512.6 | QA31: 1.348237e-12 | QB31: -3.932084e-13 | QC31: 2512.6 | QD31: 1.351236e-12 | QE31: -3.922693e-13 | QF31: 2512.6 | QG31: 1.354446e-12 | QH31: -3.910006e-13 | QI31: 2512.6 | QJ31: 1.358115e-12 | QK31: -3.89888e-13
A32: 3164.6 | B32: 2.607279e-12 | C32: -1.5182e-13 | D32: 3164.6 | E32: 2.587301e-12 | F32: -1.523049e-13 | G32: 3164.6 | H32: 2.580392e-12 | I32: -1.50607e-13 | J32: 3164.6 | K32: 2.574005e-12 | L32: -1.470124e-13 | M32: 3164.6 | N32: 2.571545e-12 | O32: -1.452834e-13 | P32: 3164.6 | Q32: 2.568898e-12 | R32: -1.428774e-13 | S32: 3164.6 | T32: 2.567885e-12 | U32: -1.412692e-13 | V32: 3164.6 | W32: 2.566358e-12 | X32: -1.407307e-13 | Y32: 3164.6 | Z32: 2.565308e-12 | AA32: -1.394665e-13 | AB32: 3164.6 | AC32: 2.564685e-12 | AD32: -1.391216e-13 | AE32: 3164.6 | AF32: 2.563937e-12 | AG32: -1.387237e-13 | AH32: 3164.6 | AI32: 2.563614e-12 | AJ32: -1.380559e-13 | AK32: 3164.6 | AL32: 2.563262e-12 | AM32: -1.376489e-13 | AN32: 3164.6 | AO32: 2.562437e-12 | AP32: -1.379683e-13 | AQ32: 3164.6 | AR32: 2.562075e-12 | AS32: -1.376659e-13 | AT32: 3164.6 | AU32: 2.561356e-12 | AV32: -1.370095e-13 | AW32: 3164.6 | AX32: 2.560475e-12 | AY32: -1.366388e-13 | AZ32: 3164.6 | BA32: 2.55844e-12 | BB32: -1.360142e-13 | BC32: 3164.6 | BD32: 2.555831e-12 | BE32: -1.346491e-13 | BF32: 3164.6 | BG32: 2.552526e-12 | BH32: -1.324975e-13 | BI32: 3164.6 | BJ32: 2.549095e-12 | BK32: -1.303565e-13 | BL32: 3164.6 | BM32: 2.54489e-12 | BN32: -1.282528e-13 | BO32: 3164.6 | BP32: 2.540476e-12 | BQ32: -1.257721e-13 | BR32: 3164.6 | BS32: 2.535969e-12 | BT32: -1.230544e-13 | BU32: 3164.6 | BV32: 2.53162e-12 | BW32: -1.20159e-13 | BX32: 3164.6 | BY32: 2.526061e-12 | BZ32: -1.180227e-13 | CA32: 3164.6 | CB32: 2.52309e-12 | CC32: -1.156834e-13 | CD32: 3164.6 | CE32: 2.517158e-12 | CF32: -1.124402e-13 | CG32: 3164.6 | CH32: 2.512125e-12 | CI32: -1.092828e-13 | CJ32: 3164.6 | CK32: 2.507692e-12 | CL32: -1.066436e-13 | CM32: 3164.6 | CN32: 2.502649e-12 | CO32: -1.039633e-13 | CP32: 3164.6 | CQ32: 2.525594e-12 | CR32: -1.029726e-13 | CS32: 3164.6 | CT32: 2.493205e-12 | CU32: -9.897306e-14 | CV32: 3164.6 | CW32: 2.48895e-12 | CX32: -9.63247e-14 | CY32: 3164.6 | CZ32: 2.483835e-12 | DA32: -9.379215e-14 | DB32: 3164.6 | DC32: 2.479054e-12 | DD32: -9.196693e-14 | DE32: 3164.6 | DF32: 2.474748e-12 | DG32: -8.88817e-14 | DH32: 3164.6 | DI32: 2.470152e-12 | DJ32: -8.659199e-14 | DK32: 3164.6 | DL32: 2.465325e-12 | DM32: -8.435777e-14 | DN32: 3164.6 | DO32: 2.459122e-12 | DP32: -8.126816e-14 | DQ32: 3164.6 | DR32: 2.45414e-12 | DS32: -8.014109e-14 | DT32: 3164.6 | DU32: 2.450064e-12 | DV32: -7.826321e-14 | DW32: 3164.6 | DX32: 2.445632e-12 | DY32: -7.653553e-14 | DZ32: 3164.6 | EA32: 2.441488e-12 | EB32: -7.423405e-14 | EC32: 3164.6 | ED32: 2.437581e-12 | EE32: -7.211877e-14 | EF32: 3164.6 | EG32: 2.432888e-12 | EH32: -6.947423e-14 | EI32: 3164.6 | EJ32: 2.427923e-12 | EK32: -6.774209e-14 | EL32: 3164.6 | EM32: 2.422981e-12 | EN32: -6.594187e-14 | EO32: 3164.6 | EP32: 2.418917e-12 | EQ32: -6.333051e-14 | ER32: 3164.6 | ES32: 2.414807e-12 | ET32: -6.178161e-14 | EU32: 3164.6 | EV32: 2.410474e-12 | EW32: -6.033063e-14 | EX32: 3164.6 | EY32: 2.405923e-12 | EZ32: -5.890718e-14 | FA32: 3164.6 | FB32: 2.402459e-12 | FC32: -5.673028e-14 | FD32: 3164.6 | FE32: 2.401906e-12 | FF32: -5.626638e-14 | FG32: 3164.6 | FH32: 2.399963e-12 | FI32: -5.608699e-14 | FJ32: 3164.6 | FK32: 2.439558e-12 | FL32: -9.049127e-14 | FM32: 3164.6 | FN32: 2.438888e-12 | FO32: -7.784906e-14 | FP32: 3164.6 | FQ32: 2.43851e-12 | FR32: -7.819612e-14 | FS32: 3164.6 | FT32: 2.437707e-12 | FU32: -7.776653e-14 | FV32: 3164.6 | FW32: 2.436899e-12 | FX32: -7.926897e-14 | FY32: 3164.6 | FZ32: 2.436637e-12 | GA32: -8.144658e-14 | GB32: 3164.6 | GC32: 2.436445e-12 | GD32: -8.254346e-14 | GE32: 3164.6 | GF32: 2.434859e-12 | GG32: -7.970967e-14 | GH32: 3164.6 | GI32: 2.430144e-12 | GJ32: -7.206634e-14 | GK32: 3164.6 | GL32: 2.421169e-12 | GM32: -6.265786e-14 | GN32: 3164.6 | GO32: 2.4063e-12 | GP32: -5.33003e-14 | GQ32: 3164.6 | GR32: 2.392253e-12 | GS32: -4.94468e-14 | GT32: 3164.6 | GU32: 2.382287e-12 | GV32: -5.166608e-14 | GW32: 3164.6 | GX32: 2.373329e-12 | GY32: -5.790774e-14 | GZ32: 3164.6 | HA32: 2.366727e-12 | HB32: -6.836666e-14 | HC32: 3164.6 | HD32: 2.358797e-12 | HE32: -8.42361e-14 | HF32: 3164.6 | HG32: 2.348249e-12 | HH32: -1.064628e-13 | HI32: 3164.6 | HJ32: 2.334593e-12 | HK32: -1.400103e-13 | HL32: 3164.6 | HM32: 2.31189e-12 | HN32: -1.852293e-13 | HO32: 3164.6 | HP32: 2.277303e-12 | HQ32: -2.422678e-13 | HR32: 3164.6 | HS32: 2.224772e-12 | HT32: -3.074381e-13 | HU32: 3164.6 | HV32: 2.1521e-12 | HW32: -3.739611e-13 | HX32: 3164.6 | HY32: 2.061678e-12 | HZ32: -4.324089e-13 | IA32: 3164.6 | IB32: 1.962909e-12 | IC32: -4.742832e-13 | ID32: 3164.6 | IE32: 1.872013e-12 | IF32: -4.976665e-13 | IG32: 3164.6 | IH32: 1.781997e-12 | II32: -5.081628e-13 | IJ32: 3164.6 | IK32: 1.700503e-12 | IL32: -5.080965e-13 | IM32: 3164.6 | IN32: 1.629951e-12 | IO32: -5.011679e-13 | IP32: 3164.6 | IQ32: 1.576991e-12 | IR32: -4.918547e-13 | IS32: 3164.6 | IT32: 1.536018e-12 | IU32: -4.823537e-13 | IV32: 3164.6 | IW32: 1.502432e-12 | IX32: -4.736351e-13 | IY32: 3164.6 | IZ32: 1.47503e-12 | JA32: -4.658787e-13 | JB32: 3164.6 | JC32: 1.452385e-12 | JD32: -4.593197e-13 | JE32: 3164.6 | JF32: 1.433672e-12 | JG32: -4.539385e-13 | JH32: 3164.6 | JI32: 1.417306e-12 | JJ32: -4.495323e-13 | JK32: 3164.6 | JL32: 1.403321e-12 | JM32: -4.463151e-13 | JN32: 3164.6 | JO32: 1.391726e-12 | JP32: -4.438114e-13 | JQ32: 3164.6 | JR32: 1.382003e-12 | JS32: -4.420667e-13 | JT32: 3164.6 | JU32: 1.373714e-12 | JV32: -4.408532e-13 | JW32: 3164.6 | JX32: 1.366887e-12 | JY32: -4.399129e-13 | JZ32: 3164.6 | KA32: 1.360979e-12 | KB32: -4.39385e-13 | KC32: 3164.6 | KD32: 1.355583e-12 | KE32: -4.390363e-13 | KF32: 3164.6 | KG32: 1.350849e-12 | KH32: -4.389837e-13 | KI32: 3164.6 | KJ32: 1.346318e-12 | KK32: -4.387524e-13 | KL32: 3164.6 | KM32: 1.343229e-12 | KN32: -4.386646e-13 | KO32: 3164.6 | KP32: 1.340179e-12 | KQ32: -4.387392e-13 | KR32: 3164.6 | KS32: 1.337431e-12 | KT32: -4.386803e-13 | KU32: 3164.6 | KV32: 1.334539e-12 | KW32: -4.388946e-13 | KX32: 3164.6 | KY32: 1.33183e-12 | KZ32: -4.391337e-13 | LA32: 3164.6 | LB32: 1.328897e-12 | LC32: -4.394858e-13 | LD32: 3164.6 | LE32: 1.326262e-12 | LF32: -4.397063e-13 | LG32: 3164.6 | LH32: 1.324664e-12 | LI32: -4.397728e-13 | LJ32: 3164.6 | LK32: 1.322745e-12 | LL32: -4.398848e-13 | LM32: 3164.6 | LN32: 1.32104e-12 | LO32: -4.401024e-13 | LP32: 3164.6 | LQ32: 1.319645e-12 | LR32: -4.40164e-13 | LS32: 3164.6 | LT32: 1.318538e-12 | LU32: -4.402939e-13 | LV32: 3164.6 | LW32: 1.316703e-12 | LX32: -4.406899e-13 | LY32: 3164.6 | LZ32: 1.315033e-12 | MA32: -4.408687e-13 | MB32: 3164.6 | MC32: 1.313894e-12 | MD32: -4.40918e-13 | ME32: 3164.6 | MF32: 1.312763e-12 | MG32: -4.412106e-13 | MH32: 3164.6 | MI32: 1.311733e-12 | MJ32: -4.412433e-13 | MK32: 3164.6 | ML32: 1.310454e-12 | MM32: -4.414184e-13 | MN32: 3164.6 | MO32: 1.309564e-12 | MP32: -4.414582e-13 | MQ32: 3164.6 | MR32: 1.308598e-12 | MS32: -4.417245e-13 | MT32: 3164.6 | MU32: 1.308221e-12 | MV32: -4.415321e-13 | MW32: 3164.6 | MX32: 1.307538e-12 | MY32: -4.416783e-13 | MZ32: 3164.6 | NA32: 1.306809e-12 | NB32: -4.418843e-13 | NC32: 3164.6 | ND32: 1.305947e-12 | NE32: -4.418918e-13 | NF32: 3164.6 | NG32: 1.305038e-12 | NH32: -4.421476e-13 | NI32: 3164.6 | NJ32: 1.304593e-12 | NK32: -4.420451e-13 | NL32: 3164.6 | NM32: 1.304147e-12 | NN32: -4.421311e-13 | NO32: 3164.6 | NP32: 1.303855e-12 | NQ32: -4.419548e-13 | NR32: 3164.6 | NS32: 1.303561e-12 | NT32: -4.419668e-13 | NU32: 3164.6 | NV32: 1.303405e-12 | NW32: -4.417995e-13 | NX32: 3164.6 | NY32: 1.302923e-12 | NZ32: -4.418096e-13 | OA32: 3164.6 | OB32: 1.302872e-12 | OC32: -4.416285e-13 | OD32: 3164.6 | OE32: 1.302516e-12 | OF32: -4.417828e-13 | OG32: 3164.6 | OH32: 1.30256e-12 | OI32: -4.419112e-13 | OJ32: 3164.6 | OK32: 1.301982e-12 | OL32: -4.417997e-13 | OM32: 3164.6 | ON32: 1.301311e-12 | OO32: -4.419952e-13 | OP32: 3164.6 | OQ32: 1.300725e-12 | OR32: -4.420185e-13 | OS32: 3164.6 | OT32: 1.30041e-12 | OU32: -4.420598e-13 | OV32: 3164.6 | OW32: 1.300284e-12 | OX32: -4.419158e-13 | OY32: 3164.6 | OZ32: 1.300202e-12 | PA32: -4.418998e-13 | PB32: 3164.6 | PC32: 1.300174e-12 | PD32: -4.416895e-13 | PE32: 3164.6 | PF32: 1.300327e-12 | PG32: -4.414287e-13 | PH32: 3164.6 | PI32: 1.299454e-12 | PJ32: -4.417036e-13 | PK32: 3164.6 | PL32: 1.299091e-12 | PM32: -4.419913e-13 | PN32: 3164.6 | PO32: 1.298477e-12 | PP32: -4.419911e-13 | PQ32: 3164.6 | PR32: 1.298202e-12 | PS32: -4.419203e-13 | PT32: 3164.6 | PU32: 1.297999e-12 | PV32: -4.419999e-13 | PW32: 3164.6 | PX32: 1.297481e-12 | PY32: -4.421202e-13 | PZ32: 3164.6 | QA32: 1.298828e-12 | QB32: -4.407981e-13 | QC32: 3164.6 | QD32: 1.302125e-12 | QE32: -4.392612e-13 | QF32: 3164.6 | QG32: 1.305966e-12 | QH32: -4.374969e-13 | QI32: 3164.6 | QJ32: 1.310384e-12 | QK32: -4.357077e-13
A33: 3984.1 | B33: 2.588462e-12 | C33: -1.382806e-13 | D33: 3984.1 | E33: 2.568392e-12 | F33: -1.391466e-13 | G33: 3984.1 | H33: 2.561647e-12 | I33: -1.369929e-13 | J33: 3984.1 | K33: 2.555874e-12 | L33: -1.337608e-13 | M33: 3984.1 | N33: 2.55368e-12 | O33: -1.326928e-13 | P33: 3984.1 | Q33: 2.551625e-12 | R33: -1.303069e-13 | S33: 3984.1 | T33: 2.549225e-12 | U33: -1.297006e-13 | V33: 3984.1 | W33: 2.54976e-12 | X33: -1.27656e-13 | Y33: 3984.1 | Z33: 2.548611e-12 | AA33: -1.276702e-13 | AB33: 3984.1 | AC33: 2.547218e-12 | AD33: -1.268659e-13 | AE33: 3984.1 | AF33: 2.54727e-12 | AG33: -1.26341e-13 | AH33: 3984.1 | AI33: 2.546821e-12 | AJ33: -1.259266e-13 | AK33: 3984.1 | AL33: 2.54632e-12 | AM33: -1.260258e-13 | AN33: 3984.1 | AO33: 2.546428e-12 | AP33: -1.249393e-13 | AQ33: 3984.1 | AR33: 2.54522e-12 | AS33: -1.25585e-13 | AT33: 3984.1 | AU33: 2.544476e-12 | AV33: -1.248502e-13 | AW33: 3984.1 | AX33: 2.544175e-12 | AY33: -1.245921e-13 | AZ33: 3984.1 | BA33: 2.541277e-12 | BB33: -1.242199e-13 | BC33: 3984.1 | BD33: 2.539616e-12 | BE33: -1.228994e-13 | BF33: 3984.1 | BG33: 2.536522e-12 | BH33: -1.21302e-13 | BI33: 3984.1 | BJ33: 2.533342e-12 | BK33: -1.189805e-13 | BL33: 3984.1 | BM33: 2.529467e-12 | BN33: -1.172505e-13 | BO33: 3984.1 | BP33: 2.525347e-12 | BQ33: -1.148084e-13 | BR33: 3984.1 | BS33: 2.521218e-12 | BT33: -1.12593e-13 | BU33: 3984.1 | BV33: 2.517608e-12 | BW33: -1.100343e-13 | BX33: 3984.1 | BY33: 2.51253e-12 | BZ33: -1.080055e-13 | CA33: 3984.1 | CB33: 2.507816e-12 | CC33: -1.056292e-13 | CD33: 3984.1 | CE33: 2.5036e-12 | CF33: -1.031397e-13 | CG33: 3984.1 | CH33: 2.499259e-12 | CI33: -1.003932e-13 | CJ33: 3984.1 | CK33: 2.494886e-12 | CL33: -9.818962e-14 | CM33: 3984.1 | CN33: 2.489904e-12 | CO33: -9.597632e-14 | CP33: 3984.1 | CQ33: 2.513456e-12 | CR33: -9.456461e-14 | CS33: 3984.1 | CT33: 2.481414e-12 | CU33: -9.115342e-14 | CV33: 3984.1 | CW33: 2.477089e-12 | CX33: -8.903123e-14 | CY33: 3984.1 | CZ33: 2.472494e-12 | DA33: -8.65442e-14 | DB33: 3984.1 | DC33: 2.468135e-12 | DD33: -8.529616e-14 | DE33: 3984.1 | DF33: 2.464027e-12 | DG33: -8.281893e-14 | DH33: 3984.1 | DI33: 2.459772e-12 | DJ33: -8.041148e-14 | DK33: 3984.1 | DL33: 2.456399e-12 | DM33: -7.860448e-14 | DN33: 3984.1 | DO33: 2.449334e-12 | DP33: -7.566568e-14 | DQ33: 3984.1 | DR33: 2.444136e-12 | DS33: -7.464428e-14 | DT33: 3984.1 | DU33: 2.440625e-12 | DV33: -7.328293e-14 | DW33: 3984.1 | DX33: 2.436242e-12 | DY33: -7.170281e-14 | DZ33: 3984.1 | EA33: 2.432491e-12 | EB33: -6.971934e-14 | EC33: 3984.1 | ED33: 2.428754e-12 | EE33: -6.763271e-14 | EF33: 3984.1 | EG33: 2.424439e-12 | EH33: -6.549447e-14 | EI33: 3984.1 | EJ33: 2.419211e-12 | EK33: -6.42137e-14 | EL33: 3984.1 | EM33: 2.414927e-12 | EN33: -6.206411e-14 | EO33: 3984.1 | EP33: 2.410795e-12 | EQ33: -6.003404e-14 | ER33: 3984.1 | ES33: 2.40737e-12 | ET33: -5.866149e-14 | EU33: 3984.1 | EV33: 2.40277e-12 | EW33: -5.78076e-14 | EX33: 3984.1 | EY33: 2.398524e-12 | EZ33: -5.591417e-14 | FA33: 3984.1 | FB33: 2.395144e-12 | FC33: -5.425208e-14 | FD33: 3984.1 | FE33: 2.394592e-12 | FF33: -5.373542e-14 | FG33: 3984.1 | FH33: 2.39259e-12 | FI33: -5.353792e-14 | FJ33: 3984.1 | FK33: 2.429022e-12 | FL33: -8.24643e-14 | FM33: 3984.1 | FN33: 2.429529e-12 | FO33: -7.218191e-14 | FP33: 3984.1 | FQ33: 2.429228e-12 | FR33: -7.225586e-14 | FS33: 3984.1 | FT33: 2.428649e-12 | FU33: -7.203484e-14 | FV33: 3984.1 | FW33: 2.428108e-12 | FX33: -7.364537e-14 | FY33: 3984.1 | FZ33: 2.42757e-12 | GA33: -7.518673e-14 | GB33: 3984.1 | GC33: 2.426763e-12 | GD33: -7.625747e-14 | GE33: 3984.1 | GF33: 2.426192e-12 | GG33: -7.353943e-14 | GH33: 3984.1 | GI33: 2.421986e-12 | GJ33: -6.725452e-14 | GK33: 3984.1 | GL33: 2.413198e-12 | GM33: -5.865686e-14 | GN33: 3984.1 | GO33: 2.399439e-12 | GP33: -5.158917e-14 | GQ33: 3984.1 | GR33: 2.386048e-12 | GS33: -4.925083e-14 | GT33: 3984.1 | GU33: 2.375919e-12 | GV33: -5.345641e-14 | GW33: 3984.1 | GX33: 2.366906e-12 | GY33: -6.188254e-14 | GZ33: 3984.1 | HA33: 2.359961e-12 | HB33: -7.526753e-14 | HC33: 3984.1 | HD33: 2.351953e-12 | HE33: -9.529035e-14 | HF33: 3984.1 | HG33: 2.340043e-12 | HH33: -1.233169e-13 | HI33: 3984.1 | HJ33: 2.322293e-12 | HK33: -1.634166e-13 | HL33: 3984.1 | HM33: 2.294079e-12 | HN33: -2.169266e-13 | HO33: 3984.1 | HP33: 2.251444e-12 | HQ33: -2.820072e-13 | HR33: 3984.1 | HS33: 2.186768e-12 | HT33: -3.525725e-13 | HU33: 3984.1 | HV33: 2.101895e-12 | HW33: -4.205286e-13 | HX33: 3984.1 | HY33: 2.001096e-12 | HZ33: -4.761831e-13 | IA33: 3984.1 | IB33: 1.895766e-12 | IC33: -5.134271e-13 | ID33: 3984.1 | IE33: 1.802909e-12 | IF33: -5.325743e-13 | IG33: 3984.1 | IH33: 1.713618e-12 | II33: -5.391532e-13 | IJ33: 3984.1 | IK33: 1.634602e-12 | IL33: -5.370073e-13 | IM33: 3984.1 | IN33: 1.567244e-12 | IO33: -5.299125e-13 | IP33: 3984.1 | IQ33: 1.516387e-12 | IR33: -5.21566e-13 | IS33: 3984.1 | IT33: 1.477369e-12 | IU33: -5.139035e-13 | IV33: 3984.1 | IW33: 1.445279e-12 | IX33: -5.0694e-13 | IY33: 3984.1 | IZ33: 1.418958e-12 | JA33: -5.011933e-13 | JB33: 3984.1 | JC33: 1.397103e-12 | JD33: -4.966664e-13 | JE33: 3984.1 | JF33: 1.378274e-12 | JG33: -4.930891e-13 | JH33: 3984.1 | JI33: 1.362101e-12 | JJ33: -4.905263e-13 | JK33: 3984.1 | JL33: 1.347927e-12 | JM33: -4.888791e-13 | JN33: 3984.1 | JO33: 1.336015e-12 | JP33: -4.877489e-13 | JQ33: 3984.1 | JR33: 1.326018e-12 | JS33: -4.872623e-13 | JT33: 3984.1 | JU33: 1.317303e-12 | JV33: -4.869182e-13 | JW33: 3984.1 | JX33: 1.310115e-12 | JY33: -4.868385e-13 | JZ33: 3984.1 | KA33: 1.303869e-12 | KB33: -4.869141e-13 | KC33: 3984.1 | KD33: 1.298347e-12 | KE33: -4.872954e-13 | KF33: 3984.1 | KG33: 1.292913e-12 | KH33: -4.878899e-13 | KI33: 3984.1 | KJ33: 1.288083e-12 | KK33: -4.88393e-13 | KL33: 3984.1 | KM33: 1.284533e-12 | KN33: -4.885375e-13 | KO33: 3984.1 | KP33: 1.281151e-12 | KQ33: -4.88999e-13 | KR33: 3984.1 | KS33: 1.278305e-12 | KT33: -4.892894e-13 | KU33: 3984.1 | KV33: 1.275154e-12 | KW33: -4.898545e-13 | KX33: 3984.1 | KY33: 1.271976e-12 | KZ33: -4.903128e-13 | LA33: 3984.1 | LB33: 1.268856e-12 | LC33: -4.91055e-13 | LD33: 3984.1 | LE33: 1.266092e-12 | LF33: -4.914765e-13 | LG33: 3984.1 | LH33: 1.264084e-12 | LI33: -4.918262e-13 | LJ33: 3984.1 | LK33: 1.261886e-12 | LL33: -4.9218e-13 | LM33: 3984.1 | LN33: 1.260242e-12 | LO33: -4.924747e-13 | LP33: 3984.1 | LQ33: 1.258601e-12 | LR33: -4.927666e-13 | LS33: 3984.1 | LT33: 1.257121e-12 | LU33: -4.92953e-13 | LV33: 3984.1 | LW33: 1.255208e-12 | LX33: -4.935401e-13 | LY33: 3984.1 | LZ33: 1.253361e-12 | MA33: -4.941201e-13 | MB33: 3984.1 | MC33: 1.252177e-12 | MD33: -4.942567e-13 | ME33: 3984.1 | MF33: 1.250807e-12 | MG33: -4.945263e-13 | MH33: 3984.1 | MI33: 1.2496e-12 | MJ33: -4.948209e-13 | MK33: 3984.1 | ML33: 1.248116e-12 | MM33: -4.954095e-13 | MN33: 3984.1 | MO33: 1.247189e-12 | MP33: -4.953411e-13 | MQ33: 3984.1 | MR33: 1.246175e-12 | MS33: -4.955616e-13 | MT33: 3984.1 | MU33: 1.245664e-12 | MV33: -4.955124e-13 | MW33: 3984.1 | MX33: 1.245065e-12 | MY33: -4.956882e-13 | MZ33: 3984.1 | NA33: 1.243802e-12 | NB33: -4.959766e-13 | NC33: 3984.1 | ND33: 1.243107e-12 | NE33: -4.961218e-13 | NF33: 3984.1 | NG33: 1.241973e-12 | NH33: -4.964042e-13 | NI33: 3984.1 | NJ33: 1.241624e-12 | NK33: -4.963812e-13 | NL33: 3984.1 | NM33: 1.241057e-12 | NN33: -4.964584e-13 | NO33: 3984.1 | NP33: 1.240645e-12 | NQ33: -4.964368e-13 | NR33: 3984.1 | NS33: 1.24036e-12 | NT33: -4.96412e-13 | NU33: 3984.1 | NV33: 1.239753e-12 | NW33: -4.961423e-13 | NX33: 3984.1 | NY33: 1.239789e-12 | NZ33: -4.962993e-13 | OA33: 3984.1 | OB33: 1.239819e-12 | OC33: -4.96267e-13 | OD33: 3984.1 | OE33: 1.239222e-12 | OF33: -4.963759e-13 | OG33: 3984.1 | OH33: 1.239316e-12 | OI33: -4.963421e-13 | OJ33: 3984.1 | OK33: 1.238721e-12 | OL33: -4.965137e-13 | OM33: 3984.1 | ON33: 1.237906e-12 | OO33: -4.967212e-13 | OP33: 3984.1 | OQ33: 1.237281e-12 | OR33: -4.969238e-13 | OS33: 3984.1 | OT33: 1.23703e-12 | OU33: -4.969921e-13 | OV33: 3984.1 | OW33: 1.236805e-12 | OX33: -4.967767e-13 | OY33: 3984.1 | OZ33: 1.236648e-12 | PA33: -4.967487e-13 | PB33: 3984.1 | PC33: 1.236644e-12 | PD33: -4.965601e-13 | PE33: 3984.1 | PF33: 1.236767e-12 | PG33: -4.964316e-13 | PH33: 3984.1 | PI33: 1.235957e-12 | PJ33: -4.967634e-13 | PK33: 3984.1 | PL33: 1.235395e-12 | PM33: -4.969635e-13 | PN33: 3984.1 | PO33: 1.234987e-12 | PP33: -4.969404e-13 | PQ33: 3984.1 | PR33: 1.23455e-12 | PS33: -4.970746e-13 | PT33: 3984.1 | PU33: 1.234115e-12 | PV33: -4.972712e-13 | PW33: 3984.1 | PX33: 1.233616e-12 | PY33: -4.973435e-13 | PZ33: 3984.1 | QA33: 1.235562e-12 | QB33: -4.959555e-13 | QC33: 3984.1 | QD33: 1.239291e-12 | QE33: -4.941036e-13 | QF33: 3984.1 | QG33: 1.243997e-12 | QH33: -4.918472e-13 | QI33: 3984.1 | QJ33: 1.249229e-12 | QK33: -4.896595e-13
